Workbook

Sheet Table S1
A1: Table S1. Hu sheep experimental results: Initial and final body weights
A2: Samples | B2: Initial body weight, kg | C2: Final body weights, kg | D2: collection date
A3: 01 | B3: 20.2 | C3: 42.5 | D3: 2023-01-12
A4: 02 | B4: 28.8 | C4: 52.0 | D4: 2023-01-13
A5: 03 | B5: 27.0 | C5: 51.2 | D5: 2023-01-13
A6: 04 | B6: 24.0 | C6: 45.7 | D6: 2023-01-13
A7: 05 | B7: 25.8 | C7: 45.5 | D7: 2023-01-12
A8: 06 | B8: 28.6 | C8: 52.1 | D8: 2023-01-12
A9: 07 | B9: 18.2 | C9: 33.4 | D9: 2023-04-01
A10: 08 | B10: 26.2 | C10: 42.4 | D10: 2023-04-01
A11: 09 | B11: 22.6 | C11: 35.3 | D11: 2023-04-01
A12: 10 | B12: 22.9 | C12: 41.2 | D12: 2023-04-01
A13: 11 | B13: 28.7 | C13: 47.3 | D13: 2023-04-01
A14: 12 | B14: 31.6 | C14: 48.6 | D14: 2023-04-01
A15: 13 | B15: 19.0 | C15: 40.2 | D15: 2023-04-01
A16: 14 | B16: 20.9 | C16: 42.8 | D16: 2023-04-01
A17: 15 | B17: 23.3 | C17: 41.0 | D17: 2023-04-01
A18: 16 | B18: 25.2 | C18: 42.8 | D18: 2023-04-01
A19: Mean1 | B19: 24.56 | C19: 44.00
A20: SD2 | B20: 3.86 | C20: 5.45
A21: SEM3 | B21: 0.97 | C21: 1.36
A23: 1. Mean, average relative abundance.
A24: 2. SD, standard deviation
A25: 3. SEM, standard error of mean.

Sheet Table S2
A1: Table S2. Ingredient and nutrient composition of diets (dry matter basis, DM)
A2: Items
A3: Ingredients, % DM
A4: Corn | B4: 21.17
A5: Soybean meal | B5: 10.26
A6: Peanut vine | B6: 24.31
A7: Compound silage corn | B7: 41.02
A8: Limestone meal | B8: 0.49
A9: CaHPO4 | B9: 0.20
A10: NaHCO3 | B10: 0.70
A11: NaCl | B11: 0.70
A12: Premix1 | B12: 1.15
A13: Total | B13: 100.00
A14: Nutrient composition, % DM
A15: Metabolic energy, MJ/kg DM | B15: 9.62
A16: Crude protein, % DM | B16: 13.65
A17: Crude fat, % DM | B17: 2.66
A18: Crude ash, % DM | B18: 6.73
A19: Neutral detergent fiber, % DM | B19: 38.19
A20: Acid detergent fiber, % DM | B20: 25.20
A21: Ca, % DM | B21: 0.84
A22: P, % DM | B22: 0.48
A23: Note: 1Per kg premix contains: vitamin A 0-250 klU, vitamin D3 30-100klU, vitamin E ≥400 mg, Cu 0.1-1g, Fe 3-20 g, Zn 1-5 g, Mn 1-5 g.

Sheet Table S3
A1: Table S3. RNA quality and quantity assessment of extracted samples (N=48)
A2: Sample | B2: Concentration(ng/ul) | C2: Volume(ul) | D2: Total amount (ug) | E2: OD260/280 | F2: OD260/230 | G2: RIN | H2: 28S/18S
A3: R_01 | B3: 121.78 | C3: 40 | D3: 4.87 | E3: 2.03 | F3: 1.7 | G3: 8 | H3: 2.87
A4: R_02 | B4: 51.3 | C4: 40 | D4: 2.05 | E4: 2.24 | F4: 1.53 | G4: 7 | H4: 2.83
A5: R_03 | B5: 40.02 | C5: 40 | D5: 1.6 | E5: 2.07 | F5: 1.69 | G5: 4.9 | H5: 1.83
A6: R_04 | B6: 318.1 | C6: 60 | D6: 19.09 | E6: 1.78 | F6: 1.22 | G6: 7.6 | H6: 2.53
A7: R_05 | B7: 61.82 | C7: 40 | D7: 2.47 | E7: 1.91 | F7: 1.34 | G7: 8.1 | H7: 2.93
A8: R_06 | B8: 63.38 | C8: 40 | D8: 2.54 | E8: 2.27 | F8: 1.6 | G8: 5.7 | H8: 2.09
A9: R_07 | B9: 47.48 | C9: 40 | D9: 1.9 | E9: 1.85 | F9: 1.22 | G9: 7.3 | H9: 3.45
A10: R_08 | B10: 39.59 | C10: 40 | D10: 1.58 | E10: 2.1 | F10: 1.23 | G10: 7.1 | H10: 3.07
A11: R_09 | B11: 38.18 | C11: 40 | D11: 1.53 | E11: 2.13 | F11: 1.35 | G11: 6.2 | H11: 2.76
A12: R_10 | B12: 92.68 | C12: 40 | D12: 3.71 | E12: 1.97 | F12: 1.38 | G12: 8.2 | H12: 3.12
A13: R_11 | B13: 66.64 | C13: 40 | D13: 2.67 | E13: 2.07 | F13: 1.52 | G13: 7.7 | H13: 3.53
A14: R_12 | B14: 179.71 | C14: 40 | D14: 7.19 | E14: 2.02 | F14: 1.8 | G14: 8 | H14: 2.44
A15: R_13 | B15: 125.1 | C15: 40 | D15: 5 | E15: 2.03 | F15: 1.68 | G15: 7.6 | H15: 2.45
A16: R_14 | B16: 128.05 | C16: 40 | D16: 5.12 | E16: 1.91 | F16: 1.58 | G16: 7.9 | H16: 2.77
A17: R_15 | B17: 82.35 | C17: 40 | D17: 3.29 | E17: 1.84 | F17: 1.39 | G17: 8 | H17: 3.04
A18: R_16 | B18: 217.45 | C18: 40 | D18: 8.7 | E18: 2 | F18: 1.75 | G18: 8.2 | H18: 2.44
A19: L_01 | B19: 78.06 | C19: 40 | D19: 3.12 | E19: 2.11 | F19: 1.79 | G19: 7.8 | H19: 2.65
A20: L_02 | B20: 144.35 | C20: 40 | D20: 5.77 | E20: 2.11 | F20: 1.94 | G20: 8.1 | H20: 2.58
A21: L_03 | B21: 93.06 | C21: 40 | D21: 3.72 | E21: 1.95 | F21: 1.96 | G21: 7.8 | H21: 2.32
A22: L_04 | B22: 189.51 | C22: 40 | D22: 7.58 | E22: 2.09 | F22: 2.09 | G22: 8.2 | H22: 2.93
A23: L_05 | B23: 212.27 | C23: 40 | D23: 8.49 | E23: 2.05 | F23: 2.01 | G23: 8.3 | H23: 3.21
A24: L_06 | B24: 214.63 | C24: 40 | D24: 8.59 | E24: 2.1 | F24: 2.09 | G24: 8.3 | H24: 3.49
A25: L_07 | B25: 128.08 | C25: 40 | D25: 5.12 | E25: 2.15 | F25: 1.99 | G25: 8.1 | H25: 2.88
A26: L_08 | B26: 642.5 | C26: 40 | D26: 25.7 | E26: 2 | F26: 2.05 | G26: 8.2 | H26: 2.72
A27: L_09 | B27: 85.42 | C27: 40 | D27: 3.42 | E27: 2.03 | F27: 1.83 | G27: 7.8 | H27: 3.48
A28: L_10 | B28: 137.97 | C28: 40 | D28: 5.52 | E28: 2.07 | F28: 1.96 | G28: 8 | H28: 2.41
A29: L_11 | B29: 237.93 | C29: 40 | D29: 9.52 | E29: 2.05 | F29: 2.11 | G29: 8.4 | H29: 3.68
A30: L_12 | B30: 149.12 | C30: 40 | D30: 5.96 | E30: 2.05 | F30: 2.01 | G30: 8.2 | H30: 3.37
A31: L_13 | B31: 157.89 | C31: 40 | D31: 6.32 | E31: 2.04 | F31: 1.92 | G31: 7.8 | H31: 2.82
A32: L_14 | B32: 113.88 | C32: 40 | D32: 4.56 | E32: 2.05 | F32: 1.89 | G32: 8 | H32: 2.54
A33: L_15 | B33: 146.98 | C33: 40 | D33: 5.88 | E33: 2.08 | F33: 1.96 | G33: 8.3 | H33: 3
A34: L_16 | B34: 103.39 | C34: 40 | D34: 4.14 | E34: 1.92 | F34: 1.78 | G34: 8.4 | H34: 3.26
A35: M_01 | B35: 33.5 | C35: 40 | D35: 1.34 | E35: 2.08 | F35: 1.19 | G35: 7 | H35: 1.6
A36: M_02 | B36: 41.35 | C36: 40 | D36: 1.65 | E36: 2.13 | F36: 1.62 | G36: 7.3 | H36: 2.18
A37: M_03 | B37: 54.61 | C37: 40 | D37: 2.18 | E37: 2.25 | F37: 1.69 | G37: 6.9 | H37: 1.96
A38: M_04 | B38: 70.73 | C38: 40 | D38: 2.83 | E38: 2.25 | F38: 1.71 | G38: 7.4 | H38: 1.8
A39: M_05 | B39: 51.18 | C39: 40 | D39: 2.05 | E39: 2.19 | F39: 1.62 | G39: 7.4 | H39: 1.83
A40: M_06 | B40: 62.13 | C40: 40 | D40: 2.49 | E40: 2.01 | F40: 1.61 | G40: 7.3 | H40: 2.08
A41: M_07 | B41: 50.7 | C41: 40 | D41: 2.03 | E41: 2.07 | F41: 1.57 | G41: 7.4 | H41: 1.89
A42: M_08 | B42: 33.11 | C42: 40 | D42: 1.32 | E42: 2.01 | F42: 1.42 | G42: 7.6 | H42: 1.77
A43: M_09 | B43: 77.11 | C43: 40 | D43: 3.08 | E43: 2.11 | F43: 1.64 | G43: 7.6 | H43: 2.06
A44: M_10 | B44: 63.52 | C44: 40 | D44: 2.54 | E44: 2.06 | F44: 1.64 | G44: 7.7 | H44: 2.13
A45: M_11 | B45: 75.29 | C45: 40 | D45: 3.01 | E45: 2.1 | F45: 1.79 | G45: 7.7 | H45: 1.7
A46: M_12 | B46: 56.33 | C46: 40 | D46: 2.25 | E46: 1.92 | F46: 1.83 | G46: 7.5 | H46: 1.56
A47: M_13 | B47: 53.01 | C47: 40 | D47: 2.12 | E47: 2.06 | F47: 1.61 | G47: 7.2 | H47: 1.76
A48: M_14 | B48: 54.08 | C48: 40 | D48: 2.16 | E48: 2.22 | F48: 1.62 | G48: 6.6 | H48: 1.39
A49: M_15 | B49: 57.16 | C49: 40 | D49: 2.29 | E49: 2.1 | F49: 1.62 | G49: 6.9 | H49: 1.5
A50: M_16 | B50: 80.31 | C50: 40 | D50: 3.21 | E50: 2.13 | F50: 1.83 | G50: 7.4 | H50: 1.78

Sheet Table S4
A1: Table S4. Distribution of raw and clean reads in sheep tissues
A2: SampleID | B2: ReadSum | C2: BaseSum | D2: GC(%) | E2: N(%) | F2: Q20(%) | G2: Q30(%)
A3: R_01 | B3: 22117176 | C3: 6618871602 | D3: 49.41 | E3: 0.01 | F3: 97.67 | G3: 95.58
A4: R_02 | B4: 20887452 | C4: 6229756455 | D4: 49.82 | E4: 0.00 | F4: 97.95 | G4: 96.08
A5: R_03 | B5: 20554836 | C5: 6148964973 | D5: 49.77 | E5: 0.00 | F5: 97.89 | G5: 95.97
A6: R_04 | B6: 21514379 | C6: 6429934310 | D6: 48.41 | E6: 0.01 | F6: 97.84 | G6: 95.91
A7: R_05 | B7: 25705888 | C7: 7677182158 | D7: 48.85 | E7: 0.00 | F7: 96.06 | G7: 92.38
A8: R_06 | B8: 21552761 | C8: 6449364272 | D8: 49.77 | E8: 0.01 | F8: 97.49 | G8: 95.30
A9: R_07 | B9: 20917661 | C9: 6246677456 | D9: 49.73 | E9: 0.00 | F9: 97.85 | G9: 95.89
A10: R_08 | B10: 20763208 | C10: 6217075863 | D10: 49.50 | E10: 0.00 | F10: 97.37 | G10: 95.24
A11: R_09 | B11: 21093907 | C11: 6307603327 | D11: 49.31 | E11: 0.01 | F11: 97.76 | G11: 95.75
A12: R_10 | B12: 21575966 | C12: 6426200064 | D12: 49.29 | E12: 0.01 | F12: 98.03 | G12: 96.21
A13: R_11 | B13: 19963881 | C13: 5960506771 | D13: 49.01 | E13: 0.00 | F13: 98.15 | G13: 96.44
A14: R_12 | B14: 21837202 | C14: 6527917334 | D14: 49.06 | E14: 0.01 | F14: 97.93 | G14: 96.04
A15: R_13 | B15: 21093118 | C15: 6296801264 | D15: 48.70 | E15: 0.01 | F15: 97.91 | G15: 96.04
A16: R_14 | B16: 21817502 | C16: 6523574203 | D16: 49.78 | E16: 0.01 | F16: 97.61 | G16: 95.45
A17: R_15 | B17: 20885816 | C17: 6242411296 | D17: 49.14 | E17: 0.00 | F17: 97.88 | G17: 95.90
A18: R_16 | B18: 21887336 | C18: 6536937572 | D18: 50.08 | E18: 0.01 | F18: 97.74 | G18: 95.70
A19: L_01 | B19: 20489162 | C19: 6126052808 | D19: 48.64 | E19: 0.01 | F19: 97.97 | G19: 96.09
A20: L_02 | B20: 20377537 | C20: 6096516972 | D20: 47.11 | E20: 0.01 | F20: 97.43 | G20: 95.17
A21: L_03 | B21: 23663828 | C21: 7058598395 | D21: 49.14 | E21: 0.01 | F21: 97.79 | G21: 95.87
A22: L_04 | B22: 21236975 | C22: 6337582581 | D22: 49.83 | E22: 0.01 | F22: 98.22 | G22: 96.51
A23: L_05 | B23: 20998020 | C23: 6283398717 | D23: 49.06 | E23: 0.01 | F23: 97.75 | G23: 95.65
A24: L_06 | B24: 23312441 | C24: 6970430585 | D24: 49.28 | E24: 0.01 | F24: 97.91 | G24: 95.98
A25: L_07 | B25: 21923444 | C25: 6556329409 | D25: 48.45 | E25: 0.00 | F25: 97.78 | G25: 95.82
A26: L_08 | B26: 25219700 | C26: 7524936002 | D26: 49.25 | E26: 0.01 | F26: 97.76 | G26: 95.70
A27: L_09 | B27: 21475124 | C27: 6399867357 | D27: 49.19 | E27: 0.01 | F27: 97.88 | G27: 95.94
A28: L_10 | B28: 23687562 | C28: 7085721762 | D28: 49.13 | E28: 0.00 | F28: 97.80 | G28: 95.87
A29: L_11 | B29: 22214926 | C29: 6644993056 | D29: 49.59 | E29: 0.01 | F29: 98.00 | G29: 96.13
A30: L_12 | B30: 19753852 | C30: 5900970619 | D30: 49.53 | E30: 0.01 | F30: 97.94 | G30: 96.00
A31: L_13 | B31: 22931946 | C31: 6864841410 | D31: 49.46 | E31: 0.01 | F31: 97.95 | G31: 96.04
A32: L_14 | B32: 21533786 | C32: 6439013876 | D32: 49.32 | E32: 0.01 | F32: 97.46 | G32: 95.16
A33: L_15 | B33: 19171511 | C33: 5728822088 | D33: 49.02 | E33: 0.01 | F33: 98.01 | G33: 96.08
A34: L_16 | B34: 20570467 | C34: 6146598861 | D34: 47.30 | E34: 0.01 | F34: 97.82 | G34: 95.77
A35: M_01 | B35: 22834408 | C35: 6824970025 | D35: 53.99 | E35: 0.01 | F35: 97.62 | G35: 95.50
A36: M_02 | B36: 20942872 | C36: 6273982406 | D36: 52.09 | E36: 0.00 | F36: 97.49 | G36: 95.27
A37: M_03 | B37: 22053392 | C37: 6597312304 | D37: 53.52 | E37: 0.00 | F37: 97.77 | G37: 94.26
A38: M_04 | B38: 20222896 | C38: 6041889297 | D38: 52.70 | E38: 0.01 | F38: 97.48 | G38: 95.28
A39: M_05 | B39: 22099599 | C39: 6612405578 | D39: 52.32 | E39: 0.01 | F39: 97.69 | G39: 95.68
A40: M_06 | B40: 20844369 | C40: 6235124763 | D40: 51.88 | E40: 0.00 | F40: 97.68 | G40: 95.64
A41: M_07 | B41: 21209739 | C41: 6336465821 | D41: 53.15 | E41: 0.01 | F41: 97.44 | G41: 95.20
A42: M_08 | B42: 21320151 | C42: 6358934274 | D42: 53.00 | E42: 0.01 | F42: 97.72 | G42: 95.71
A43: M_09 | B43: 21479317 | C43: 6413482058 | D43: 52.49 | E43: 0.01 | F43: 97.42 | G43: 95.18
A44: M_10 | B44: 21047492 | C44: 6297684582 | D44: 52.48 | E44: 0.01 | F44: 97.76 | G44: 95.68
A45: M_11 | B45: 21259726 | C45: 6346474637 | D45: 53.33 | E45: 0.01 | F45: 97.58 | G45: 95.46
A46: M_12 | B46: 21824369 | C46: 6516822770 | D46: 52.42 | E46: 0.01 | F46: 97.60 | G46: 95.49
A47: M_13 | B47: 21266670 | C47: 6342618597 | D47: 52.74 | E47: 0.01 | F47: 97.69 | G47: 95.66
A48: M_14 | B48: 22911204 | C48: 6850875400 | D48: 52.40 | E48: 0.01 | F48: 97.58 | G48: 95.48
A49: M_15 | B49: 21473144 | C49: 6422468528 | D49: 53.20 | E49: 0.01 | F49: 97.47 | G49: 95.24
A50: M_16 | B50: 21142527 | C50: 6327787384 | D50: 52.86 | E50: 0.01 | F50: 97.36 | G50: 95.03
A51: Total | B51: =SUM(B2:B50) -> 1036660245 | C51: =SUM(C2:C50) -> 309803751842

Sheet Table S5
A1: Table S5. Mapping efficiency of RNA sequencing reads to the sheep genome for different tissue types
A2: Sample | B2: Total Reads | C2: Mapped Reads | D2: Persent | E2: Uniq Mapped Reads | F2: Persent | G2: Multiple Map Reads | H2: Persent | I2: Reads Map to '+' | J2: Persent | K2: Reads Map to '-' | L2: Persent
A3: R_01 | B3: 44,234,352 | C3: 37,074,775 | D3: =C3/$B3 -> 83.81% | E3: 30,222,565 | F3: =E3/$B3 -> 68.32% | G3: 6,852,210 | H3: =G3/$B3 -> 15.49% | I3: 24,659,440 | J3: =I3/$B3 -> 55.75% | K3: 24,618,048 | L3: =K3/$B3 -> 55.65%
A4: R_02 | B4: 41,774,904 | C4: 37,222,629 | D4: 89.10% | E4: 30,970,186 | F4: 74.14% | G4: 6,252,443 | H4: 14.97% | I4: 24,018,299 | J4: 57.49% | K4: 23,968,660 | L4: 57.38%
A5: R_03 | B5: 41,109,672 | C5: 37,082,280 | D5: 90.20% | E5: 30,985,816 | F5: 75.37% | G5: 6,096,464 | H5: 14.83% | I5: 23,819,715 | J5: 57.94% | K5: 23,718,773 | L5: 57.70%
A6: R_04 | B6: 43,028,758 | C6: 39,021,935 | D6: 90.69% | E6: 32,335,560 | F6: 75.15% | G6: 6,686,375 | H6: 15.54% | I6: 25,562,843 | J6: 59.41% | K6: 25,568,732 | L6: 59.42%
A7: R_05 | B7: 51,411,776 | C7: 46,037,418 | D7: 89.55% | E7: 38,538,079 | F7: 74.96% | G7: 7,499,339 | H7: 14.59% | I7: 30,082,677 | J7: 58.51% | K7: 30,154,432 | L7: 58.65%
A8: R_06 | B8: 43,105,522 | C8: 38,838,071 | D8: 90.10% | E8: 32,436,940 | F8: 75.25% | G8: 6,401,131 | H8: 14.85% | I8: 25,465,479 | J8: 59.08% | K8: 25,332,662 | L8: 58.77%
A9: R_07 | B9: 41,835,322 | C9: 37,600,737 | D9: 89.88% | E9: 31,689,716 | F9: 75.75% | G9: 5,911,021 | H9: 14.13% | I9: 24,225,981 | J9: 57.91% | K9: 24,120,611 | L9: 57.66%
A10: R_08 | B10: 41,526,416 | C10: 37,941,568 | D10: 91.37% | E10: 31,435,012 | F10: 75.70% | G10: 6,506,556 | H10: 15.67% | I10: 24,970,600 | J10: 60.13% | K10: 24,952,156 | L10: 60.09%
A11: R_09 | B11: 42,187,814 | C11: 38,039,184 | D11: 90.17% | E11: 31,167,676 | F11: 73.88% | G11: 6,871,508 | H11: 16.29% | I11: 24,954,825 | J11: 59.15% | K11: 24,887,236 | L11: 58.99%
A12: R_10 | B12: 43,151,932 | C12: 39,299,606 | D12: 91.07% | E12: 31,894,825 | F12: 73.91% | G12: 7,404,781 | H12: 17.16% | I12: 26,469,343 | J12: 61.34% | K12: 26,474,985 | L12: 61.35%
A13: R_11 | B13: 39,927,762 | C13: 36,319,565 | D13: 90.96% | E13: 29,633,237 | F13: 74.22% | G13: 6,686,328 | H13: 16.75% | I13: 24,491,761 | J13: 61.34% | K13: 24,389,417 | L13: 61.08%
A14: R_12 | B14: 43,674,404 | C14: 39,773,887 | D14: 91.07% | E14: 32,615,107 | F14: 74.68% | G14: 7,158,780 | H14: 16.39% | I14: 26,508,712 | J14: 60.70% | K14: 26,463,496 | L14: 60.59%
A15: R_13 | B15: 42,186,236 | C15: 38,379,834 | D15: 90.98% | E15: 31,098,121 | F15: 73.72% | G15: 7,281,713 | H15: 17.26% | I15: 25,764,780 | J15: 61.07% | K15: 25,732,830 | L15: 61.00%
A16: R_14 | B16: 43,635,004 | C16: 39,050,296 | D16: 89.49% | E16: 32,759,276 | F16: 75.08% | G16: 6,291,020 | H16: 14.42% | I16: 25,022,047 | J16: 57.34% | K16: 24,964,808 | L16: 57.21%
A17: R_15 | B17: 41,771,632 | C17: 38,086,546 | D17: 91.18% | E17: 31,380,078 | F17: 75.12% | G17: 6,706,468 | H17: 16.06% | I17: 25,395,974 | J17: 60.80% | K17: 25,307,096 | L17: 60.58%
A18: R_16 | B18: 43,774,672 | C18: 39,395,833 | D18: 90.00% | E18: 33,643,779 | F18: 76.86% | G18: 5,752,054 | H18: 13.14% | I18: 24,807,986 | J18: 56.67% | K18: 24,778,461 | L18: 56.60%
A19: L_01 | B19: 40,978,324 | C19: 37,653,015 | D19: 91.89% | E19: 33,815,714 | F19: 82.52% | G19: 3,837,301 | H19: 9.36% | I19: 22,028,898 | J19: 53.76% | K19: 21,960,753 | L19: 53.59%
A20: L_02 | B20: 40,755,074 | C20: 38,142,320 | D20: 93.59% | E20: 31,699,319 | F20: 77.78% | G20: 6,443,001 | H20: 15.81% | I20: 24,556,468 | J20: 60.25% | K20: 24,449,285 | L20: 59.99%
A21: L_03 | B21: 47,327,656 | C21: 43,532,191 | D21: 91.98% | E21: 39,341,351 | F21: 83.13% | G21: 4,190,840 | H21: 8.85% | I21: 25,094,627 | J21: 53.02% | K21: 25,011,566 | L21: 52.85%
A22: L_04 | B22: 42,473,950 | C22: 39,099,540 | D22: 92.06% | E22: 35,636,535 | F22: 83.90% | G22: 3,463,005 | H22: 8.15% | I22: 22,391,509 | J22: 52.72% | K22: 22,299,397 | L22: 52.50%
A23: L_05 | B23: 41,996,040 | C23: 38,875,761 | D23: 92.57% | E23: 35,536,769 | F23: 84.62% | G23: 3,338,992 | H23: 7.95% | I23: 22,001,560 | J23: 52.39% | K23: 21,930,222 | L23: 52.22%
A24: L_06 | B24: 46,624,882 | C24: 42,970,052 | D24: 92.16% | E24: 38,721,048 | F24: 83.05% | G24: 4,249,004 | H24: 9.11% | I24: 25,147,114 | J24: 53.93% | K24: 25,037,014 | L24: 53.70%
A25: L_07 | B25: 43,846,888 | C25: 40,591,823 | D25: 92.58% | E25: 36,023,799 | F25: 82.16% | G25: 4,568,024 | H25: 10.42% | I25: 24,244,356 | J25: 55.29% | K25: 24,126,798 | L25: 55.03%
A26: L_08 | B26: 50,439,400 | C26: 46,364,841 | D26: 91.92% | E26: 42,454,555 | F26: 84.17% | G26: 3,910,286 | H26: 7.75% | I26: 26,488,958 | J26: 52.52% | K26: 26,445,894 | L26: 52.43%
A27: L_09 | B27: 42,950,248 | C27: 39,324,514 | D27: 91.56% | E27: 35,657,207 | F27: 83.02% | G27: 3,667,307 | H27: 8.54% | I27: 22,423,499 | J27: 52.21% | K27: 22,325,205 | L27: 51.98%
A28: L_10 | B28: 47,375,124 | C28: 43,624,980 | D28: 92.08% | E28: 39,484,678 | F28: 83.34% | G28: 4,140,302 | H28: 8.74% | I28: 25,162,001 | J28: 53.11% | K28: 25,135,575 | L28: 53.06%
A29: L_11 | B29: 44,429,852 | C29: 40,793,949 | D29: 91.82% | E29: 36,754,141 | F29: 82.72% | G29: 4,039,808 | H29: 9.09% | I29: 23,821,820 | J29: 53.62% | K29: 23,732,496 | L29: 53.42%
A30: L_12 | B30: 39,507,704 | C30: 36,188,649 | D30: 91.60% | E30: 33,133,466 | F30: 83.87% | G30: 3,055,183 | H30: 7.73% | I30: 20,541,911 | J30: 51.99% | K30: 20,478,938 | L30: 51.84%
A31: L_13 | B31: 45,863,892 | C31: 42,050,505 | D31: 91.69% | E31: 38,093,585 | F31: 83.06% | G31: 3,956,920 | H31: 8.63% | I31: 24,328,230 | J31: 53.04% | K31: 24,247,720 | L31: 52.87%
A32: L_14 | B32: 43,067,572 | C32: 39,230,296 | D32: 91.09% | E32: 35,314,798 | F32: 82.00% | G32: 3,915,498 | H32: 9.09% | I32: 22,832,165 | J32: 53.01% | K32: 22,734,713 | L32: 52.79%
A33: L_15 | B33: 38,343,022 | C33: 35,038,817 | D33: 91.38% | E33: 31,565,086 | F33: 82.32% | G33: 3,473,731 | H33: 9.06% | I33: 20,480,994 | J33: 53.42% | K33: 20,372,001 | L33: 53.13%
A34: L_16 | B34: 41,140,934 | C34: 38,298,644 | D34: 93.09% | E34: 31,721,013 | F34: 77.10% | G34: 6,577,631 | H34: 15.99% | I34: 24,945,665 | J34: 60.63% | K34: 24,909,635 | L34: 60.55%
A35: M_01 | B35: 45,668,816 | C35: 41,566,986 | D35: 91.02% | E35: 37,942,442 | F35: 83.08% | G35: 3,624,544 | H35: 7.94% | I35: 23,471,304 | J35: 51.39% | K35: 23,568,936 | L35: 51.61%
A36: M_02 | B36: 41,885,744 | C36: 38,427,719 | D36: 91.74% | E36: 34,770,262 | F36: 83.01% | G36: 3,657,457 | H36: 8.73% | I36: 21,630,931 | J36: 51.64% | K36: 21,763,234 | L36: 51.96%
A37: M_03 | B37: 44,106,784 | C37: 40,011,097 | D37: 90.71% | E37: 36,581,912 | F37: 82.94% | G37: 3,429,185 | H37: 7.77% | I37: 22,588,117 | J37: 51.21% | K37: 22,724,670 | L37: 51.52%
A38: M_04 | B38: 40,445,792 | C38: 36,856,533 | D38: 91.13% | E38: 33,285,851 | F38: 82.30% | G38: 3,570,682 | H38: 8.83% | I38: 21,174,268 | J38: 52.35% | K38: 21,274,976 | L38: 52.60%
A39: M_05 | B39: 44,199,198 | C39: 40,571,587 | D39: 91.79% | E39: 36,056,707 | F39: 81.58% | G39: 4,514,880 | H39: 10.21% | I39: 23,741,334 | J39: 53.71% | K39: 23,822,859 | L39: 53.90%
A40: M_06 | B40: 41,688,738 | C40: 38,494,743 | D40: 92.34% | E40: 34,538,940 | F40: 82.85% | G40: 3,955,803 | H40: 9.49% | I40: 22,614,672 | J40: 54.25% | K40: 22,660,810 | L40: 54.36%
A41: M_07 | B41: 42,419,478 | C41: 39,063,062 | D41: 92.09% | E41: 35,180,621 | F41: 82.94% | G41: 3,882,441 | H41: 9.15% | I41: 22,682,624 | J41: 53.47% | K41: 22,787,330 | L41: 53.72%
A42: M_08 | B42: 42,640,302 | C42: 38,879,904 | D42: 91.18% | E42: 34,479,368 | F42: 80.86% | G42: 4,400,536 | H42: 10.32% | I42: 23,116,027 | J42: 54.21% | K42: 23,280,225 | L42: 54.60%
A43: M_09 | B43: 42,958,634 | C43: 39,343,597 | D43: 91.58% | E43: 34,907,316 | F43: 81.26% | G43: 4,436,281 | H43: 10.33% | I43: 23,285,793 | J43: 54.21% | K43: 23,407,071 | L43: 54.49%
A44: M_10 | B44: 42,094,984 | C44: 38,672,691 | D44: 91.87% | E44: 34,432,978 | F44: 81.80% | G44: 4,239,713 | H44: 10.07% | I44: 22,596,130 | J44: 53.68% | K44: 22,743,726 | L44: 54.03%
A45: M_11 | B45: 42,519,452 | C45: 38,982,379 | D45: 91.68% | E45: 35,195,474 | F45: 82.77% | G45: 3,786,905 | H45: 8.91% | I45: 22,619,063 | J45: 53.20% | K45: 22,712,910 | L45: 53.42%
A46: M_12 | B46: 43,648,738 | C46: 40,086,577 | D46: 91.84% | E46: 35,244,818 | F46: 80.75% | G46: 4,841,759 | H46: 11.09% | I46: 24,073,648 | J46: 55.15% | K46: 24,244,204 | L46: 55.54%
A47: M_13 | B47: 42,533,340 | C47: 38,879,322 | D47: 91.41% | E47: 34,787,473 | F47: 81.79% | G47: 4,091,849 | H47: 9.62% | I47: 22,830,132 | J47: 53.68% | K47: 22,917,203 | L47: 53.88%
A48: M_14 | B48: 45,822,408 | C48: 40,892,149 | D48: 89.24% | E48: 36,299,439 | F48: 79.22% | G48: 4,592,710 | H48: 10.02% | I48: 24,331,784 | J48: 53.10% | K48: 24,418,127 | L48: 53.29%
A49: M_15 | B49: 42,946,288 | C49: 39,151,493 | D49: 91.16% | E49: 35,388,730 | F49: 82.40% | G49: 3,762,763 | H49: 8.76% | I49: 22,658,911 | J49: 52.76% | K49: 22,789,191 | L49: 53.06%
A50: M_16 | B50: 42,285,054 | C50: 38,669,764 | D50: 91.45% | E50: 34,999,710 | F50: 82.77% | G50: 3,670,054 | H50: 8.68% | I50: 22,226,287 | J50: 52.56% | K50: 22,368,813 | L50: 52.90%
A51: Total | B51: =SUM(B2:B50) -> 2,073,320,490 | C51: =SUM(C2:C50) -> 1,889,493,664 | E51: =SUM(E2:E50) -> 1,651,851,078 | I51: =SUM(I2:I50) -> 1,148,351,262 | K51: =SUM(K2:K50) -> 1,148,113,900
A52: Mean of R | B52: =AVERAGE(B3:B18) -> 43,021,011 | C52: =AVERAGE(C3:C18) -> 38,697,760 | D52: 89.98% | E52: =AVERAGE(E3:E18) -> 32,050,373 | F52: 74.51% | G52: =AVERAGE(G3:G18) -> 6,647,387 | H52: 15.47% | I52: =AVERAGE(I3:I18) -> 25,388,779 | J52: 59.04% | K52: 25,339,525 | L52: 58.92%
A53: Mean of L | B53: =AVERAGE(B19:B34) -> 43,570,035 | C53: =AVERAGE(C19:C34) -> 40,111,244 | D53: 92.07% | E53: =AVERAGE(E19:E34) -> 35,934,567 | F53: 82.42% | G53: =AVERAGE(G19:G34) -> 4,176,677 | H53: 9.64% | I53: =AVERAGE(I19:I34) -> 23,530,611 | J53: 54.06% | K53: 23,449,826 | L53: 53.87%
A54: Mean of M | B54: =AVERAGE(B35:B50) -> 42,991,484 | C54: =AVERAGE(C35:C50) -> 39,284,350 | D54: 91.39% | E54: =AVERAGE(E35:E50) -> 35,255,753 | F54: 82.02% | G54: =AVERAGE(G35:G50) -> 4,028,598 | H54: 9.37% | I54: =AVERAGE(I35:I50) -> 22,852,564 | J54: 53.16% | K54: 22,967,768 | L54: 53.43%

Sheet Table S6
A1: Table S6. Identification of tissue transcripts in the rumen epithelium, liver, and muscle of Hu sheep
A2: ID | B2: Rumen epithelium | R2: Liver | AH2: Muscle
B3: R_01 | C3: R_02 | D3: R_03 | E3: R_04 | F3: R_05 | G3: R_06 | H3: R_07 | I3: R_08 | J3: R_09 | K3: R_10 | L3: R_11 | M3: R_12 | N3: R_13 | O3: R_14 | P3: R_15 | Q3: R_16 | R3: L_01 | S3: L_02 | T3: L_03 | U3: L_04 | V3: L_05 | W3: L_06 | X3: L_07 | Y3: L_08 | Z3: L_09 | AA3: L_10 | AB3: L_11 | AC3: L_12 | AD3: L_13 | AE3: L_14 | AF3: L_15 | AG3: L_16 | AH3: M_01 | AI3: M_02 | AJ3: M_03 | AK3: M_04 | AL3: M_05 | AM3: M_06 | AN3: M_07 | AO3: M_08 | AP3: M_09 | AQ3: M_10 | AR3: M_11 | AS3: M_12 | AT3: M_13 | AU3: M_14 | AV3: M_15 | AW3: M_16
A4: ENSOARG00000006419 | B4: 0 | C4: 0 | D4: 0 | E4: 0 | F4: 0 | G4: 0 | H4: 0 | I4: 0 | J4: 0 | K4: 0 | L4: 0 | M4: 0 | N4: 0 | O4: 0 | P4: 0 | Q4: 0 | R4: 0 | S4: 0 | T4: 0 | U4: 0 | V4: 0 | W4: 0 | X4: 0 | Y4: 0 | Z4: 0 | AA4: 0 | AB4: 0 | AC4: 0 | AD4: 0 | AE4: 0 | AF4: 0 | AG4: 0 | AH4: 0 | AI4: 0 | AJ4: 0 | AK4: 0 | AL4: 0 | AM4: 0 | AN4: 0 | AO4: 0 | AP4: 0 | AQ4: 0.316609 | AR4: 0 | AS4: 0 | AT4: 0 | AU4: 0 | AV4: 0 | AW4: 0
A5: ENSOARG00000015684 | B5: 0 | C5: 0 | D5: 0 | E5: 0 | F5: 0 | G5: 0 | H5: 0 | I5: 0.01902 | J5: 0 | K5: 0 | L5: 0.023045 | M5: 0 | N5: 0 | O5: 0 | P5: 0 | Q5: 0 | R5: 0.814052 | S5: 0.73274 | T5: 0.470661 | U5: 0.393667 | V5: 0.957876 | W5: 1.639586 | X5: 0.897652 | Y5: 1.191469 | Z5: 0.583814 | AA5: 0.173443 | AB5: 0.850158 | AC5: 1.789081 | AD5: 0.982857 | AE5: 0.372448 | AF5: 0.740583 | AG5: 1.528551 | AH5: 0 | AI5: 0.380646 | AJ5: 0.090461 | AK5: 0.238304 | AL5: 0.018529 | AM5: 0 | AN5: 0 | AO5: 0.03427 | AP5: 0.051808 | AQ5: 0.024676 | AR5: 0.060893 | AS5: 0 | AT5: 0.015178 | AU5: 0.023227 | AV5: 0.061999 | AW5: 0
A6: 5718 | B6: 4.204985 | C6: 4.072092 | D6: 4.681923 | E6: 8.697875 | F6: 7.436978 | G6: 4.046608 | H6: 6.382533 | I6: 7.405335 | J6: 7.712667 | K6: 6.941367 | L6: 6.022071 | M6: 8.469786 | N6: 8.296446 | O6: 8.059176 | P6: 8.795368 | Q6: 13.699518 | R6: 1.640144 | S6: 1.261735 | T6: 1.323465 | U6: 1.293901 | V6: 2.245236 | W6: 1.685207 | X6: 1.335625 | Y6: 1.013369 | Z6: 1.389274 | AA6: 1.000205 | AB6: 1.564454 | AC6: 0.94323 | AD6: 1.126326 | AE6: 1.946448 | AF6: 1.549172 | AG6: 2.698325 | AH6: 0.402057 | AI6: 0.589491 | AJ6: 0.194749 | AK6: 0.624678 | AL6: 0.573275 | AM6: 0.41689 | AN6: 0.218464 | AO6: 0.207459 | AP6: 0.394564 | AQ6: 0.256302 | AR6: 0.124941 | AS6: 0.526155 | AT6: 0.359711 | AU6: 0.350519 | AV6: 0.452999 | AW6: 0.74754
A7: 636 | B7: 0 | C7: 0 | D7: 0 | E7: 0 | F7: 0 | G7: 0 | H7: 0 | I7: 0 | J7: 0 | K7: 0 | L7: 0 | M7: 0 | N7: 0 | O7: 0 | P7: 0 | Q7: 0 | R7: 0 | S7: 0 | T7: 0 | U7: 0 | V7: 0 | W7: 0 | X7: 0 | Y7: 0.248378 | Z7: 0 | AA7: 0.572073 | AB7: 0 | AC7: 0 | AD7: 0 | AE7: 0 | AF7: 0 | AG7: 0 | AH7: 0 | AI7: 0 | AJ7: 0 | AK7: 0 | AL7: 0 | AM7: 0 | AN7: 0 | AO7: 0 | AP7: 0 | AQ7: 0 | AR7: 0 | AS7: 0 | AT7: 0 | AU7: 0 | AV7: 0 | AW7: 0
A8: ENSOARG00000015219 | B8: 16.271177 | C8: 12.831074 | D8: 13.716421 | E8: 16.630426 | F8: 14.017427 | G8: 19.488558 | H8: 14.412156 | I8: 14.536611 | J8: 13.228876 | K8: 13.928203 | L8: 14.896099 | M8: 13.293849 | N8: 11.986506 | O8: 14.042347 | P8: 13.953049 | Q8: 14.115977 | R8: 12.592321 | S8: 10.045135 | T8: 10.873 | U8: 12.716207 | V8: 11.70382 | W8: 13.204224 | X8: 16.505276 | Y8: 11.760018 | Z8: 14.743043 | AA8: 15.003065 | AB8: 10.756778 | AC8: 13.748033 | AD8: 10.766251 | AE8: 13.390626 | AF8: 10.755063 | AG8: 9.496127 | AH8: 11.837117 | AI8: 16.081198 | AJ8: 13.22102 | AK8: 12.630001 | AL8: 11.862952 | AM8: 15.472958 | AN8: 14.086365 | AO8: 15.788658 | AP8: 16.113991 | AQ8: 24.525818 | AR8: 13.681314 | AS8: 11.514892 | AT8: 11.920218 | AU8: 10.009297 | AV8: 12.466734 | AW8: 13.471978
A9: 7186 | B9: 0 | C9: 0 | D9: 0 | E9: 0 | F9: 0 | G9: 0 | H9: 0 | I9: 0 | J9: 0 | K9: 0 | L9: 0 | M9: 0 | N9: 0 | O9: 0.231494 | P9: 0 | Q9: 0 | R9: 0 | S9: 0 | T9: 0 | U9: 0 | V9: 0 | W9: 0 | X9: 0 | Y9: 0 | Z9: 0 | AA9: 0 | AB9: 0 | AC9: 0 | AD9: 0 | AE9: 0 | AF9: 0 | AG9: 0 | AH9: 0 | AI9: 0 | AJ9: 0 | AK9: 0 | AL9: 0 | AM9: 0 | AN9: 0 | AO9: 0 | AP9: 0 | AQ9: 0 | AR9: 0 | AS9: 0 | AT9: 0 | AU9: 0 | AV9: 0 | AW9: 0
A10: 4569 | B10: 0 | C10: 0 | D10: 0 | E10: 0 | F10: 0.109218 | G10: 0 | H10: 0 | I10: 0 | J10: 0 | K10: 0 | L10: 0.451689 | M10: 0 | N10: 0 | O10: 0 | P10: 0 | Q10: 0 | R10: 0 | S10: 0 | T10: 0 | U10: 0 | V10: 0 | W10: 0 | X10: 0 | Y10: 0 | Z10: 0 | AA10: 0 | AB10: 0 | AC10: 0 | AD10: 0 | AE10: 0 | AF10: 0 | AG10: 0 | AH10: 0 | AI10: 0 | AJ10: 0 | AK10: 0 | AL10: 0 | AM10: 0 | AN10: 0 | AO10: 0 | AP10: 0 | AQ10: 0 | AR10: 0 | AS10: 0 | AT10: 0 | AU10: 0 | AV10: 0 | AW10: 0
A11: ENSOARG00000012982 | B11: 0 | C11: 0 | D11: 0 | E11: 0 | F11: 0 | G11: 0 | H11: 0 | I11: 0 | J11: 0 | K11: 0 | L11: 0 | M11: 0 | N11: 0 | O11: 0 | P11: 0 | Q11: 0 | R11: 0 | S11: 0 | T11: 0 | U11: 0 | V11: 0 | W11: 0 | X11: 0 | Y11: 0 | Z11: 0 | AA11: 0 | AB11: 0 | AC11: 0 | AD11: 0 | AE11: 0 | AF11: 0 | AG11: 0 | AH11: 0 | AI11: 0 | AJ11: 0 | AK11: 0 | AL11: 0 | AM11: 0 | AN11: 0 | AO11: 0 | AP11: 0 | AQ11: 0 | AR11: 0 | AS11: 0 | AT11: 0 | AU11: 0 | AV11: 0 | AW11: 0
A12: ENSOARG00000012467 | B12: 0 | C12: 0 | D12: 0 | E12: 0 | F12: 0 | G12: 0 | H12: 0 | I12: 0 | J12: 0 | K12: 0 | L12: 0 | M12: 0 | N12: 0 | O12: 0 | P12: 0 | Q12: 0 | R12: 0 | S12: 0 | T12: 0 | U12: 0 | V12: 0 | W12: 0 | X12: 0 | Y12: 0 | Z12: 0 | AA12: 0 | AB12: 0 | AC12: 0 | AD12: 0 | AE12: 0 | AF12: 0 | AG12: 0 | AH12: 0 | AI12: 0 | AJ12: 0 | AK12: 0 | AL12: 0 | AM12: 0 | AN12: 0 | AO12: 0 | AP12: 0 | AQ12: 0 | AR12: 0 | AS12: 0 | AT12: 0 | AU12: 0 | AV12: 0 | AW12: 0
A13: ENSOARG00000002351 | B13: 0 | C13: 0 | D13: 0 | E13: 0 | F13: 0 | G13: 0 | H13: 0 | I13: 0 | J13: 0 | K13: 0 | L13: 0 | M13: 0 | N13: 0 | O13: 0 | P13: 0 | Q13: 0 | R13: 0 | S13: 0 | T13: 0 | U13: 0 | V13: 0 | W13: 0 | X13: 0 | Y13: 0 | Z13: 0 | AA13: 0 | AB13: 0 | AC13: 0 | AD13: 0 | AE13: 0 | AF13: 0 | AG13: 0 | AH13: 0.434521 | AI13: 0.402166 | AJ13: 0.663804 | AK13: 0.603639 | AL13: 1.107118 | AM13: 0.455668 | AN13: 0.567611 | AO13: 0.16385 | AP13: 0.486644 | AQ13: 0.690281 | AR13: 0.885312 | AS13: 0.407979 | AT13: 0.984974 | AU13: 0.365217 | AV13: 0 | AW13: 0.839423
A14: 11824 | B14: 0.906395 | C14: 0.605285 | D14: 0.382424 | E14: 1.43599 | F14: 0.62425 | G14: 0.925632 | H14: 1.58405 | I14: 1.315709 | J14: 1.770098 | K14: 1.775636 | L14: 1.531378 | M14: 3.15439 | N14: 1.590092 | O14: 1.764663 | P14: 1.48951 | Q14: 3.938102 | R14: 1.826199 | S14: 1.552728 | T14: 2.290579 | U14: 1.990337 | V14: 2.786947 | W14: 1.990214 | X14: 1.904575 | Y14: 1.119534 | Z14: 1.056828 | AA14: 1.059761 | AB14: 0.776876 | AC14: 1.032784 | AD14: 1.398182 | AE14: 1.519274 | AF14: 0.901041 | AG14: 2.687514 | AH14: 0.440946 | AI14: 0.632907 | AJ14: 0.164504 | AK14: 0.857171 | AL14: 0.583491 | AM14: 1.228215 | AN14: 0.140654 | AO14: 0.316319 | AP14: 0.704581 | AQ14: 0.461998 | AR14: 0.107887 | AS14: 0.370966 | AT14: 0.240809 | AU14: 0.445459 | AV14: 0.193228 | AW14: 0.633543
A15: 5064 | B15: 0 | C15: 0 | D15: 0 | E15: 0 | F15: 0 | G15: 0 | H15: 0 | I15: 0 | J15: 0 | K15: 0 | L15: 0 | M15: 0 | N15: 0 | O15: 0 | P15: 0 | Q15: 0 | R15: 0 | S15: 0 | T15: 0 | U15: 0 | V15: 0 | W15: 0 | X15: 0 | Y15: 0 | Z15: 0 | AA15: 0 | AB15: 0 | AC15: 0 | AD15: 0 | AE15: 0 | AF15: 0 | AG15: 0 | AH15: 0 | AI15: 0 | AJ15: 0 | AK15: 0.796065 | AL15: 0 | AM15: 0 | AN15: 0 | AO15: 0 | AP15: 0 | AQ15: 0 | AR15: 0.527744 | AS15: 0 | AT15: 0 | AU15: 0 | AV15: 0 | AW15: 0
A16: 13909 | B16: 1.87842 | C16: 1.962845 | D16: 2.558747 | E16: 1.387798 | F16: 1.630008 | G16: 4.446241 | H16: 2.594819 | I16: 1.758844 | J16: 2.716418 | K16: 1.908646 | L16: 2.697689 | M16: 4.935984 | N16: 2.038093 | O16: 2.848787 | P16: 4.816897 | Q16: 2.715216 | R16: 4.758181 | S16: 1.561311 | T16: 3.698458 | U16: 3.07526 | V16: 2.504234 | W16: 2.28297 | X16: 2.860288 | Y16: 3.84499 | Z16: 2.298276 | AA16: 66.104139 | AB16: 2.640125 | AC16: 2.877687 | AD16: 2.358709 | AE16: 2.086643 | AF16: 2.200524 | AG16: 1.982803 | AH16: 0 | AI16: 0 | AJ16: 0 | AK16: 0.020855 | AL16: 0 | AM16: 0.456855 | AN16: 0 | AO16: 0 | AP16: 0.031588 | AQ16: 0.045868 | AR16: 0 | AS16: 0.04152 | AT16: 0 | AU16: 0.029879 | AV16: 0 | AW16: 0
A17: 8653 | B17: 0.140966 | C17: 0.36042 | D17: 0.460206 | E17: 0.553566 | F17: 0.039224 | G17: 0.12246 | H17: 0.192863 | I17: 0.348731 | J17: 0.394652 | K17: 0.601655 | L17: 0.308689 | M17: 0.473526 | N17: 0.506972 | O17: 0.817619 | P17: 0.250118 | Q17: 0.175378 | R17: 0.429242 | S17: 0.193436 | T17: 0.45776 | U17: 0.859536 | V17: 0.415388 | W17: 0.713228 | X17: 0.477246 | Y17: 0.737698 | Z17: 0.557085 | AA17: 0.59087 | AB17: 0.837838 | AC17: 0.711282 | AD17: 0.15431 | AE17: 0.594555 | AF17: 0.445828 | AG17: 0.233696 | AH17: 0 | AI17: 0.081957 | AJ17: 0.200457 | AK17: 0.272635 | AL17: 0.217593 | AM17: 0.275845 | AN17: 0.077698 | AO17: 0.154269 | AP17: 0.148158 | AQ17: 0 | AR17: 0.172249 | AS17: 0.266508 | AT17: 0.054459 | AU17: 0.234334 | AV17: 0.449969 | AW17: 0.35946
A18: ENSOARG00000020884 | B18: 1.725504 | C18: 2.058823 | D18: 2.496012 | E18: 2.155519 | F18: 1.352312 | G18: 1.034732 | H18: 1.527522 | I18: 3.035193 | J18: 1.618975 | K18: 2.410205 | L18: 1.393486 | M18: 0.764793 | N18: 1.050377 | O18: 1.783395 | P18: 1.129735 | Q18: 1.359904 | R18: 0 | S18: 0 | T18: 0.28615 | U18: 0.062816 | V18: 0 | W18: 0.174056 | X18: 0 | Y18: 0.052009 | Z18: 0 | AA18: 0 | AB18: 0 | AC18: 0 | AD18: 0.089757 | AE18: 0 | AF18: 0.144673 | AG18: 0 | AH18: 4.658316 | AI18: 5.378484 | AJ18: 7.721138 | AK18: 6.400644 | AL18: 3.573462 | AM18: 4.706232 | AN18: 5.166516 | AO18: 3.690672 | AP18: 4.276807 | AQ18: 5.414753 | AR18: 3.488883 | AS18: 4.916889 | AT18: 2.641495 | AU18: 3.742016 | AV18: 3.101187 | AW18: 3.851063
A19: ENSOARG00000020690 | B19: 167.87236 | C19: 198.736313 | D19: 179.021286 | E19: 166.807434 | F19: 149.428146 | G19: 244.313293 | H19: 182.528793 | I19: 205.916855 | J19: 211.185684 | K19: 161.961365 | L19: 184.273285 | M19: 233.146378 | N19: 196.698532 | O19: 198.490601 | P19: 187.295746 | Q19: 229.406555 | R19: 76.754517 | S19: 48.627506 | T19: 72.927933 | U19: 63.663605 | V19: 63.341854 | W19: 61.484245 | X19: 59.340744 | Y19: 35.792763 | Z19: 65.682114 | AA19: 52.452759 | AB19: 63.726398 | AC19: 70.310143 | AD19: 56.768272 | AE19: 86.720367 | AF19: 56.011105 | AG19: 48.523903 | AH19: 276.873749 | AI19: 413.866089 | AJ19: 335.493713 | AK19: 343.692047 | AL19: 293.789215 | AM19: 308.256104 | AN19: 283.421387 | AO19: 299.465637 | AP19: 321.527802 | AQ19: 208.311218 | AR19: 275.124359 | AS19: 378.465546 | AT19: 293.369537 | AU19: 342.258728 | AV19: 265.602448 | AW19: 361.350769
A20: 14105 | B20: 0 | C20: 0 | D20: 0 | E20: 0 | F20: 0 | G20: 0 | H20: 0 | I20: 0 | J20: 0 | K20: 0 | L20: 0 | M20: 0 | N20: 0 | O20: 0 | P20: 0 | Q20: 0 | R20: 0 | S20: 0 | T20: 0 | U20: 0 | V20: 0 | W20: 0 | X20: 0 | Y20: 0 | Z20: 0.237671 | AA20: 0 | AB20: 0 | AC20: 0.21914 | AD20: 0.148981 | AE20: 0 | AF20: 0 | AG20: 0 | AH20: 0 | AI20: 0 | AJ20: 0 | AK20: 0 | AL20: 0 | AM20: 0 | AN20: 0 | AO20: 0 | AP20: 0 | AQ20: 0 | AR20: 0 | AS20: 0 | AT20: 0 | AU20: 0 | AV20: 0 | AW20: 0
A21: ENSOARG00000016153 | B21: 5.458739 | C21: 7.196333 | D21: 6.817647 | E21: 7.563856 | F21: 9.949892 | G21: 5.302279 | H21: 5.881863 | I21: 5.602186 | J21: 4.312402 | K21: 3.722696 | L21: 6.355617 | M21: 2.340958 | N21: 3.846274 | O21: 5.627613 | P21: 6.719182 | Q21: 2.351132 | R21: 0.171723 | S21: 0.88225 | T21: 1.135838 | U21: 0.421718 | V21: 0.351154 | W21: 1.038617 | X21: 0.565351 | Y21: 0.150925 | Z21: 0.049449 | AA21: 0.144374 | AB21: 1.069662 | AC21: 0.111693 | AD21: 0 | AE21: 1.028768 | AF21: 1.057093 | AG21: 0.223254 | AH21: 3.48487 | AI21: 6.202018 | AJ21: 2.960129 | AK21: 5.650882 | AL21: 5.35744 | AM21: 8.751535 | AN21: 5.16872 | AO21: 8.266696 | AP21: 5.195845 | AQ21: 4.690507 | AR21: 6.361963 | AS21: 5.864835 | AT21: 6.046409 | AU21: 2.547899 | AV21: 7.424694 | AW21: 8.443466
A22: ENSOARG00000002557 | B22: 27.255947 | C22: 20.587376 | D22: 28.219479 | E22: 24.534185 | F22: 20.759842 | G22: 26.764851 | H22: 27.01952 | I22: 22.179996 | J22: 27.77504 | K22: 18.305933 | L22: 28.318861 | M22: 26.734661 | N22: 31.586918 | O22: 29.311911 | P22: 30.985474 | Q22: 25.008272 | R22: 11.678668 | S22: 14.433134 | T22: 10.381085 | U22: 10.635406 | V22: 11.925187 | W22: 14.810434 | X22: 21.462231 | Y22: 8.197847 | Z22: 15.623961 | AA22: 9.683145 | AB22: 20.415846 | AC22: 15.866615 | AD22: 18.085588 | AE22: 16.542444 | AF22: 22.894863 | AG22: 14.276928 | AH22: 15.037157 | AI22: 24.374914 | AJ22: 22.435127 | AK22: 21.380829 | AL22: 15.913502 | AM22: 24.311478 | AN22: 19.570362 | AO22: 14.221895 | AP22: 16.165213 | AQ22: 21.851748 | AR22: 22.713978 | AS22: 17.831381 | AT22: 23.655064 | AU22: 17.83127 | AV22: 20.149183 | AW22: 16.880945
A23: 9026 | B23: 0 | C23: 0 | D23: 0 | E23: 0 | F23: 0 | G23: 0 | H23: 0 | I23: 0.238739 | J23: 0 | K23: 0 | L23: 0 | M23: 0 | N23: 0.143171 | O23: 0 | P23: 0 | Q23: 0 | R23: 0 | S23: 0 | T23: 0 | U23: 0 | V23: 0 | W23: 0 | X23: 0 | Y23: 0 | Z23: 0 | AA23: 0 | AB23: 0 | AC23: 0 | AD23: 0 | AE23: 0 | AF23: 0 | AG23: 0 | AH23: 0 | AI23: 0 | AJ23: 0 | AK23: 0 | AL23: 0 | AM23: 0 | AN23: 0 | AO23: 0 | AP23: 0 | AQ23: 0 | AR23: 0 | AS23: 0 | AT23: 0 | AU23: 0 | AV23: 0 | AW23: 0
A24: 6027 | B24: 0 | C24: 0 | D24: 0 | E24: 0.250726 | F24: 0 | G24: 0 | H24: 0 | I24: 0 | J24: 0 | K24: 0 | L24: 0 | M24: 0 | N24: 0 | O24: 0 | P24: 0 | Q24: 0 | R24: 0 | S24: 0 | T24: 0 | U24: 0 | V24: 0 | W24: 0 | X24: 0 | Y24: 0 | Z24: 0 | AA24: 0 | AB24: 0 | AC24: 0 | AD24: 0 | AE24: 0 | AF24: 0 | AG24: 0 | AH24: 0 | AI24: 0 | AJ24: 0 | AK24: 0 | AL24: 0 | AM24: 0 | AN24: 0 | AO24: 0 | AP24: 0 | AQ24: 0 | AR24: 0 | AS24: 0 | AT24: 0 | AU24: 0 | AV24: 0 | AW24: 0
A25: 5135 | B25: 0 | C25: 0 | D25: 0 | E25: 0 | F25: 0 | G25: 0 | H25: 0 | I25: 0 | J25: 0.076503 | K25: 0 | L25: 0 | M25: 0 | N25: 0 | O25: 0 | P25: 0 | Q25: 0 | R25: 0 | S25: 0 | T25: 0 | U25: 0 | V25: 0 | W25: 0 | X25: 0 | Y25: 0 | Z25: 0 | AA25: 0 | AB25: 0 | AC25: 0 | AD25: 0 | AE25: 0 | AF25: 0 | AG25: 0 | AH25: 0 | AI25: 0 | AJ25: 0 | AK25: 0 | AL25: 0 | AM25: 0 | AN25: 0 | AO25: 0 | AP25: 0 | AQ25: 0 | AR25: 0 | AS25: 0 | AT25: 0 | AU25: 0 | AV25: 0 | AW25: 0
A26: ENSOARG00000004131 | B26: 7.500712 | C26: 9.631978 | D26: 9.283011 | E26: 6.864234 | F26: 6.539757 | G26: 9.569721 | H26: 9.548804 | I26: 8.163134 | J26: 9.827363 | K26: 9.314293 | L26: 8.370619 | M26: 9.380611 | N26: 8.428756 | O26: 8.648457 | P26: 7.861279 | Q26: 9.618285 | R26: 14.914066 | S26: 10.404242 | T26: 13.691073 | U26: 16.533592 | V26: 13.451948 | W26: 13.317776 | X26: 19.305283 | Y26: 12.608695 | Z26: 15.216952 | AA26: 12.057845 | AB26: 11.578751 | AC26: 14.334736 | AD26: 15.651739 | AE26: 16.289762 | AF26: 13.12844 | AG26: 9.411007 | AH26: 5.444746 | AI26: 4.503794 | AJ26: 5.628825 | AK26: 6.9579 | AL26: 5.361139 | AM26: 4.729876 | AN26: 4.324179 | AO26: 7.726524 | AP26: 5.727989 | AQ26: 6.351431 | AR26: 4.808663 | AS26: 5.105875 | AT26: 5.127929 | AU26: 5.066495 | AV26: 5.513291 | AW26: 5.35048
A27: ENSOARG00000016171 | B27: 3.090955 | C27: 3.126065 | D27: 3.084692 | E27: 2.522353 | F27: 3.308022 | G27: 2.83349 | H27: 2.935084 | I27: 3.315377 | J27: 2.922925 | K27: 2.647511 | L27: 2.747892 | M27: 2.172695 | N27: 2.025057 | O27: 2.213351 | P27: 2.411351 | Q27: 2.885108 | R27: 0.965703 | S27: 1.179976 | T27: 1.790355 | U27: 1.720568 | V27: 1.161104 | W27: 1.637169 | X27: 1.263676 | Y27: 2.160679 | Z27: 0.940649 | AA27: 0.733019 | AB27: 1.742295 | AC27: 0.933577 | AD27: 0.843845 | AE27: 1.397763 | AF27: 1.652137 | AG27: 1.539792 | AH27: 3.188519 | AI27: 3.667717 | AJ27: 1.987349 | AK27: 3.369567 | AL27: 2.039238 | AM27: 2.230515 | AN27: 2.661466 | AO27: 2.736189 | AP27: 2.365167 | AQ27: 3.638483 | AR27: 2.810248 | AS27: 2.306314 | AT27: 1.93406 | AU27: 1.753141 | AV27: 1.646204 | AW27: 3.581428
A28: 10108 | B28: 0 | C28: 0 | D28: 0 | E28: 0 | F28: 0 | G28: 0 | H28: 0 | I28: 0 | J28: 0 | K28: 0 | L28: 0 | M28: 0 | N28: 0 | O28: 0 | P28: 0 | Q28: 0 | R28: 0 | S28: 0 | T28: 0 | U28: 0 | V28: 0 | W28: 0 | X28: 0 | Y28: 0 | Z28: 0.098536 | AA28: 0 | AB28: 0 | AC28: 0 | AD28: 0 | AE28: 0 | AF28: 0.218111 | AG28: 0 | AH28: 0 | AI28: 0.205438 | AJ28: 0.62385 | AK28: 0.248665 | AL28: 0 | AM28: 0 | AN28: 0.459838 | AO28: 0.12522 | AP28: 0.236636 | AQ28: 0 | AR28: 0.237868 | AS28: 0.56044 | AT28: 0 | AU28: 0 | AV28: 0.349976 | AW28: 0.149112
A29: ENSOARG00000016505 | B29: 6.246055 | C29: 6.835291 | D29: 8.145361 | E29: 10.361031 | F29: 6.463643 | G29: 5.521217 | H29: 12.702055 | I29: 13.11806 | J29: 13.216769 | K29: 15.039145 | L29: 7.774324 | M29: 9.575024 | N29: 8.695159 | O29: 10.808426 | P29: 11.65431 | Q29: 14.426922 | R29: 26.776539 | S29: 14.111902 | T29: 16.13126 | U29: 19.347179 | V29: 13.363126 | W29: 20.967524 | X29: 29.423702 | Y29: 24.015985 | Z29: 23.343224 | AA29: 28.756844 | AB29: 14.464531 | AC29: 23.946753 | AD29: 17.75531 | AE29: 27.253294 | AF29: 15.766238 | AG29: 15.661586 | AH29: 0.851938 | AI29: 1.809113 | AJ29: 0.768662 | AK29: 0.980876 | AL29: 1.514544 | AM29: 2.819372 | AN29: 2.584602 | AO29: 1.832562 | AP29: 3.62828 | AQ29: 3.316212 | AR29: 1.0427 | AS29: 3.623767 | AT29: 1.176404 | AU29: 0.849874 | AV29: 3.078717 | AW29: 2.789279
A30: ENSOARG00000006521 | B30: 4.650376 | C30: 4.049227 | D30: 3.783303 | E30: 1.82647 | F30: 2.340306 | G30: 2.648011 | H30: 5.453638 | I30: 5.229351 | J30: 4.86939 | K30: 4.100287 | L30: 3.685971 | M30: 1.846474 | N30: 1.727849 | O30: 4.92151 | P30: 3.395706 | Q30: 6.358553 | R30: 0.871191 | S30: 1.727127 | T30: 1.187377 | U30: 1.623459 | V30: 1.169776 | W30: 2.01079 | X30: 1.355355 | Y30: 2.547407 | Z30: 0.476499 | AA30: 0.812273 | AB30: 1.694733 | AC30: 1.021758 | AD30: 0.914088 | AE30: 0.98545 | AF30: 1.630535 | AG30: 1.39551 | AH30: 10.490041 | AI30: 10.162972 | AJ30: 12.605099 | AK30: 13.365003 | AL30: 8.81449 | AM30: 6.318892 | AN30: 10.442039 | AO30: 10.23826 | AP30: 11.950909 | AQ30: 14.429583 | AR30: 8.26333 | AS30: 7.164224 | AT30: 11.368854 | AU30: 6.790438 | AV30: 7.100389 | AW30: 10.729874
A31: 16652 | B31: 0.126744 | C31: 0.065739 | D31: 0 | E31: 0 | F31: 0 | G31: 0 | H31: 0.065921 | I31: 0 | J31: 0 | K31: 0 | L31: 0.201816 | M31: 0 | N31: 0.392905 | O31: 0 | P31: 0.262256 | Q31: 0.061862 | R31: 0 | S31: 0 | T31: 0.162596 | U31: 0 | V31: 0 | W31: 0 | X31: 0.229254 | Y31: 0.048914 | Z31: 0 | AA31: 0 | AB31: 0 | AC31: 0.190764 | AD31: 0 | AE31: 0.122109 | AF31: 0 | AG31: 0 | AH31: 0 | AI31: 0 | AJ31: 0 | AK31: 0 | AL31: 0 | AM31: 0 | AN31: 0 | AO31: 0 | AP31: 0 | AQ31: 0 | AR31: 0 | AS31: 0 | AT31: 0 | AU31: 0 | AV31: 0 | AW31: 0.057251
A32: ENSOARG00000009980 | B32: 2.752425 | C32: 2.824536 | D32: 2.923933 | E32: 2.828424 | F32: 4.816577 | G32: 2.206788 | H32: 3.648563 | I32: 6.146966 | J32: 2.888227 | K32: 3.052237 | L32: 3.411819 | M32: 2.273569 | N32: 3.029825 | O32: 1.763767 | P32: 1.32471 | Q32: 3.302037 | R32: 5.365129 | S32: 2.498021 | T32: 4.204242 | U32: 3.997647 | V32: 4.479792 | W32: 4.985608 | X32: 0.736451 | Y32: 1.959938 | Z32: 0.74033 | AA32: 3.959997 | AB32: 3.932149 | AC32: 0.784816 | AD32: 1.709744 | AE32: 1.442096 | AF32: 5.068588 | AG32: 1.885004 | AH32: 2.032588 | AI32: 1.191215 | AJ32: 0.754072 | AK32: 1.74323 | AL32: 2.229208 | AM32: 1.606237 | AN32: 1.010994 | AO32: 0.802066 | AP32: 1.989229 | AQ32: 0.837464 | AR32: 0.971859 | AS32: 1.64567 | AT32: 2.716425 | AU32: 0 | AV32: 1.104924 | AW32: 2.062747
A33: ENSOARG00000006075 | B33: 1.578054 | C33: 1.136897 | D33: 1.496201 | E33: 2.165072 | F33: 1.510994 | G33: 1.238897 | H33: 2.701302 | I33: 1.681446 | J33: 2.152167 | K33: 1.728225 | L33: 3.055043 | M33: 1.264915 | N33: 1.505775 | O33: 1.853597 | P33: 2.138966 | Q33: 2.612416 | R33: 0.848617 | S33: 1.345469 | T33: 1.525182 | U33: 2.432238 | V33: 2.937555 | W33: 1.789009 | X33: 2.805933 | Y33: 1.945604 | Z33: 0.967924 | AA33: 2.190449 | AB33: 2.066647 | AC33: 1.186474 | AD33: 1.028241 | AE33: 2.526614 | AF33: 2.238078 | AG33: 1.737739 | AH33: 1.525859 | AI33: 1.331349 | AJ33: 1.456699 | AK33: 1.836618 | AL33: 1.90291 | AM33: 1.907165 | AN33: 1.570525 | AO33: 1.435522 | AP33: 2.290709 | AQ33: 1.559368 | AR33: 1.755896 | AS33: 1.859212 | AT33: 1.521059 | AU33: 1.166695 | AV33: 1.591136 | AW33: 2.377932
A34: ENSOARG00000004582 | B34: 2.264232 | C34: 2.665836 | D34: 2.362346 | E34: 3.362218 | F34: 3.513829 | G34: 2.134264 | H34: 2.479687 | I34: 2.315436 | J34: 2.760936 | K34: 2.437259 | L34: 2.679816 | M34: 2.257331 | N34: 2.044419 | O34: 2.957669 | P34: 2.719357 | Q34: 2.22116 | R34: 1.80959 | S34: 1.141974 | T34: 2.084105 | U34: 1.245815 | V34: 1.355092 | W34: 1.976984 | X34: 1.48802 | Y34: 1.298945 | Z34: 1.585238 | AA34: 1.24772 | AB34: 0.860859 | AC34: 0.976112 | AD34: 1.117322 | AE34: 0.709972 | AF34: 1.538393 | AG34: 0.77809 | AH34: 0.747913 | AI34: 0.864238 | AJ34: 0.781953 | AK34: 0.683005 | AL34: 1.232419 | AM34: 1.362044 | AN34: 1.090833 | AO34: 1.065774 | AP34: 1.437285 | AQ34: 1.487996 | AR34: 0.582375 | AS34: 0.914611 | AT34: 1.213618 | AU34: 0.830503 | AV34: 1.964386 | AW34: 1.055511
A35: 16852 | B35: 4.198167 | C35: 5.08776 | D35: 8.334798 | E35: 8.855155 | F35: 9.913935 | G35: 2.062562 | H35: 3.252658 | I35: 4.43491 | J35: 4.414638 | K35: 5.426553 | L35: 5.423389 | M35: 3.846342 | N35: 2.932463 | O35: 2.118166 | P35: 2.952932 | Q35: 4.130515 | R35: 0.253921 | S35: 0.715737 | T35: 1.089251 | U35: 0.481646 | V35: 1.097799 | W35: 0.725516 | X35: 0.584205 | Y35: 0.838386 | Z35: 0.523982 | AA35: 0.775808 | AB35: 0.316383 | AC35: 0.294715 | AD35: 0.340392 | AE35: 0.591616 | AF35: 0.310094 | AG35: 0.672522 | AH35: 0.255391 | AI35: 0.586433 | AJ35: 0.693421 | AK35: 0.981544 | AL35: 2.184134 | AM35: 0.953654 | AN35: 1.138658 | AO35: 0.30377 | AP35: 1.036916 | AQ35: 1.976732 | AR35: 1.257508 | AS35: 1.210014 | AT35: 0.953391 | AU35: 0.646734 | AV35: 1.166161 | AW35: 1.418018
A36: ENSOARG00000013029 | B36: 1.06921 | C36: 0.529507 | D36: 1.275377 | E36: 0.914586 | F36: 0.479853 | G36: 0.945443 | H36: 0.485927 | I36: 0.569757 | J36: 0.489192 | K36: 0.863362 | L36: 0.821292 | M36: 1.31954 | N36: 0.298883 | O36: 1.103156 | P36: 1.069627 | Q36: 1.239339 | R36: 0 | S36: 0 | T36: 0 | U36: 0 | V36: 0 | W36: 0.028211 | X36: 0 | Y36: 0 | Z36: 0 | AA36: 0 | AB36: 0 | AC36: 0 | AD36: 0 | AE36: 0 | AF36: 0 | AG36: 0 | AH36: 0 | AI36: 0 | AJ36: 0 | AK36: 0 | AL36: 0 | AM36: 0 | AN36: 0 | AO36: 0.248745 | AP36: 0 | AQ36: 0 | AR36: 0 | AS36: 0 | AT36: 0 | AU36: 0 | AV36: 0 | AW36: 0
A37: 12341 | B37: 0 | C37: 0 | D37: 0 | E37: 0.14983 | F37: 0 | G37: 0.302378 | H37: 0.10614 | I37: 0.100556 | J37: 0.037146 | K37: 0.517592 | L37: 0.093734 | M37: 0.085776 | N37: 0.091972 | O37: 0 | P37: 0 | Q37: 0.424483 | R37: 0.222699 | S37: 0 | T37: 0 | U37: 0 | V37: 0.04012 | W37: 0.159163 | X37: 0 | Y37: 0 | Z37: 0 | AA37: 0.48951 | AB37: 0 | AC37: 0 | AD37: 0 | AE37: 0.090743 | AF37: 0 | AG37: 0 | AH37: 0 | AI37: 0 | AJ37: 0 | AK37: 0 | AL37: 0 | AM37: 0 | AN37: 0 | AO37: 0 | AP37: 0 | AQ37: 0 | AR37: 0 | AS37: 0 | AT37: 0 | AU37: 0 | AV37: 0 | AW37: 0
A38: ENSOARG00000005544 | B38: 8.964119 | C38: 13.381612 | D38: 14.515791 | E38: 17.574987 | F38: 11.505377 | G38: 12.963573 | H38: 8.753104 | I38: 11.775165 | J38: 10.114167 | K38: 20.082655 | L38: 16.040903 | M38: 15.030965 | N38: 14.614505 | O38: 12.837204 | P38: 7.385386 | Q38: 10.690796 | R38: 11.669162 | S38: 9.877173 | T38: 22.047268 | U38: 15.132618 | V38: 9.908953 | W38: 16.2309 | X38: 9.689346 | Y38: 5.235363 | Z38: 10.835917 | AA38: 5.776776 | AB38: 17.183226 | AC38: 11.460998 | AD38: 11.285752 | AE38: 16.498178 | AF38: 9.30372 | AG38: 7.45551 | AH38: 13.249142 | AI38: 7.866684 | AJ38: 6.942433 | AK38: 12.674577 | AL38: 15.54652 | AM38: 11.242398 | AN38: 12.207621 | AO38: 11.135145 | AP38: 12.682545 | AQ38: 9.15847 | AR38: 9.721832 | AS38: 15.711513 | AT38: 14.329507 | AU38: 7.853596 | AV38: 8.471142 | AW38: 16.099958
A39: 11462 | B39: 0 | C39: 0 | D39: 0 | E39: 0 | F39: 0 | G39: 0 | H39: 0 | I39: 0 | J39: 0 | K39: 0 | L39: 0 | M39: 0 | N39: 0 | O39: 0 | P39: 0 | Q39: 0 | R39: 0.533211 | S39: 0.964919 | T39: 0.659041 | U39: 0.152396 | V39: 0.579403 | W39: 0.827873 | X39: 0.676728 | Y39: 0.493032 | Z39: 0.437615 | AA39: 0.559734 | AB39: 0.368733 | AC39: 0.692608 | AD39: 0.597183 | AE39: 0.862105 | AF39: 0.960672 | AG39: 1.024045 | AH39: 0.070741 | AI39: 0.064697 | AJ39: 0 | AK39: 0.06719 | AL39: 0.154222 | AM39: 0.179819 | AN39: 0 | AO39: 0.155783 | AP39: 0.122635 | AQ39: 0.134064 | AR39: 0.058207 | AS39: 0.157788 | AT39: 0 | AU39: 0.101902 | AV39: 0.294437 | AW39: 0.036101
A40: ENSOARG00000004030 | B40: 0 | C40: 0 | D40: 0 | E40: 0 | F40: 0 | G40: 0 | H40: 0 | I40: 0 | J40: 0 | K40: 0 | L40: 0 | M40: 0 | N40: 0 | O40: 0 | P40: 0 | Q40: 0 | R40: 0 | S40: 0 | T40: 0 | U40: 0 | V40: 0 | W40: 0 | X40: 0 | Y40: 0 | Z40: 0 | AA40: 0 | AB40: 0 | AC40: 0 | AD40: 0 | AE40: 0 | AF40: 0 | AG40: 0 | AH40: 1.940224 | AI40: 0 | AJ40: 0.176597 | AK40: 0 | AL40: 0.736581 | AM40: 0 | AN40: 0.079682 | AO40: 0 | AP40: 0.634712 | AQ40: 0 | AR40: 0.096972 | AS40: 0.56734 | AT40: 0 | AU40: 0 | AV40: 0 | AW40: 0
A41: ENSOARG00000012589 | B41: 0.444299 | C41: 0.191669 | D41: 0.418745 | E41: 0 | F41: 0.159531 | G41: 0.091774 | H41: 0.17775 | I41: 0.150515 | J41: 0.407863 | K41: 0.133184 | L41: 0.199865 | M41: 0.174927 | N41: 0.505707 | O41: 0.076733 | P41: 0.261189 | Q41: 0.384036 | R41: 0 | S41: 0 | T41: 0.044977 | U41: 0.024625 | V41: 0 | W41: 0 | X41: 0 | Y41: 0 | Z41: 0 | AA41: 0 | AB41: 0 | AC41: 0 | AD41: 0 | AE41: 0 | AF41: 0 | AG41: 0 | AH41: 0 | AI41: 0 | AJ41: 0 | AK41: 0 | AL41: 0 | AM41: 0 | AN41: 0 | AO41: 0 | AP41: 0 | AQ41: 0 | AR41: 0 | AS41: 0 | AT41: 0 | AU41: 0 | AV41: 0.064049 | AW41: 0
A42: 20034 | B42: 0 | C42: 0 | D42: 0 | E42: 0 | F42: 0.291219 | G42: 0 | H42: 0 | I42: 0 | J42: 0.177787 | K42: 0 | L42: 0 | M42: 0 | N42: 0 | O42: 0 | P42: 0 | Q42: 0.171358 | R42: 0 | S42: 0 | T42: 0 | U42: 0 | V42: 0 | W42: 0 | X42: 0 | Y42: 0 | Z42: 0 | AA42: 0 | AB42: 0.312567 | AC42: 0 | AD42: 0 | AE42: 0 | AF42: 0 | AG42: 0 | AH42: 0 | AI42: 0 | AJ42: 0 | AK42: 0 | AL42: 0 | AM42: 0 | AN42: 0 | AO42: 0 | AP42: 0 | AQ42: 0 | AR42: 0 | AS42: 0 | AT42: 0 | AU42: 0 | AV42: 0 | AW42: 0
A43: ENSOARG00000012328 | B43: 0 | C43: 0 | D43: 0 | E43: 0 | F43: 0 | G43: 0 | H43: 0 | I43: 0 | J43: 0 | K43: 0.507617 | L43: 0 | M43: 0 | N43: 0 | O43: 0.212629 | P43: 0 | Q43: 0 | R43: 99.908264 | S43: 86.848137 | T43: 69.543129 | U43: 75.30481 | V43: 82.534958 | W43: 75.145264 | X43: 36.414787 | Y43: 85.51667 | Z43: 91.783897 | AA43: 92.501381 | AB43: 69.547249 | AC43: 42.503685 | AD43: 31.926056 | AE43: 40.977077 | AF43: 50.009586 | AG43: 87.674629 | AH43: 0 | AI43: 0 | AJ43: 0 | AK43: 0 | AL43: 0 | AM43: 0.289421 | AN43: 0 | AO43: 0 | AP43: 0 | AQ43: 0 | AR43: 0 | AS43: 0 | AT43: 0 | AU43: 0 | AV43: 0 | AW43: 0
A44: ENSOARG00000009551 | B44: 2.17883 | C44: 1.693389 | D44: 1.94797 | E44: 2.558081 | F44: 1.576937 | G44: 0.972289 | H44: 5.065298 | I44: 4.408451 | J44: 4.59124 | K44: 4.23672 | L44: 3.592146 | M44: 4.243187 | N44: 4.684775 | O44: 3.959744 | P44: 5.714977 | Q44: 12.542275 | R44: 3.845157 | S44: 5.088074 | T44: 2.779148 | U44: 2.212047 | V44: 3.188544 | W44: 2.831627 | X44: 3.959105 | Y44: 2.895043 | Z44: 1.556099 | AA44: 2.801795 | AB44: 2.046345 | AC44: 1.423141 | AD44: 1.678938 | AE44: 2.092724 | AF44: 2.009653 | AG44: 4.758874 | AH44: 0.745583 | AI44: 0.892315 | AJ44: 0.193026 | AK44: 0.350807 | AL44: 0.849344 | AM44: 0.859929 | AN44: 0.325574 | AO44: 0.538175 | AP44: 0.813293 | AQ44: 1.027149 | AR44: 0.221329 | AS44: 0.564025 | AT44: 0.293748 | AU44: 0.371314 | AV44: 0.328386 | AW44: 0.843438
A45: ENSOARG00000018149 | B45: 196.408051 | C45: 161.340118 | D45: 375.672913 | E45: 164.573944 | F45: 234.712601 | G45: 348.890869 | H45: 257.610748 | I45: 270.214508 | J45: 297.9133 | K45: 146.306793 | L45: 213.023514 | M45: 320.205322 | N45: 253.489029 | O45: 126.281776 | P45: 265.63504 | Q45: 199.016708 | R45: 20.181063 | S45: 34.135452 | T45: 33.484371 | U45: 47.657227 | V45: 21.987795 | W45: 50.001389 | X45: 46.569859 | Y45: 32.152523 | Z45: 36.224434 | AA45: 45.34927 | AB45: 5.4717 | AC45: 29.513863 | AD45: 10.815165 | AE45: 38.513512 | AF45: 11.713097 | AG45: 49.069344 | AH45: 62.643681 | AI45: 144.139099 | AJ45: 33.264587 | AK45: 73.790031 | AL45: 89.027206 | AM45: 93.895775 | AN45: 56.197945 | AO45: 40.414639 | AP45: 44.66856 | AQ45: 71.978722 | AR45: 45.826077 | AS45: 96.080963 | AT45: 55.138008 | AU45: 4.637404 | AV45: 58.261627 | AW45: 46.96524
A46: 2399 | B46: 2.263233 | C46: 3.603738 | D46: 2.395299 | E46: 3.710387 | F46: 2.138992 | G46: 3.669173 | H46: 4.442193 | I46: 2.107545 | J46: 2.62817 | K46: 2.787461 | L46: 11.931899 | M46: 2.565563 | N46: 1.973455 | O46: 4.866531 | P46: 6.089413 | Q46: 3.69103 | R46: 0.931508 | S46: 1.166434 | T46: 0.51583 | U46: 0.312965 | V46: 1.554607 | W46: 0.774813 | X46: 1.020988 | Y46: 0.434931 | Z46: 0.420929 | AA46: 0.730129 | AB46: 0.883413 | AC46: 0.446739 | AD46: 1.088856 | AE46: 1.004912 | AF46: 0 | AG46: 0.194829 | AH46: 1.868131 | AI46: 1.908379 | AJ46: 0.509146 | AK46: 1.69248 | AL46: 1.478898 | AM46: 1.087845 | AN46: 0.722165 | AO46: 0.62234 | AP46: 0.87101 | AQ46: 0.956501 | AR46: 0.902433 | AS46: 0.720398 | AT46: 0.468291 | AU46: 0.615712 | AV46: 0.484617 | AW46: 0.467778
A47: ENSOARG00000007294 | B47: 0 | C47: 0.083245 | D47: 0 | E47: 0.398217 | F47: 0 | G47: 0.183509 | H47: 0.294017 | I47: 0.480758 | J47: 0 | K47: 0 | L47: 0.388631 | M47: 0.247473 | N47: 0.288037 | O47: 0 | P47: 0.208144 | Q47: 0 | R47: 0 | S47: 0 | T47: 0 | U47: 0 | V47: 0 | W47: 0 | X47: 0 | Y47: 0 | Z47: 0 | AA47: 0 | AB47: 0.220167 | AC47: 0 | AD47: 0 | AE47: 0 | AF47: 0 | AG47: 0 | AH47: 18.667181 | AI47: 21.20108 | AJ47: 33.4384 | AK47: 36.955173 | AL47: 18.775843 | AM47: 18.470175 | AN47: 29.712244 | AO47: 21.493317 | AP47: 19.672907 | AQ47: 26.916872 | AR47: 34.723454 | AS47: 14.326506 | AT47: 33.458435 | AU47: 28.809423 | AV47: 29.68033 | AW47: 20.641369
A48: ENSOARG00000014666 | B48: 0 | C48: 0 | D48: 0 | E48: 0 | F48: 0 | G48: 0 | H48: 0 | I48: 0 | J48: 0 | K48: 0 | L48: 0 | M48: 0 | N48: 0 | O48: 0 | P48: 0 | Q48: 0.067444 | R48: 0 | S48: 0 | T48: 0 | U48: 0 | V48: 0 | W48: 0 | X48: 0 | Y48: 0 | Z48: 0 | AA48: 0 | AB48: 0 | AC48: 0 | AD48: 0 | AE48: 0 | AF48: 0 | AG48: 0 | AH48: 0 | AI48: 0 | AJ48: 0 | AK48: 0 | AL48: 0 | AM48: 0 | AN48: 0 | AO48: 0 | AP48: 0 | AQ48: 0 | AR48: 0 | AS48: 0 | AT48: 0 | AU48: 0 | AV48: 0 | AW48: 0
A49: 20160 | B49: 5.279926 | C49: 5.988418 | D49: 7.501629 | E49: 10.163843 | F49: 10.296428 | G49: 8.563623 | H49: 9.572534 | I49: 7.231067 | J49: 7.447763 | K49: 7.318946 | L49: 9.251368 | M49: 8.501559 | N49: 6.578666 | O49: 6.566709 | P49: 7.391737 | Q49: 8.554601 | R49: 3.13565 | S49: 1.960612 | T49: 1.918491 | U49: 1.288706 | V49: 1.867887 | W49: 1.739441 | X49: 2.573992 | Y49: 3.569533 | Z49: 2.167389 | AA49: 2.57857 | AB49: 1.725844 | AC49: 1.457711 | AD49: 1.740706 | AE49: 2.675807 | AF49: 2.632854 | AG49: 2.588735 | AH49: 1.431962 | AI49: 2.360359 | AJ49: 1.761449 | AK49: 1.570077 | AL49: 1.694481 | AM49: 2.607407 | AN49: 1.744042 | AO49: 1.690718 | AP49: 1.555338 | AQ49: 2.205442 | AR49: 1.18544 | AS49: 1.432616 | AT49: 1.946048 | AU49: 2.091051 | AV49: 1.42197 | AW49: 1.402696
A50: ENSOARG00000016137 | B50: 7.560764 | C50: 8.653333 | D50: 8.049881 | E50: 6.788297 | F50: 7.769656 | G50: 9.600198 | H50: 12.699953 | I50: 11.826718 | J50: 10.019173 | K50: 8.029064 | L50: 9.379889 | M50: 7.904219 | N50: 7.142873 | O50: 11.52947 | P50: 11.217224 | Q50: 10.422997 | R50: 7.828848 | S50: 6.214958 | T50: 9.44827 | U50: 12.699836 | V50: 9.160386 | W50: 11.133877 | X50: 9.364405 | Y50: 10.251086 | Z50: 10.182351 | AA50: 9.358424 | AB50: 10.995726 | AC50: 12.306108 | AD50: 10.584588 | AE50: 14.059924 | AF50: 10.245596 | AG50: 9.039612 | AH50: 11.54906 | AI50: 9.784775 | AJ50: 15.916451 | AK50: 13.111045 | AL50: 11.108224 | AM50: 10.167706 | AN50: 10.548186 | AO50: 9.584185 | AP50: 12.078787 | AQ50: 12.533079 | AR50: 10.50797 | AS50: 10.186673 | AT50: 12.737405 | AU50: 9.595448 | AV50: 12.550873 | AW50: 10.734409
A51: 10323 | B51: 0 | C51: 0 | D51: 0.316939 | E51: 0 | F51: 0 | G51: 0 | H51: 0 | I51: 0 | J51: 0 | K51: 0 | L51: 0 | M51: 0 | N51: 0 | O51: 0 | P51: 0 | Q51: 0 | R51: 0 | S51: 0 | T51: 0 | U51: 0 | V51: 0 | W51: 0 | X51: 0 | Y51: 0 | Z51: 0 | AA51: 0 | AB51: 0 | AC51: 0 | AD51: 0 | AE51: 0 | AF51: 0 | AG51: 0 | AH51: 0 | AI51: 0 | AJ51: 0 | AK51: 0 | AL51: 0.203805 | AM51: 0 | AN51: 0 | AO51: 0 | AP51: 0 | AQ51: 0 | AR51: 0 | AS51: 0 | AT51: 0.153523 | AU51: 0 | AV51: 0 | AW51: 0
A52: 15518 | B52: 0.180472 | C52: 0.052211 | D52: 0 | E52: 0.231432 | F52: 0.195983 | G52: 0.367351 | H52: 0.039352 | I52: 0.035148 | J52: 0.040405 | K52: 0.53418 | L52: 0.289054 | M52: 0.270278 | N52: 0.051074 | O52: 0.059216 | P52: 0.098857 | Q52: 0.660625 | R52: 0.042206 | S52: 0 | T52: 0.079607 | U52: 0 | V52: 0.105623 | W52: 0.103047 | X52: 0.045537 | Y52: 0.049575 | Z52: 0.01966 | AA52: 0.140986 | AB52: 0.129822 | AC52: 0.047367 | AD52: 0 | AE52: 0.017669 | AF52: 0.129172 | AG52: 0.057282 | AH52: 3.67504 | AI52: 7.068444 | AJ52: 4.978024 | AK52: 6.683954 | AL52: 5.596554 | AM52: 5.961183 | AN52: 3.340758 | AO52: 3.530853 | AP52: 3.722672 | AQ52: 4.024491 | AR52: 4.471654 | AS52: 3.059136 | AT52: 4.685095 | AU52: 4.419483 | AV52: 4.306546 | AW52: 4.63036
A53: ENSOARG00000004376 | B53: 0 | C53: 0 | D53: 0 | E53: 0 | F53: 0.053971 | G53: 0 | H53: 0 | I53: 0.031519 | J53: 0 | K53: 0.131652 | L53: 0 | M53: 0 | N53: 0 | O53: 0 | P53: 0.075072 | Q53: 0 | R53: 0 | S53: 0 | T53: 0.043595 | U53: 0 | V53: 0 | W53: 0 | X53: 0 | Y53: 0 | Z53: 0 | AA53: 0 | AB53: 0 | AC53: 0 | AD53: 0.033953 | AE53: 0 | AF53: 0 | AG53: 0 | AH53: 0 | AI53: 0.054925 | AJ53: 0.06969 | AK53: 0.043465 | AL53: 0.113735 | AM53: 0.223426 | AN53: 0 | AO53: 0.136965 | AP53: 0.139321 | AQ53: 0.238319 | AR53: 0.024621 | AS53: 0.082002 | AT53: 0.094549 | AU53: 0.035201 | AV53: 0.116235 | AW53: 0.116309
A54: 3121 | B54: 0 | C54: 0.117576 | D54: 0.770061 | E54: 0.102433 | F54: 0.223377 | G54: 0 | H54: 0.294476 | I54: 0.762653 | J54: 0 | K54: 0.166825 | L54: 0.870195 | M54: 0.203226 | N54: 0.487328 | O54: 0.097526 | P54: 0.051542 | Q54: 0.190286 | R54: 0 | S54: 0 | T54: 0 | U54: 0 | V54: 0 | W54: 0 | X54: 0.261949 | Y54: 0.037512 | Z54: 0 | AA54: 0.089342 | AB54: 0.046084 | AC54: 0.119825 | AD54: 0.33005 | AE54: 0.050711 | AF54: 0.105089 | AG54: 0.2468 | AH54: 0.082052 | AI54: 0.049717 | AJ54: 0 | AK54: 0 | AL54: 0.531171 | AM54: 0.239082 | AN54: 0.942445 | AO54: 0.846908 | AP54: 0 | AQ54: 0.561792 | AR54: 0.746077 | AS54: 0.633323 | AT54: 0.727831 | AU54: 0.395073 | AV54: 0 | AW54: 1.201674
A55: 14668 | B55: 0 | C55: 0 | D55: 0 | E55: 0 | F55: 0 | G55: 0 | H55: 0 | I55: 0 | J55: 0 | K55: 0 | L55: 0 | M55: 0 | N55: 0 | O55: 0 | P55: 0 | Q55: 0 | R55: 0 | S55: 0 | T55: 0.194975 | U55: 0 | V55: 0 | W55: 0 | X55: 0 | Y55: 0 | Z55: 0 | AA55: 0 | AB55: 0 | AC55: 0 | AD55: 0 | AE55: 0 | AF55: 0 | AG55: 0 | AH55: 0 | AI55: 0 | AJ55: 0 | AK55: 0 | AL55: 0 | AM55: 0 | AN55: 0 | AO55: 0 | AP55: 0 | AQ55: 0 | AR55: 0 | AS55: 0 | AT55: 0 | AU55: 0 | AV55: 0 | AW55: 0
A56: ENSOARG00000001291 | B56: 1.001882 | C56: 0.790681 | D56: 0.725248 | E56: 1.682773 | F56: 1.207536 | G56: 0.581668 | H56: 1.273883 | I56: 1.904101 | J56: 0.797645 | K56: 1.01501 | L56: 0.868233 | M56: 1.451772 | N56: 1.263304 | O56: 1.049962 | P56: 0.956825 | Q56: 1.666513 | R56: 0 | S56: 0 | T56: 0.535268 | U56: 0.332266 | V56: 0.106783 | W56: 0.318557 | X56: 0 | Y56: 0.272673 | Z56: 0 | AA56: 0 | AB56: 0.14371 | AC56: 0 | AD56: 0 | AE56: 0 | AF56: 0.294518 | AG56: 0.246104 | AH56: 1.936614 | AI56: 3.382131 | AJ56: 0.891595 | AK56: 2.446609 | AL56: 3.332163 | AM56: 4.979842 | AN56: 2.593787 | AO56: 3.058758 | AP56: 1.774581 | AQ56: 3.176246 | AR56: 2.541156 | AS56: 5.129377 | AT56: 2.105254 | AU56: 0.858228 | AV56: 1.065814 | AW56: 1.544276
A57: ENSOARG00000002935 | B57: 5.116572 | C57: 5.298281 | D57: 4.560198 | E57: 4.124474 | F57: 3.496492 | G57: 3.786651 | H57: 5.20737 | I57: 6.075716 | J57: 3.624233 | K57: 5.13733 | L57: 2.751287 | M57: 3.746559 | N57: 1.939193 | O57: 6.885895 | P57: 4.455128 | Q57: 6.560807 | R57: 0.720811 | S57: 1.29705 | T57: 1.294988 | U57: 1.555042 | V57: 1.584357 | W57: 2.251066 | X57: 1.157148 | Y57: 2.323502 | Z57: 0.623975 | AA57: 0.374198 | AB57: 1.042853 | AC57: 1.77719 | AD57: 1.413481 | AE57: 0.808989 | AF57: 2.22687 | AG57: 1.342868 | AH57: 2.098909 | AI57: 2.178612 | AJ57: 2.077703 | AK57: 1.880403 | AL57: 1.395692 | AM57: 1.3259 | AN57: 1.560281 | AO57: 2.158154 | AP57: 2.344933 | AQ57: 2.766763 | AR57: 1.341085 | AS57: 1.358304 | AT57: 1.860503 | AU57: 1.445944 | AV57: 1.38632 | AW57: 3.150507
A58: ENSOARG00000002821 | B58: 15.468266 | C58: 21.823118 | D58: 16.942053 | E58: 21.393154 | F58: 15.353948 | G58: 13.556023 | H58: 21.723305 | I58: 19.499197 | J58: 19.156996 | K58: 16.657751 | L58: 17.220522 | M58: 19.589449 | N58: 22.627535 | O58: 21.078207 | P58: 21.439453 | Q58: 19.267143 | R58: 4.169497 | S58: 2.960813 | T58: 5.97649 | U58: 5.745151 | V58: 2.973699 | W58: 5.251284 | X58: 5.202835 | Y58: 6.191881 | Z58: 6.619255 | AA58: 2.985845 | AB58: 6.233434 | AC58: 7.154954 | AD58: 4.391794 | AE58: 5.942079 | AF58: 5.071582 | AG58: 4.163297 | AH58: 0.2077 | AI58: 0.022881 | AJ58: 0.356936 | AK58: 0.183455 | AL58: 0.11389 | AM58: 0.32341 | AN58: 0.047981 | AO58: 0.13555 | AP58: 0.088198 | AQ58: 0.179411 | AR58: 0.083064 | AS58: 0.158245 | AT58: 0.293132 | AU58: 0.041757 | AV58: 0.235687 | AW58: 0.137743
A59: ENSOARG00000017770 | B59: 1.876784 | C59: 2.308463 | D59: 1.847372 | E59: 2.169553 | F59: 1.578098 | G59: 0.615188 | H59: 2.53995 | I59: 2.772977 | J59: 1.97017 | K59: 2.279145 | L59: 2.530482 | M59: 1.288136 | N59: 1.031601 | O59: 2.09304 | P59: 1.769204 | Q59: 3.538064 | R59: 1.26906 | S59: 3.09264 | T59: 3.108523 | U59: 3.537981 | V59: 1.945273 | W59: 3.875407 | X59: 2.982824 | Y59: 5.105413 | Z59: 1.844634 | AA59: 1.516388 | AB59: 2.253311 | AC59: 2.999683 | AD59: 2.035782 | AE59: 3.079765 | AF59: 3.152032 | AG59: 3.697532 | AH59: 2.63514 | AI59: 4.989391 | AJ59: 3.602028 | AK59: 4.109547 | AL59: 3.420033 | AM59: 3.349218 | AN59: 4.135305 | AO59: 3.528422 | AP59: 4.457552 | AQ59: 5.061089 | AR59: 3.281809 | AS59: 2.910955 | AT59: 2.729307 | AU59: 2.227813 | AV59: 2.945827 | AW59: 4.494755
A60: ENSOARG00000002042 | B60: 16.313501 | C60: 12.500272 | D60: 15.796491 | E60: 21.713411 | F60: 22.132532 | G60: 8.45263 | H60: 18.087769 | I60: 19.951641 | J60: 13.891937 | K60: 18.574863 | L60: 13.427625 | M60: 10.267938 | N60: 8.20491 | O60: 14.353861 | P60: 12.367174 | Q60: 17.872454 | R60: 4.298765 | S60: 7.626731 | T60: 7.601558 | U60: 5.687144 | V60: 9.193337 | W60: 9.174683 | X60: 8.456203 | Y60: 7.982836 | Z60: 8.938003 | AA60: 9.083141 | AB60: 7.990457 | AC60: 6.804396 | AD60: 7.078536 | AE60: 8.976843 | AF60: 7.158351 | AG60: 12.006771 | AH60: 14.175924 | AI60: 19.814005 | AJ60: 9.772863 | AK60: 15.158158 | AL60: 26.781485 | AM60: 25.10401 | AN60: 16.724358 | AO60: 21.182039 | AP60: 21.038055 | AQ60: 21.303858 | AR60: 12.065453 | AS60: 21.973289 | AT60: 15.560314 | AU60: 8.746433 | AV60: 13.097189 | AW60: 18.695992
A61: 5790 | B61: 0 | C61: 0 | D61: 0.072673 | E61: 0 | F61: 0.615176 | G61: 0 | H61: 0 | I61: 0 | J61: 0 | K61: 0 | L61: 0 | M61: 0 | N61: 0 | O61: 0 | P61: 0 | Q61: 0 | R61: 0 | S61: 0 | T61: 0 | U61: 0 | V61: 0 | W61: 0 | X61: 0 | Y61: 0.088268 | Z61: 0 | AA61: 0 | AB61: 0 | AC61: 0 | AD61: 0 | AE61: 0 | AF61: 0.120068 | AG61: 0 | AH61: 0 | AI61: 0 | AJ61: 0 | AK61: 0 | AL61: 0 | AM61: 0 | AN61: 0 | AO61: 0 | AP61: 0 | AQ61: 0 | AR61: 0 | AS61: 0 | AT61: 0 | AU61: 0 | AV61: 0 | AW61: 0
A62: ENSOARG00000017999 | B62: 0.624652 | C62: 0.445779 | D62: 0.622398 | E62: 0.355159 | F62: 0.456932 | G62: 0.487559 | H62: 0.545794 | I62: 0.610151 | J62: 0.531458 | K62: 0.358594 | L62: 0.528845 | M62: 0.39166 | N62: 0.335616 | O62: 0.520923 | P62: 0.966486 | Q62: 0.445676 | R62: 0.146356 | S62: 0.092188 | T62: 0.292731 | U62: 0.118392 | V62: 0.083427 | W62: 0.061218 | X62: 0.137882 | Y62: 0.128908 | Z62: 0.027942 | AA62: 0.2076 | AB62: 0.090385 | AC62: 0.196639 | AD62: 0.101579 | AE62: 0.128513 | AF62: 0.121307 | AG62: 0.214364 | AH62: 0.255853 | AI62: 0.682951 | AJ62: 0.155827 | AK62: 0.384778 | AL62: 0.584655 | AM62: 0.558543 | AN62: 0.271945 | AO62: 0.407131 | AP62: 0.463609 | AQ62: 0.42863 | AR62: 0.284739 | AS62: 0.48299 | AT62: 0.275337 | AU62: 0.326748 | AV62: 0.414002 | AW62: 0.399731
A63: ENSOARG00000011929 | B63: 0 | C63: 0 | D63: 0 | E63: 0 | F63: 0 | G63: 0 | H63: 0 | I63: 0 | J63: 0 | K63: 0 | L63: 0 | M63: 0 | N63: 0 | O63: 0 | P63: 0 | Q63: 0 | R63: 0 | S63: 0 | T63: 0 | U63: 0 | V63: 0 | W63: 0 | X63: 0 | Y63: 0 | Z63: 0 | AA63: 0 | AB63: 0 | AC63: 0 | AD63: 0 | AE63: 0 | AF63: 0 | AG63: 0 | AH63: 0 | AI63: 0 | AJ63: 0 | AK63: 0 | AL63: 0 | AM63: 0 | AN63: 0 | AO63: 0 | AP63: 0 | AQ63: 0 | AR63: 0 | AS63: 0 | AT63: 0 | AU63: 0 | AV63: 0 | AW63: 0
A64: ENSOARG00000011739 | B64: 0 | C64: 0 | D64: 0 | E64: 0 | F64: 0 | G64: 0 | H64: 0 | I64: 0 | J64: 0 | K64: 0 | L64: 0 | M64: 0 | N64: 0 | O64: 0 | P64: 0 | Q64: 0 | R64: 0 | S64: 0 | T64: 0 | U64: 0 | V64: 0 | W64: 0 | X64: 0 | Y64: 0 | Z64: 0 | AA64: 0 | AB64: 0 | AC64: 0 | AD64: 0 | AE64: 0 | AF64: 0 | AG64: 0 | AH64: 0.0299 | AI64: 0 | AJ64: 0 | AK64: 0 | AL64: 0.087543 | AM64: 0.056759 | AN64: 0 | AO64: 0.220169 | AP64: 0.02147 | AQ64: 0.212934 | AR64: 0.111363 | AS64: 0.10954 | AT64: 0.030122 | AU64: 0.054218 | AV64: 0.155559 | AW64: 0.129607
A65: 16971 | B65: 2.472082 | C65: 1.349077 | D65: 1.968847 | E65: 1.728497 | F65: 1.458872 | G65: 1.631601 | H65: 2.190192 | I65: 2.246052 | J65: 1.081434 | K65: 1.315977 | L65: 2.660496 | M65: 2.199037 | N65: 1.025814 | O65: 1.948362 | P65: 2.285555 | Q65: 1.813863 | R65: 0 | S65: 0 | T65: 0 | U65: 0 | V65: 0 | W65: 0 | X65: 0 | Y65: 0 | Z65: 0 | AA65: 0 | AB65: 0 | AC65: 0 | AD65: 0 | AE65: 0.057378 | AF65: 0 | AG65: 0 | AH65: 0 | AI65: 0 | AJ65: 0 | AK65: 0 | AL65: 0 | AM65: 0 | AN65: 0 | AO65: 0 | AP65: 0 | AQ65: 0 | AR65: 0 | AS65: 0 | AT65: 0 | AU65: 0 | AV65: 0 | AW65: 0
A66: 16248 | B66: 0.086824 | C66: 0 | D66: 0 | E66: 0 | F66: 0 | G66: 0 | H66: 0 | I66: 0 | J66: 0 | K66: 0 | L66: 0 | M66: 0 | N66: 0 | O66: 0 | P66: 0 | Q66: 0 | R66: 0 | S66: 0 | T66: 0.146231 | U66: 0 | V66: 0.245555 | W66: 0.10226 | X66: 0 | Y66: 0.27231 | Z66: 0.187423 | AA66: 0 | AB66: 0.063405 | AC66: 0.223109 | AD66: 0.059829 | AE66: 0.089203 | AF66: 0.132626 | AG66: 0 | AH66: 0.306953 | AI66: 0 | AJ66: 0 | AK66: 0 | AL66: 0 | AM66: 0.192146 | AN66: 0.136207 | AO66: 0.085741 | AP66: 0 | AQ66: 0.16309 | AR66: 0 | AS66: 0 | AT66: 0.161037 | AU66: 0.116042 | AV66: 0.065633 | AW66: 0.094244
A67: 9863 | B67: 0 | C67: 0.404358 | D67: 0.363608 | E67: 0.517102 | F67: 0.175172 | G67: 0.235719 | H67: 0.18207 | I67: 0.177043 | J67: 0 | K67: 0.143492 | L67: 0.037777 | M67: 0.086932 | N67: 0 | O67: 0.321665 | P67: 0 | Q67: 0.116663 | R67: 0 | S67: 0 | T67: 0 | U67: 0 | V67: 0 | W67: 0 | X67: 0 | Y67: 0 | Z67: 0 | AA67: 0 | AB67: 0 | AC67: 0 | AD67: 0 | AE67: 0 | AF67: 0 | AG67: 0 | AH67: 0 | AI67: 0 | AJ67: 0 | AK67: 0 | AL67: 0 | AM67: 0 | AN67: 0 | AO67: 0 | AP67: 0 | AQ67: 0 | AR67: 0 | AS67: 0 | AT67: 0 | AU67: 0 | AV67: 0 | AW67: 0
A68: ENSOARG00000005381 | B68: 2.086791 | C68: 5.138137 | D68: 3.3291 | E68: 6.097945 | F68: 6.099036 | G68: 5.543097 | H68: 6.66879 | I68: 5.266646 | J68: 5.012679 | K68: 4.125406 | L68: 6.873555 | M68: 5.344498 | N68: 5.060204 | O68: 3.363868 | P68: 7.333659 | Q68: 5.490109 | R68: 4.151252 | S68: 4.564003 | T68: 3.190841 | U68: 2.515631 | V68: 4.039441 | W68: 3.532228 | X68: 5.167791 | Y68: 3.48186 | Z68: 2.530741 | AA68: 4.109402 | AB68: 3.57035 | AC68: 3.152813 | AD68: 3.885083 | AE68: 3.597407 | AF68: 3.565475 | AG68: 6.237312 | AH68: 4.009835 | AI68: 7.848142 | AJ68: 7.19909 | AK68: 7.580347 | AL68: 8.212059 | AM68: 10.007781 | AN68: 8.13413 | AO68: 5.245956 | AP68: 6.414438 | AQ68: 8.636113 | AR68: 5.847258 | AS68: 5.551015 | AT68: 4.83405 | AU68: 4.877866 | AV68: 4.938988 | AW68: 6.611573
A69: ENSOARG00000019439 | B69: 41.592686 | C69: 37.9757 | D69: 31.390764 | E69: 39.516468 | F69: 31.49119 | G69: 38.564213 | H69: 51.309414 | I69: 36.024288 | J69: 36.668789 | K69: 48.414215 | L69: 43.297218 | M69: 35.148033 | N69: 27.768841 | O69: 34.608948 | P69: 40.61882 | Q69: 45.909637 | R69: 18.583385 | S69: 25.692537 | T69: 16.382101 | U69: 24.581165 | V69: 15.001871 | W69: 16.399694 | X69: 22.10298 | Y69: 20.680132 | Z69: 16.148581 | AA69: 20.584099 | AB69: 14.981462 | AC69: 15.754501 | AD69: 13.135549 | AE69: 21.254803 | AF69: 11.869226 | AG69: 18.668158 | AH69: 13.177374 | AI69: 25.109692 | AJ69: 19.406565 | AK69: 22.949345 | AL69: 26.595259 | AM69: 22.169977 | AN69: 20.346016 | AO69: 15.698075 | AP69: 25.030205 | AQ69: 18.246037 | AR69: 18.190969 | AS69: 26.284142 | AT69: 14.091799 | AU69: 17.26038 | AV69: 17.318808 | AW69: 22.752058
A70: ENSOARG00000001711 | B70: 5.620578 | C70: 2.559833 | D70: 3.537308 | E70: 4.948076 | F70: 6.182251 | G70: 3.99225 | H70: 5.852634 | I70: 4.336727 | J70: 4.023492 | K70: 6.398442 | L70: 4.800586 | M70: 4.041171 | N70: 2.813146 | O70: 3.865946 | P70: 3.665228 | Q70: 5.616662 | R70: 1.771081 | S70: 1.958554 | T70: 1.760756 | U70: 2.091104 | V70: 2.052729 | W70: 2.159689 | X70: 2.386605 | Y70: 2.369982 | Z70: 0.997155 | AA70: 2.122692 | AB70: 2.301389 | AC70: 1.749435 | AD70: 1.237939 | AE70: 2.064057 | AF70: 1.750332 | AG70: 2.638287 | AH70: 1.466865 | AI70: 2.550473 | AJ70: 1.852632 | AK70: 1.838521 | AL70: 2.393427 | AM70: 2.466834 | AN70: 2.71719 | AO70: 2.418369 | AP70: 2.616509 | AQ70: 2.991516 | AR70: 1.659756 | AS70: 2.709659 | AT70: 1.258344 | AU70: 1.389961 | AV70: 1.774741 | AW70: 2.465617
A71: ENSOARG00000014763 | B71: 0 | C71: 0 | D71: 0 | E71: 0 | F71: 0 | G71: 0 | H71: 0 | I71: 0 | J71: 0 | K71: 0 | L71: 0 | M71: 0 | N71: 0 | O71: 0 | P71: 0 | Q71: 0 | R71: 0 | S71: 0 | T71: 0 | U71: 0 | V71: 0 | W71: 0 | X71: 0 | Y71: 0 | Z71: 0 | AA71: 0 | AB71: 0 | AC71: 0 | AD71: 0 | AE71: 0 | AF71: 0 | AG71: 0 | AH71: 0 | AI71: 0 | AJ71: 0 | AK71: 0 | AL71: 0 | AM71: 0 | AN71: 0 | AO71: 0 | AP71: 0 | AQ71: 0 | AR71: 0 | AS71: 0 | AT71: 0 | AU71: 0 | AV71: 0 | AW71: 0
A72: ENSOARG00000020045 | B72: 0.253252 | C72: 0.17721 | D72: 0.170073 | E72: 0.022121 | F72: 0 | G72: 0.060429 | H72: 0.253233 | I72: 0.211089 | J72: 0.32465 | K72: 0.165595 | L72: 0.067461 | M72: 0 | N72: 0.0232 | O72: 0.164282 | P72: 0.078181 | Q72: 0.227744 | R72: 0 | S72: 0.070558 | T72: 0.064992 | U72: 0.061488 | V72: 0 | W72: 0.101461 | X72: 0.01476 | Y72: 0.235947 | Z72: 0.036756 | AA72: 0 | AB72: 0.049373 | AC72: 0 | AD72: 0.039156 | AE72: 0 | AF72: 0.023415 | AG72: 0.043621 | AH72: 0.106182 | AI72: 0.135305 | AJ72: 0.035905 | AK72: 0.157668 | AL72: 0.217451 | AM72: 0.061349 | AN72: 0.291923 | AO72: 0.202085 | AP72: 0.392714 | AQ72: 0.324216 | AR72: 0.122538 | AS72: 0.215968 | AT72: 0.092827 | AU72: 0 | AV72: 0.028637 | AW72: 0.318298
A73: ENSOARG00000000316 | B73: 0.795691 | C73: 0.850991 | D73: 0.796292 | E73: 1.39667 | F73: 1.023212 | G73: 0.600417 | H73: 1.195321 | I73: 1.074855 | J73: 0.839641 | K73: 1.353606 | L73: 1.380584 | M73: 0.955012 | N73: 0.710073 | O73: 0.795465 | P73: 1.001083 | Q73: 1.609437 | R73: 0.683209 | S73: 1.051639 | T73: 0.8831 | U73: 0.790846 | V73: 1.003971 | W73: 1.189678 | X73: 1.055804 | Y73: 1.336484 | Z73: 0.625012 | AA73: 0.787176 | AB73: 1.105206 | AC73: 0.90116 | AD73: 0.835978 | AE73: 0.884882 | AF73: 1.261784 | AG73: 0.762991 | AH73: 0.964006 | AI73: 1.262396 | AJ73: 1.215624 | AK73: 1.099044 | AL73: 1.479442 | AM73: 1.661106 | AN73: 1.448724 | AO73: 1.319314 | AP73: 1.440922 | AQ73: 1.769278 | AR73: 1.069566 | AS73: 1.311973 | AT73: 1.105436 | AU73: 1.005299 | AV73: 0.939481 | AW73: 1.68052
A74: ENSOARG00000017218 | B74: 2.015564 | C74: 2.037752 | D74: 1.721612 | E74: 2.390462 | F74: 2.150577 | G74: 1.683548 | H74: 1.819027 | I74: 2.019919 | J74: 1.86911 | K74: 2.309366 | L74: 2.084304 | M74: 2.161635 | N74: 1.87343 | O74: 1.597853 | P74: 2.065159 | Q74: 1.99157 | R74: 4.737559 | S74: 2.321756 | T74: 1.671983 | U74: 2.482997 | V74: 3.146993 | W74: 2.69583 | X74: 3.36177 | Y74: 1.601735 | Z74: 3.254733 | AA74: 1.862847 | AB74: 2.178082 | AC74: 2.601469 | AD74: 2.385936 | AE74: 2.882169 | AF74: 4.167354 | AG74: 1.829813 | AH74: 1.173074 | AI74: 1.321328 | AJ74: 0.86261 | AK74: 1.447245 | AL74: 1.263797 | AM74: 2.071705 | AN74: 1.287126 | AO74: 1.448446 | AP74: 1.255441 | AQ74: 2.226103 | AR74: 1.287387 | AS74: 1.478059 | AT74: 1.027495 | AU74: 1.392187 | AV74: 1.196778 | AW74: 1.531805
A75: 20077 | B75: 0 | C75: 0 | D75: 0 | E75: 0 | F75: 0 | G75: 0 | H75: 0 | I75: 0 | J75: 0 | K75: 0 | L75: 0 | M75: 0 | N75: 0 | O75: 0 | P75: 0 | Q75: 0 | R75: 0 | S75: 0 | T75: 0 | U75: 0.21559 | V75: 0 | W75: 0 | X75: 0 | Y75: 0 | Z75: 0 | AA75: 0 | AB75: 0 | AC75: 0 | AD75: 0 | AE75: 0 | AF75: 0 | AG75: 0 | AH75: 0 | AI75: 0 | AJ75: 0 | AK75: 0 | AL75: 0 | AM75: 0 | AN75: 0 | AO75: 0 | AP75: 0 | AQ75: 0 | AR75: 0 | AS75: 0 | AT75: 0 | AU75: 0 | AV75: 0 | AW75: 0
A76: 6649 | B76: 0 | C76: 0 | D76: 0 | E76: 0 | F76: 0 | G76: 0 | H76: 0 | I76: 0 | J76: 0 | K76: 0 | L76: 0 | M76: 0 | N76: 0 | O76: 0 | P76: 0 | Q76: 0 | R76: 0 | S76: 0 | T76: 0 | U76: 0 | V76: 0 | W76: 0 | X76: 0 | Y76: 0 | Z76: 0 | AA76: 0 | AB76: 0 | AC76: 0 | AD76: 0 | AE76: 0 | AF76: 0 | AG76: 0 | AH76: 0 | AI76: 0 | AJ76: 0 | AK76: 0 | AL76: 0 | AM76: 0 | AN76: 0 | AO76: 0 | AP76: 0 | AQ76: 0 | AR76: 0 | AS76: 0.423778 | AT76: 0 | AU76: 0 | AV76: 0 | AW76: 0
A77: 6226 | B77: 0 | C77: 0 | D77: 0 | E77: 0 | F77: 0.231112 | G77: 0.368473 | H77: 0 | I77: 0 | J77: 0 | K77: 0 | L77: 0.094755 | M77: 0 | N77: 0.15649 | O77: 0 | P77: 0 | Q77: 0 | R77: 0.253959 | S77: 0 | T77: 0.432172 | U77: 0 | V77: 0 | W77: 0.122833 | X77: 0.298881 | Y77: 0.123704 | Z77: 0.17757 | AA77: 0.569817 | AB77: 0.151655 | AC77: 0 | AD77: 0.022076 | AE77: 0.110134 | AF77: 0.440973 | AG77: 0 | AH77: 0 | AI77: 0 | AJ77: 0 | AK77: 0.422819 | AL77: 0.074026 | AM77: 0 | AN77: 0.281465 | AO77: 0 | AP77: 0.848151 | AQ77: 0.479721 | AR77: 0 | AS77: 0.684202 | AT77: 0.741919 | AU77: 0.188751 | AV77: 0 | AW77: 0.336526
A78: ENSOARG00000010599 | B78: 0 | C78: 0.036714 | D78: 0 | E78: 0 | F78: 0 | G78: 0 | H78: 0 | I78: 0.068735 | J78: 0 | K78: 0 | L78: 0 | M78: 0 | N78: 0 | O78: 0 | P78: 0 | Q78: 0.06578 | R78: 0 | S78: 0 | T78: 0 | U78: 0 | V78: 0 | W78: 0 | X78: 0 | Y78: 0 | Z78: 0 | AA78: 0 | AB78: 0 | AC78: 0 | AD78: 0 | AE78: 0 | AF78: 0 | AG78: 0 | AH78: 0 | AI78: 0 | AJ78: 0 | AK78: 0 | AL78: 0 | AM78: 0 | AN78: 0 | AO78: 0 | AP78: 0 | AQ78: 0 | AR78: 0 | AS78: 0 | AT78: 0 | AU78: 0 | AV78: 0 | AW78: 0
A79: 12914 | B79: 0 | C79: 0 | D79: 0 | E79: 0 | F79: 0 | G79: 0 | H79: 0 | I79: 0 | J79: 0 | K79: 0 | L79: 0 | M79: 0 | N79: 0 | O79: 0 | P79: 0 | Q79: 0 | R79: 0 | S79: 0 | T79: 0 | U79: 0 | V79: 0 | W79: 0 | X79: 0 | Y79: 0 | Z79: 0 | AA79: 0 | AB79: 0 | AC79: 0 | AD79: 0 | AE79: 0 | AF79: 0 | AG79: 0 | AH79: 0.369796 | AI79: 0.234272 | AJ79: 0 | AK79: 0 | AL79: 0 | AM79: 0 | AN79: 0 | AO79: 0 | AP79: 0 | AQ79: 0 | AR79: 0 | AS79: 0 | AT79: 0 | AU79: 0 | AV79: 0 | AW79: 0
A80: ENSOARG00000007102 | B80: 2.843664 | C80: 2.284086 | D80: 1.971606 | E80: 1.24679 | F80: 1.949105 | G80: 1.900932 | H80: 3.57245 | I80: 2.692931 | J80: 2.363962 | K80: 2.815389 | L80: 1.503883 | M80: 1.273823 | N80: 0.823235 | O80: 2.316916 | P80: 1.674794 | Q80: 2.986434 | R80: 0.53326 | S80: 0.859554 | T80: 0.947091 | U80: 0.675281 | V80: 0.8697 | W80: 1.49239 | X80: 1.032917 | Y80: 1.451222 | Z80: 0.503743 | AA80: 0.336593 | AB80: 0.80503 | AC80: 0.569569 | AD80: 0.438661 | AE80: 0.478413 | AF80: 0.833045 | AG80: 1.29585 | AH80: 1.009966 | AI80: 1.27044 | AJ80: 1.063975 | AK80: 1.140255 | AL80: 1.247901 | AM80: 1.275683 | AN80: 1.566024 | AO80: 1.659779 | AP80: 1.700072 | AQ80: 1.798121 | AR80: 0.928575 | AS80: 1.012872 | AT80: 0.782433 | AU80: 0.782324 | AV80: 1.235746 | AW80: 1.75587
A81: ENSOARG00000019908 | B81: 11.728998 | C81: 15.135366 | D81: 13.389391 | E81: 18.410385 | F81: 27.585932 | G81: 15.655736 | H81: 4.732272 | I81: 13.414859 | J81: 17.836653 | K81: 28.067173 | L81: 25.646168 | M81: 17.715199 | N81: 25.169405 | O81: 18.375475 | P81: 13.360074 | Q81: 19.422527 | R81: 0.228024 | S81: 0.027981 | T81: 1.642077 | U81: 0.415226 | V81: 1.720775 | W81: 2.885338 | X81: 2.218523 | Y81: 3.861249 | Z81: 5.689727 | AA81: 3.38784 | AB81: 3.282203 | AC81: 0.188896 | AD81: 3.014088 | AE81: 4.37152 | AF81: 0.165701 | AG81: 1.31262 | AH81: 6.280623 | AI81: 8.535989 | AJ81: 9.530961 | AK81: 12.244605 | AL81: 6.636456 | AM81: 8.45622 | AN81: 0.37543 | AO81: 10.025302 | AP81: 7.049979 | AQ81: 7.190066 | AR81: 8.158341 | AS81: 9.702826 | AT81: 12.743095 | AU81: 9.807872 | AV81: 5.186065 | AW81: 6.396518
A82: ENSOARG00000020149 | B82: 2.519158 | C82: 3.357587 | D82: 1.545497 | E82: 3.322826 | F82: 1.665165 | G82: 4.548129 | H82: 3.237011 | I82: 3.823075 | J82: 4.516372 | K82: 2.703825 | L82: 5.741606 | M82: 2.743341 | N82: 1.674708 | O82: 4.157451 | P82: 2.998434 | Q82: 3.073042 | R82: 0.692251 | S82: 1.300925 | T82: 0.382876 | U82: 0.626725 | V82: 1.602365 | W82: 1.605969 | X82: 1.645455 | Y82: 1.542938 | Z82: 1.339634 | AA82: 1.012326 | AB82: 0.795706 | AC82: 0.692973 | AD82: 1.903285 | AE82: 2.584888 | AF82: 1.64341 | AG82: 0.528209 | AH82: 1.366133 | AI82: 2.215234 | AJ82: 0.966012 | AK82: 2.471403 | AL82: 0.974671 | AM82: 2.644528 | AN82: 1.815177 | AO82: 2.049969 | AP82: 2.665563 | AQ82: 1.760342 | AR82: 3.210515 | AS82: 1.566705 | AT82: 0.964096 | AU82: 3.48469 | AV82: 3.253217 | AW82: 2.786683
A83: ENSOARG00000018881 | B83: 0.277849 | C83: 0.302878 | D83: 0.302762 | E83: 0.072767 | F83: 0.103461 | G83: 0 | H83: 0.293056 | I83: 0.17796 | J83: 0.410091 | K83: 0.082577 | L83: 0.067112 | M83: 0 | N83: 0 | O83: 0 | P83: 0.291453 | Q83: 0.336899 | R83: 0 | S83: 0 | T83: 0.093318 | U83: 0 | V83: 0.04492 | W83: 0 | X83: 0.137253 | Y83: 0.057581 | Z83: 0 | AA83: 0 | AB83: 0 | AC83: 0 | AD83: 0 | AE83: 0 | AF83: 0.054052 | AG83: 0 | AH83: 0.054918 | AI83: 0.147314 | AJ83: 0.275438 | AK83: 0 | AL83: 0 | AM83: 0 | AN83: 0.06008 | AO83: 0.117866 | AP83: 0.05666 | AQ83: 0 | AR83: 0 | AS83: 0.115223 | AT83: 0.067995 | AU83: 0 | AV83: 0 | AW83: 0.073003
A84: ENSOARG00000002043 | B84: 0 | C84: 0 | D84: 0 | E84: 0 | F84: 0 | G84: 0 | H84: 0 | I84: 0 | J84: 0 | K84: 0 | L84: 0 | M84: 0 | N84: 0 | O84: 0 | P84: 0 | Q84: 0 | R84: 0 | S84: 0 | T84: 0 | U84: 0 | V84: 0 | W84: 0 | X84: 0 | Y84: 0 | Z84: 0 | AA84: 0 | AB84: 0 | AC84: 0 | AD84: 0 | AE84: 0 | AF84: 0 | AG84: 0 | AH84: 0 | AI84: 0 | AJ84: 0 | AK84: 0 | AL84: 0 | AM84: 0 | AN84: 0 | AO84: 0 | AP84: 0 | AQ84: 0 | AR84: 0 | AS84: 0 | AT84: 0 | AU84: 0 | AV84: 0 | AW84: 0
A85: ENSOARG00000019258 | B85: 0 | C85: 0 | D85: 0 | E85: 0 | F85: 0 | G85: 0 | H85: 0 | I85: 0 | J85: 0 | K85: 0 | L85: 0 | M85: 0 | N85: 0 | O85: 0 | P85: 0 | Q85: 0 | R85: 0 | S85: 0 | T85: 0 | U85: 0 | V85: 0 | W85: 0 | X85: 0 | Y85: 0 | Z85: 0 | AA85: 0 | AB85: 0 | AC85: 0 | AD85: 0 | AE85: 0 | AF85: 0 | AG85: 0 | AH85: 0 | AI85: 0 | AJ85: 0 | AK85: 0 | AL85: 0 | AM85: 0 | AN85: 0 | AO85: 0 | AP85: 0 | AQ85: 0 | AR85: 0 | AS85: 0 | AT85: 0 | AU85: 0 | AV85: 0 | AW85: 0
A86: 10473 | B86: 0.326499 | C86: 0 | D86: 0 | E86: 0 | F86: 0.344769 | G86: 0 | H86: 0 | I86: 0 | J86: 0 | K86: 0 | L86: 0 | M86: 0 | N86: 0 | O86: 0 | P86: 0 | Q86: 0 | R86: 0 | S86: 0 | T86: 0 | U86: 0 | V86: 0 | W86: 0.060033 | X86: 0 | Y86: 0 | Z86: 0 | AA86: 0 | AB86: 0 | AC86: 0 | AD86: 0 | AE86: 0 | AF86: 0 | AG86: 0 | AH86: 0 | AI86: 0 | AJ86: 0 | AK86: 0 | AL86: 0 | AM86: 0 | AN86: 0 | AO86: 0 | AP86: 0 | AQ86: 0 | AR86: 0 | AS86: 0 | AT86: 0 | AU86: 0 | AV86: 0 | AW86: 0
A87: ENSOARG00000014920 | B87: 0.113779 | C87: 0.32929 | D87: 0.420865 | E87: 0.274101 | F87: 0.087469 | G87: 0 | H87: 0.183731 | I87: 0.204541 | J87: 0.104105 | K87: 0.22853 | L87: 0.304352 | M87: 0.505945 | N87: 0.101838 | O87: 0.274656 | P87: 0.247977 | Q87: 0.145846 | R87: 0 | S87: 0 | T87: 0 | U87: 0 | V87: 0 | W87: 0 | X87: 0 | Y87: 0.034266 | Z87: 0 | AA87: 0 | AB87: 0 | AC87: 0 | AD87: 0 | AE87: 0 | AF87: 0 | AG87: 0 | AH87: 0 | AI87: 0 | AJ87: 0 | AK87: 0 | AL87: 0 | AM87: 0 | AN87: 0.132486 | AO87: 0 | AP87: 0 | AQ87: 0 | AR87: 0 | AS87: 0 | AT87: 0 | AU87: 0 | AV87: 0 | AW87: 0
A88: ENSOARG00000020215 | B88: 2.077168 | C88: 0.534153 | D88: 0.468278 | E88: 0.087974 | F88: 0.632716 | G88: 0.827988 | H88: 0.490925 | I88: 0.869094 | J88: 1.232728 | K88: 0.212778 | L88: 1.267184 | M88: 0.464853 | N88: 0 | O88: 0.188715 | P88: 0.014208 | Q88: 0.657907 | R88: 1.234439 | S88: 1.763426 | T88: 0.688455 | U88: 1.253445 | V88: 0.555938 | W88: 1.329528 | X88: 1.460956 | Y88: 0.705081 | Z88: 0.152438 | AA88: 0.457909 | AB88: 0.666897 | AC88: 0.344724 | AD88: 1.066768 | AE88: 0.349716 | AF88: 1.17552 | AG88: 0.630519 | AH88: 6.481103 | AI88: 1.2734 | AJ88: 1.270786 | AK88: 0.85951 | AL88: 1.732008 | AM88: 1.681882 | AN88: 3.58271 | AO88: 2.310314 | AP88: 2.345552 | AQ88: 3.815512 | AR88: 1.729033 | AS88: 1.771606 | AT88: 0.932369 | AU88: 0.879678 | AV88: 1.19074 | AW88: 3.580529
A89: ENSOARG00000009662 | B89: 0.340292 | C89: 0.289813 | D89: 0.200252 | E89: 0.259343 | F89: 0.236667 | G89: 0.218654 | H89: 0.361695 | I89: 0.342493 | J89: 0.277825 | K89: 0.210594 | L89: 0.207774 | M89: 0.194411 | N89: 0.167784 | O89: 0.376799 | P89: 0.359591 | Q89: 0.381977 | R89: 0.035778 | S89: 0 | T89: 0.033829 | U89: 0.081344 | V89: 0.066994 | W89: 0.115456 | X89: 0.063977 | Y89: 0.098806 | Z89: 0.100063 | AA89: 0.011011 | AB89: 0.105853 | AC89: 0.069692 | AD89: 0.031234 | AE89: 0.064957 | AF89: 0.148705 | AG89: 0.009327 | AH89: 0.19103 | AI89: 0.116214 | AJ89: 0.135825 | AK89: 0.107632 | AL89: 0.213229 | AM89: 0.231408 | AN89: 0.087523 | AO89: 0.15625 | AP89: 0.15317 | AQ89: 0.207868 | AR89: 0.119161 | AS89: 0.068281 | AT89: 0.103677 | AU89: 0.162532 | AV89: 0.16361 | AW89: 0.170035
A90: ENSOARG00000012945 | B90: 7.387723 | C90: 5.280156 | D90: 6.498618 | E90: 3.804574 | F90: 7.948599 | G90: 5.798263 | H90: 9.112335 | I90: 7.242726 | J90: 4.942192 | K90: 4.461956 | L90: 4.849514 | M90: 4.882158 | N90: 3.458828 | O90: 8.25582 | P90: 5.818297 | Q90: 4.012866 | R90: 7.929609 | S90: 4.868065 | T90: 8.161351 | U90: 3.170914 | V90: 8.035783 | W90: 5.905741 | X90: 9.013065 | Y90: 6.258651 | Z90: 4.531193 | AA90: 8.773389 | AB90: 5.927462 | AC90: 5.913525 | AD90: 6.216742 | AE90: 9.086803 | AF90: 5.452815 | AG90: 5.302813 | AH90: 3.626017 | AI90: 3.693573 | AJ90: 3.428614 | AK90: 2.603457 | AL90: 4.733198 | AM90: 5.035842 | AN90: 3.66745 | AO90: 4.012581 | AP90: 2.689862 | AQ90: 4.165724 | AR90: 3.487616 | AS90: 4.060106 | AT90: 2.933811 | AU90: 4.148368 | AV90: 4.968806 | AW90: 4.04462
A91: ENSOARG00000018765 | B91: 0.665433 | C91: 0.185725 | D91: 0.887902 | E91: 0.47215 | F91: 0.413571 | G91: 0.344249 | H91: 0.513991 | I91: 0.610745 | J91: 0.490758 | K91: 0.501462 | L91: 0.783611 | M91: 0.563886 | N91: 0.352343 | O91: 0.420256 | P91: 0.49646 | Q91: 0.855752 | R91: 0.021351 | S91: 0 | T91: 0.025548 | U91: 0 | V91: 0 | W91: 0.088868 | X91: 0.197257 | Y91: 0.033988 | Z91: 0.078336 | AA91: 0.025412 | AB91: 0.163099 | AC91: 0 | AD91: 0.026834 | AE91: 0.398036 | AF91: 0.090833 | AG91: 0 | AH91: 0.302636 | AI91: 0.289552 | AJ91: 0.055469 | AK91: 0.122883 | AL91: 0.523713 | AM91: 0.523768 | AN91: 0.53858 | AO91: 0.338871 | AP91: 0.235337 | AQ91: 0.071267 | AR91: 0.187583 | AS91: 0.227178 | AT91: 0.097935 | AU91: 0.099553 | AV91: 0.533813 | AW91: 0.429287
A92: ENSOARG00000015490 | B92: 0 | C92: 0 | D92: 0 | E92: 0 | F92: 0 | G92: 0 | H92: 0 | I92: 0 | J92: 0 | K92: 0 | L92: 0 | M92: 0 | N92: 0 | O92: 0 | P92: 0 | Q92: 0 | R92: 0 | S92: 0 | T92: 0 | U92: 0 | V92: 0 | W92: 0 | X92: 0 | Y92: 0 | Z92: 0 | AA92: 0 | AB92: 0 | AC92: 0 | AD92: 0 | AE92: 0 | AF92: 0 | AG92: 0 | AH92: 0 | AI92: 0 | AJ92: 0 | AK92: 0 | AL92: 0 | AM92: 0 | AN92: 0 | AO92: 0 | AP92: 0 | AQ92: 0 | AR92: 0 | AS92: 0 | AT92: 0 | AU92: 0 | AV92: 0 | AW92: 0
A93: 18175 | B93: 0 | C93: 0 | D93: 0 | E93: 0 | F93: 0 | G93: 0 | H93: 0 | I93: 0.112787 | J93: 0 | K93: 0 | L93: 0 | M93: 0 | N93: 0.126685 | O93: 0 | P93: 0 | Q93: 0 | R93: 0 | S93: 0 | T93: 0 | U93: 0 | V93: 0 | W93: 0 | X93: 0 | Y93: 0 | Z93: 0 | AA93: 0 | AB93: 0 | AC93: 0 | AD93: 0 | AE93: 0 | AF93: 0 | AG93: 0 | AH93: 0 | AI93: 0 | AJ93: 0 | AK93: 0 | AL93: 0 | AM93: 0 | AN93: 0 | AO93: 0 | AP93: 0 | AQ93: 0 | AR93: 0 | AS93: 0 | AT93: 0 | AU93: 0 | AV93: 0 | AW93: 0
A94: 17519 | B94: 4.063487 | C94: 5.302161 | D94: 5.670057 | E94: 9.261576 | F94: 5.734204 | G94: 1.997068 | H94: 5.0749 | I94: 5.062831 | J94: 3.823704 | K94: 5.051951 | L94: 6.225456 | M94: 6.209004 | N94: 4.387633 | O94: 3.140509 | P94: 5.900708 | Q94: 5.283421 | R94: 1.580413 | S94: 1.42043 | T94: 1.910125 | U94: 1.470511 | V94: 1.281259 | W94: 1.780473 | X94: 1.69567 | Y94: 2.639814 | Z94: 1.40196 | AA94: 2.296825 | AB94: 1.200508 | AC94: 1.469788 | AD94: 1.381329 | AE94: 1.845772 | AF94: 1.870218 | AG94: 1.785071 | AH94: 2.934195 | AI94: 4.11233 | AJ94: 1.779472 | AK94: 2.797508 | AL94: 4.013469 | AM94: 4.555959 | AN94: 2.985637 | AO94: 1.733878 | AP94: 2.422655 | AQ94: 4.531404 | AR94: 2.863649 | AS94: 3.190454 | AT94: 2.931621 | AU94: 3.327379 | AV94: 2.794098 | AW94: 3.606112
A95: ENSOARG00000018675 | B95: 94.309395 | C95: 114.453369 | D95: 99.796547 | E95: 91.413849 | F95: 92.100792 | G95: 131.940033 | H95: 134.233978 | I95: 114.178307 | J95: 122.546158 | K95: 84.31665 | L95: 103.825104 | M95: 125.505203 | N95: 115.918701 | O95: 143.493423 | P95: 122.450897 | Q95: 137.043091 | R95: 45.065723 | S95: 23.176472 | T95: 49.404591 | U95: 46.197052 | V95: 47.703747 | W95: 50.524204 | X95: 46.691196 | Y95: 39.117088 | Z95: 48.581257 | AA95: 40.462582 | AB95: 52.491177 | AC95: 60.060265 | AD95: 49.676235 | AE95: 57.519905 | AF95: 46.737667 | AG95: 26.493149 | AH95: 118.500481 | AI95: 119.197014 | AJ95: 104.711197 | AK95: 106.728043 | AL95: 105.550598 | AM95: 100.158066 | AN95: 98.014725 | AO95: 101.219109 | AP95: 140.164398 | AQ95: 65.991005 | AR95: 89.745674 | AS95: 128.300735 | AT95: 82.518761 | AU95: 84.682343 | AV95: 104.609558 | AW95: 120.869026
A96: ENSOARG00000007953 | B96: 36.009865 | C96: 38.178917 | D96: 36.911846 | E96: 41.186817 | F96: 37.457989 | G96: 41.11956 | H96: 50.931026 | I96: 39.455242 | J96: 37.940506 | K96: 41.61599 | L96: 34.490166 | M96: 40.523739 | N96: 41.896614 | O96: 36.956791 | P96: 47.573326 | Q96: 48.552765 | R96: 27.3272 | S96: 19.976286 | T96: 28.359035 | U96: 18.377907 | V96: 24.714758 | W96: 35.719036 | X96: 28.295597 | Y96: 25.641071 | Z96: 20.550312 | AA96: 28.534847 | AB96: 24.001987 | AC96: 24.635021 | AD96: 22.9902 | AE96: 22.657816 | AF96: 20.325798 | AG96: 25.31673 | AH96: 14.865827 | AI96: 20.96644 | AJ96: 18.779608 | AK96: 17.733599 | AL96: 18.307144 | AM96: 22.919344 | AN96: 17.034588 | AO96: 16.630424 | AP96: 21.778736 | AQ96: 16.002131 | AR96: 13.408328 | AS96: 18.12602 | AT96: 14.54012 | AU96: 14.990413 | AV96: 16.253643 | AW96: 17.465536
A97: ENSOARG00000018863 | B97: 1.72292 | C97: 1.184219 | D97: 1.516054 | E97: 1.616431 | F97: 1.145348 | G97: 0.762074 | H97: 1.75935 | I97: 1.759596 | J97: 1.428891 | K97: 1.740774 | L97: 1.397682 | M97: 0.830714 | N97: 0.744314 | O97: 1.046694 | P97: 1.592291 | Q97: 1.404431 | R97: 0.25486 | S97: 0.850342 | T97: 0.681203 | U97: 0.444913 | V97: 0.7234 | W97: 1.012763 | X97: 0.808183 | Y97: 1.119949 | Z97: 0.301143 | AA97: 0.824916 | AB97: 0.659729 | AC97: 0.329688 | AD97: 0.315819 | AE97: 0.469264 | AF97: 0.68365 | AG97: 0.788121 | AH97: 0.43583 | AI97: 0.829585 | AJ97: 0.259972 | AK97: 0.35516 | AL97: 0.758249 | AM97: 0.462661 | AN97: 0.798302 | AO97: 0.863057 | AP97: 0.758313 | AQ97: 0.715464 | AR97: 0.394772 | AS97: 0.633599 | AT97: 0.430937 | AU97: 0.302544 | AV97: 0.3443 | AW97: 0.625839
A98: ENSOARG00000018706 | B98: 0 | C98: 0 | D98: 0 | E98: 0 | F98: 0 | G98: 0 | H98: 0 | I98: 0 | J98: 0 | K98: 0 | L98: 0 | M98: 0 | N98: 0 | O98: 0 | P98: 0 | Q98: 0 | R98: 0 | S98: 0 | T98: 0 | U98: 0 | V98: 0 | W98: 0 | X98: 0 | Y98: 0 | Z98: 0 | AA98: 0 | AB98: 0 | AC98: 0 | AD98: 0 | AE98: 0 | AF98: 0 | AG98: 0 | AH98: 0 | AI98: 0 | AJ98: 0 | AK98: 0 | AL98: 0 | AM98: 0 | AN98: 0 | AO98: 0 | AP98: 0 | AQ98: 0 | AR98: 0 | AS98: 0 | AT98: 0 | AU98: 0 | AV98: 0 | AW98: 0
A99: ENSOARG00000012271 | B99: 11.986436 | C99: 16.901266 | D99: 11.755931 | E99: 17.598703 | F99: 18.529579 | G99: 10.275428 | H99: 15.399825 | I99: 13.721836 | J99: 13.642817 | K99: 13.978278 | L99: 16.549181 | M99: 16.513203 | N99: 17.64493 | O99: 19.763716 | P99: 17.824493 | Q99: 16.335867 | R99: 4.927899 | S99: 5.900201 | T99: 4.715182 | U99: 5.520959 | V99: 3.464025 | W99: 5.128654 | X99: 5.063879 | Y99: 4.657938 | Z99: 4.842017 | AA99: 5.767468 | AB99: 4.342072 | AC99: 5.164017 | AD99: 5.239698 | AE99: 5.572185 | AF99: 4.362893 | AG99: 8.016943 | AH99: 18.791428 | AI99: 12.041842 | AJ99: 17.882032 | AK99: 19.373194 | AL99: 13.920976 | AM99: 13.439024 | AN99: 11.576257 | AO99: 10.201496 | AP99: 14.24851 | AQ99: 6.607909 | AR99: 11.122284 | AS99: 12.03017 | AT99: 18.821095 | AU99: 18.253016 | AV99: 15.022223 | AW99: 11.627616
A100: ENSOARG00000007391 | B100: 1.974694 | C100: 1.963519 | D100: 1.616233 | E100: 1.03794 | F100: 1.626875 | G100: 1.292094 | H100: 3.192873 | I100: 2.825411 | J100: 2.185883 | K100: 1.813123 | L100: 1.782543 | M100: 0.925008 | N100: 0.615188 | O100: 1.541813 | P100: 1.373473 | Q100: 2.785912 | R100: 0.429645 | S100: 0.638508 | T100: 0.798082 | U100: 0.695207 | V100: 0.90282 | W100: 1.669354 | X100: 0.452326 | Y100: 2.1127 | Z100: 0.423363 | AA100: 0.610387 | AB100: 0.840685 | AC100: 1.017748 | AD100: 0.758859 | AE100: 0.598711 | AF100: 0.650696 | AG100: 0.433666 | AH100: 0.769212 | AI100: 0.650751 | AJ100: 0.704816 | AK100: 1.024481 | AL100: 0.72891 | AM100: 0.88796 | AN100: 0.58257 | AO100: 0.779463 | AP100: 1.044693 | AQ100: 0.95204 | AR100: 0.689532 | AS100: 0.632282 | AT100: 0.485632 | AU100: 0.46262 | AV100: 0.556705 | AW100: 0.831434
A101: ENSOARG00000009409 | B101: 3.074236 | C101: 3.968849 | D101: 4.207662 | E101: 1.796126 | F101: 3.693679 | G101: 4.170263 | H101: 5.175207 | I101: 4.855028 | J101: 4.548191 | K101: 5.30325 | L101: 4.152318 | M101: 3.241216 | N101: 2.025361 | O101: 3.540761 | P101: 4.412039 | Q101: 4.830333 | R101: 1.353981 | S101: 1.766864 | T101: 1.993777 | U101: 1.544946 | V101: 2.282275 | W101: 2.282948 | X101: 2.907406 | Y101: 2.853137 | Z101: 1.009547 | AA101: 1.515381 | AB101: 2.348479 | AC101: 1.229663 | AD101: 1.547461 | AE101: 1.549672 | AF101: 1.679041 | AG101: 2.171286 | AH101: 1.259666 | AI101: 3.963491 | AJ101: 2.815738 | AK101: 3.092968 | AL101: 2.664799 | AM101: 3.084113 | AN101: 3.645271 | AO101: 3.42143 | AP101: 4.182312 | AQ101: 4.758372 | AR101: 2.58265 | AS101: 3.263303 | AT101: 1.792261 | AU101: 1.550473 | AV101: 1.669591 | AW101: 3.633669
A102: 10204 | B102: 0 | C102: 0 | D102: 0 | E102: 0 | F102: 0 | G102: 0 | H102: 0 | I102: 0 | J102: 0 | K102: 0 | L102: 0 | M102: 0 | N102: 0 | O102: 0 | P102: 0 | Q102: 0 | R102: 0 | S102: 0.084396 | T102: 0 | U102: 0 | V102: 0 | W102: 0 | X102: 0 | Y102: 0 | Z102: 0.436585 | AA102: 0 | AB102: 0 | AC102: 0 | AD102: 0 | AE102: 0 | AF102: 0 | AG102: 0 | AH102: 0 | AI102: 0 | AJ102: 0 | AK102: 0 | AL102: 0 | AM102: 0 | AN102: 0 | AO102: 0 | AP102: 0 | AQ102: 0 | AR102: 0 | AS102: 0 | AT102: 0 | AU102: 0 | AV102: 0 | AW102: 0
A103: ENSOARG00000012037 | B103: 0 | C103: 0 | D103: 0 | E103: 0 | F103: 0 | G103: 0 | H103: 0 | I103: 0 | J103: 0 | K103: 0.142603 | L103: 0.314778 | M103: 0 | N103: 0 | O103: 0 | P103: 0.132193 | Q103: 0.05581 | R103: 0 | S103: 0 | T103: 0 | U103: 0 | V103: 0 | W103: 0 | X103: 0 | Y103: 0 | Z103: 0 | AA103: 0 | AB103: 0 | AC103: 0 | AD103: 0 | AE103: 0 | AF103: 0 | AG103: 0 | AH103: 0 | AI103: 0 | AJ103: 0 | AK103: 0 | AL103: 0 | AM103: 0 | AN103: 0 | AO103: 0 | AP103: 0 | AQ103: 0.088345 | AR103: 0 | AS103: 0 | AT103: 0 | AU103: 0 | AV103: 0 | AW103: 0
A104: ENSOARG00000004022 | B104: 2.13995 | C104: 2.220434 | D104: 1.860723 | E104: 1.402994 | F104: 2.06469 | G104: 2.082262 | H104: 1.90339 | I104: 1.866837 | J104: 1.905429 | K104: 2.241515 | L104: 1.747216 | M104: 1.397931 | N104: 1.323368 | O104: 1.962976 | P104: 2.007506 | Q104: 2.478188 | R104: 0.691923 | S104: 0.861592 | T104: 1.179028 | U104: 1.306476 | V104: 1.247422 | W104: 1.642128 | X104: 0.846321 | Y104: 1.476398 | Z104: 0.983979 | AA104: 0.719513 | AB104: 1.556971 | AC104: 1.182386 | AD104: 1.266553 | AE104: 1.188241 | AF104: 1.31495 | AG104: 0.955685 | AH104: 1.479437 | AI104: 1.38208 | AJ104: 1.753222 | AK104: 1.325006 | AL104: 1.540489 | AM104: 1.703945 | AN104: 1.314861 | AO104: 1.693866 | AP104: 1.581057 | AQ104: 1.276754 | AR104: 1.272142 | AS104: 1.551296 | AT104: 1.156156 | AU104: 1.169438 | AV104: 1.295985 | AW104: 1.73561
A105: 8201 | B105: 0 | C105: 0 | D105: 0.242506 | E105: 0 | F105: 0 | G105: 0 | H105: 0 | I105: 0 | J105: 0 | K105: 0.19827 | L105: 0 | M105: 0 | N105: 0 | O105: 0 | P105: 0 | Q105: 0 | R105: 0 | S105: 0 | T105: 0 | U105: 0 | V105: 0 | W105: 0 | X105: 0 | Y105: 0 | Z105: 0 | AA105: 0 | AB105: 0 | AC105: 0 | AD105: 0 | AE105: 0 | AF105: 0 | AG105: 0 | AH105: 0 | AI105: 0 | AJ105: 0 | AK105: 0 | AL105: 0 | AM105: 0 | AN105: 0 | AO105: 0 | AP105: 0 | AQ105: 0 | AR105: 0 | AS105: 0 | AT105: 0 | AU105: 0 | AV105: 0 | AW105: 0
A106: 10552 | B106: 0.113446 | C106: 0.417678 | D106: 0.147202 | E106: 0.287993 | F106: 0.271388 | G106: 0.065187 | H106: 0 | I106: 0.17585 | J106: 0 | K106: 0.18511 | L106: 0 | M106: 0.159677 | N106: 0.049854 | O106: 0.317246 | P106: 0.230859 | Q106: 0.17887 | R106: 0 | S106: 0 | T106: 0 | U106: 0.048654 | V106: 0 | W106: 0 | X106: 0 | Y106: 0 | Z106: 0 | AA106: 0 | AB106: 0 | AC106: 0 | AD106: 0 | AE106: 0 | AF106: 0 | AG106: 0 | AH106: 0 | AI106: 0 | AJ106: 0 | AK106: 0 | AL106: 0 | AM106: 0 | AN106: 0 | AO106: 0 | AP106: 0 | AQ106: 0 | AR106: 0 | AS106: 0 | AT106: 0 | AU106: 0 | AV106: 0 | AW106: 0
A107: ENSOARG00000014582 | B107: 0.208116 | C107: 0.067519 | D107: 0.056231 | E107: 0 | F107: 0.059737 | G107: 0.21611 | H107: 0.344543 | I107: 0.365623 | J107: 0.247582 | K107: 0.213882 | L107: 0.057213 | M107: 0.253009 | N107: 0.163194 | O107: 0.525704 | P107: 0.182752 | Q107: 0.606966 | R107: 0.114559 | S107: 0.306315 | T107: 0.131899 | U107: 0.275714 | V107: 0.147795 | W107: 0.13351 | X107: 0.232176 | Y107: 0.224847 | Z107: 0 | AA107: 0.044001 | AB107: 0.167008 | AC107: 0.109847 | AD107: 0.355615 | AE107: 0.183091 | AF107: 0 | AG107: 0.273931 | AH107: 0.244303 | AI107: 0 | AJ107: 0 | AK107: 0.149568 | AL107: 0.080657 | AM107: 0.052959 | AN107: 0 | AO107: 0.140749 | AP107: 0 | AQ107: 0 | AR107: 0 | AS107: 0.229617 | AT107: 0 | AU107: 0 | AV107: 0 | AW107: 0.115284
A108: 17195 | B108: 0.16519 | C108: 0.257198 | D108: 0.392331 | E108: 1.191598 | F108: 0.519252 | G108: 0.142482 | H108: 0.322247 | I108: 0.328163 | J108: 0.098356 | K108: 0.176949 | L108: 0.277925 | M108: 0.258626 | N108: 0.248824 | O108: 0.28476 | P108: 0.492424 | Q108: 0.22236 | R108: 0 | S108: 0 | T108: 0.013499 | U108: 0 | V108: 0 | W108: 0.024118 | X108: 0.037736 | Y108: 0.023973 | Z108: 0.092186 | AA108: 0 | AB108: 0.071367 | AC108: 0.02851 | AD108: 0.039998 | AE108: 0.062241 | AF108: 0 | AG108: 0.031274 | AH108: 1.420719 | AI108: 1.579941 | AJ108: 1.126611 | AK108: 2.01285 | AL108: 1.627836 | AM108: 1.900779 | AN108: 1.424556 | AO108: 1.251889 | AP108: 1.174057 | AQ108: 2.252631 | AR108: 0.921258 | AS108: 1.823721 | AT108: 1.540892 | AU108: 0.665233 | AV108: 1.326561 | AW108: 1.014957
A109: ENSOARG00000007105 | B109: 0 | C109: 0 | D109: 0 | E109: 0 | F109: 0.106828 | G109: 0 | H109: 0 | I109: 0.061455 | J109: 0 | K109: 0 | L109: 0.192388 | M109: 0 | N109: 0 | O109: 0 | P109: 0 | Q109: 0.08505 | R109: 0 | S109: 0 | T109: 0 | U109: 0 | V109: 0 | W109: 0.046617 | X109: 0 | Y109: 0 | Z109: 0 | AA109: 0 | AB109: 0 | AC109: 0 | AD109: 0 | AE109: 0 | AF109: 0 | AG109: 0 | AH109: 0 | AI109: 0 | AJ109: 0.108297 | AK109: 0 | AL109: 0.36106 | AM109: 0 | AN109: 0 | AO109: 0 | AP109: 0 | AQ109: 0 | AR109: 0.104692 | AS109: 0.196682 | AT109: 0 | AU109: 0 | AV109: 0 | AW109: 0
A110: 9646 | B110: 0 | C110: 0.250226 | D110: 0.123643 | E110: 0.413132 | F110: 0.478502 | G110: 0.070216 | H110: 0.209674 | I110: 0.056656 | J110: 0.245393 | K110: 0.166011 | L110: 0 | M110: 0.302162 | N110: 0.271426 | O110: 0.234081 | P110: 0.149946 | Q110: 0.150552 | R110: 0 | S110: 0 | T110: 0.093827 | U110: 0 | V110: 0 | W110: 0 | X110: 0 | Y110: 0.071224 | Z110: 0 | AA110: 0 | AB110: 0 | AC110: 0 | AD110: 0 | AE110: 0 | AF110: 0 | AG110: 0 | AH110: 0.308851 | AI110: 0 | AJ110: 0 | AK110: 0 | AL110: 0 | AM110: 0 | AN110: 0 | AO110: 0 | AP110: 0 | AQ110: 0 | AR110: 0.138516 | AS110: 0 | AT110: 0.041192 | AU110: 0 | AV110: 0.084973 | AW110: 0
A111: ENSOARG00000009094 | B111: 13.172882 | C111: 11.31756 | D111: 12.416987 | E111: 16.755505 | F111: 14.875847 | G111: 12.316338 | H111: 14.489616 | I111: 13.700475 | J111: 12.315274 | K111: 13.157163 | L111: 13.873113 | M111: 12.775736 | N111: 10.993053 | O111: 13.523133 | P111: 14.040257 | Q111: 13.823125 | R111: 14.200724 | S111: 14.000984 | T111: 12.124043 | U111: 10.255844 | V111: 13.162759 | W111: 14.12816 | X111: 18.363636 | Y111: 20.943329 | Z111: 12.02381 | AA111: 16.997784 | AB111: 12.833477 | AC111: 12.921578 | AD111: 13.378068 | AE111: 17.487335 | AF111: 15.298147 | AG111: 14.068407 | AH111: 11.792339 | AI111: 19.744036 | AJ111: 17.073977 | AK111: 17.30168 | AL111: 15.669626 | AM111: 20.292812 | AN111: 13.822266 | AO111: 12.308461 | AP111: 14.818106 | AQ111: 16.683592 | AR111: 12.654444 | AS111: 14.822886 | AT111: 15.938775 | AU111: 13.496887 | AV111: 12.514913 | AW111: 14.530819
A112: 19155 | B112: 0 | C112: 0 | D112: 0 | E112: 0 | F112: 0 | G112: 0 | H112: 0 | I112: 0 | J112: 0 | K112: 0 | L112: 0 | M112: 0 | N112: 0 | O112: 0 | P112: 0 | Q112: 0.055818 | R112: 0.700365 | S112: 0.484332 | T112: 0.821115 | U112: 0.404981 | V112: 1.333828 | W112: 0.859572 | X112: 0.984022 | Y112: 0.999318 | Z112: 0.403316 | AA112: 0.439515 | AB112: 0.81682 | AC112: 1.240553 | AD112: 0.729468 | AE112: 0.654222 | AF112: 0.781697 | AG112: 0.891635 | AH112: 0 | AI112: 0 | AJ112: 0 | AK112: 0 | AL112: 0.067692 | AM112: 0 | AN112: 0.074949 | AO112: 0 | AP112: 0 | AQ112: 0 | AR112: 0 | AS112: 0 | AT112: 0 | AU112: 0.162707 | AV112: 0 | AW112: 0.082496
A113: 6896 | B113: 0 | C113: 0 | D113: 0 | E113: 0 | F113: 0 | G113: 0 | H113: 0 | I113: 0 | J113: 0 | K113: 0 | L113: 0 | M113: 0 | N113: 0 | O113: 0 | P113: 0 | Q113: 0 | R113: 0 | S113: 0 | T113: 0 | U113: 0 | V113: 0 | W113: 0.060324 | X113: 0 | Y113: 0.238908 | Z113: 0 | AA113: 0.171567 | AB113: 0.166302 | AC113: 0.091056 | AD113: 0 | AE113: 0.318983 | AF113: 0 | AG113: 0 | AH113: 0 | AI113: 0 | AJ113: 0.141332 | AK113: 0 | AL113: 0 | AM113: 0 | AN113: 0 | AO113: 0 | AP113: 0 | AQ113: 0 | AR113: 0 | AS113: 0.091913 | AT113: 0 | AU113: 0 | AV113: 0.071108 | AW113: 0
A114: 6504 | B114: 2.836109 | C114: 1.838259 | D114: 3.318796 | E114: 1.926809 | F114: 2.342089 | G114: 4.569589 | H114: 4.564794 | I114: 4.762758 | J114: 3.816902 | K114: 3.649531 | L114: 3.192478 | M114: 4.254926 | N114: 3.463987 | O114: 2.405829 | P114: 4.757222 | Q114: 4.181402 | R114: 0.06503 | S114: 0.064046 | T114: 0.066278 | U114: 0.019895 | V114: 0.061996 | W114: 0.150469 | X114: 0 | Y114: 0.080714 | Z114: 0 | AA114: 0 | AB114: 0.112015 | AC114: 0.108969 | AD114: 0.217409 | AE114: 0.19865 | AF114: 0.109335 | AG114: 0.072545 | AH114: 0.21998 | AI114: 0.440813 | AJ114: 0.131973 | AK114: 0.037543 | AL114: 0.400645 | AM114: 0.362681 | AN114: 0.121566 | AO114: 0.404959 | AP114: 0.423801 | AQ114: 0.4314 | AR114: 0.438175 | AS114: 0.248017 | AT114: 0.116514 | AU114: 0.051985 | AV114: 0 | AW114: 0.225576
A115: ENSOARG00000016124 | B115: 0 | C115: 0.449011 | D115: 0.767896 | E115: 0.652387 | F115: 0.71022 | G115: 0.304745 | H115: 0.403139 | I115: 0.560989 | J115: 0.854877 | K115: 0.556484 | L115: 0.843553 | M115: 0 | N115: 0 | O115: 0.875033 | P115: 0 | Q115: 0 | R115: 0 | S115: 0 | T115: 0.327759 | U115: 0 | V115: 0 | W115: 0 | X115: 0 | Y115: 0 | Z115: 0 | AA115: 0 | AB115: 0 | AC115: 0.831885 | AD115: 0 | AE115: 0 | AF115: 0 | AG115: 0 | AH115: 8.033701 | AI115: 5.30407 | AJ115: 12.577978 | AK115: 8.142305 | AL115: 6.773553 | AM115: 4.648916 | AN115: 9.614507 | AO115: 10.163815 | AP115: 5.142907 | AQ115: 9.849993 | AR115: 7.691824 | AS115: 5.106118 | AT115: 8.481421 | AU115: 10.170221 | AV115: 7.229313 | AW115: 7.086458
A116: ENSOARG00000002017 | B116: 69.131927 | C116: 79.254913 | D116: 74.195198 | E116: 68.262848 | F116: 67.307632 | G116: 90.923103 | H116: 110.45385 | I116: 99.420692 | J116: 88.774452 | K116: 76.486618 | L116: 74.846054 | M116: 78.8479 | N116: 64.061958 | O116: 77.313988 | P116: 87.835594 | Q116: 94.096512 | R116: 30.021408 | S116: 20.960255 | T116: 37.697079 | U116: 32.666344 | V116: 31.670637 | W116: 31.265217 | X116: 31.615934 | Y116: 30.54217 | Z116: 27.762482 | AA116: 37.986832 | AB116: 30.789881 | AC116: 25.934635 | AD116: 21.702642 | AE116: 30.493776 | AF116: 24.686962 | AG116: 18.35648 | AH116: 16.15843 | AI116: 28.938992 | AJ116: 15.868673 | AK116: 20.989799 | AL116: 28.1479 | AM116: 24.023232 | AN116: 17.382906 | AO116: 21.07052 | AP116: 25.300993 | AQ116: 20.361504 | AR116: 16.854189 | AS116: 23.925617 | AT116: 19.534151 | AU116: 12.495426 | AV116: 16.603409 | AW116: 21.79166
A117: 18621 | B117: 0.497368 | C117: 0.599257 | D117: 0.906208 | E117: 1.18487 | F117: 0.959496 | G117: 0.26402 | H117: 0.546289 | I117: 1.038284 | J117: 0.548018 | K117: 0.54041 | L117: 1.060551 | M117: 0.412782 | N117: 0.745467 | O117: 1.185186 | P117: 1.423436 | Q117: 1.432886 | R117: 0.43937 | S117: 0.192878 | T117: 0.490948 | U117: 0.278893 | V117: 1.087213 | W117: 0.337361 | X117: 0.38054 | Y117: 0.742135 | Z117: 0.415777 | AA117: 0.280622 | AB117: 0.794318 | AC117: 0.212082 | AD117: 0.486284 | AE117: 0.749569 | AF117: 0.545934 | AG117: 0.175094 | AH117: 0 | AI117: 0 | AJ117: 0 | AK117: 0 | AL117: 0 | AM117: 0 | AN117: 0 | AO117: 0 | AP117: 0 | AQ117: 0 | AR117: 0 | AS117: 0 | AT117: 0 | AU117: 0.11792 | AV117: 0 | AW117: 0
A118: ENSOARG00000001487 | B118: 0.536802 | C118: 0.66297 | D118: 0.254856 | E118: 0 | F118: 0.364398 | G118: 0 | H118: 0.431091 | I118: 0.181044 | J118: 0 | K118: 0.164314 | L118: 0.15079 | M118: 0.266926 | N118: 0.128747 | O118: 0.119177 | P118: 0.361515 | Q118: 0.417182 | R118: 0 | S118: 0 | T118: 0 | U118: 0.158299 | V118: 0.092646 | W118: 0.073662 | X118: 0 | Y118: 0.047338 | Z118: 0 | AA118: 0 | AB118: 0.168665 | AC118: 0.063279 | AD118: 0 | AE118: 0.062638 | AF118: 0 | AG118: 0 | AH118: 0.367484 | AI118: 0.110042 | AJ118: 0.04668 | AK118: 0 | AL118: 0.101389 | AM118: 0 | AN118: 0.219295 | AO118: 0.378296 | AP118: 0.297844 | AQ118: 0.312313 | AR118: 0.33865 | AS118: 0.135373 | AT118: 0.150441 | AU118: 0.197656 | AV118: 0.308227 | AW118: 0.068592
A119: ENSOARG00000000591 | B119: 0 | C119: 0 | D119: 0 | E119: 0 | F119: 0 | G119: 0 | H119: 0 | I119: 0 | J119: 0 | K119: 0 | L119: 0 | M119: 0 | N119: 0 | O119: 0 | P119: 0 | Q119: 0 | R119: 0.352947 | S119: 0.506773 | T119: 0.895205 | U119: 0.850423 | V119: 0.196895 | W119: 1.103775 | X119: 1.986531 | Y119: 0.303808 | Z119: 0.15757 | AA119: 0.025797 | AB119: 0.4325 | AC119: 0.099462 | AD119: 0.601897 | AE119: 0.403837 | AF119: 0.954483 | AG119: 0.763438 | AH119: 0 | AI119: 0 | AJ119: 0 | AK119: 0 | AL119: 0 | AM119: 0 | AN119: 0 | AO119: 0 | AP119: 0 | AQ119: 0 | AR119: 0 | AS119: 0 | AT119: 0 | AU119: 0 | AV119: 0 | AW119: 0
A120: ENSOARG00000010684 | B120: 82.731689 | C120: 63.139118 | D120: 62.213886 | E120: 31.111826 | F120: 46.932316 | G120: 62.507492 | H120: 43.768234 | I120: 39.083588 | J120: 71.391289 | K120: 41.379623 | L120: 43.177399 | M120: 28.611902 | N120: 23.475843 | O120: 44.788033 | P120: 36.272812 | Q120: 55.616844 | R120: 0.88364 | S120: 0.676011 | T120: 3.259181 | U120: 2.578909 | V120: 2.476172 | W120: 3.763441 | X120: 3.658877 | Y120: 2.229443 | Z120: 0.936919 | AA120: 1.713992 | AB120: 2.838887 | AC120: 2.296923 | AD120: 2.510348 | AE120: 1.802254 | AF120: 3.222524 | AG120: 0 | AH120: 20.074583 | AI120: 15.413825 | AJ120: 18.160515 | AK120: 13.90021 | AL120: 15.709112 | AM120: 13.056999 | AN120: 15.680295 | AO120: 16.539106 | AP120: 19.800669 | AQ120: 16.654951 | AR120: 13.137339 | AS120: 14.089809 | AT120: 17.789658 | AU120: 9.686617 | AV120: 16.361317 | AW120: 20.035461
A121: ENSOARG00000011379 | B121: 0.15989 | C121: 0 | D121: 0 | E121: 0.082705 | F121: 0.033672 | G121: 0 | H121: 0 | I121: 0.080844 | J121: 0.026233 | K121: 0.193317 | L121: 0.044683 | M121: 0.075928 | N121: 0 | O121: 0 | P121: 0 | Q121: 0 | R121: 0 | S121: 0 | T121: 0 | U121: 0 | V121: 0 | W121: 0 | X121: 0 | Y121: 0 | Z121: 0 | AA121: 0 | AB121: 0 | AC121: 0 | AD121: 0 | AE121: 0 | AF121: 0 | AG121: 0 | AH121: 0.06129 | AI121: 0 | AJ121: 0 | AK121: 0 | AL121: 0 | AM121: 0 | AN121: 0 | AO121: 0 | AP121: 0 | AQ121: 0.015102 | AR121: 0 | AS121: 0 | AT121: 0 | AU121: 0 | AV121: 0 | AW121: 0
A122: ENSOARG00000003223 | B122: 0 | C122: 0 | D122: 0 | E122: 0 | F122: 0 | G122: 0 | H122: 0 | I122: 0.039116 | J122: 0 | K122: 0 | L122: 0 | M122: 0 | N122: 0 | O122: 0 | P122: 0 | Q122: 0.156191 | R122: 0 | S122: 0 | T122: 0 | U122: 0 | V122: 0 | W122: 0 | X122: 0 | Y122: 0 | Z122: 0 | AA122: 0 | AB122: 0 | AC122: 0 | AD122: 0 | AE122: 0 | AF122: 0 | AG122: 0 | AH122: 0 | AI122: 0 | AJ122: 0 | AK122: 0 | AL122: 0.08952 | AM122: 0.084157 | AN122: 0 | AO122: 0 | AP122: 0 | AQ122: 0 | AR122: 0 | AS122: 0 | AT122: 0 | AU122: 0 | AV122: 0 | AW122: 0
A123: ENSOARG00000014784 | B123: 0 | C123: 0.282477 | D123: 0.113798 | E123: 0 | F123: 0.392437 | G123: 0 | H123: 0 | I123: 0 | J123: 0 | K123: 0.224777 | L123: 0 | M123: 0 | N123: 0 | O123: 0 | P123: 0 | Q123: 0 | R123: 0.096433 | S123: 0 | T123: 0.087392 | U123: 0 | V123: 0 | W123: 0 | X123: 0 | Y123: 0 | Z123: 0 | AA123: 0 | AB123: 0 | AC123: 0 | AD123: 0 | AE123: 0 | AF123: 0 | AG123: 0 | AH123: 0.824168 | AI123: 0.662992 | AJ123: 0 | AK123: 0.270113 | AL123: 0.269897 | AM123: 0.280062 | AN123: 0.53858 | AO123: 0 | AP123: 0.422593 | AQ123: 1.203317 | AR123: 0.599062 | AS123: 0.220118 | AT123: 0 | AU123: 0 | AV123: 0.72638 | AW123: 0.163106
A124: ENSOARG00000002346 | B124: 5.628359 | C124: 8.511747 | D124: 7.64976 | E124: 8.360551 | F124: 7.231216 | G124: 5.652843 | H124: 6.007791 | I124: 5.329902 | J124: 7.242081 | K124: 4.378801 | L124: 8.247072 | M124: 6.529664 | N124: 6.849754 | O124: 7.161478 | P124: 7.18937 | Q124: 5.928751 | R124: 1.024687 | S124: 0.841942 | T124: 2.261783 | U124: 2.609063 | V124: 2.537963 | W124: 1.84877 | X124: 1.713091 | Y124: 1.663668 | Z124: 2.150132 | AA124: 0.972032 | AB124: 2.801245 | AC124: 1.812683 | AD124: 2.03756 | AE124: 2.102646 | AF124: 2.046532 | AG124: 0.660233 | AH124: 1.213043 | AI124: 1.182312 | AJ124: 1.717648 | AK124: 1.598337 | AL124: 2.12114 | AM124: 1.916274 | AN124: 1.884584 | AO124: 1.296615 | AP124: 2.080327 | AQ124: 0.951712 | AR124: 2.14355 | AS124: 1.386044 | AT124: 2.08066 | AU124: 1.771258 | AV124: 1.70959 | AW124: 1.507721
A125: ENSOARG00000019679 | B125: 8.36136 | C125: 8.478841 | D125: 6.252848 | E125: 5.790039 | F125: 6.271642 | G125: 5.495777 | H125: 7.499444 | I125: 6.707715 | J125: 7.21472 | K125: 9.068356 | L125: 6.736617 | M125: 6.653339 | N125: 5.990795 | O125: 7.874473 | P125: 7.760244 | Q125: 7.373394 | R125: 1.666294 | S125: 2.064995 | T125: 2.885407 | U125: 3.807353 | V125: 2.350132 | W125: 3.3891 | X125: 2.587683 | Y125: 4.245752 | Z125: 2.876667 | AA125: 3.837912 | AB125: 2.932768 | AC125: 2.71401 | AD125: 2.341821 | AE125: 3.479588 | AF125: 2.688242 | AG125: 1.61855 | AH125: 7.218063 | AI125: 5.864648 | AJ125: 10.19207 | AK125: 11.709287 | AL125: 5.766186 | AM125: 5.892488 | AN125: 5.586998 | AO125: 7.271342 | AP125: 6.674069 | AQ125: 4.987084 | AR125: 5.493027 | AS125: 3.455522 | AT125: 9.664387 | AU125: 5.808231 | AV125: 7.50332 | AW125: 5.910835
A126: ENSOARG00000007100 | B126: 131.040375 | C126: 359.582733 | D126: 379.885712 | E126: 138.900345 | F126: 205.490555 | G126: 621.500244 | H126: 537.520508 | I126: 427.272797 | J126: 473.237427 | K126: 716.885925 | L126: 748.35437 | M126: 924.782654 | N126: 760.726868 | O126: 565.17981 | P126: 921.478943 | Q126: 997.04895 | R126: 6.988579 | S126: 8.948404 | T126: 5.680801 | U126: 7.189851 | V126: 0.74628 | W126: 8.366062 | X126: 15.803598 | Y126: 5.271444 | Z126: 11.966444 | AA126: 51.406384 | AB126: 13.380593 | AC126: 28.236704 | AD126: 24.451021 | AE126: 10.937828 | AF126: 11.94897 | AG126: 6.305678 | AH126: 0.179054 | AI126: 0.22824 | AJ126: 0.060459 | AK126: 0.256186 | AL126: 0 | AM126: 0.27896 | AN126: 1.067908 | AO126: 0.634293 | AP126: 0.820862 | AQ126: 0.067961 | AR126: 0.179094 | AS126: 0.174226 | AT126: 0.147845 | AU126: 0.220458 | AV126: 1.095783 | AW126: 0.239739
A127: 17574 | B127: 0 | C127: 0.140686 | D127: 0 | E127: 0 | F127: 0 | G127: 0 | H127: 0 | I127: 0 | J127: 0 | K127: 0 | L127: 0 | M127: 0 | N127: 0 | O127: 0 | P127: 0 | Q127: 0 | R127: 0 | S127: 0 | T127: 0 | U127: 0 | V127: 0 | W127: 0.136767 | X127: 0 | Y127: 0.126627 | Z127: 0 | AA127: 0 | AB127: 0 | AC127: 0 | AD127: 0 | AE127: 0 | AF127: 0 | AG127: 0 | AH127: 0 | AI127: 0 | AJ127: 0 | AK127: 0 | AL127: 0 | AM127: 0 | AN127: 0.26087 | AO127: 0 | AP127: 0 | AQ127: 0 | AR127: 0 | AS127: 0 | AT127: 0 | AU127: 0 | AV127: 0 | AW127: 0
A128: 5219 | B128: 1.381505 | C128: 0.830539 | D128: 0.761787 | E128: 3.002568 | F128: 0.866627 | G128: 0.450604 | H128: 0.947586 | I128: 0.845794 | J128: 0.9471 | K128: 1.140505 | L128: 1.397581 | M128: 1.404398 | N128: 0.962276 | O128: 1.395193 | P128: 0.832462 | Q128: 1.235574 | R128: 1.127332 | S128: 1.454242 | T128: 0.811521 | U128: 0.654298 | V128: 0.270376 | W128: 0.859139 | X128: 0.901972 | Y128: 0.794126 | Z128: 0.894378 | AA128: 0.504286 | AB128: 1.059876 | AC128: 0.592362 | AD128: 0.487351 | AE128: 1.238188 | AF128: 0.60966 | AG128: 1.272303 | AH128: 0.646207 | AI128: 1.432466 | AJ128: 1.31156 | AK128: 1.859124 | AL128: 1.320111 | AM128: 1.824366 | AN128: 0.692115 | AO128: 0.763205 | AP128: 1.237238 | AQ128: 1.51292 | AR128: 1.041219 | AS128: 1.210174 | AT128: 1.604369 | AU128: 2.033531 | AV128: 0.985762 | AW128: 1.422482
A129: ENSOARG00000003513 | B129: 8.032405 | C129: 5.042529 | D129: 3.389475 | E129: 7.634364 | F129: 6.46372 | G129: 8.692007 | H129: 14.95477 | I129: 9.628041 | J129: 10.154753 | K129: 6.637321 | L129: 11.593636 | M129: 8.9518 | N129: 10.163214 | O129: 18.940744 | P129: 10.665491 | Q129: 12.604316 | R129: 8.810731 | S129: 4.370597 | T129: 4.929883 | U129: 6.151789 | V129: 5.771441 | W129: 8.09096 | X129: 6.86244 | Y129: 4.128294 | Z129: 5.526194 | AA129: 4.594849 | AB129: 12.723853 | AC129: 3.455911 | AD129: 6.780559 | AE129: 9.313689 | AF129: 10.619083 | AG129: 8.286891 | AH129: 34.068085 | AI129: 11.804331 | AJ129: 10.229383 | AK129: 11.577761 | AL129: 23.711441 | AM129: 12.77178 | AN129: 9.32248 | AO129: 11.293406 | AP129: 14.594348 | AQ129: 7.142493 | AR129: 7.422655 | AS129: 14.958278 | AT129: 10.875063 | AU129: 6.306548 | AV129: 8.280414 | AW129: 16.408669
A130: ENSOARG00000019177 | B130: 28.684662 | C130: 36.701439 | D130: 31.638514 | E130: 35.571945 | F130: 33.778915 | G130: 27.082359 | H130: 39.193562 | I130: 31.973989 | J130: 31.382826 | K130: 35.955856 | L130: 30.215183 | M130: 38.317261 | N130: 38.979942 | O130: 39.809292 | P130: 37.467472 | Q130: 37.318104 | R130: 30.6714 | S130: 22.366137 | T130: 26.361374 | U130: 25.32593 | V130: 30.217213 | W130: 29.785393 | X130: 27.073523 | Y130: 30.661024 | Z130: 29.210863 | AA130: 30.634798 | AB130: 25.448275 | AC130: 28.813438 | AD130: 28.143887 | AE130: 29.164389 | AF130: 27.94249 | AG130: 28.303408 | AH130: 11.300254 | AI130: 14.952245 | AJ130: 12.289849 | AK130: 14.465655 | AL130: 15.721843 | AM130: 16.120157 | AN130: 12.229821 | AO130: 16.331329 | AP130: 14.593585 | AQ130: 16.984489 | AR130: 12.062842 | AS130: 13.562402 | AT130: 13.658464 | AU130: 11.636242 | AV130: 15.827031 | AW130: 14.514536
A131: 10307 | B131: 0 | C131: 0 | D131: 0 | E131: 0 | F131: 0 | G131: 0 | H131: 0 | I131: 0 | J131: 0 | K131: 0 | L131: 0 | M131: 0 | N131: 0 | O131: 0 | P131: 0 | Q131: 0 | R131: 0 | S131: 0 | T131: 0 | U131: 0 | V131: 0 | W131: 0.368308 | X131: 0 | Y131: 0 | Z131: 0 | AA131: 0 | AB131: 0 | AC131: 0 | AD131: 0 | AE131: 0 | AF131: 0.254954 | AG131: 0 | AH131: 0 | AI131: 0 | AJ131: 0 | AK131: 0 | AL131: 0 | AM131: 0 | AN131: 0 | AO131: 0 | AP131: 0 | AQ131: 0 | AR131: 0 | AS131: 0 | AT131: 0 | AU131: 0 | AV131: 0 | AW131: 0
A132: ENSOARG00000015233 | B132: 61.714264 | C132: 74.533691 | D132: 89.255402 | E132: 51.337357 | F132: 66.07605 | G132: 81.117897 | H132: 75.486771 | I132: 79.419876 | J132: 71.714989 | K132: 73.468742 | L132: 70.227379 | M132: 66.344437 | N132: 61.920307 | O132: 71.424286 | P132: 65.140877 | Q132: 71.426353 | R132: 21.694189 | S132: 16.49822 | T132: 32.398876 | U132: 27.555592 | V132: 27.619635 | W132: 24.551046 | X132: 25.044748 | Y132: 26.763866 | Z132: 26.836237 | AA132: 27.427149 | AB132: 29.527275 | AC132: 33.604191 | AD132: 29.418612 | AE132: 18.836899 | AF132: 24.006603 | AG132: 22.125401 | AH132: 8.06617 | AI132: 8.677402 | AJ132: 6.614608 | AK132: 6.32029 | AL132: 8.259398 | AM132: 7.517161 | AN132: 6.119591 | AO132: 11.220811 | AP132: 8.75224 | AQ132: 8.24324 | AR132: 7.464739 | AS132: 8.475964 | AT132: 8.59514 | AU132: 5.96857 | AV132: 8.918418 | AW132: 8.312677
A133: 16934 | B133: 0 | C133: 0 | D133: 0 | E133: 0.076023 | F133: 0 | G133: 0 | H133: 0 | I133: 0 | J133: 0 | K133: 0 | L133: 0 | M133: 0 | N133: 0 | O133: 0 | P133: 0.115645 | Q133: 0 | R133: 0 | S133: 0 | T133: 0 | U133: 0 | V133: 0 | W133: 0 | X133: 0 | Y133: 0 | Z133: 0 | AA133: 0 | AB133: 0 | AC133: 0 | AD133: 0 | AE133: 0 | AF133: 0 | AG133: 0 | AH133: 0 | AI133: 0 | AJ133: 0 | AK133: 0 | AL133: 0 | AM133: 0 | AN133: 0 | AO133: 0 | AP133: 0 | AQ133: 0 | AR133: 0 | AS133: 0 | AT133: 0 | AU133: 0 | AV133: 0 | AW133: 0
A134: ENSOARG00000008829 | B134: 3.852454 | C134: 2.385324 | D134: 3.821891 | E134: 4.260087 | F134: 4.993609 | G134: 1.976282 | H134: 3.35101 | I134: 3.715981 | J134: 3.511151 | K134: 3.222919 | L134: 3.346796 | M134: 3.134 | N134: 2.031807 | O134: 3.452173 | P134: 4.254432 | Q134: 3.369183 | R134: 1.220973 | S134: 1.650787 | T134: 1.504497 | U134: 1.619339 | V134: 1.467646 | W134: 1.335526 | X134: 1.556058 | Y134: 1.292801 | Z134: 0.625115 | AA134: 0.991253 | AB134: 1.636476 | AC134: 0.747735 | AD134: 1.2579 | AE134: 1.35432 | AF134: 1.533477 | AG134: 1.076013 | AH134: 1.957537 | AI134: 2.796612 | AJ134: 3.21857 | AK134: 3.412425 | AL134: 2.528272 | AM134: 3.094286 | AN134: 2.353671 | AO134: 1.711307 | AP134: 2.494763 | AQ134: 2.438027 | AR134: 1.959511 | AS134: 2.672365 | AT134: 2.065186 | AU134: 1.512558 | AV134: 3.131251 | AW134: 3.400912
A135: ENSOARG00000002091 | B135: 0 | C135: 0 | D135: 0 | E135: 0 | F135: 0 | G135: 0 | H135: 0 | I135: 0 | J135: 0 | K135: 0 | L135: 0 | M135: 0 | N135: 0 | O135: 0 | P135: 0 | Q135: 0 | R135: 0 | S135: 0 | T135: 0 | U135: 0.01557 | V135: 0 | W135: 0 | X135: 0 | Y135: 0 | Z135: 0.084843 | AA135: 0.063151 | AB135: 0 | AC135: 0 | AD135: 0 | AE135: 0.184308 | AF135: 0 | AG135: 0 | AH135: 0 | AI135: 0 | AJ135: 0 | AK135: 0 | AL135: 0 | AM135: 0 | AN135: 0 | AO135: 0 | AP135: 0 | AQ135: 0 | AR135: 0 | AS135: 0 | AT135: 0 | AU135: 0 | AV135: 0 | AW135: 0
A136: ENSOARG00000006302 | B136: 0 | C136: 0.043938 | D136: 0 | E136: 0 | F136: 0.099834 | G136: 0.097282 | H136: 0.277875 | I136: 0.104825 | J136: 0.192379 | K136: 0.071344 | L136: 0 | M136: 0.033804 | N136: 0.046538 | O136: 0 | P136: 0 | Q136: 0 | R136: 0.094294 | S136: 0 | T136: 0.132842 | U136: 0.044455 | V136: 0.046542 | W136: 0.166973 | X136: 0.15246 | Y136: 0.328226 | Z136: 0 | AA136: 0.085355 | AB136: 0.03287 | AC136: 0.25043 | AD136: 0 | AE136: 0.287763 | AF136: 0.202686 | AG136: 0.269172 | AH136: 0.013825 | AI136: 0.047977 | AJ136: 0.37773 | AK136: 0.058241 | AL136: 0.224296 | AM136: 0.237143 | AN136: 0.52416 | AO136: 0.423319 | AP136: 0.288018 | AQ136: 0.278827 | AR136: 0.471726 | AS136: 0.086314 | AT136: 0.342923 | AU136: 0.413662 | AV136: 0.042643 | AW136: 0.414119
A137: 4296 | B137: 0 | C137: 0.315853 | D137: 0.080732 | E137: 0.055217 | F137: 0.240768 | G137: 0 | H137: 0.151506 | I137: 0.317606 | J137: 0 | K137: 0.074637 | L137: 0.223273 | M137: 0.137899 | N137: 0.323447 | O137: 0 | P137: 0 | Q137: 0.26446 | R137: 0 | S137: 0.171672 | T137: 0.074395 | U137: 0 | V137: 0 | W137: 0.104881 | X137: 0.077439 | Y137: 0 | Z137: 0 | AA137: 0 | AB137: 0 | AC137: 0 | AD137: 0.076314 | AE137: 0.066118 | AF137: 0.241648 | AG137: 0 | AH137: 0 | AI137: 0 | AJ137: 0 | AK137: 0.133923 | AL137: 0 | AM137: 0.105723 | AN137: 0 | AO137: 0.200734 | AP137: 0 | AQ137: 0.207257 | AR137: 0 | AS137: 0.24336 | AT137: 0.08293 | AU137: 0.229191 | AV137: 0.211659 | AW137: 0
A138: 10676 | B138: 0 | C138: 0 | D138: 0 | E138: 0 | F138: 0.055208 | G138: 0 | H138: 0 | I138: 0 | J138: 0 | K138: 0 | L138: 0 | M138: 0 | N138: 0 | O138: 0 | P138: 0 | Q138: 0 | R138: 0 | S138: 0 | T138: 0.055536 | U138: 0 | V138: 0.355224 | W138: 0.096862 | X138: 0 | Y138: 0 | Z138: 0 | AA138: 0 | AB138: 0 | AC138: 0.055027 | AD138: 0 | AE138: 0 | AF138: 0 | AG138: 0 | AH138: 0.075858 | AI138: 0 | AJ138: 0 | AK138: 0 | AL138: 0 | AM138: 0 | AN138: 0 | AO138: 0 | AP138: 0 | AQ138: 0 | AR138: 0 | AS138: 0 | AT138: 0 | AU138: 0 | AV138: 0 | AW138: 0
A139: 13138 | B139: 0.175441 | C139: 0.682987 | D139: 0.765036 | E139: 0.998804 | F139: 0.568935 | G139: 0.249501 | H139: 0.256575 | I139: 0.476241 | J139: 0.547958 | K139: 0.393805 | L139: 0.831576 | M139: 0.263391 | N139: 0.320939 | O139: 0.332104 | P139: 0.72297 | Q139: 0.189395 | R139: 7.395966 | S139: 9.63495 | T139: 7.643977 | U139: 7.633574 | V139: 10.897182 | W139: 10.210108 | X139: 8.609349 | Y139: 7.408427 | Z139: 7.491542 | AA139: 4.809649 | AB139: 9.671227 | AC139: 7.035632 | AD139: 9.628881 | AE139: 11.524718 | AF139: 15.953594 | AG139: 9.015194 | AH139: 0.025883 | AI139: 0.529507 | AJ139: 0.305107 | AK139: 0.26968 | AL139: 0.172357 | AM139: 0.863128 | AN139: 0.153285 | AO139: 0.349397 | AP139: 0.260243 | AQ139: 0.39396 | AR139: 0.595055 | AS139: 0.307948 | AT139: 0.296051 | AU139: 0.226201 | AV139: 0.956879 | AW139: 0.668784
A140: ENSOARG00000018487 | B140: 1.299201 | C140: 0.535052 | D140: 1.170831 | E140: 1.758175 | F140: 0.782857 | G140: 0.91653 | H140: 1.160022 | I140: 1.490751 | J140: 2.302836 | K140: 1.355762 | L140: 1.26635 | M140: 2.783985 | N140: 1.835597 | O140: 3.507018 | P140: 1.669653 | Q140: 7.581045 | R140: 3.916563 | S140: 4.120049 | T140: 8.260553 | U140: 7.275959 | V140: 9.61841 | W140: 7.101659 | X140: 7.251936 | Y140: 4.43966 | Z140: 6.082161 | AA140: 6.039934 | AB140: 3.4587 | AC140: 3.026773 | AD140: 6.223136 | AE140: 10.504127 | AF140: 5.03482 | AG140: 7.962052 | AH140: 2.766939 | AI140: 4.880352 | AJ140: 2.021411 | AK140: 3.428964 | AL140: 7.721966 | AM140: 4.267736 | AN140: 2.070714 | AO140: 2.963664 | AP140: 4.586858 | AQ140: 3.818704 | AR140: 2.389497 | AS140: 2.368054 | AT140: 2.962447 | AU140: 2.018132 | AV140: 2.19814 | AW140: 6.565766
A141: 20531 | B141: 0.133019 | C141: 0 | D141: 0 | E141: 0.203569 | F141: 0 | G141: 0 | H141: 0 | I141: 0.24363 | J141: 0 | K141: 0 | L141: 0 | M141: 0 | N141: 0 | O141: 0 | P141: 0 | Q141: 0 | R141: 0.259094 | S141: 0 | T141: 0.076247 | U141: 0 | V141: 0 | W141: 0 | X141: 0 | Y141: 0 | Z141: 0 | AA141: 0 | AB141: 0 | AC141: 0 | AD141: 0.035607 | AE141: 0 | AF141: 0 | AG141: 0 | AH141: 0 | AI141: 0 | AJ141: 0 | AK141: 0 | AL141: 0 | AM141: 0.149536 | AN141: 0 | AO141: 0.141238 | AP141: 0.108941 | AQ141: 0.020978 | AR141: 0 | AS141: 0 | AT141: 0 | AU141: 0.534411 | AV141: 0 | AW141: 0
A142: 14417 | B142: 0.194348 | C142: 0.07391 | D142: 0.050711 | E142: 0.470672 | F142: 0 | G142: 0.252377 | H142: 0.163599 | I142: 0 | J142: 0 | K142: 0.229257 | L142: 0.075443 | M142: 0 | N142: 0 | O142: 0 | P142: 0 | Q142: 0.07555 | R142: 0 | S142: 0 | T142: 0 | U142: 0 | V142: 0 | W142: 0 | X142: 0 | Y142: 0.148787 | Z142: 0 | AA142: 0 | AB142: 0 | AC142: 0 | AD142: 0 | AE142: 0 | AF142: 0 | AG142: 0 | AH142: 0.053202 | AI142: 0 | AJ142: 0 | AK142: 0 | AL142: 0 | AM142: 0.542872 | AN142: 0 | AO142: 0 | AP142: 0 | AQ142: 0 | AR142: 0 | AS142: 0 | AT142: 0 | AU142: 0 | AV142: 0 | AW142: 0
A143: 17121 | B143: 10.289346 | C143: 8.495366 | D143: 7.435329 | E143: 15.064217 | F143: 9.119151 | G143: 4.29081 | H143: 8.80803 | I143: 7.828004 | J143: 4.938723 | K143: 10.24337 | L143: 8.008101 | M143: 8.656964 | N143: 9.58802 | O143: 8.255738 | P143: 10.519408 | Q143: 7.778477 | R143: 4.325089 | S143: 4.392074 | T143: 4.031584 | U143: 5.120023 | V143: 3.657098 | W143: 4.376081 | X143: 4.744437 | Y143: 5.528397 | Z143: 6.97449 | AA143: 4.916891 | AB143: 5.360494 | AC143: 4.725588 | AD143: 5.839192 | AE143: 6.446384 | AF143: 4.666327 | AG143: 8.659358 | AH143: 5.795132 | AI143: 6.401295 | AJ143: 5.189443 | AK143: 7.420999 | AL143: 6.424678 | AM143: 7.331325 | AN143: 4.92914 | AO143: 5.711945 | AP143: 7.384967 | AQ143: 8.040359 | AR143: 5.201892 | AS143: 6.616771 | AT143: 8.090665 | AU143: 6.156446 | AV143: 7.134159 | AW143: 7.392268
A144: ENSOARG00000014403 | B144: 0 | C144: 0 | D144: 0.034086 | E144: 0 | F144: 0 | G144: 0 | H144: 0 | I144: 0 | J144: 0 | K144: 0 | L144: 0 | M144: 0 | N144: 0 | O144: 0 | P144: 0 | Q144: 0 | R144: 0 | S144: 0 | T144: 0 | U144: 0 | V144: 0 | W144: 0 | X144: 0 | Y144: 0 | Z144: 0 | AA144: 0 | AB144: 0 | AC144: 0 | AD144: 0 | AE144: 0 | AF144: 0 | AG144: 0 | AH144: 0 | AI144: 0 | AJ144: 0 | AK144: 0 | AL144: 0 | AM144: 0 | AN144: 0 | AO144: 0 | AP144: 0 | AQ144: 0 | AR144: 0 | AS144: 0 | AT144: 0 | AU144: 0 | AV144: 0 | AW144: 0
A145: 16735 | B145: 6.333653 | C145: 7.351865 | D145: 5.724807 | E145: 3.072461 | F145: 4.088845 | G145: 3.833194 | H145: 6.424367 | I145: 8.833349 | J145: 7.400911 | K145: 7.072465 | L145: 8.649782 | M145: 5.234369 | N145: 2.723741 | O145: 8.222999 | P145: 6.788861 | Q145: 5.711437 | R145: 1.305618 | S145: 1.03472 | T145: 1.10694 | U145: 1.540452 | V145: 1.618889 | W145: 1.157181 | X145: 0.701994 | Y145: 2.636477 | Z145: 1.318923 | AA145: 1.459639 | AB145: 1.090096 | AC145: 1.977674 | AD145: 2.117621 | AE145: 0.993529 | AF145: 1.263347 | AG145: 0.983326 | AH145: 2.678559 | AI145: 2.227482 | AJ145: 2.497739 | AK145: 2.792142 | AL145: 2.920145 | AM145: 1.488511 | AN145: 2.589517 | AO145: 2.272455 | AP145: 2.529196 | AQ145: 2.677237 | AR145: 1.997723 | AS145: 1.254581 | AT145: 2.265658 | AU145: 1.836057 | AV145: 1.843392 | AW145: 3.108669
A146: 14111 | B146: 0 | C146: 0 | D146: 0 | E146: 0 | F146: 0 | G146: 0 | H146: 0 | I146: 0 | J146: 0 | K146: 0 | L146: 0 | M146: 0 | N146: 0 | O146: 0 | P146: 0 | Q146: 0 | R146: 0 | S146: 0.257765 | T146: 0.196054 | U146: 0.049323 | V146: 0.841654 | W146: 0.654408 | X146: 0.348705 | Y146: 0.206431 | Z146: 0.332369 | AA146: 0.036649 | AB146: 0.094139 | AC146: 0.487903 | AD146: 0.466633 | AE146: 0.62143 | AF146: 0.770615 | AG146: 0.476134 | AH146: 0 | AI146: 0 | AJ146: 0 | AK146: 0 | AL146: 0 | AM146: 0 | AN146: 0 | AO146: 0 | AP146: 0 | AQ146: 0 | AR146: 0 | AS146: 0 | AT146: 0 | AU146: 0 | AV146: 0 | AW146: 0
A147: 12934 | B147: 0 | C147: 0 | D147: 0 | E147: 0 | F147: 0 | G147: 0 | H147: 0 | I147: 0 | J147: 0 | K147: 0 | L147: 0 | M147: 0 | N147: 0 | O147: 0 | P147: 0 | Q147: 0 | R147: 0 | S147: 0 | T147: 0 | U147: 0 | V147: 0 | W147: 0 | X147: 0 | Y147: 0 | Z147: 0 | AA147: 0 | AB147: 0 | AC147: 0 | AD147: 0 | AE147: 0 | AF147: 0 | AG147: 0 | AH147: 0 | AI147: 0 | AJ147: 0 | AK147: 0 | AL147: 0 | AM147: 0 | AN147: 0 | AO147: 0.226273 | AP147: 0 | AQ147: 0 | AR147: 0 | AS147: 0 | AT147: 0 | AU147: 0 | AV147: 0 | AW147: 0
A148: ENSOARG00000002260 | B148: 28.854153 | C148: 28.375238 | D148: 33.170559 | E148: 21.99612 | F148: 21.69887 | G148: 27.855715 | H148: 29.835476 | I148: 18.193274 | J148: 27.66688 | K148: 28.165049 | L148: 33.06955 | M148: 24.863804 | N148: 27.334204 | O148: 31.136932 | P148: 29.77043 | Q148: 26.148029 | R148: 0 | S148: 0 | T148: 0.841484 | U148: 0.131266 | V148: 0.281698 | W148: 0 | X148: 0.603285 | Y148: 0.825815 | Z148: 0 | AA148: 0.886122 | AB148: 1.079439 | AC148: 0 | AD148: 0.284893 | AE148: 0.490089 | AF148: 0 | AG148: 0 | AH148: 0 | AI148: 0.893223 | AJ148: 0.673113 | AK148: 0.385348 | AL148: 0.127211 | AM148: 0.426238 | AN148: 0.195262 | AO148: 0.51315 | AP148: 0.503926 | AQ148: 0.245495 | AR148: 0.983751 | AS148: 0.477035 | AT148: 0.852889 | AU148: 0.456059 | AV148: 0.747507 | AW148: 1.031014
A149: 12193 | B149: 0.1249 | C149: 0 | D149: 0 | E149: 0 | F149: 0.833636 | G149: 0 | H149: 0.077382 | I149: 0 | J149: 0 | K149: 0 | L149: 0 | M149: 0 | N149: 0 | O149: 0 | P149: 0 | Q149: 0.060219 | R149: 0 | S149: 0 | T149: 0 | U149: 0 | V149: 0 | W149: 0.092505 | X149: 0 | Y149: 0 | Z149: 0 | AA149: 0 | AB149: 0 | AC149: 0 | AD149: 0 | AE149: 0.10663 | AF149: 0 | AG149: 0 | AH149: 0 | AI149: 0 | AJ149: 0 | AK149: 0 | AL149: 0.123377 | AM149: 0.061985 | AN149: 0 | AO149: 0 | AP149: 0.055391 | AQ149: 0 | AR149: 0 | AS149: 0 | AT149: 0.073328 | AU149: 0 | AV149: 0 | AW149: 0
A150: ENSOARG00000000767 | B150: 0 | C150: 0.116826 | D150: 0 | E150: 0 | F150: 0 | G150: 0 | H150: 0 | I150: 0.056584 | J150: 0 | K150: 0 | L150: 0 | M150: 0 | N150: 0 | O150: 0 | P150: 0 | Q150: 0.058158 | R150: 0 | S150: 0 | T150: 0.131418 | U150: 0 | V150: 0 | W150: 0 | X150: 0 | Y150: 0 | Z150: 0 | AA150: 0 | AB150: 0.03282 | AC150: 0 | AD150: 0 | AE150: 0 | AF150: 0 | AG150: 0 | AH150: 0 | AI150: 0.118216 | AJ150: 0 | AK150: 0 | AL150: 0 | AM150: 0 | AN150: 0 | AO150: 0 | AP150: 0 | AQ150: 0 | AR150: 0 | AS150: 0.131261 | AT150: 0 | AU150: 0 | AV150: 0 | AW150: 0
A151: ENSOARG00000001470 | B151: 16.445944 | C151: 5.260898 | D151: 10.92515 | E151: 18.888622 | F151: 11.903172 | G151: 5.574213 | H151: 12.152575 | I151: 14.988604 | J151: 13.752069 | K151: 15.283234 | L151: 10.663779 | M151: 13.522693 | N151: 10.330699 | O151: 16.286093 | P151: 12.157365 | Q151: 22.167953 | R151: 10.811709 | S151: 4.208531 | T151: 7.29555 | U151: 6.311627 | V151: 10.523359 | W151: 7.447279 | X151: 6.077767 | Y151: 5.381217 | Z151: 6.949903 | AA151: 5.456822 | AB151: 5.740311 | AC151: 3.113541 | AD151: 10.271536 | AE151: 9.039166 | AF151: 6.424346 | AG151: 6.371161 | AH151: 6.502468 | AI151: 3.972826 | AJ151: 3.901717 | AK151: 4.694631 | AL151: 8.025153 | AM151: 6.70304 | AN151: 2.783999 | AO151: 5.801395 | AP151: 3.947903 | AQ151: 2.710589 | AR151: 3.980335 | AS151: 3.630574 | AT151: 2.794871 | AU151: 4.251754 | AV151: 4.676339 | AW151: 4.897359
A152: ENSOARG00000005776 | B152: 18.91324 | C152: 24.330585 | D152: 21.151505 | E152: 13.628153 | F152: 15.729438 | G152: 14.599886 | H152: 14.206308 | I152: 23.646729 | J152: 17.908779 | K152: 17.630957 | L152: 17.444536 | M152: 13.972748 | N152: 9.123361 | O152: 12.00535 | P152: 17.601534 | Q152: 16.459558 | R152: 8.751964 | S152: 5.302687 | T152: 7.154318 | U152: 8.84265 | V152: 7.316036 | W152: 8.075852 | X152: 5.498662 | Y152: 11.108319 | Z152: 2.320619 | AA152: 4.208745 | AB152: 6.796612 | AC152: 7.766529 | AD152: 5.324926 | AE152: 4.882096 | AF152: 5.250346 | AG152: 5.000913 | AH152: 17.732796 | AI152: 17.62635 | AJ152: 18.402906 | AK152: 24.335938 | AL152: 11.981838 | AM152: 12.226143 | AN152: 12.171624 | AO152: 12.504833 | AP152: 17.920486 | AQ152: 15.584689 | AR152: 15.547388 | AS152: 17.140787 | AT152: 17.432331 | AU152: 13.261986 | AV152: 13.524433 | AW152: 17.339497
A153: 19095 | B153: 0 | C153: 0.143473 | D153: 0 | E153: 0 | F153: 0.24997 | G153: 0 | H153: 0 | I153: 0 | J153: 0.136671 | K153: 0 | L153: 0 | M153: 0 | N153: 0 | O153: 0 | P153: 0 | Q153: 0 | R153: 0 | S153: 0 | T153: 0 | U153: 0 | V153: 0 | W153: 0 | X153: 0 | Y153: 0 | Z153: 0 | AA153: 0 | AB153: 0 | AC153: 0 | AD153: 0 | AE153: 0 | AF153: 0 | AG153: 0 | AH153: 0 | AI153: 0 | AJ153: 0 | AK153: 0 | AL153: 0 | AM153: 0 | AN153: 0 | AO153: 0 | AP153: 0 | AQ153: 0 | AR153: 0 | AS153: 0 | AT153: 0 | AU153: 0 | AV153: 0 | AW153: 0
A154: 4523 | B154: 0 | C154: 0 | D154: 0 | E154: 0 | F154: 0 | G154: 0 | H154: 0 | I154: 0 | J154: 0 | K154: 0 | L154: 0 | M154: 0.23211 | N154: 0 | O154: 0.184008 | P154: 0 | Q154: 0 | R154: 0 | S154: 0 | T154: 0 | U154: 0 | V154: 0 | W154: 0.226651 | X154: 0 | Y154: 0 | Z154: 0 | AA154: 0 | AB154: 0 | AC154: 0 | AD154: 0 | AE154: 0 | AF154: 0 | AG154: 0 | AH154: 0 | AI154: 0 | AJ154: 0 | AK154: 0 | AL154: 0 | AM154: 0 | AN154: 0 | AO154: 0 | AP154: 0 | AQ154: 0 | AR154: 0 | AS154: 0 | AT154: 0 | AU154: 0 | AV154: 0 | AW154: 0
A155: ENSOARG00000002036 | B155: 1.348142 | C155: 1.192512 | D155: 3.193275 | E155: 1.22179 | F155: 1.109645 | G155: 9.088043 | H155: 1.464681 | I155: 6.435672 | J155: 2.174904 | K155: 0.911402 | L155: 1.503726 | M155: 2.538468 | N155: 2.287419 | O155: 5.610459 | P155: 3.145808 | Q155: 8.376972 | R155: 18.521196 | S155: 6.084097 | T155: 23.887508 | U155: 8.35813 | V155: 12.785498 | W155: 13.087833 | X155: 7.661565 | Y155: 12.443428 | Z155: 19.472584 | AA155: 7.92857 | AB155: 6.809106 | AC155: 6.551357 | AD155: 8.9109 | AE155: 22.690151 | AF155: 7.582785 | AG155: 12.703835 | AH155: 1.621016 | AI155: 0.905372 | AJ155: 1.29687 | AK155: 0.187675 | AL155: 4.449177 | AM155: 2.61508 | AN155: 0.231123 | AO155: 3.513324 | AP155: 2.550483 | AQ155: 0.436985 | AR155: 0.875771 | AS155: 3.230705 | AT155: 3.842503 | AU155: 1.823217 | AV155: 3.462008 | AW155: 5.098
A156: ENSOARG00000006397 | B156: 0.139474 | C156: 0.072284 | D156: 0.155966 | E156: 0.128603 | F156: 0.069127 | G156: 0.075277 | H156: 0.141217 | I156: 0.145356 | J156: 0.230116 | K156: 0.179322 | L156: 0.21667 | M156: 0.172236 | N156: 0.147745 | O156: 0 | P156: 0.217118 | Q156: 0.048061 | R156: 0 | S156: 0 | T156: 0.039538 | U156: 0 | V156: 0 | W156: 0 | X156: 0 | Y156: 0 | Z156: 0 | AA156: 0 | AB156: 0.046344 | AC156: 0 | AD156: 0 | AE156: 0 | AF156: 0 | AG156: 0 | AH156: 0 | AI156: 0.062829 | AJ156: 0 | AK156: 0 | AL156: 0.038286 | AM156: 0.081851 | AN156: 0 | AO156: 0.028012 | AP156: 0.096142 | AQ156: 0 | AR156: 0 | AS156: 0.031594 | AT156: 0 | AU156: 0.022912 | AV156: 0 | AW156: 0
A157: 9815 | B157: 0 | C157: 0 | D157: 0 | E157: 0 | F157: 0 | G157: 0 | H157: 0 | I157: 0 | J157: 0 | K157: 0 | L157: 0 | M157: 0 | N157: 0 | O157: 0 | P157: 0 | Q157: 0 | R157: 0.052073 | S157: 0 | T157: 0 | U157: 0.121789 | V157: 0 | W157: 0 | X157: 0 | Y157: 0 | Z157: 0 | AA157: 0 | AB157: 0 | AC157: 0 | AD157: 0 | AE157: 0 | AF157: 0 | AG157: 0 | AH157: 0 | AI157: 0 | AJ157: 0.209188 | AK157: 0 | AL157: 0 | AM157: 0 | AN157: 0 | AO157: 0 | AP157: 0 | AQ157: 0 | AR157: 0 | AS157: 0 | AT157: 0 | AU157: 0 | AV157: 0 | AW157: 0.169219
A158: ENSOARG00000005332 | B158: 0.123367 | C158: 0.042226 | D158: 0.275697 | E158: 0.043314 | F158: 0.104626 | G158: 0.072971 | H158: 0.180276 | I158: 0 | J158: 0 | K158: 0.163856 | L158: 0 | M158: 0 | N158: 0.201045 | O158: 0 | P158: 0 | Q158: 0 | R158: 14.913056 | S158: 6.493556 | T158: 12.900855 | U158: 18.078255 | V158: 11.380273 | W158: 16.098295 | X158: 22.610039 | Y158: 4.509677 | Z158: 19.250645 | AA158: 3.276639 | AB158: 16.253471 | AC158: 18.913273 | AD158: 7.824752 | AE158: 7.961138 | AF158: 11.88729 | AG158: 13.996224 | AH158: 0 | AI158: 0 | AJ158: 0 | AK158: 0.102197 | AL158: 0.069034 | AM158: 0.070616 | AN158: 0.067055 | AO158: 0.119352 | AP158: 0 | AQ158: 0 | AR158: 0.074705 | AS158: 0.065873 | AT158: 0 | AU158: 0.179843 | AV158: 0 | AW158: 0
A159: 2631 | B159: 1.784585 | C159: 1.7339 | D159: 1.232008 | E159: 3.007644 | F159: 2.357856 | G159: 1.176679 | H159: 1.292065 | I159: 1.592296 | J159: 0.947144 | K159: 1.651536 | L159: 1.613378 | M159: 1.670765 | N159: 1.840692 | O159: 1.147572 | P159: 2.232249 | Q159: 2.357423 | R159: 0.996451 | S159: 0.852352 | T159: 1.039356 | U159: 0.834908 | V159: 0.410369 | W159: 0.865182 | X159: 0.9575 | Y159: 1.428782 | Z159: 0.961135 | AA159: 1.218019 | AB159: 0.946407 | AC159: 0.873392 | AD159: 0.942571 | AE159: 1.589805 | AF159: 0.919894 | AG159: 1.225035 | AH159: 0.959311 | AI159: 2.154809 | AJ159: 1.422586 | AK159: 1.89572 | AL159: 1.811781 | AM159: 2.170857 | AN159: 1.380688 | AO159: 1.367167 | AP159: 2.19822 | AQ159: 2.91133 | AR159: 1.395071 | AS159: 2.417249 | AT159: 1.521955 | AU159: 1.638797 | AV159: 1.967408 | AW159: 1.784102
A160: ENSOARG00000010652 | B160: 7.885042 | C160: 2.300207 | D160: 3.298747 | E160: 3.435211 | F160: 3.738216 | G160: 3.128345 | H160: 3.01606 | I160: 3.698177 | J160: 1.455059 | K160: 4.133716 | L160: 6.050607 | M160: 3.2308 | N160: 4.2344 | O160: 3.544726 | P160: 3.450336 | Q160: 13.17703 | R160: 1.687884 | S160: 1.771895 | T160: 2.301894 | U160: 1.523847 | V160: 2.270862 | W160: 2.104598 | X160: 2.173384 | Y160: 0.982197 | Z160: 2.045557 | AA160: 1.96825 | AB160: 1.74658 | AC160: 0.736411 | AD160: 2.282127 | AE160: 5.007188 | AF160: 1.417761 | AG160: 1.51985 | AH160: 1.262924 | AI160: 2.849395 | AJ160: 4.190104 | AK160: 0.900101 | AL160: 1.340433 | AM160: 1.435697 | AN160: 1.493097 | AO160: 1.570325 | AP160: 1.404886 | AQ160: 1.844392 | AR160: 1.993562 | AS160: 0.743388 | AT160: 1.660416 | AU160: 1.6083 | AV160: 1.890254 | AW160: 1.609579
A161: ENSOARG00000009265 | B161: 0 | C161: 0 | D161: 0 | E161: 0 | F161: 0 | G161: 0 | H161: 0 | I161: 0 | J161: 0 | K161: 0 | L161: 0 | M161: 0 | N161: 0 | O161: 0 | P161: 0 | Q161: 0 | R161: 0 | S161: 0 | T161: 0 | U161: 0 | V161: 0 | W161: 0 | X161: 0 | Y161: 0 | Z161: 0 | AA161: 0 | AB161: 0 | AC161: 0 | AD161: 0 | AE161: 0 | AF161: 0 | AG161: 0 | AH161: 0 | AI161: 0 | AJ161: 0 | AK161: 0 | AL161: 0 | AM161: 0 | AN161: 0 | AO161: 0 | AP161: 0 | AQ161: 0 | AR161: 0 | AS161: 0 | AT161: 0 | AU161: 0 | AV161: 0 | AW161: 0
A162: 7242 | B162: 0 | C162: 0 | D162: 0 | E162: 0 | F162: 0 | G162: 0 | H162: 0 | I162: 0 | J162: 0 | K162: 0 | L162: 0 | M162: 0 | N162: 0 | O162: 0 | P162: 0 | Q162: 0 | R162: 0 | S162: 0 | T162: 0.060807 | U162: 0 | V162: 0 | W162: 0 | X162: 0 | Y162: 0 | Z162: 0 | AA162: 0 | AB162: 0 | AC162: 0 | AD162: 0 | AE162: 0 | AF162: 0 | AG162: 0 | AH162: 0.979656 | AI162: 0.243463 | AJ162: 1.777149 | AK162: 0.594871 | AL162: 0.678956 | AM162: 0.285105 | AN162: 0.220948 | AO162: 0.141074 | AP162: 0.403234 | AQ162: 0.202811 | AR162: 0.438229 | AS162: 0.275847 | AT162: 0.52086 | AU162: 0.100485 | AV162: 0.281133 | AW162: 0.671209
A163: 2583 | B163: 0 | C163: 0 | D163: 0 | E163: 0 | F163: 0 | G163: 0 | H163: 0 | I163: 0 | J163: 0 | K163: 0 | L163: 0 | M163: 0 | N163: 0 | O163: 0 | P163: 0 | Q163: 0 | R163: 0 | S163: 0 | T163: 0 | U163: 0 | V163: 0.360645 | W163: 0 | X163: 0 | Y163: 0 | Z163: 0 | AA163: 0 | AB163: 0 | AC163: 0 | AD163: 0.09448 | AE163: 0 | AF163: 0 | AG163: 0.248791 | AH163: 0 | AI163: 0 | AJ163: 0 | AK163: 0 | AL163: 0 | AM163: 0 | AN163: 0 | AO163: 0 | AP163: 0 | AQ163: 0 | AR163: 0 | AS163: 0 | AT163: 0 | AU163: 0 | AV163: 0 | AW163: 0
A164: 6633 | B164: 0 | C164: 0 | D164: 0 | E164: 0 | F164: 0 | G164: 0 | H164: 0 | I164: 0 | J164: 0 | K164: 0 | L164: 0 | M164: 0 | N164: 0 | O164: 0 | P164: 0 | Q164: 0 | R164: 0 | S164: 0 | T164: 0 | U164: 0 | V164: 0 | W164: 0 | X164: 0 | Y164: 0 | Z164: 0 | AA164: 0 | AB164: 0 | AC164: 0 | AD164: 0 | AE164: 0 | AF164: 0 | AG164: 0.064864 | AH164: 0 | AI164: 0 | AJ164: 0 | AK164: 0 | AL164: 0 | AM164: 0 | AN164: 0 | AO164: 0.286392 | AP164: 0.171502 | AQ164: 0 | AR164: 0 | AS164: 0 | AT164: 0 | AU164: 0 | AV164: 0.189694 | AW164: 0.282841
A165: ENSOARG00000017850 | B165: 0.122063 | C165: 0 | D165: 0 | E165: 0 | F165: 0 | G165: 0 | H165: 0 | I165: 0 | J165: 0 | K165: 0 | L165: 0 | M165: 0 | N165: 0.028794 | O165: 0 | P165: 0 | Q165: 0.02405 | R165: 0 | S165: 0.032237 | T165: 0 | U165: 0 | V165: 0 | W165: 0 | X165: 0.077305 | Y165: 0 | Z165: 0 | AA165: 0.028037 | AB165: 0 | AC165: 0 | AD165: 0 | AE165: 0.032368 | AF165: 0 | AG165: 0 | AH165: 0 | AI165: 0 | AJ165: 0 | AK165: 0 | AL165: 0 | AM165: 0 | AN165: 0.030354 | AO165: 0 | AP165: 0 | AQ165: 0 | AR165: 0 | AS165: 0.030415 | AT165: 0.063683 | AU165: 0 | AV165: 0 | AW165: 0
A166: ENSOARG00000013974 | B166: 17.135609 | C166: 22.744587 | D166: 15.958683 | E166: 18.237869 | F166: 21.595369 | G166: 32.083981 | H166: 24.510843 | I166: 23.006388 | J166: 25.422367 | K166: 15.143666 | L166: 23.605539 | M166: 17.307106 | N166: 11.712221 | O166: 20.855703 | P166: 21.332474 | Q166: 27.285017 | R166: 2.362711 | S166: 1.639952 | T166: 2.127751 | U166: 2.114904 | V166: 3.101408 | W166: 2.785866 | X166: 2.890691 | Y166: 3.277975 | Z166: 1.221058 | AA166: 1.888345 | AB166: 2.137527 | AC166: 2.128878 | AD166: 1.815824 | AE166: 2.292603 | AF166: 2.868116 | AG166: 2.150083 | AH166: 1.604563 | AI166: 5.038035 | AJ166: 3.454334 | AK166: 4.429309 | AL166: 4.561554 | AM166: 4.466629 | AN166: 3.548569 | AO166: 3.352536 | AP166: 4.728847 | AQ166: 5.316907 | AR166: 3.394113 | AS166: 3.266778 | AT166: 3.346168 | AU166: 2.746766 | AV166: 3.437787 | AW166: 4.348029
A167: ENSOARG00000002222 | B167: 1.226314 | C167: 2.010983 | D167: 0.655 | E167: 1.516792 | F167: 0.95801 | G167: 1.061623 | H167: 1.702616 | I167: 1.782684 | J167: 1.366948 | K167: 1.481691 | L167: 1.279542 | M167: 1.510623 | N167: 1.344968 | O167: 1.425961 | P167: 2.430599 | Q167: 1.792714 | R167: 0.232208 | S167: 0.066921 | T167: 0.140414 | U167: 0.172265 | V167: 0.110688 | W167: 0.139711 | X167: 0.202665 | Y167: 0.218818 | Z167: 0.212897 | AA167: 0.039373 | AB167: 0.180826 | AC167: 0.024162 | AD167: 0.163375 | AE167: 0.231218 | AF167: 0.277425 | AG167: 0.181834 | AH167: 0.507432 | AI167: 0.650577 | AJ167: 0.531291 | AK167: 0.548763 | AL167: 0.191978 | AM167: 0.454767 | AN167: 1.11736 | AO167: 0.602946 | AP167: 0.468679 | AQ167: 0.652772 | AR167: 0.575423 | AS167: 0.511847 | AT167: 0.676109 | AU167: 0.801564 | AV167: 0.769723 | AW167: 0.933626
A168: ENSOARG00000002362 | B168: 0 | C168: 0 | D168: 0 | E168: 0 | F168: 0 | G168: 0 | H168: 0 | I168: 0 | J168: 0 | K168: 0 | L168: 0 | M168: 0 | N168: 0 | O168: 0 | P168: 0 | Q168: 0 | R168: 0 | S168: 0.028145 | T168: 0 | U168: 0 | V168: 0 | W168: 0 | X168: 0 | Y168: 0 | Z168: 0 | AA168: 0 | AB168: 0 | AC168: 0 | AD168: 0 | AE168: 0 | AF168: 0 | AG168: 0 | AH168: 0 | AI168: 0 | AJ168: 0 | AK168: 0 | AL168: 0 | AM168: 0 | AN168: 0 | AO168: 0 | AP168: 0 | AQ168: 0 | AR168: 0 | AS168: 0 | AT168: 0 | AU168: 0 | AV168: 0 | AW168: 0
A169: ENSOARG00000019813 | B169: 4.709255 | C169: 3.609658 | D169: 4.157251 | E169: 2.44509 | F169: 3.116941 | G169: 4.374692 | H169: 6.324408 | I169: 5.093886 | J169: 4.167574 | K169: 3.556562 | L169: 4.353937 | M169: 3.92147 | N169: 1.856833 | O169: 3.586073 | P169: 3.821931 | Q169: 3.781688 | R169: 1.336126 | S169: 0.143564 | T169: 1.539629 | U169: 0.890679 | V169: 1.081894 | W169: 1.261804 | X169: 0.71361 | Y169: 1.072656 | Z169: 1.243612 | AA169: 1.745979 | AB169: 1.476239 | AC169: 1.25023 | AD169: 1.38584 | AE169: 1.259664 | AF169: 0.913146 | AG169: 1.01551 | AH169: 4.257175 | AI169: 1.537075 | AJ169: 1.16204 | AK169: 0.527892 | AL169: 2.375768 | AM169: 2.787998 | AN169: 1.428851 | AO169: 2.437401 | AP169: 1.713782 | AQ169: 1.775068 | AR169: 1.364308 | AS169: 1.813407 | AT169: 1.50208 | AU169: 0.896768 | AV169: 0.805418 | AW169: 0.979186
A170: 3254 | B170: 0.591073 | C170: 0.393409 | D170: 0.375049 | E170: 0 | F170: 0.043852 | G170: 0.095659 | H170: 0 | I170: 0.090788 | J170: 0 | K170: 0.215151 | L170: 0 | M170: 0.162363 | N170: 0.182926 | O170: 0.123246 | P170: 0 | Q170: 0.319746 | R170: 0 | S170: 0 | T170: 0 | U170: 0 | V170: 0 | W170: 0 | X170: 0 | Y170: 0 | Z170: 0 | AA170: 0 | AB170: 0 | AC170: 0 | AD170: 0 | AE170: 0 | AF170: 0 | AG170: 0 | AH170: 0 | AI170: 0 | AJ170: 0 | AK170: 0 | AL170: 0 | AM170: 0.117782 | AN170: 0 | AO170: 0 | AP170: 0 | AQ170: 0 | AR170: 0 | AS170: 0 | AT170: 0 | AU170: 0 | AV170: 0 | AW170: 0
A171: ENSOARG00000003186 | B171: 0.914004 | C171: 1.715992 | D171: 1.82728 | E171: 0.993174 | F171: 1.769587 | G171: 3.820724 | H171: 2.437128 | I171: 1.479313 | J171: 2.878507 | K171: 1.958991 | L171: 3.0161 | M171: 4.294641 | N171: 3.307127 | O171: 2.921988 | P171: 3.786233 | Q171: 3.309626 | R171: 0 | S171: 0.092201 | T171: 0 | U171: 0.258682 | V171: 0.125868 | W171: 0.257982 | X171: 0.078476 | Y171: 0.135093 | Z171: 0.194231 | AA171: 0.188243 | AB171: 0.131223 | AC171: 0.144004 | AD171: 0.17938 | AE171: 0 | AF171: 0 | AG171: 0 | AH171: 0.18377 | AI171: 0.886568 | AJ171: 0.200702 | AK171: 0.19243 | AL171: 0.420676 | AM171: 0.668115 | AN171: 0.148807 | AO171: 0 | AP171: 0.445296 | AQ171: 0.108663 | AR171: 0.422885 | AS171: 0.531902 | AT171: 0.277396 | AU171: 0.064945 | AV171: 0.166979 | AW171: 0.492973
A172: ENSOARG00000013267 | B172: 133.542938 | C172: 153.267441 | D172: 154.932404 | E172: 121.92482 | F172: 123.793999 | G172: 160.346802 | H172: 164.543976 | I172: 149.936356 | J172: 138.045135 | K172: 147.469543 | L172: 134.484985 | M172: 145.915298 | N172: 126.535629 | O172: 138.715866 | P172: 160.478302 | Q172: 164.41925 | R172: 8.063806 | S172: 6.565562 | T172: 10.11124 | U172: 9.973809 | V172: 8.784411 | W172: 9.572659 | X172: 9.215919 | Y172: 9.470717 | Z172: 9.413255 | AA172: 10.874012 | AB172: 9.495933 | AC172: 11.367224 | AD172: 9.13312 | AE172: 15.092315 | AF172: 6.415146 | AG172: 9.351818 | AH172: 19.251505 | AI172: 25.61352 | AJ172: 28.858397 | AK172: 24.647587 | AL172: 22.099203 | AM172: 19.911123 | AN172: 22.802532 | AO172: 18.677542 | AP172: 21.701252 | AQ172: 20.893589 | AR172: 17.724476 | AS172: 22.923922 | AT172: 21.779236 | AU172: 22.277945 | AV172: 20.021681 | AW172: 20.086838
A173: ENSOARG00000019980 | B173: 0.311704 | C173: 0.177656 | D173: 0.292979 | E173: 0.579319 | F173: 0 | G173: 0 | H173: 0.292559 | I173: 0.058229 | J173: 0.397619 | K173: 0.286641 | L173: 0.250181 | M173: 0.056612 | N173: 0.118372 | O173: 0 | P173: 0.406909 | Q173: 0.054983 | R173: 0 | S173: 0 | T173: 0 | U173: 0 | V173: 0 | W173: 0 | X173: 0 | Y173: 0 | Z173: 0 | AA173: 0 | AB173: 0 | AC173: 0 | AD173: 0 | AE173: 0 | AF173: 0 | AG173: 0 | AH173: 0.046768 | AI173: 0.054282 | AJ173: 0.174493 | AK173: 0 | AL173: 0.051758 | AM173: 0.13721 | AN173: 0.154729 | AO173: 0 | AP173: 0.268236 | AQ173: 0.301613 | AR173: 0.097441 | AS173: 0.050302 | AT173: 0.142952 | AU173: 0.118515 | AV173: 0.229334 | AW173: 0.127518
A174: ENSOARG00000013613 | B174: 14.050345 | C174: 12.828526 | D174: 13.015014 | E174: 13.327458 | F174: 15.37527 | G174: 14.125156 | H174: 16.285184 | I174: 16.109732 | J174: 14.507977 | K174: 15.419769 | L174: 14.409235 | M174: 13.96867 | N174: 11.233521 | O174: 12.44783 | P174: 16.996231 | Q174: 17.757053 | R174: 8.098029 | S174: 9.05827 | T174: 9.391941 | U174: 6.494886 | V174: 9.998439 | W174: 9.163403 | X174: 8.765333 | Y174: 12.355807 | Z174: 5.13392 | AA174: 10.026015 | AB174: 9.545819 | AC174: 6.864834 | AD174: 7.509924 | AE174: 6.543247 | AF174: 7.619489 | AG174: 7.811326 | AH174: 2.429242 | AI174: 3.637963 | AJ174: 2.741222 | AK174: 3.109138 | AL174: 3.660922 | AM174: 3.954829 | AN174: 3.244651 | AO174: 3.91454 | AP174: 4.423921 | AQ174: 3.991421 | AR174: 3.63689 | AS174: 4.019173 | AT174: 3.274372 | AU174: 2.565346 | AV174: 2.788188 | AW174: 3.979315
A175: ENSOARG00000005841 | B175: 5.425036 | C175: 6.174478 | D175: 6.974122 | E175: 5.274857 | F175: 4.577083 | G175: 5.372132 | H175: 4.135073 | I175: 4.236925 | J175: 6.085841 | K175: 4.215968 | L175: 4.921946 | M175: 4.177565 | N175: 4.326037 | O175: 6.085265 | P175: 4.173358 | Q175: 4.439707 | R175: 2.962984 | S175: 1.371439 | T175: 3.558923 | U175: 3.114746 | V175: 3.339391 | W175: 3.417378 | X175: 3.146787 | Y175: 3.260104 | Z175: 2.935186 | AA175: 2.940532 | AB175: 3.431968 | AC175: 3.123856 | AD175: 3.398925 | AE175: 4.883841 | AF175: 2.914612 | AG175: 1.799015 | AH175: 4.663386 | AI175: 4.615693 | AJ175: 5.905291 | AK175: 4.669521 | AL175: 3.951599 | AM175: 5.892382 | AN175: 4.078366 | AO175: 5.43353 | AP175: 3.697358 | AQ175: 3.987198 | AR175: 4.520525 | AS175: 3.821406 | AT175: 4.285481 | AU175: 3.955389 | AV175: 6.652531 | AW175: 4.769588
A176: ENSOARG00000007134 | B176: 1.818332 | C176: 1.421643 | D176: 1.574421 | E176: 1.666151 | F176: 1.595195 | G176: 0.966264 | H176: 1.649989 | I176: 2.109004 | J176: 2.050309 | K176: 2.095376 | L176: 1.565081 | M176: 1.183952 | N176: 0.999439 | O176: 1.429883 | P176: 1.951461 | Q176: 1.848094 | R176: 1.054644 | S176: 1.601149 | T176: 1.449937 | U176: 1.12168 | V176: 0.597545 | W176: 1.38061 | X176: 1.558363 | Y176: 1.240153 | Z176: 1.172859 | AA176: 0.463014 | AB176: 1.576449 | AC176: 0.98844 | AD176: 1.104917 | AE176: 2.523515 | AF176: 1.602109 | AG176: 1.954085 | AH176: 2.632629 | AI176: 2.97008 | AJ176: 2.590654 | AK176: 1.831189 | AL176: 4.127383 | AM176: 2.416927 | AN176: 3.082643 | AO176: 3.097713 | AP176: 2.93223 | AQ176: 1.915995 | AR176: 2.377236 | AS176: 3.748397 | AT176: 2.959198 | AU176: 1.982449 | AV176: 2.506017 | AW176: 2.73573
A177: ENSOARG00000015111 | B177: 0.948698 | C177: 0.527094 | D177: 1.042804 | E177: 0.708882 | F177: 1.122032 | G177: 1.011665 | H177: 0.965469 | I177: 1.007036 | J177: 0.619039 | K177: 0.777988 | L177: 0.92132 | M177: 0.604855 | N177: 1.086814 | O177: 1.025027 | P177: 1.046162 | Q177: 1.15909 | R177: 0.130213 | S177: 0.11028 | T177: 0.136461 | U177: 0.055323 | V177: 0.183359 | W177: 0.173976 | X177: 0.238047 | Y177: 0.077316 | Z177: 0.025528 | AA177: 0.171674 | AB177: 0.166208 | AC177: 0 | AD177: 0.103998 | AE177: 0 | AF177: 0.040285 | AG177: 0.202222 | AH177: 0.073216 | AI177: 0.142291 | AJ177: 0.038728 | AK177: 0.146664 | AL177: 0.121852 | AM177: 0.324615 | AN177: 0.215808 | AO177: 0.148397 | AP177: 0.204566 | AQ177: 0.276833 | AR177: 0.128096 | AS177: 0.155432 | AT177: 0.021892 | AU177: 0.182918 | AV177: 0 | AW177: 0.151142
A178: 8294 | B178: 0 | C178: 0 | D178: 0 | E178: 0 | F178: 0 | G178: 0 | H178: 0 | I178: 0 | J178: 0 | K178: 0 | L178: 0 | M178: 0 | N178: 0 | O178: 0 | P178: 0 | Q178: 0 | R178: 0.651951 | S178: 0 | T178: 0 | U178: 0 | V178: 0 | W178: 0 | X178: 0 | Y178: 0.094883 | Z178: 0.389765 | AA178: 0 | AB178: 0.550532 | AC178: 0.073976 | AD178: 0.119964 | AE178: 0.251025 | AF178: 0 | AG178: 0 | AH178: 0 | AI178: 0 | AJ178: 0 | AK178: 0 | AL178: 0 | AM178: 0 | AN178: 0 | AO178: 0 | AP178: 0 | AQ178: 0 | AR178: 0 | AS178: 0 | AT178: 0 | AU178: 0 | AV178: 0 | AW178: 0
A179: ENSOARG00000004199 | B179: 9.464051 | C179: 8.321483 | D179: 8.455721 | E179: 9.954679 | F179: 8.591181 | G179: 8.838293 | H179: 9.162792 | I179: 8.391745 | J179: 9.208893 | K179: 7.711503 | L179: 9.11799 | M179: 6.000971 | N179: 5.447237 | O179: 8.775924 | P179: 8.132656 | Q179: 9.837866 | R179: 2.860638 | S179: 2.878435 | T179: 5.006614 | U179: 6.306046 | V179: 4.983998 | W179: 5.237205 | X179: 4.000317 | Y179: 4.961835 | Z179: 3.390006 | AA179: 3.210537 | AB179: 5.471678 | AC179: 4.687756 | AD179: 3.710964 | AE179: 4.706167 | AF179: 5.106384 | AG179: 3.210278 | AH179: 2.192312 | AI179: 2.860976 | AJ179: 2.209953 | AK179: 2.726897 | AL179: 3.033692 | AM179: 3.225219 | AN179: 3.020193 | AO179: 2.986307 | AP179: 3.786866 | AQ179: 3.76771 | AR179: 2.816339 | AS179: 2.846389 | AT179: 2.671912 | AU179: 1.971984 | AV179: 2.682624 | AW179: 3.296524
A180: ENSOARG00000013697 | B180: 0 | C180: 0 | D180: 0 | E180: 0 | F180: 0 | G180: 0 | H180: 0 | I180: 0 | J180: 0 | K180: 0 | L180: 0 | M180: 0 | N180: 0 | O180: 0 | P180: 0 | Q180: 0 | R180: 0 | S180: 0 | T180: 0 | U180: 0 | V180: 0 | W180: 0 | X180: 0 | Y180: 0 | Z180: 0 | AA180: 0 | AB180: 0 | AC180: 0 | AD180: 0 | AE180: 0 | AF180: 0 | AG180: 0 | AH180: 0 | AI180: 0 | AJ180: 0 | AK180: 0 | AL180: 0 | AM180: 0 | AN180: 0 | AO180: 0 | AP180: 0 | AQ180: 0 | AR180: 0 | AS180: 0 | AT180: 0 | AU180: 0 | AV180: 0 | AW180: 0
A181: 14686 | B181: 0 | C181: 0 | D181: 0 | E181: 0 | F181: 0 | G181: 0.100731 | H181: 0 | I181: 0 | J181: 0 | K181: 0 | L181: 0 | M181: 0 | N181: 0 | O181: 0 | P181: 0.145342 | Q181: 0.305996 | R181: 0 | S181: 0 | T181: 0 | U181: 0 | V181: 0 | W181: 0 | X181: 0 | Y181: 0 | Z181: 0 | AA181: 0 | AB181: 0 | AC181: 0 | AD181: 0 | AE181: 0 | AF181: 0 | AG181: 0 | AH181: 0 | AI181: 0 | AJ181: 0 | AK181: 0 | AL181: 0 | AM181: 0.052322 | AN181: 0 | AO181: 0 | AP181: 0 | AQ181: 0 | AR181: 0 | AS181: 0 | AT181: 0 | AU181: 0 | AV181: 0 | AW181: 0
A182: ENSOARG00000001396 | B182: 23.14197 | C182: 26.859665 | D182: 27.199696 | E182: 24.001638 | F182: 24.783287 | G182: 32.012135 | H182: 32.554626 | I182: 27.911556 | J182: 27.955091 | K182: 21.637075 | L182: 26.457924 | M182: 24.796638 | N182: 27.649666 | O182: 27.805349 | P182: 30.998857 | Q182: 26.019224 | R182: 11.185902 | S182: 9.376936 | T182: 10.227395 | U182: 12.003342 | V182: 10.546607 | W182: 10.969376 | X182: 11.38039 | Y182: 8.199924 | Z182: 9.189354 | AA182: 9.637381 | AB182: 12.87851 | AC182: 11.309106 | AD182: 11.167482 | AE182: 12.322783 | AF182: 8.704298 | AG182: 10.141827 | AH182: 13.32227 | AI182: 12.990028 | AJ182: 12.298109 | AK182: 16.279686 | AL182: 15.891503 | AM182: 18.884636 | AN182: 17.530905 | AO182: 17.758629 | AP182: 16.287659 | AQ182: 20.614607 | AR182: 14.897874 | AS182: 16.83217 | AT182: 16.09012 | AU182: 18.167982 | AV182: 17.02939 | AW182: 16.605469
A183: ENSOARG00000011415 | B183: 2.979796 | C183: 2.012317 | D183: 1.913234 | E183: 2.640882 | F183: 2.225022 | G183: 1.969695 | H183: 3.45486 | I183: 3.127748 | J183: 2.292924 | K183: 2.863223 | L183: 3.046201 | M183: 2.103648 | N183: 2.029712 | O183: 2.567634 | P183: 2.864157 | Q183: 3.210262 | R183: 0.963937 | S183: 0.783409 | T183: 0.790083 | U183: 0.997973 | V183: 1.001603 | W183: 1.157109 | X183: 1.030722 | Y183: 1.328004 | Z183: 0.816732 | AA183: 1.203778 | AB183: 0.883804 | AC183: 0.87983 | AD183: 0.734803 | AE183: 0.963931 | AF183: 0.994002 | AG183: 0.739057 | AH183: 0.785823 | AI183: 0.749829 | AJ183: 0.697119 | AK183: 0.822722 | AL183: 1.001518 | AM183: 0.883596 | AN183: 0.713632 | AO183: 0.885246 | AP183: 0.969198 | AQ183: 1.111416 | AR183: 0.784172 | AS183: 0.731183 | AT183: 0.650872 | AU183: 0.634683 | AV183: 0.813325 | AW183: 0.817591
A184: ENSOARG00000007218 | B184: 0 | C184: 0 | D184: 0 | E184: 0 | F184: 0 | G184: 0 | H184: 0 | I184: 0 | J184: 0 | K184: 0 | L184: 0 | M184: 0 | N184: 0 | O184: 0 | P184: 0 | Q184: 0 | R184: 0 | S184: 0 | T184: 0 | U184: 0 | V184: 0 | W184: 0 | X184: 0 | Y184: 0 | Z184: 0 | AA184: 0 | AB184: 0 | AC184: 0 | AD184: 0 | AE184: 0 | AF184: 0 | AG184: 0 | AH184: 0 | AI184: 0 | AJ184: 0 | AK184: 0 | AL184: 0 | AM184: 0 | AN184: 0 | AO184: 0 | AP184: 0 | AQ184: 0 | AR184: 0 | AS184: 0 | AT184: 0 | AU184: 0 | AV184: 0 | AW184: 0
A185: ENSOARG00000008249 | B185: 25.479908 | C185: 13.75881 | D185: 27.82188 | E185: 34.742062 | F185: 20.069805 | G185: 10.63272 | H185: 23.849392 | I185: 24.125418 | J185: 27.268618 | K185: 27.571835 | L185: 15.608377 | M185: 13.744829 | N185: 12.752254 | O185: 11.212712 | P185: 18.772966 | Q185: 18.808401 | R185: 41.531471 | S185: 60.578922 | T185: 44.886074 | U185: 27.193151 | V185: 36.388786 | W185: 55.987095 | X185: 45.879894 | Y185: 42.031181 | Z185: 40.58794 | AA185: 52.194351 | AB185: 36.549168 | AC185: 40.190067 | AD185: 29.804214 | AE185: 36.62085 | AF185: 43.579262 | AG185: 51.401955 | AH185: 4.959841 | AI185: 8.995502 | AJ185: 2.969321 | AK185: 4.045316 | AL185: 14.112108 | AM185: 13.592618 | AN185: 4.871437 | AO185: 3.466112 | AP185: 7.684423 | AQ185: 6.919714 | AR185: 4.966022 | AS185: 10.207219 | AT185: 4.589301 | AU185: 3.005955 | AV185: 3.140771 | AW185: 4.119559
A186: ENSOARG00000019368 | B186: 19.560976 | C186: 16.501333 | D186: 12.909827 | E186: 11.869063 | F186: 16.114582 | G186: 11.748098 | H186: 18.570333 | I186: 16.551994 | J186: 14.015116 | K186: 19.367455 | L186: 17.157349 | M186: 10.566232 | N186: 9.70727 | O186: 15.771026 | P186: 15.143899 | Q186: 17.606424 | R186: 6.653782 | S186: 8.881378 | T186: 8.074944 | U186: 7.066312 | V186: 6.610849 | W186: 9.580936 | X186: 6.921144 | Y186: 12.346109 | Z186: 5.033303 | AA186: 5.793652 | AB186: 6.879175 | AC186: 6.164017 | AD186: 5.653404 | AE186: 5.973884 | AF186: 6.285092 | AG186: 8.340849 | AH186: 10.078321 | AI186: 10.489712 | AJ186: 7.523349 | AK186: 10.871032 | AL186: 9.70703 | AM186: 8.928149 | AN186: 11.647849 | AO186: 9.133408 | AP186: 13.145215 | AQ186: 12.80766 | AR186: 9.641419 | AS186: 10.589758 | AT186: 8.759748 | AU186: 6.798862 | AV186: 8.985392 | AW186: 12.077452
A187: ENSOARG00000010632 | B187: 1.630916 | C187: 1.823966 | D187: 1.466166 | E187: 1.493616 | F187: 1.013957 | G187: 0.98977 | H187: 2.0886 | I187: 2.169947 | J187: 1.431764 | K187: 1.933044 | L187: 1.82065 | M187: 1.202553 | N187: 0.522404 | O187: 1.08155 | P187: 1.64083 | Q187: 2.497669 | R187: 0.199893 | S187: 0.921628 | T187: 0.338844 | U187: 0.328018 | V187: 0.360581 | W187: 0.461333 | X187: 0.417529 | Y187: 0.951847 | Z187: 0.070103 | AA187: 0.312394 | AB187: 0.498048 | AC187: 0.241507 | AD187: 0.288635 | AE187: 0.267755 | AF187: 0.356639 | AG187: 0.802146 | AH187: 0.876301 | AI187: 1.201942 | AJ187: 0.740673 | AK187: 0.781035 | AL187: 0.838006 | AM187: 0.988947 | AN187: 1.628156 | AO187: 1.637827 | AP187: 1.548819 | AQ187: 1.563621 | AR187: 1.068054 | AS187: 1.199964 | AT187: 0.611918 | AU187: 0.372782 | AV187: 0.612806 | AW187: 1.356325
A188: 10889 | B188: 0 | C188: 0.222953 | D188: 0.261938 | E188: 0.432743 | F188: 0.070905 | G188: 0.168343 | H188: 0.39954 | I188: 0.260165 | J188: 0.37496 | K188: 0.185325 | L188: 0.213697 | M188: 0 | N188: 0.412605 | O188: 0 | P188: 0.427905 | Q188: 0.489908 | R188: 0.728 | S188: 0 | T188: 0.039058 | U188: 0.099157 | V188: 0 | W188: 0.234521 | X188: 0 | Y188: 0 | Z188: 0 | AA188: 0.225694 | AB188: 0 | AC188: 0 | AD188: 0 | AE188: 0.291265 | AF188: 0 | AG188: 0 | AH188: 0.387636 | AI188: 0.049933 | AJ188: 0 | AK188: 0 | AL188: 0.191124 | AM188: 0.109057 | AN188: 0.165375 | AO188: 0.04568 | AP188: 0 | AQ188: 0 | AR188: 0 | AS188: 0.014941 | AT188: 0 | AU188: 0.303828 | AV188: 0.278106 | AW188: 0
A189: ENSOARG00000015944 | B189: 0 | C189: 0 | D189: 0 | E189: 0 | F189: 0 | G189: 0 | H189: 0 | I189: 0 | J189: 0 | K189: 0 | L189: 0 | M189: 0 | N189: 0 | O189: 0 | P189: 0 | Q189: 0 | R189: 0 | S189: 0 | T189: 0 | U189: 0 | V189: 0 | W189: 0 | X189: 0 | Y189: 0 | Z189: 0 | AA189: 0 | AB189: 0 | AC189: 0 | AD189: 0 | AE189: 0 | AF189: 0 | AG189: 0 | AH189: 0 | AI189: 0 | AJ189: 0 | AK189: 0 | AL189: 0 | AM189: 0 | AN189: 0 | AO189: 0 | AP189: 0 | AQ189: 0 | AR189: 0 | AS189: 0 | AT189: 0 | AU189: 0 | AV189: 0 | AW189: 0
A190: ENSOARG00000016219 | B190: 0 | C190: 0 | D190: 0 | E190: 0 | F190: 0 | G190: 0 | H190: 0 | I190: 0 | J190: 0 | K190: 0 | L190: 0 | M190: 0 | N190: 0 | O190: 0 | P190: 0 | Q190: 0 | R190: 0 | S190: 0 | T190: 0 | U190: 0 | V190: 0 | W190: 0 | X190: 0 | Y190: 0 | Z190: 0 | AA190: 0 | AB190: 0 | AC190: 0 | AD190: 0 | AE190: 0 | AF190: 0 | AG190: 0 | AH190: 0 | AI190: 0 | AJ190: 0 | AK190: 0 | AL190: 0 | AM190: 0 | AN190: 0 | AO190: 0 | AP190: 0 | AQ190: 0 | AR190: 0 | AS190: 0 | AT190: 0 | AU190: 0 | AV190: 0 | AW190: 0
A191: ENSOARG00000013638 | B191: 1.532317 | C191: 1.91657 | D191: 1.497213 | E191: 0.740065 | F191: 1.567442 | G191: 2.472819 | H191: 3.213326 | I191: 1.606588 | J191: 1.228947 | K191: 3.351957 | L191: 1.601796 | M191: 0.917225 | N191: 2.538001 | O191: 1.579083 | P191: 1.795204 | Q191: 2.213026 | R191: 1.141524 | S191: 0.869779 | T191: 2.738124 | U191: 1.324783 | V191: 1.675682 | W191: 4.238927 | X191: 2.746411 | Y191: 4.151567 | Z191: 2.114155 | AA191: 2.028588 | AB191: 3.108363 | AC191: 2.391632 | AD191: 2.695518 | AE191: 2.3116 | AF191: 1.184768 | AG191: 2.193514 | AH191: 3.121534 | AI191: 4.265327 | AJ191: 5.340858 | AK191: 3.467062 | AL191: 3.719301 | AM191: 2.802066 | AN191: 3.159685 | AO191: 3.209071 | AP191: 3.908231 | AQ191: 3.161702 | AR191: 5.071035 | AS191: 2.785264 | AT191: 4.024555 | AU191: 3.596337 | AV191: 4.05254 | AW191: 4.788727
A192: ENSOARG00000015941 | B192: 21.16728 | C192: 11.106033 | D192: 11.900575 | E192: 12.423706 | F192: 10.058144 | G192: 12.948082 | H192: 13.787477 | I192: 8.470028 | J192: 14.2118 | K192: 15.417974 | L192: 12.737781 | M192: 9.44975 | N192: 8.564974 | O192: 8.809763 | P192: 11.478926 | Q192: 15.865567 | R192: 2.476738 | S192: 0.835891 | T192: 0.792891 | U192: 1.256623 | V192: 0.620432 | W192: 0.821951 | X192: 0.494494 | Y192: 0.352656 | Z192: 0.37382 | AA192: 1.388384 | AB192: 0.679681 | AC192: 0.301198 | AD192: 0.151519 | AE192: 1.011019 | AF192: 0.328772 | AG192: 0.983145 | AH192: 0.335535 | AI192: 0.139742 | AJ192: 0.091882 | AK192: 0.176642 | AL192: 0.078481 | AM192: 0.220409 | AN192: 0.207191 | AO192: 0.286021 | AP192: 0.274214 | AQ192: 0.370341 | AR192: 0.185465 | AS192: 0.186827 | AT192: 0.181741 | AU192: 0.078691 | AV192: 0.119727 | AW192: 0.267002
A193: 5899 | B193: 0 | C193: 0 | D193: 0 | E193: 0 | F193: 0 | G193: 0 | H193: 0 | I193: 0 | J193: 0 | K193: 0 | L193: 0 | M193: 0 | N193: 0 | O193: 0 | P193: 0 | Q193: 0 | R193: 0 | S193: 0 | T193: 0 | U193: 0 | V193: 0 | W193: 0.065276 | X193: 0 | Y193: 0.106511 | Z193: 0.084326 | AA193: 0 | AB193: 0 | AC193: 0.226255 | AD193: 0.194363 | AE193: 0.437807 | AF193: 0 | AG193: 0 | AH193: 0.249598 | AI193: 0 | AJ193: 0.099201 | AK193: 0 | AL193: 0.284778 | AM193: 0 | AN193: 0 | AO193: 0.043155 | AP193: 0 | AQ193: 0 | AR193: 0 | AS193: 0 | AT193: 0 | AU193: 0 | AV193: 0.10816 | AW193: 0.401534
A194: 4979 | B194: 0 | C194: 0 | D194: 0 | E194: 0 | F194: 0 | G194: 0 | H194: 0 | I194: 0 | J194: 0 | K194: 0 | L194: 0 | M194: 0 | N194: 0 | O194: 0 | P194: 0 | Q194: 0 | R194: 0 | S194: 0 | T194: 0 | U194: 0 | V194: 0 | W194: 0 | X194: 0 | Y194: 0 | Z194: 0 | AA194: 0 | AB194: 0 | AC194: 0.142718 | AD194: 0 | AE194: 0 | AF194: 0 | AG194: 0 | AH194: 0 | AI194: 0 | AJ194: 0.250489 | AK194: 0 | AL194: 0 | AM194: 0 | AN194: 0 | AO194: 0 | AP194: 0 | AQ194: 0 | AR194: 0 | AS194: 0 | AT194: 0 | AU194: 0 | AV194: 0 | AW194: 0
A195: ENSOARG00000013863 | B195: 5.174878 | C195: 5.098622 | D195: 4.60052 | E195: 3.328434 | F195: 5.009074 | G195: 4.305752 | H195: 5.511482 | I195: 5.112652 | J195: 4.713867 | K195: 5.69193 | L195: 4.803996 | M195: 3.173908 | N195: 3.008211 | O195: 5.242718 | P195: 4.438843 | Q195: 6.389604 | R195: 1.999812 | S195: 2.482865 | T195: 2.020878 | U195: 1.872111 | V195: 2.974691 | W195: 3.28237 | X195: 2.648808 | Y195: 5.080951 | Z195: 1.306859 | AA195: 2.835839 | AB195: 1.872119 | AC195: 2.020336 | AD195: 1.558515 | AE195: 2.63055 | AF195: 2.101436 | AG195: 2.285709 | AH195: 1.051303 | AI195: 1.871457 | AJ195: 1.415693 | AK195: 1.966709 | AL195: 2.007457 | AM195: 1.655015 | AN195: 2.01976 | AO195: 1.789785 | AP195: 2.3077 | AQ195: 2.152519 | AR195: 1.323817 | AS195: 1.901479 | AT195: 1.152834 | AU195: 1.045859 | AV195: 1.270409 | AW195: 1.877698
A196: 1492 | B196: 0 | C196: 0.122265 | D196: 0 | E196: 0 | F196: 0 | G196: 0 | H196: 0 | I196: 0 | J196: 0 | K196: 0 | L196: 0 | M196: 0 | N196: 0 | O196: 0 | P196: 0 | Q196: 0 | R196: 0 | S196: 0 | T196: 0 | U196: 0 | V196: 0.215178 | W196: 0 | X196: 0 | Y196: 0 | Z196: 0 | AA196: 0 | AB196: 0 | AC196: 0 | AD196: 0 | AE196: 0.060401 | AF196: 0 | AG196: 0 | AH196: 0 | AI196: 0 | AJ196: 0 | AK196: 0 | AL196: 0 | AM196: 0 | AN196: 0 | AO196: 0 | AP196: 0 | AQ196: 0 | AR196: 0 | AS196: 0 | AT196: 0 | AU196: 0 | AV196: 0 | AW196: 0
A197: ENSOARG00000012118 | B197: 0 | C197: 0 | D197: 0 | E197: 0 | F197: 0 | G197: 0 | H197: 0 | I197: 0 | J197: 0 | K197: 0 | L197: 0 | M197: 0 | N197: 0 | O197: 0 | P197: 0 | Q197: 0 | R197: 0 | S197: 0 | T197: 0 | U197: 0 | V197: 0 | W197: 0 | X197: 0 | Y197: 0 | Z197: 0 | AA197: 0 | AB197: 0 | AC197: 0 | AD197: 0 | AE197: 0 | AF197: 0 | AG197: 0 | AH197: 0 | AI197: 0 | AJ197: 0 | AK197: 0 | AL197: 0 | AM197: 0 | AN197: 0 | AO197: 0 | AP197: 0 | AQ197: 0 | AR197: 0 | AS197: 0 | AT197: 0 | AU197: 0 | AV197: 0 | AW197: 0
A198: 10516 | B198: 0.639402 | C198: 0.546791 | D198: 0.978639 | E198: 0 | F198: 0.254317 | G198: 0.201276 | H198: 0 | I198: 0.405414 | J198: 0.400014 | K198: 0.150362 | L198: 0 | M198: 0.143441 | N198: 0.120766 | O198: 1.105911 | P198: 0.047433 | Q198: 0 | R198: 0 | S198: 0.137497 | T198: 0.464694 | U198: 0 | V198: 0.111066 | W198: 0 | X198: 0 | Y198: 0.164064 | Z198: 0 | AA198: 0.064453 | AB198: 0 | AC198: 0 | AD198: 0 | AE198: 0 | AF198: 0 | AG198: 0 | AH198: 0 | AI198: 0.102457 | AJ198: 0.175551 | AK198: 0.080449 | AL198: 0 | AM198: 0 | AN198: 0 | AO198: 0 | AP198: 0 | AQ198: 0 | AR198: 0 | AS198: 0 | AT198: 0 | AU198: 0 | AV198: 0 | AW198: 0
A199: ENSOARG00000020642 | B199: 25.976048 | C199: 29.741915 | D199: 39.331322 | E199: 35.987335 | F199: 27.08301 | G199: 44.334362 | H199: 45.695068 | I199: 36.520378 | J199: 36.822842 | K199: 26.268967 | L199: 38.843323 | M199: 43.614082 | N199: 39.837646 | O199: 34.633499 | P199: 39.241058 | Q199: 38.950039 | R199: 25.972847 | S199: 13.545669 | T199: 24.889944 | U199: 29.597612 | V199: 31.044292 | W199: 27.470167 | X199: 28.976076 | Y199: 19.973181 | Z199: 29.693481 | AA199: 20.125834 | AB199: 31.370386 | AC199: 32.779938 | AD199: 33.4156 | AE199: 43.597225 | AF199: 26.143778 | AG199: 12.44051 | AH199: 64.284897 | AI199: 80.064468 | AJ199: 80.702682 | AK199: 95.353004 | AL199: 65.079239 | AM199: 54.859264 | AN199: 68.451019 | AO199: 56.803249 | AP199: 58.601696 | AQ199: 49.726418 | AR199: 47.20726 | AS199: 76.743294 | AT199: 69.888878 | AU199: 92.576416 | AV199: 55.387192 | AW199: 57.735691
A200: ENSOARG00000011043 | B200: 14.148997 | C200: 9.261145 | D200: 7.021044 | E200: 6.957128 | F200: 9.133108 | G200: 9.618647 | H200: 11.736089 | I200: 8.593582 | J200: 8.089029 | K200: 10.969861 | L200: 6.650073 | M200: 6.939779 | N200: 5.347703 | O200: 9.308834 | P200: 8.940693 | Q200: 11.428603 | R200: 6.125014 | S200: 10.327868 | T200: 8.645859 | U200: 7.120294 | V200: 7.213135 | W200: 8.587175 | X200: 9.32593 | Y200: 12.862296 | Z200: 3.983616 | AA200: 6.260252 | AB200: 8.192812 | AC200: 7.797512 | AD200: 7.4156 | AE200: 5.60697 | AF200: 7.101253 | AG200: 8.581431 | AH200: 2.53364 | AI200: 2.757517 | AJ200: 1.212548 | AK200: 1.465225 | AL200: 2.193386 | AM200: 1.843466 | AN200: 1.40977 | AO200: 2.01349 | AP200: 2.819259 | AQ200: 2.099706 | AR200: 1.23794 | AS200: 2.044157 | AT200: 1.391137 | AU200: 0.716876 | AV200: 1.663468 | AW200: 2.133049
... 924 more rows

Sheet Table S7
A1: Table S7. 127 genes in the rumen epithelium accounted for approximately 50% of their respective total aligned reads
A2: ID | B2: R_01 | C2: R_02 | D2: R_03 | E2: R_04 | F2: R_05 | G2: R_06 | H2: R_07 | I2: R_08 | J2: R_09 | K2: R_10 | L2: R_11 | M2: R_12 | N2: R_13 | O2: R_14 | P2: R_15 | Q2: R_16 | R2: Average | S2: Persent | T2: SUM
A3: ENSOARG00000000016 | B3: 28949.10742 | C3: 24158.35742 | D3: 23866.16797 | E3: 28304.09961 | F3: 23962.0332 | G3: 19503.51953 | H3: 18758.73047 | I3: 21935.50781 | J3: 28360.92773 | K3: 29109.13672 | L3: 24632.00391 | M3: 23630.44922 | N3: 26499.44336 | O3: 20483.26953 | P3: 29072.04883 | Q3: 17020.40039 | R3: 24265.3252 | S3: 0.03034894542 | T3: =SUM(S3:S129) -> 0.4999214528
A4: 17474 | B4: 15676.28711 | C4: 13628.44824 | D4: 13600.85547 | E4: 14611.47852 | F4: 11581.61231 | G4: 11278.61328 | H4: 11049.85938 | I4: 12492.1084 | J4: 16995.11523 | K4: 14888.94043 | L4: 14104.71191 | M4: 14420.32129 | N4: 15407.89453 | O4: 12595.06738 | P4: 15203.89356 | Q4: 10624.03613 | R4: 13634.9527 | S4: 0.01705340571
A5: 4553 | B5: 10258.75987 | C5: 11271.93968 | D5: 12561.9242 | E5: 14877.0321 | F5: 10316.30347 | G5: 9693.565963 | H5: 9721.692506 | I5: 11679.13806 | J5: 11681.46054 | K5: 11496.13291 | L5: 12958.0608 | M5: 13513.57861 | N5: 15322.06195 | O5: 11929.3822 | P5: 15072.25269 | Q5: 11019.2207 | R5: 12085.78164 | S5: 0.01511583811
A6: ENSOARG00000000035 | B6: 7347.454102 | C6: 8831.484375 | D6: 8984.319336 | E6: 7837.501953 | F6: 5731.567871 | G6: 7103.378418 | H6: 10336.91602 | I6: 11534.40527 | J6: 10546.56641 | K6: 9057.227539 | L6: 12055.44727 | M6: 14032.73633 | N6: 12278.66309 | O6: 11710.36426 | P6: 12713.5332 | Q6: 10690.89258 | R6: 10049.52863 | S6: 0.01256907103
A7: ENSOARG00000013283 | B7: 10104.84863 | C7: 11007.20606 | D7: 6802.97998 | E7: 8903.682617 | F7: 8021.969727 | G7: 10593.20996 | H7: 8724.926758 | I7: 7009.411133 | J7: 10752.80859 | K7: 5449.131348 | L7: 7035.477539 | M7: 6929.025879 | N7: 9847.703125 | O7: 11963.94629 | P7: 5337.600098 | Q7: 5908.630371 | R7: 8399.534882 | S7: 0.01050540323
A8: ENSOARG00000000023 | B8: 7764.306641 | C8: 8212.976562 | D8: 7506.792969 | E8: 9826.911133 | F8: 7208.03125 | G8: 4663.986816 | H8: 7059.211426 | I8: 8713.53125 | J8: 8025.046875 | K8: 9330.524414 | L8: 8323.125 | M8: 7903.999512 | N8: 9582.211914 | O8: 7222.11084 | P8: 7762.678711 | Q8: 5907.595215 | R8: 7813.315033 | S8: 0.009772210742
A9: ENSOARG00000013191 | B9: 9002.678711 | C9: 7592.578125 | D9: 11311.8916 | E9: 6109.571289 | F9: 8264.890625 | G9: 11139.58887 | H9: 5865.505859 | I9: 10316.36816 | J9: 8518.547852 | K9: 7418.055664 | L9: 6835.007812 | M9: 6581.236328 | N9: 6237.111816 | O9: 5973.23877 | P9: 5870.945312 | Q9: 5285.96582 | R9: 7645.198913 | S9: 0.00956194581
A10: ENSOARG00000016963 | B10: 8754.066406 | C10: 7451.369629 | D10: 8114.008301 | E10: 5233.542969 | F10: 6437.241211 | G10: 10132.9834 | H10: 6548.705566 | I10: 7116.010742 | J10: 7627.955566 | K10: 5838.378906 | L10: 6761.555176 | M10: 6900.073242 | N10: 8005.500977 | O10: 7609.014648 | P10: 6564.560547 | Q10: 6356.440918 | R10: 7215.713013 | S10: 0.009024782428
A11: ENSOARG00000000022 | B11: 5046.675293 | C11: 5729.937988 | D11: 4611.527344 | E11: 7535.871094 | F11: 5631.063965 | G11: 5552.603516 | H11: 6420.724609 | I11: 6072.196289 | J11: 6226.384766 | K11: 6727.624512 | L11: 9175.054688 | M11: 10875.16602 | N11: 10723.50195 | O11: 7759.654785 | P11: 7251.583496 | Q11: 6413.76123 | R11: 6984.583222 | S11: 0.00873570551
A12: 4552 | B12: 7351.958619 | C12: 6482.36969 | D12: 6658.693726 | E12: 7175.153931 | F12: 6785.793335 | G12: 5875.828552 | H12: 5417.145325 | I12: 3822.61564 | J12: 7444.014282 | K12: 8823.871826 | L12: 7382.186402 | M12: 7825.903443 | N12: 7477.6344 | O12: 4808.691162 | P12: 6569.17395 | Q12: 5454.030396 | R12: 6584.691542 | S12: 0.00823555599
A13: ENSOARG00000017272 | B13: 6011.396973 | C13: 7005.341309 | D13: 7328.437012 | E13: 7967.861328 | F13: 5554.554199 | G13: 5818.594238 | H13: 6714.652344 | I13: 5085.670898 | J13: 5638.154785 | K13: 7431.682617 | L13: 6457.662109 | M13: 6045.172363 | N13: 6704.031738 | O13: 7631.647949 | P13: 6710.427734 | Q13: 6719.738281 | R13: 6551.564117 | S13: 0.008194123105
A14: ENSOARG00000001136 | B14: 6493.807129 | C14: 5969.326172 | D14: 8245.347656 | E14: 4189.111816 | F14: 5266.734375 | G14: 8347.979492 | H14: 4483.337891 | I14: 6456.893066 | J14: 6903.731445 | K14: 5395.32373 | L14: 4807.381348 | M14: 4889.604004 | N14: 4794.93457 | O14: 4566.117676 | P14: 4490.937012 | Q14: 4496.041504 | R14: 5612.288055 | S14: 0.007019358798
A15: ENSOARG00000000021 | B15: 4650.447266 | C15: 4421.759766 | D15: 3966.884033 | E15: 5656.435547 | F15: 3218.53125 | G15: 4719.673828 | H15: 5196.36084 | I15: 3926.880127 | J15: 5295.708008 | K15: 4645.654297 | L15: 7084.166992 | M15: 8156.806152 | N15: 8403.708984 | O15: 7072.663086 | P15: 6331.816895 | Q15: 5290.936035 | R15: 5502.402069 | S15: 0.006881923022
A16: ENSOARG00000011789 | B16: 4105.880371 | C16: 5299.866699 | D16: 5240.519531 | E16: 4009.124023 | F16: 5268.213379 | G16: 5999.355957 | H16: 5289.38623 | I16: 5348.393555 | J16: 4589.923828 | K16: 4510.731445 | L16: 6295.993652 | M16: 4928.14209 | N16: 5759.618652 | O16: 5458.915039 | P16: 6856.461426 | Q16: 5314.26709 | R16: 5267.17456 | S16: 0.006587721038
A17: ENSOARG00000017002 | B17: 4795.874512 | C17: 5476.39209 | D17: 6397.419434 | E17: 5235.609863 | F17: 5638.592773 | G17: 4981.400391 | H17: 6484.914551 | I17: 4313.427246 | J17: 3912.118896 | K17: 5289.283691 | L17: 5283.339844 | M17: 4899.643066 | N17: 4743.657715 | O17: 5516.199707 | P17: 5137.233398 | Q17: 5490.15918 | R17: 5224.704147 | S17: 0.006534602761
A18: ENSOARG00000011805 | B18: 6758.821777 | C18: 5216.611328 | D18: 6092.179199 | E18: 4278.152344 | F18: 4806.916992 | G18: 5997.02002 | H18: 4196.616699 | I18: 5644.402344 | J18: 5170.406738 | K18: 3651.435791 | L18: 4311.017578 | M18: 4508.071289 | N18: 4788.96582 | O18: 4700.283203 | P18: 4273.968262 | Q18: 4102.048828 | R18: 4906.057388 | S18: 0.006136067278
A19: ENSOARG00000003480 | B19: 5522.34375 | C19: 4985.398438 | D19: 5525.388672 | E19: 4936.715332 | F19: 5220.771973 | G19: 6111.564941 | H19: 3742.021729 | I19: 5922.218262 | J19: 5115.827148 | K19: 4566.199219 | L19: 4883.503906 | M19: 4739.373535 | N19: 5005.555176 | O19: 4253.790039 | P19: 4233.953613 | Q19: 3533.029297 | R19: 4893.603439 | S19: 0.006120490969
A20: ENSOARG00000013272 | B20: 5251.424316 | C20: 5403.969238 | D20: 6662.612793 | E20: 3854.526123 | F20: 5262.521484 | G20: 7352.556152 | H20: 3800.019531 | I20: 6075.40918 | J20: 5521.508301 | K20: 4320.444824 | L20: 4294.188477 | M20: 4362.291992 | N20: 4190.179199 | O20: 3743.140381 | P20: 3446.240234 | Q20: 3372.55127 | R20: 4807.098968 | S20: 0.006012298746
A21: ENSOARG00000000028 | B21: 4832.222656 | C21: 4958.730469 | D21: 3827.503906 | E21: 5669.942871 | F21: 4389.050781 | G21: 3002.255615 | H21: 4431.430176 | I21: 4604.037109 | J21: 4587.32666 | K21: 5583.814941 | L21: 5410.734863 | M21: 4116.428711 | N21: 6638.967285 | O21: 6391.980957 | P21: 4414.029297 | Q21: 3671.227539 | R21: 4783.10524 | S21: 0.00598228949
A22: ENSOARG00000000432 | B22: 189.048386 | C22: 2436.941406 | D22: 1644.068115 | E22: 606.238953 | F22: 1108.027588 | G22: 6047.225098 | H22: 4056.367676 | I22: 5398.185547 | J22: 3189.424316 | K22: 4946.287598 | L22: 5791.898438 | M22: 10571.79883 | N22: 10601.14453 | O22: 4870.945801 | P22: 7349.344727 | Q22: 7183.546875 | R22: 4749.405868 | S22: 0.005940141264
A23: ENSOARG00000009101 | B23: 5043.055664 | C23: 4857.36084 | D23: 5118.589355 | E23: 4381.782715 | F23: 5394.706055 | G23: 5426.283203 | H23: 3715.472168 | I23: 4837.21582 | J23: 4531.425293 | K23: 3728.835449 | L23: 4350.489258 | M23: 4050.522217 | N23: 4247.623535 | O23: 3745.301025 | P23: 3508.392334 | Q23: 3329.393311 | R23: 4391.653015 | S23: 0.005492695301
A24: ENSOARG00000007328 | B24: 5199.311035 | C24: 4579.083008 | D24: 5743.103027 | E24: 3720.506104 | F24: 4737.92041 | G24: 5941.612793 | H24: 3692.556641 | I24: 5923.007324 | J24: 4696.623047 | K24: 3240.202637 | L24: 3580.89209 | M24: 3847.383545 | N24: 3931.741455 | O24: 3558.567383 | P24: 3134.569824 | Q24: 3227.075928 | R24: 4297.134766 | S24: 0.005374480145
A25: ENSOARG00000003677 | B25: 5654.879883 | C25: 4472.534668 | D25: 5539.410156 | E25: 3554.459473 | F25: 4024.029297 | G25: 5418.362793 | H25: 3453.807129 | I25: 4889.164551 | J25: 4904.785645 | K25: 3673.60791 | L25: 3699.40625 | M25: 3777.054932 | N25: 3960.658936 | O25: 3950.084229 | P25: 3560.544678 | Q25: 3559.87915 | R25: 4255.791855 | S25: 0.005322772051
A26: ENSOARG00000010592 | B26: 4906.155273 | C26: 4279.618164 | D26: 5730.726074 | E26: 2854.10083 | F26: 4016.337402 | G26: 6840.463867 | H26: 3656.798096 | I26: 4601.28125 | J26: 4869.045898 | K26: 3710.693115 | L26: 3786.010742 | M26: 4215.230469 | N26: 3978.632812 | O26: 3644.046875 | P26: 3337.426025 | Q26: 3577.05835 | R26: 4250.226578 | S26: 0.005315811489
A27: ENSOARG00000007617 | B27: 4531.730957 | C27: 4054.295654 | D27: 5077.78418 | E27: 3651.46875 | F27: 4439.060059 | G27: 5399.293945 | H27: 3658.953125 | I27: 4743.569336 | J27: 3833.236572 | K27: 4368.438965 | L27: 4109.996582 | M27: 3901.392578 | N27: 3979.804199 | O27: 3344.671875 | P27: 3491.130859 | Q27: 3504.518799 | R27: 4130.584152 | S27: 0.005166173212
A28: ENSOARG00000002624 | B28: 3712.372803 | C28: 4072.213379 | D28: 5021.409668 | E28: 3429.516113 | F28: 3618.366211 | G28: 6013.738281 | H28: 3723.36792 | I28: 4758.486816 | J28: 4324.27002 | K28: 3466.475098 | L28: 3916.227783 | M28: 4307.794922 | N28: 4436.148926 | O28: 3414.063477 | P28: 3444.147705 | Q28: 3591.178467 | R28: 4078.111099 | S28: 0.005100544509
A29: ENSOARG00000012645 | B29: 5135.245117 | C29: 4256.618652 | D29: 4782.023926 | E29: 3245.813232 | F29: 3640.112549 | G29: 4803.610352 | H29: 3494.698486 | I29: 3938.449707 | J29: 4420.798828 | K29: 3265.30542 | L29: 3403.044189 | M29: 3872.5 | N29: 3850.046875 | O29: 3805.250977 | P29: 3728.688721 | Q29: 3385.86377 | R29: 3939.254425 | S29: 0.004926874732
A30: ENSOARG00000000019 | B30: 2476.546875 | C30: 3595.464844 | D30: 3390.15332 | E30: 3878.242188 | F30: 3132.585205 | G30: 3482.769775 | H30: 3404.585205 | I30: 3254.905762 | J30: 4746.421387 | K30: 3769.638428 | L30: 4332.279785 | M30: 5839.084473 | N30: 5035.250977 | O30: 3217.030518 | P30: 3438.919922 | Q30: 4168.973633 | R30: 3822.678269 | S30: 0.004781071476
A31: ENSOARG00000000342 | B31: 2569.082275 | C31: 2701.508057 | D31: 3539.569092 | E31: 2648.424072 | F31: 2625.258545 | G31: 4948.850098 | H31: 4154.82959 | I31: 3569.203125 | J31: 2616.899414 | K31: 4541.243652 | L31: 3584.112305 | M31: 5641.089844 | N31: 4370.234375 | O31: 3259.024902 | P31: 4088.199951 | Q31: 3577.89502 | R31: 3652.21402 | S31: 0.00456786971
A32: ENSOARG00000010582 | B32: 4503.177246 | C32: 3816.402832 | D32: 4704.952637 | E32: 3138.953125 | F32: 3458.762695 | G32: 5005.157227 | H32: 3064.492676 | I32: 3771.057129 | J32: 4013.797363 | K32: 3311.328369 | L32: 3371.494873 | M32: 3384.960449 | N32: 3245.094971 | O32: 3326.223633 | P32: 3002.721436 | Q32: 2944.587891 | R32: 3628.947785 | S32: 0.004538770339
A33: ENSOARG00000002458 | B33: 4431.200195 | C33: 3765.197754 | D33: 3949.115967 | E33: 2977.160156 | F33: 4019.840088 | G33: 4281.716309 | H33: 3254.438721 | I33: 3784.87207 | J33: 3754.758057 | K33: 2507.393311 | L33: 3289.963623 | M33: 3243.912109 | N33: 3748.167725 | O33: 3969.303223 | P33: 3236.150635 | Q33: 3522.260742 | R33: 3608.465668 | S33: 0.0045131531
A34: ENSOARG00000008365 | B34: 4263.910645 | C34: 4099.509766 | D34: 3775.983398 | E34: 3216.322266 | F34: 3356.844482 | G34: 5485.362305 | H34: 2934.77417 | I34: 4254.696289 | J34: 4172.803223 | K34: 2595.529053 | L34: 3289.894775 | M34: 3436.358398 | N34: 3467.193604 | O34: 3317.734863 | P34: 2870.918701 | Q34: 2869.605957 | R34: 3587.965118 | S34: 0.004487512806
A35: ENSOARG00000025188 | B35: 1534.912354 | C35: 2996.842529 | D35: 2683.610596 | E35: 1488.477539 | F35: 1537.567139 | G35: 2789.14502 | H35: 3218.12207 | I35: 3641.292725 | J35: 2624.668701 | K35: 4529.106934 | L35: 4802.823242 | M35: 6112.412598 | N35: 4962.604004 | O35: 4318.146484 | P35: 3660.70166 | Q35: 5410.476074 | R35: 3519.431854 | S35: 0.004401797397
A36: ENSOARG00000011540 | B36: 4021.991455 | C36: 3501.0979 | D36: 4200.853516 | E36: 3524.708984 | F36: 4266.678711 | G36: 3897.625977 | H36: 2873.038574 | I36: 4071.074219 | J36: 3319.908936 | K36: 3694.482422 | L36: 3214.227539 | M36: 3213.129639 | N36: 3178.8125 | O36: 3083.998047 | P36: 2767.598877 | Q36: 2560.222168 | R36: 3461.840591 | S36: 0.004329767285
A37: ENSOARG00000009703 | B37: 3194.210693 | C37: 3182.523926 | D37: 4205.291016 | E37: 3143.343262 | F37: 3562.817383 | G37: 4541.14209 | H37: 3171.488525 | I37: 3652.961182 | J37: 3653.707031 | K37: 3310.915771 | L37: 3542.758057 | M37: 3701.752686 | N37: 3564.419922 | O37: 2633.940674 | P37: 2848.832031 | Q37: 3052.033691 | R37: 3435.133621 | S37: 0.004296364543
A38: 10546 | B38: 2912.606689 | C38: 3663.01416 | D38: 4198.324707 | E38: 2837.682617 | F38: 3522.89917 | G38: 5017.40918 | H38: 2990.933594 | I38: 4423.348633 | J38: 3517.023193 | K38: 2650.605957 | L38: 3136.766846 | M38: 3315.925049 | N38: 3349.880859 | O38: 2513.547607 | P38: 2538.673584 | Q38: 2328.979736 | R38: 3307.351349 | S38: 0.004136545658
A39: ENSOARG00000014457 | B39: 3938.833252 | C39: 3234.43042 | D39: 3617.512451 | E39: 3341.873291 | F39: 3523.687256 | G39: 4783.711426 | H39: 2677.392334 | I39: 3260.761719 | J39: 3101.04834 | K39: 3004.660645 | L39: 3074.977783 | M39: 3277.904297 | N39: 3304.516357 | O39: 2850.273682 | P39: 3031.327393 | Q39: 2633.366455 | R39: 3291.017319 | S39: 0.004116116483
A40: ENSOARG00000011932 | B40: 4427.891602 | C40: 3379.768311 | D40: 3968.550293 | E40: 2865.116455 | F40: 3355.790283 | G40: 4363.726562 | H40: 2591.382324 | I40: 3762.128418 | J40: 3483.236816 | K40: 2570.415771 | L40: 3034.867188 | M40: 3075.327148 | N40: 3332.841553 | O40: 2823.082031 | P40: 2660.803955 | Q40: 2595.506592 | R40: 3268.152206 | S40: 0.004087518801
A41: ENSOARG00000014242 | B41: 4162.556641 | C41: 3307.70459 | D41: 3918.371826 | E41: 2996.308105 | F41: 2971.208496 | G41: 3856.697021 | H41: 3028.938232 | I41: 3134.287354 | J41: 3355.47583 | K41: 2618.914551 | L41: 3189.039795 | M41: 3142.695312 | N41: 3096.888672 | O41: 2908.29834 | P41: 3185.608643 | Q41: 2813.749756 | R41: 3230.421448 | S41: 0.00404032847
A42: ENSOARG00000003782 | B42: 2142.508301 | C42: 1532.742554 | D42: 3223.138428 | E42: 3534.572998 | F42: 2234.289551 | G42: 2484.241211 | H42: 3931.546387 | I42: 2475.960205 | J42: 3713.230713 | K42: 2277.752686 | L42: 3297.496338 | M42: 4809.538086 | N42: 3699.691162 | O42: 3175.681396 | P42: 2962.004395 | Q42: 6134.214844 | R42: 3226.788078 | S42: 0.004035784169
A43: ENSOARG00000013275 | B43: 3496.138428 | C43: 3851.100586 | D43: 4086.248779 | E43: 2405.673828 | F43: 3590.682861 | G43: 4528.797363 | H43: 2482.715332 | I43: 4573.702148 | J43: 3730.430908 | K43: 3571.5354 | L43: 2769.147217 | M43: 2762.929688 | N43: 2794.90625 | O43: 2356.500488 | P43: 2020.952026 | Q43: 2173.300049 | R43: 3199.672584 | S43: 0.004001870482
A44: ENSOARG00000025190 | B44: 3344.696533 | C44: 2371.595459 | D44: 5840.758789 | E44: 1618.025146 | F44: 5546.976074 | G44: 2382.487793 | H44: 2822.1604 | I44: 3521.750244 | J44: 1475.53833 | K44: 5704.673828 | L44: 2656.479004 | M44: 2564.734375 | N44: 2968.5979 | O44: 4076.005859 | P44: 2206.721436 | Q44: 1784.296753 | R44: 3180.34362 | S44: 0.003977695505
A45: ENSOARG00000018666 | B45: 3233.307861 | C45: 3041.14624 | D45: 3667.608887 | E45: 3246.271973 | F45: 3693.245117 | G45: 3602.80835 | H45: 2430.78125 | I45: 4345.189453 | J45: 3160.962158 | K45: 3078.124268 | L45: 3217.197021 | M45: 2977.475342 | N45: 3314.385986 | O45: 2578.437012 | P45: 2814.513672 | Q45: 2439.350098 | R45: 3177.550293 | S45: 0.003974201856
A46: ENSOARG00000007306 | B46: 3430.333252 | C46: 3253.646973 | D46: 3309.030518 | E46: 2626.025635 | F46: 3521.429688 | G46: 3954.243896 | H46: 2806.001465 | I46: 3590.435059 | J46: 3394.407471 | K46: 2842.284912 | L46: 3050.863525 | M46: 3112.758301 | N46: 3135.090088 | O46: 2729.876953 | P46: 2508.494385 | Q46: 2717.873779 | R46: 3123.924744 | S46: 0.003907131711
A47: ENSOARG00000004202 | B47: 1685.226318 | C47: 3080.285645 | D47: 5458.079102 | E47: 1795.229004 | F47: 4014.101318 | G47: 3061.500732 | H47: 2094.781494 | I47: 3219.484375 | J47: 2796.330811 | K47: 3734.643311 | L47: 2486.602295 | M47: 2558.937744 | N47: 3892.90625 | O47: 2904.861816 | P47: 3935.912598 | Q47: 2987.47583 | R47: 3106.647415 | S47: 0.003885522741
A48: ENSOARG00000016495 | B48: 3945.458008 | C48: 2983.241699 | D48: 3261.568604 | E48: 2622.807129 | F48: 2426.029541 | G48: 3557.013428 | H48: 2599.064697 | I48: 3254.472656 | J48: 3447.004639 | K48: 2462.224121 | L48: 2766.900391 | M48: 3003.843262 | N48: 2903.201416 | O48: 3086.29541 | P48: 2468.344238 | Q48: 2970.577148 | R48: 2984.877899 | S48: 0.003733224086
A49: ENSOARG00000014536 | B49: 2951.227539 | C49: 2875.808105 | D49: 2778.361084 | E49: 2502.781494 | F49: 2959.951416 | G49: 3839.428467 | H49: 2889.511719 | I49: 2846.792725 | J49: 3128.556885 | K49: 2309.376221 | L49: 3156.405273 | M49: 3428.696045 | N49: 3333.207275 | O49: 2676.953369 | P49: 2823.5979 | Q49: 3085.449951 | R49: 2974.131592 | S49: 0.003719783545
A50: ENSOARG00000014949 | B50: 3388.842041 | C50: 3265.114746 | D50: 3135.760254 | E50: 2678.150146 | F50: 2930.467041 | G50: 3845.646973 | H50: 2527.164551 | I50: 3005.485352 | J50: 3205.241943 | K50: 2724.983154 | L50: 2729.913818 | M50: 2795.198242 | N50: 2843.291992 | O50: 2805.898438 | P50: 2373.023438 | Q50: 2292.187012 | R50: 2909.148071 | S50: 0.003638507844
A51: ENSOARG00000011523 | B51: 3882.643066 | C51: 3158.291748 | D51: 4106.461426 | E51: 2122.57666 | F51: 2907.186279 | G51: 4178.456055 | H51: 2585.877197 | I51: 3272.186035 | J51: 3038.368164 | K51: 2289.264893 | L51: 2221.6604 | M51: 2674.267334 | N51: 2661.106445 | O51: 2535.121826 | P51: 2331.157471 | Q51: 2427.102051 | R51: 2899.482941 | S51: 0.003626419544
A52: ENSOARG00000012672 | B52: 1417.042603 | C52: 2009.403564 | D52: 2995.607666 | E52: 2106.683594 | F52: 2487.243652 | G52: 4601.848633 | H52: 3273.489258 | I52: 2752.998535 | J52: 2640.091064 | K52: 2856.494385 | L52: 2991.771973 | M52: 3685.102051 | N52: 2579.860352 | O52: 2248.484619 | P52: 3029.472412 | Q52: 3197.865479 | R52: 2804.59124 | S52: 0.003507737308
A53: ENSOARG00000006456 | B53: 3025.780273 | C53: 2843.765869 | D53: 3291.825439 | E53: 1934.077515 | F53: 3042.577148 | G53: 3734.595459 | H53: 2554.851562 | I53: 3652.099365 | J53: 3137.705566 | K53: 2233.429688 | L53: 2498.06958 | M53: 2451.12207 | N53: 2671.663086 | O53: 2861.510498 | P53: 2225.933838 | Q53: 2445.730713 | R53: 2787.796104 | S53: 0.003486731422
A54: ENSOARG00000013571 | B54: 2783.490967 | C54: 3016.47168 | D54: 3648.107178 | E54: 2299.470459 | F54: 3085.240967 | G54: 3863.905762 | H54: 2486.04834 | I54: 3488.469238 | J54: 3152.755615 | K54: 2510.925049 | L54: 2529.858643 | M54: 2656.293945 | N54: 2567.056885 | O54: 2233.025879 | P54: 2122.539062 | Q54: 2085.852051 | R54: 2783.094483 | S54: 0.003480851045
A55: ENSOARG00000016865 | B55: 1751.283569 | C55: 2465.239258 | D55: 3809.372314 | E55: 2409.976318 | F55: 2972.821777 | G55: 2792.925049 | H55: 3074.799072 | I55: 2277.917236 | J55: 1638.300903 | K55: 2969.873779 | L55: 2396.693848 | M55: 2855.293945 | N55: 3712.327637 | O55: 2488.929443 | P55: 3473.432861 | Q55: 3248.362549 | R55: 2771.096847 | S55: 0.003465845453
A56: ENSOARG00000012211 | B56: 2843.887939 | C56: 2775.843018 | D56: 3410.379639 | E56: 2528.997803 | F56: 2827.513916 | G56: 3896.783691 | H56: 2395.691895 | I56: 2796.868408 | J56: 2895.395508 | K56: 2563.338867 | L56: 2825.44873 | M56: 2696.367188 | N56: 2726.332031 | O56: 2156.633789 | P56: 2037.217773 | Q56: 2310.067871 | R56: 2730.423004 | S56: 0.003414974169
A57: ENSOARG00000004976 | B57: 3765.938721 | C57: 2724.939697 | D57: 3163.567627 | E57: 2809.88623 | F57: 2687.82373 | G57: 3024.288574 | H57: 2262.270508 | I57: 3103.498291 | J57: 2636.765137 | K57: 2048.542725 | L57: 2426.600586 | M57: 2548.823486 | N57: 2682.875244 | O57: 2779.710693 | P57: 2381.677979 | Q57: 2332.7146 | R57: 2711.245239 | S57: 0.003390988299
A58: ENSOARG00000010029 | B58: 2655.287109 | C58: 2592.607178 | D58: 3011.005859 | E58: 2482.933594 | F58: 3132.074463 | G58: 3372.196045 | H58: 2619.0896 | I58: 3070.036621 | J58: 2935.524658 | K58: 2520.229736 | L58: 2702.613037 | M58: 2701.820801 | N58: 2920.718018 | O58: 2331.253418 | P58: 1942.927856 | Q58: 2368.878174 | R58: 2709.94976 | S58: 0.003389368027
A59: ENSOARG00000018519 | B59: 3101.477295 | C59: 2626.803467 | D59: 3306.92627 | E59: 2298.698242 | F59: 2812.636963 | G59: 3918.036133 | H59: 2306.012695 | I59: 3043.223145 | J59: 2854.478516 | K59: 2026.856201 | L59: 2551.906006 | M59: 2540.091797 | N59: 2514.121094 | O59: 2256.594971 | P59: 2199.436279 | Q59: 2134.600342 | R59: 2655.743714 | S59: 0.003321571847
A60: ENSOARG00000001428 | B60: 2952.196533 | C60: 2612.391113 | D60: 2714.326904 | E60: 2313.123047 | F60: 3356.114502 | G60: 2629.286865 | H60: 1868.783691 | I60: 3110.459473 | J60: 2490.51123 | K60: 2420.605469 | L60: 2557.182617 | M60: 2766.815918 | N60: 2827.315674 | O60: 2196.640381 | P60: 2195.874512 | Q60: 2161.826904 | R60: 2573.340927 | S60: 0.003218509652
A61: ENSOARG00000005681 | B61: 2973.398065 | C61: 2379.703604 | D61: 2450.5164 | E61: 2620.863326 | F61: 2619.433555 | G61: 2983.204502 | H61: 2422.621476 | I61: 2545.259552 | J61: 2503.747815 | K61: 1999.609077 | L61: 2645.224412 | M61: 2833.796579 | N61: 2713.753017 | O61: 2366.130324 | P61: 2590.904238 | Q61: 2416.455091 | R61: 2566.538815 | S61: 0.003210002165
A62: ENSOARG00000011320 | B62: 3332.255127 | C62: 2576.048096 | D62: 3206.420654 | E62: 2251.607666 | F62: 2607.361328 | G62: 3458.145264 | H62: 1995.30957 | I62: 2743.920898 | J62: 2485.684082 | K62: 1842.790283 | L62: 2262.005859 | M62: 2429.98877 | N62: 2686.522217 | O62: 2344.809814 | P62: 2424.529785 | Q62: 1996.025269 | R62: 2540.214043 | S62: 0.003177077444
A63: ENSOARG00000004556 | B63: 3643.224365 | C63: 2775.833008 | D63: 2781.987061 | E63: 2232.865723 | F63: 2561.453857 | G63: 3004.47583 | H63: 2291.693848 | I63: 2483.475586 | J63: 2621.866455 | K63: 2016.038574 | L63: 2304.304443 | M63: 2638.909912 | N63: 2559.317139 | O63: 2393.885986 | P63: 2268.743652 | Q63: 2051.110352 | R63: 2539.324112 | S63: 0.003175964396
A64: ENSOARG00000002753 | B64: 3093.395996 | C64: 2796.394775 | D64: 3089.492676 | E64: 2110.404541 | F64: 2150.780029 | G64: 3528.410645 | H64: 2228.184082 | I64: 2921.4375 | J64: 2916.954102 | K64: 1475.569336 | L64: 2160.612549 | M64: 2397.700684 | N64: 2322.88501 | O64: 2654.593994 | P64: 2044.489746 | Q64: 2251.960449 | R64: 2508.954132 | S64: 0.003137980283
A65: ENSOARG00000011605 | B65: 2806.943359 | C65: 2299.483154 | D65: 3241.0271 | E65: 1847.443726 | F65: 2418.591309 | G65: 3497.230957 | H65: 2290.907471 | I65: 2534.219971 | J65: 2838.987549 | K65: 2006.683228 | L65: 2380.006104 | M65: 2618.025391 | N65: 2642.997559 | O65: 2146.692139 | P65: 1935.059448 | Q65: 2355.156006 | R65: 2491.215904 | S65: 0.00311579486
A66: ENSOARG00000000450 | B66: 80.256447 | C66: 1368.382202 | D66: 881.618896 | E66: 277.238617 | F66: 686.13501 | G66: 3930.466797 | H66: 2177.538818 | I66: 2831.212158 | J66: 1762.013062 | K66: 1982.401123 | L66: 3084.37915 | M66: 5792.292969 | N66: 5683.924316 | O66: 2269.923828 | P66: 3515.632324 | Q66: 3427.014893 | R66: 2484.401913 | S66: 0.003107272516
A67: ENSOARG00000009765 | B67: 3940.471436 | C67: 2719.35376 | D67: 3062.059326 | E67: 1908.315674 | F67: 1763.957764 | G67: 3140.555664 | H67: 2680.272949 | I67: 2988.274658 | J67: 2773.277588 | K67: 1945.697632 | L67: 2230.616455 | M67: 2181.942383 | N67: 1990.300659 | O67: 2195.512451 | P67: 2002.634644 | Q67: 2166.796143 | R67: 2480.627449 | S67: 0.003102551747
A68: ENSOARG00000000674 | B68: 1392.464111 | C68: 2476.13916 | D68: 3418.513184 | E68: 1934.488403 | F68: 2457.151611 | G68: 3237.943604 | H68: 2697.093994 | I68: 1937.120361 | J68: 2335.309082 | K68: 1767.608032 | L68: 2907.556885 | M68: 3589.318359 | N68: 3115.70166 | O68: 1145.26709 | P68: 2647.900635 | Q68: 2574.553955 | R68: 2477.133133 | S68: 0.003098181362
A69: ENSOARG00000014665 | B69: 2373.078369 | C69: 2351.376709 | D69: 3677.19751 | E69: 1582.044189 | F69: 2223.343018 | G69: 3822.349121 | H69: 2199.366211 | I69: 3241.478027 | J69: 3749.225342 | K69: 1972.566895 | L69: 2214.762451 | M69: 1689.62854 | N69: 2473.285889 | O69: 1780.094849 | P69: 1945.400391 | Q69: 2057.457031 | R69: 2459.540909 | S69: 0.003076178547
A70: ENSOARG00000014889 | B70: 2614.225586 | C70: 2542.823242 | D70: 3283.383789 | E70: 1764.790283 | F70: 1923.784912 | G70: 3537.79248 | H70: 1855.967896 | I70: 2772.016113 | J70: 2472.056885 | K70: 2255.504883 | L70: 2064.778809 | M70: 2295.012451 | N70: 2432.700684 | O70: 2030.770752 | P70: 2109.676514 | Q70: 2146.683594 | R70: 2381.373055 | S70: 0.002978413035
A71: ENSOARG00000012691 | B71: 2683.010498 | C71: 2867.150879 | D71: 3324.414307 | E71: 2101.954102 | F71: 1968.863159 | G71: 3245.899902 | H71: 2038.478271 | I71: 2663.725586 | J71: 2882.564941 | K71: 1853.024658 | L71: 2105.382568 | M71: 1842.139648 | N71: 2007.548218 | O71: 2032.477539 | P71: 1745.732666 | Q71: 1649.9552 | R71: 2313.270134 | S71: 0.002893235861
A72: ENSOARG00000000033 | B72: 1828.094604 | C72: 2503.984619 | D72: 1997.799072 | E72: 2455.253906 | F72: 2939.375732 | G72: 1005.494141 | H72: 2040.474976 | I72: 2316.428955 | J72: 1811.045288 | K72: 2624.045898 | L72: 2530.585693 | M72: 2753.832275 | N72: 3106.337158 | O72: 2831.197998 | P72: 1883.409424 | Q72: 1521.5 | R72: 2259.303734 | S72: 0.00282573941
A73: 3655 | B73: 2702.718002 | C73: 2388.860863 | D73: 2682.200115 | E73: 1707.313545 | F73: 2501.489609 | G73: 2718.590027 | H73: 1956.966568 | I73: 2770.391602 | J73: 2373.971382 | K73: 2173.069065 | L73: 2195.891224 | M73: 2136.290669 | N73: 2057.261387 | O73: 1964.858803 | P73: 1719.822937 | Q73: 1936.333237 | R73: 2249.126815 | S73: 0.002813011011
A74: ENSOARG00000000027 | B74: 2112.975586 | C74: 2397.228516 | D74: 1770.116089 | E74: 2384.145264 | F74: 1730.41394 | G74: 1505.519409 | H74: 2207.768311 | I74: 2411.880615 | J74: 2289.075195 | K74: 2804.046875 | L74: 2631.244141 | M74: 1917.712524 | N74: 2759.693115 | O74: 2926.34668 | P74: 2043.968018 | Q74: 1898.827881 | R74: 2236.935135 | S74: 0.002797762724
A75: 3923 | B75: 295.193757 | C75: 1809.185546 | D75: 3805.335694 | E75: 641.265243 | F75: 1193.207459 | G75: 2364.829773 | H75: 1615.938721 | I75: 2267.22229 | J75: 1129.394981 | K75: 1871.632446 | L75: 1918.225769 | M75: 3777.103271 | N75: 3299.654785 | O75: 3337.63623 | P75: 3003.218384 | Q75: 2966.291748 | R75: 2205.958506 | S75: 0.002759019868
A76: ENSOARG00000005798 | B76: 2131.996582 | C76: 2090.867432 | D76: 1764.129517 | E76: 2088.761719 | F76: 1802.860474 | G76: 1490.433838 | H76: 2188.085938 | I76: 2412.029297 | J76: 2272.420898 | K76: 2730.048584 | L76: 2667.454102 | M76: 1895.142822 | N76: 2758.602539 | O76: 2840.223145 | P76: 2085.603027 | Q76: 1879.674194 | R76: 2193.645882 | S76: 0.002743620315
A77: ENSOARG00000000032 | B77: 2165.330322 | C77: 2154.300537 | D77: 1999.047119 | E77: 2424.836914 | F77: 2403.935547 | G77: 1015.371948 | H77: 1995.909912 | I77: 2507.073242 | J77: 2036.202026 | K77: 2402.267334 | L77: 2358.549805 | M77: 2339.940674 | N77: 2643.092285 | O77: 2506.668945 | P77: 1989.06665 | Q77: 1748.806396 | R77: 2168.149979 | S77: 0.00271173227
A78: ENSOARG00000020393 | B78: 1470.043701 | C78: 2033.782471 | D78: 4262.018676 | E78: 631.213371 | F78: 2240.492264 | G78: 2171.181086 | H78: 650.628127 | I78: 1742.425423 | J78: 1955.753025 | K78: 2330.981304 | L78: 1615.995679 | M78: 1652.439823 | N78: 2199.048011 | O78: 2610.810669 | P78: 3302.857521 | Q78: 2839.608512 | R78: 2106.829979 | S78: 0.00263503858
A79: ENSOARG00000017744 | B79: 2389.170654 | C79: 1958.651733 | D79: 2487.760498 | E79: 1943.724365 | F79: 2184.741211 | G79: 2697.79126 | H79: 1812.47229 | I79: 2328.642822 | J79: 1974.310791 | K79: 1553.900269 | L79: 2109.880615 | M79: 2049.182129 | N79: 2134.927734 | O79: 1998.788086 | P79: 2058.5625 | Q79: 1831.64917 | R79: 2094.634758 | S79: 0.002619785865
A80: ENSOARG00000005397 | B80: 2347.321533 | C80: 2186.933105 | D80: 2282.754395 | E80: 1820.009277 | F80: 1803.965942 | G80: 2697.163086 | H80: 1846.346802 | I80: 2096.367188 | J80: 2289.319336 | K80: 1969.80835 | L80: 1796.907227 | M80: 2185.667969 | N80: 2205.178955 | O80: 1843.858521 | P80: 1744.124512 | Q80: 1767.248657 | R80: 2055.185928 | S80: 0.002570446721
A81: ENSOARG00000005549 | B81: 1536.713989 | C81: 1995.252808 | D81: 3133.525635 | E81: 788.393738 | F81: 2667.332764 | G81: 1706.349243 | H81: 712.254517 | I81: 1466.338135 | J81: 3385.579834 | K81: 2152.916992 | L81: 1902.162354 | M81: 2884.660156 | N81: 1973.310181 | O81: 2230.906982 | P81: 1655.343384 | Q81: 2582.296387 | R81: 2048.333569 | S81: 0.002561876389
A82: ENSOARG00000020427 | B82: 2643.650146 | C82: 2259.30542 | D82: 1534.755859 | E82: 3268.895508 | F82: 2633.179932 | G82: 1218.969238 | H82: 2113.4375 | I82: 2121.098145 | J82: 1881.97583 | K82: 2154.497314 | L82: 1631.656982 | M82: 1326.327637 | N82: 1557.830566 | O82: 1894.997559 | P82: 1564.014404 | Q82: 1598.436279 | R82: 1962.68927 | S82: 0.002454759994
A83: ENSOARG00000008783 | B83: 2261.767578 | C83: 2161.973145 | D83: 2096.586426 | E83: 2090.492676 | F83: 1966.665039 | G83: 2038.271729 | H83: 1941.039307 | I83: 1573.571167 | J83: 2043.927002 | K83: 1750.672363 | L83: 1836.363647 | M83: 1713.283447 | N83: 2051.527588 | O83: 2012.476196 | P83: 1749.672974 | Q83: 1850.101685 | R83: 1946.149498 | S83: 0.002434073495
A84: ENSOARG00000020259 | B84: 1889.966919 | C84: 2187.028809 | D84: 2520.917969 | E84: 1488.939941 | F84: 1789.374756 | G84: 2918.671143 | H84: 1556.839111 | I84: 2618.946289 | J84: 1817.580078 | K84: 1261.767456 | L84: 1925.722656 | M84: 2005.461426 | N84: 2211.865967 | O84: 1365.845825 | P84: 1080.433472 | Q84: 1284.612305 | R84: 1870.248383 | S84: 0.002339143021
A85: ENSOARG00000016974 | B85: 2069.925781 | C85: 2132.462158 | D85: 2099.112549 | E85: 2697.387939 | F85: 1994.027588 | G85: 1286.495972 | H85: 2200.640625 | I85: 1514.846069 | J85: 1748.540405 | K85: 1303.080811 | L85: 1748.517212 | M85: 1378.755005 | N85: 1546.759033 | O85: 1856.317383 | P85: 1834.980957 | Q85: 1651.38501 | R85: 1816.452156 | S85: 0.002271859409
A86: ENSOARG00000000417 | B86: 52.51178 | C86: 943.229187 | D86: 451.227661 | E86: 145.156342 | F86: 298.638336 | G86: 3095.467529 | H86: 1560.513184 | I86: 1603.965942 | J86: 1149.860474 | K86: 1895.272339 | L86: 2013.869629 | M86: 4155.715332 | N86: 3621.77002 | O86: 1965.40686 | P86: 3046.218994 | Q86: 2550.344727 | R86: 1784.323021 | S86: 0.002231675098
A87: ENSOARG00000016489 | B87: 1890.551392 | C87: 1683.179321 | D87: 2156.378418 | E87: 1704.804932 | F87: 1674.790649 | G87: 2326.199219 | H87: 1479.655884 | I87: 1796.45874 | J87: 1878.693481 | K87: 1474.907959 | L87: 1765.178101 | M87: 1699.762329 | N87: 1645.153442 | O87: 1419.177856 | P87: 1588.997803 | Q87: 1631.775391 | R87: 1738.479057 | S87: 0.00217433748
A88: ENSOARG00000018207 | B88: 2321.795654 | C88: 1831.405518 | D88: 1926.654785 | E88: 1523.47522 | F88: 1728.807373 | G88: 2147.663086 | H88: 1527.279297 | I88: 1766.90564 | J88: 1843.266724 | K88: 1409.090576 | L88: 1720.260864 | M88: 1566.393921 | N88: 1558.663086 | O88: 1723.370239 | P88: 1606.447144 | Q88: 1555.123779 | R88: 1734.787682 | S88: 0.00216972063
A89: ENSOARG00000018506 | B89: 939.525085 | C89: 1474.92981 | D89: 1290.444336 | E89: 1859.935791 | F89: 1303.878052 | G89: 1628.272827 | H89: 2006.307617 | I89: 1792.099731 | J89: 1508.294678 | K89: 1818.316772 | L89: 1789.943115 | M89: 2053.236572 | N89: 1809.028076 | O89: 2092.508057 | P89: 2004.117065 | Q89: 1828.734985 | R89: 1699.973286 | S89: 0.00212617783
A90: ENSOARG00000020993 | B90: 1944.845459 | C90: 1741.429443 | D90: 1127.492065 | E90: 1689.315796 | F90: 1696.051392 | G90: 1160.491577 | H90: 1597.513916 | I90: 1540.069336 | J90: 1881.463989 | K90: 1231.405029 | L90: 1524.543945 | M90: 1577.232544 | N90: 1875.151733 | O90: 1978.316528 | P90: 1962.997681 | Q90: 1726.346802 | R90: 1640.916702 | S90: 0.002052315023
A91: ENSOARG00000025191 | B91: 338.723297 | C91: 898.415405 | D91: 990.095154 | E91: 347.982758 | F91: 468.375214 | G91: 1623.026367 | H91: 1197.42041 | I91: 1109.65979 | J91: 843.064819 | K91: 2516.719482 | L91: 1210.681641 | M91: 4120.882812 | N91: 3113.321533 | O91: 1785.473999 | P91: 2160.900635 | Q91: 3249.233887 | R91: 1623.373575 | S91: 0.002030373615
A92: ENSOARG00000017016 | B92: 1457.296997 | C92: 1905.035645 | D92: 2872.603516 | E92: 2335.564453 | F92: 1617.840942 | G92: 1582.729736 | H92: 1354.210938 | I92: 1032.377686 | J92: 1305.966187 | K92: 1314.160156 | L92: 1488.67749 | M92: 1365.02002 | N92: 1234.785767 | O92: 1800.995117 | P92: 1577.943481 | Q92: 1200.140747 | R92: 1590.334305 | S92: 0.001989050987
A93: ENSOARG00000011986 | B93: 1968.728638 | C93: 1544.055542 | D93: 1864.181152 | E93: 1421.398804 | F93: 1589.312256 | G93: 2039.843506 | H93: 1342.225952 | I93: 1770.300415 | J93: 1581.282471 | K93: 1337.055786 | L93: 1481.357178 | M93: 1490.594971 | N93: 1549.742676 | O93: 1542.421387 | P93: 1445.44043 | Q93: 1248.47168 | R93: 1576.025803 | S93: 0.001971155164
A94: ENSOARG00000012610 | B94: 1250.845459 | C94: 1675.096436 | D94: 1272.974976 | E94: 1230.879028 | F94: 1923.553223 | G94: 1405.414551 | H94: 1028.740479 | I94: 1817.03894 | J94: 1747.104858 | K94: 1612.544678 | L94: 1252.501709 | M94: 1699.047852 | N94: 2263.750244 | O94: 1808.530396 | P94: 1745.026733 | Q94: 1323.351196 | R94: 1566.025047 | S94: 0.001958647095
A95: ENSOARG00000020231 | B95: 2466.101807 | C95: 1666.749023 | D95: 1350.607544 | E95: 2451.510254 | F95: 1169.783569 | G95: 2780.490234 | H95: 2497.44043 | I95: 2360.18042 | J95: 713.69635 | K95: 919.58905 | L95: 1599.374146 | M95: 588.186584 | N95: 1438.346558 | O95: 967.94104 | P95: 1424.501587 | Q95: 513.427246 | R95: 1556.745365 | S95: 0.00194704088
A96: ENSOARG00000011616 | B96: 1966.262953 | C96: 1685.707568 | D96: 1471.94306 | E96: 1455.79595 | F96: 1586.057713 | G96: 1687.325814 | H96: 1310.210118 | I96: 1880.804838 | J96: 1839.996607 | K96: 1045.924827 | L96: 1499.007633 | M96: 1393.373217 | N96: 1597.476933 | O96: 1604.376826 | P96: 1390.3198 | Q96: 1328.617205 | R96: 1546.450066 | S96: 0.001934164421
A97: ENSOARG00000003793 | B97: 1181.984985 | C97: 1295.31604 | D97: 1967.062256 | E97: 1342.723755 | F97: 1333.269653 | G97: 1733.098999 | H97: 1516.431641 | I97: 1380.189819 | J97: 1672.993652 | K97: 1582.082642 | L97: 1714.94458 | M97: 1599.439331 | N97: 1347.998047 | O97: 1493.925781 | P97: 1652.596436 | Q97: 1817.801758 | R97: 1539.491211 | S97: 0.001925460894
A98: ENSOARG00000006118 | B98: 1584.845947 | C98: 1399.144409 | D98: 2102.568359 | E98: 1313.760742 | F98: 1663.263306 | G98: 1896.797852 | H98: 1348.440918 | I98: 1916.015381 | J98: 1517.309937 | K98: 1191.203735 | L98: 1534.290894 | M98: 1614.496216 | N98: 1509.662842 | O98: 1397.921509 | P98: 1192.795898 | Q98: 1321.173828 | R98: 1531.480736 | S98: 0.001915442093
A99: ENSOARG00000007855 | B99: 1160.179321 | C99: 1300.863647 | D99: 1459.752197 | E99: 1059.185913 | F99: 1584.186768 | G99: 2848.018066 | H99: 1574.274536 | I99: 2249.937012 | J99: 2190.552979 | K99: 971.872437 | L99: 1213.42981 | M99: 1274.264404 | N99: 1888.337402 | O99: 938.706848 | P99: 917.783508 | Q99: 1755.907104 | R99: 1524.203247 | S99: 0.001906340046
A100: ENSOARG00000007383 | B100: 1314.414795 | C100: 1658.521118 | D100: 1590.654297 | E100: 1325.701782 | F100: 1968.895264 | G100: 2213.107422 | H100: 1122.251831 | I100: 1561.114136 | J100: 1533.990845 | K100: 1804.76709 | L100: 1429.030762 | M100: 1527.727661 | N100: 1559.642944 | O100: 1124.28418 | P100: 1053.839966 | Q100: 1116.561401 | R100: 1494.031593 | S100: 0.001868603982
A101: ENSOARG00000019145 | B101: 2461.485107 | C101: 1376.655029 | D101: 1283.728638 | E101: 1504.458008 | F101: 1098.546021 | G101: 1752.200928 | H101: 1394.771851 | I101: 1645.040771 | J101: 1308.644775 | K101: 939.827698 | L101: 1402.528687 | M101: 1078.892212 | N101: 1482.124512 | O101: 1817.257935 | P101: 1303.447266 | Q101: 1077.963257 | R101: 1432.973293 | S101: 0.001792237604
A102: ENSOARG00000003689 | B102: 1455.450195 | C102: 1754.452881 | D102: 1469.459961 | E102: 1504.804932 | F102: 1815.372803 | G102: 1796.633911 | H102: 1176.077759 | I102: 1727.017944 | J102: 1524.090332 | K102: 1229.457153 | L102: 1446.983765 | M102: 1364.869141 | N102: 1576.013062 | O102: 1122.295044 | P102: 953.485229 | Q102: 987.966736 | R102: 1431.526928 | S102: 0.001790428616
A103: ENSOARG00000008976 | B103: 1061.83313 | C103: 1178.43689 | D103: 1463.331543 | E103: 1671.789429 | F103: 1172.047729 | G103: 1437.396851 | H103: 1407.044189 | I103: 1275.545288 | J103: 1422.876953 | K103: 1228.289673 | L103: 1396.388062 | M103: 1431.699463 | N103: 2100.106445 | O103: 1637.55957 | P103: 1289.427734 | Q103: 1354.20752 | R103: 1407.998779 | S103: 0.001761001667
A104: ENSOARG00000011503 | B104: 1613.181274 | C104: 1598.646973 | D104: 1318.118286 | E104: 1299.012329 | F104: 1383.285645 | G104: 1627.797485 | H104: 1297.749268 | I104: 1502.555054 | J104: 1480.385254 | K104: 1349.719971 | L104: 1216.589722 | M104: 1387.913086 | N104: 1537.209595 | O104: 1303.521606 | P104: 1281.687256 | Q104: 1257.724976 | R104: 1403.443611 | S104: 0.001755304461
A105: 441 | B105: 1565.288299 | C105: 1570.306748 | D105: 1569.137567 | E105: 1269.601944 | F105: 1301.015053 | G105: 1682.824219 | H105: 1292.3395 | I105: 1157.82463 | J105: 1531.525909 | K105: 1143.986182 | L105: 1274.822021 | M105: 1476.8022 | N105: 1361.488436 | O105: 1413.79422 | P105: 1272.940819 | Q105: 1409.441322 | R105: 1393.321192 | S105: 0.001742644225
A106: ENSOARG00000018622 | B106: 1844.043945 | C106: 1425.025024 | D106: 1826.269775 | E106: 1144.901367 | F106: 1221.810181 | G106: 1973.721191 | H106: 1256.004883 | I106: 1408.73645 | J106: 1395.940308 | K106: 1035.800537 | L106: 1110.724243 | M106: 1109.92749 | N106: 1309.638062 | O106: 1198.626587 | P106: 1217.188843 | Q106: 1006.394714 | R106: 1342.7971 | S106: 0.001679453112
A107: ENSOARG00000007060 | B107: 1814.27063 | C107: 1339.370239 | D107: 1470.341309 | E107: 1266.111328 | F107: 1461.153564 | G107: 1560.108521 | H107: 1209.26123 | I107: 1697.602783 | J107: 1252.72583 | K107: 1107.281982 | L107: 1287.395142 | M107: 1043.341675 | N107: 1301.020996 | O107: 978.912903 | P107: 1133.280518 | Q107: 1301.874268 | R107: 1326.503307 | S107: 0.001659074262
A108: 1507 | B108: 1839.444214 | C108: 1028.870117 | D108: 859.247009 | E108: 1403.411377 | F108: 1371.542358 | G108: 1199.185791 | H108: 1494.228394 | I108: 880.355469 | J108: 1665.893799 | K108: 1511.378418 | L108: 882.879578 | M108: 1153.448486 | N108: 747.61084 | O108: 1693.871094 | P108: 1266.727539 | Q108: 1754.792969 | R108: 1297.055466 | S108: 0.001622243478
A109: ENSOARG00000010221 | B109: 1423.612915 | C109: 1187.606689 | D109: 1594.38562 | E109: 982.380798 | F109: 1169.330078 | G109: 1957.838379 | H109: 1207.9552 | I109: 971.760437 | J109: 1250.502808 | K109: 1060.397461 | L109: 1593.117798 | M109: 1177.986572 | N109: 914.027771 | O109: 1420.348022 | P109: 1318.062012 | Q109: 1487.427124 | R109: 1294.79623 | S109: 0.001619417824
A110: ENSOARG00000000006 | B110: 1163.150269 | C110: 1082.807007 | D110: 1096.43396 | E110: 1252.901123 | F110: 1459.888184 | G110: 1087.654297 | H110: 1297.2677 | I110: 1042.550171 | J110: 1284.099609 | K110: 1615.159424 | L110: 1889.801025 | M110: 1090.80957 | N110: 1737.258423 | O110: 1431.977417 | P110: 1094.300537 | Q110: 967.173706 | R110: 1287.077026 | S110: 0.001609763319
A111: ENSOARG00000012290 | B111: 1113.796753 | C111: 1328.876099 | D111: 1453.481445 | E111: 984.522095 | F111: 1053.969849 | G111: 1656.133301 | H111: 1242.472046 | I111: 1103.671143 | J111: 1427.009277 | K111: 1316.260376 | L111: 1210.022583 | M111: 1502.376343 | N111: 1489.598022 | O111: 1149.420898 | P111: 1194.571289 | Q111: 1273.300781 | R111: 1281.217644 | S111: 0.001602434916
A112: 3919 | B112: 195.768006 | C112: 1065.321899 | D112: 296.740387 | E112: 428.865784 | F112: 644.067993 | G112: 1373.613037 | H112: 1145.151367 | I112: 977.969971 | J112: 830.805237 | K112: 1025.373503 | L112: 957.214294 | M112: 2216.868652 | N112: 2109.495361 | O112: 2224.169189 | P112: 1695.067017 | Q112: 3093.047486 | R112: 1267.471199 | S112: 0.001585242066
A113: ENSOARG00000021041 | B113: 1053.322876 | C113: 1084.603027 | D113: 1286.959961 | E113: 942.342407 | F113: 1299.218384 | G113: 1480.209839 | H113: 1446.005371 | I113: 1281.46582 | J113: 1179.151855 | K113: 1071.553833 | L113: 1299.665283 | M113: 1590.974854 | N113: 1485.553345 | O113: 1223.969116 | P113: 1323.279785 | Q113: 1191.175903 | R113: 1264.965729 | S113: 0.001582108443
A114: ENSOARG00000017679 | B114: 942.411438 | C114: 990.340332 | D114: 1183.263184 | E114: 1046.786133 | F114: 959.632568 | G114: 1363.882446 | H114: 1320.333374 | I114: 1212.76355 | J114: 1060.148926 | K114: 1580.593262 | L114: 1234.91687 | M114: 1556.730469 | N114: 1206.542847 | O114: 1420.074097 | P114: 1524.643433 | Q114: 1434.407227 | R114: 1252.341885 | S114: 0.001566319644
A115: ENSOARG00000013041 | B115: 1134.807251 | C115: 1253.300903 | D115: 1492.253784 | E115: 1063.045898 | F115: 1218.545654 | G115: 1889.67981 | H115: 1138.800537 | I115: 1457.963135 | J115: 1467.523926 | K115: 1210.015991 | L115: 1313.806641 | M115: 1249.054077 | N115: 1254.893066 | O115: 837.039734 | P115: 937.393677 | Q115: 1009.53302 | R115: 1245.478569 | S115: 0.001557735609
A116: ENSOARG00000005051 | B116: 1035.025513 | C116: 1109.625 | D116: 1137.435303 | E116: 1137.074707 | F116: 1331.144775 | G116: 1509.352173 | H116: 1338.388062 | I116: 1259.191162 | J116: 1201.047729 | K116: 1008.874451 | L116: 1216.916382 | M116: 1375.218262 | N116: 1300.463623 | O116: 1156.579224 | P116: 1218.560059 | Q116: 1197.620605 | R116: 1220.782314 | S116: 0.001526847695
A117: ENSOARG00000000010 | B117: 860.159058 | C117: 855.696533 | D117: 950.843933 | E117: 1276.006592 | F117: 834.164978 | G117: 981.424194 | H117: 1338.655518 | I117: 986.731628 | J117: 1425.336548 | K117: 1149.136108 | L117: 1519.295776 | M117: 1803.126831 | N117: 1637.248047 | O117: 1119.309814 | P117: 1007.318054 | Q117: 1147.201294 | R117: 1180.728432 | S117: 0.001476751803
A118: ENSOARG00000003848 | B118: 1638.111084 | C118: 1268.00769 | D118: 1547.491943 | E118: 1039.128784 | F118: 1180.324829 | G118: 1449.944092 | H118: 938.960144 | I118: 1328.098999 | J118: 1251.465454 | K118: 875.6745 | L118: 979.399109 | M118: 1015.972595 | N118: 1029.365967 | O118: 1098.773193 | P118: 978.213074 | Q118: 888.61438 | R118: 1156.721615 | S118: 0.001446726177
A119: ENSOARG00000000351 | B119: 1142.053467 | C119: 992.376221 | D119: 1589.305298 | E119: 886.504456 | F119: 1306.798828 | G119: 1112.017456 | H119: 1080.599121 | I119: 1157.189575 | J119: 661.830139 | K119: 1554.380615 | L119: 968.167603 | M119: 1108.334229 | N119: 986.392334 | O119: 1532.029541 | P119: 1043.070312 | Q119: 1133.968384 | R119: 1140.938599 | S119: 0.001426986162
A120: ENSOARG00000004920 | B120: 1326.108521 | C120: 1054.209717 | D120: 1172.115845 | E120: 1262.604248 | F120: 1269.227051 | G120: 1408.589478 | H120: 877.708984 | I120: 1234.575195 | J120: 1086.427734 | K120: 1136.55127 | L120: 1139.913208 | M120: 1222.746826 | N120: 1286.70752 | O120: 843.991699 | P120: 1066.789795 | Q120: 756.850037 | R120: 1134.069821 | S120: 0.001418395295
A121: ENSOARG00000001198 | B121: 1185.358643 | C121: 928.308044 | D121: 1248.895386 | E121: 1128.380493 | F121: 1279.448486 | G121: 1434.156494 | H121: 1013.650635 | I121: 1216.593018 | J121: 1138.300659 | K121: 1201.480713 | L121: 1232.059937 | M121: 1195.543335 | N121: 1151.258911 | O121: 954.80896 | P121: 844.180237 | Q121: 989.920044 | R121: 1133.8965 | S121: 0.001418178521
A122: ENSOARG00000015615 | B122: 1202.338135 | C122: 1029.40271 | D122: 1399.479858 | E122: 1039.657227 | F122: 1409.10376 | G122: 1577.143311 | H122: 949.280396 | I122: 1302.623169 | J122: 1159.863403 | K122: 1005.905029 | L122: 1110.001831 | M122: 1135.077271 | N122: 1146.702393 | O122: 855.770935 | P122: 858.838806 | Q122: 853.748657 | R122: 1127.183556 | S122: 0.001409782558
A123: ENSOARG00000012038 | B123: 1362.69519 | C123: 1181.750366 | D123: 1179.971313 | E123: 1001.908997 | F123: 1203.437256 | G123: 1449.05127 | H123: 937.544434 | I123: 1250.119629 | J123: 1162.661133 | K123: 927.603088 | L123: 1050.417725 | M123: 1060.176025 | N123: 1092.390381 | O123: 1133.203735 | P123: 983.275269 | Q123: 921.678589 | R123: 1118.617775 | S123: 0.001399069229
A124: ENSOARG00000013126 | B124: 1053.222778 | C124: 1256.896729 | D124: 1304.762695 | E124: 1066.241089 | F124: 1079.72937 | G124: 1690.701538 | H124: 975.840271 | I124: 1405.935425 | J124: 1205.572754 | K124: 787.718628 | L124: 1136.453979 | M124: 1096.436157 | N124: 1135.31897 | O124: 960.739136 | P124: 841.61261 | Q124: 839.93103 | R124: 1114.819572 | S124: 0.001394318769
A125: ENSOARG00000000374 | B125: 1198.508179 | C125: 1114.495361 | D125: 1166.890991 | E125: 1029.971191 | F125: 1315.83313 | G125: 1270.990234 | H125: 992.656006 | I125: 1189.429932 | J125: 1153.071533 | K125: 885.742188 | L125: 1162.416504 | M125: 1119.52356 | N125: 1187.02417 | O125: 973.246826 | P125: 854.109619 | Q125: 992.816772 | R125: 1100.420387 | S125: 0.001376309528
A126: ENSOARG00000006727 | B126: 821.889598 | C126: 904.578344 | D126: 776.683697 | E126: 639.081077 | F126: 1327.501039 | G126: 1507.409319 | H126: 1083.088894 | I126: 1370.847507 | J126: 713.945063 | K126: 620.464248 | L126: 1045.511945 | M126: 1421.241604 | N126: 1036.559038 | O126: 1571.990688 | P126: 1080.1512 | Q126: 1634.870793 | R126: 1097.238378 | S126: 0.00137232975
A127: ENSOARG00000006659 | B127: 1339.143677 | C127: 1168.989746 | D127: 946.309631 | E127: 1443.499512 | F127: 1228.557129 | G127: 1126.22998 | H127: 1054.191895 | I127: 871.295044 | J127: 1057.782104 | K127: 855.487488 | L127: 921.566528 | M127: 1064.115234 | N127: 940.708069 | O127: 979.56427 | P127: 971.270264 | Q127: 1180.253662 | R127: 1071.810265 | S127: 0.00134052649
A128: ENSOARG00000017111 | B128: 854.84082 | C128: 1070.497925 | D128: 1193.640015 | E128: 1168.454834 | F128: 1623.805298 | G128: 1178.962646 | H128: 824.42688 | I128: 1368.179565 | J128: 1074.019409 | K128: 1136.628052 | L128: 994.957642 | M128: 1181.62915 | N128: 1260.375122 | O128: 762.37915 | P128: 627.610352 | Q128: 804.967102 | R128: 1070.335873 | S128: 0.00133868245
A129: ENSOARG00000008652 | B129: 995.125671 | C129: 1024.864136 | D129: 967.379944 | E129: 1118.68457 | F129: 1026.474731 | G129: 971.532898 | H129: 1025.079224 | I129: 944.793701 | J129: 915.468445 | K129: 1095.304199 | L129: 1059.25 | M129: 1215.926025 | N129: 1205.669189 | O129: 1291.169189 | P129: 1185.761719 | Q129: 1040.206665 | R129: 1067.668144 | S129: 0.001335345889

Sheet Table S8
A1: Table S8. 113 genes in the liver accounted for approximately 50% of their respective total aligned reads
A2: ID | B2: L_01 | C2: L_02 | D2: L_03 | E2: L_04 | F2: L_05 | G2: L_06 | H2: L_07 | I2: L_08 | J2: L_09 | K2: L_10 | L2: L_11 | M2: L_12 | N2: L_13 | O2: L_14 | P2: L_15 | Q2: L_16 | R2: Average | S2: Persent | T2: SUM
A3: ENSOARG00000013782 | B3: 17599.27539 | C3: 29120.24023 | D3: 22828.83008 | E3: 20001.96875 | F3: 21771.59766 | G3: 20644.74023 | H3: 20159.53125 | I3: 10062.54785 | J3: 22215.22852 | K3: 3595.581055 | L3: 22016.72656 | M3: 19844.30664 | N3: 21183.75586 | O3: 16860.20508 | P3: 23473.7207 | Q3: 24150.09375 | R3: 19720.52185 | S3: 0.033107774 | T3: 0.50028357
A4: ENSOARG00000020528 | B4: 10186.54492 | C4: 7707.702148 | D4: 12070.875 | E4: 11767.04688 | F4: 8141.695312 | G4: 10310.6416 | H4: 9270.051758 | I4: 4431.777344 | J4: 10421.93164 | K4: 4082.835205 | L4: 9644.074219 | M4: 8380.859375 | N4: 9504.723633 | O4: 10579.23145 | P4: 10272.47656 | Q4: 6193.194824 | R4: 8935.353867 | S4: 0.015001108
A5: ENSOARG00000000016 | B5: 6516.186523 | C5: 15534.97852 | D5: 6744.06543 | E5: 5660.946289 | F5: 5393.508789 | G5: 6672.967285 | H5: 7034.96875 | I5: 5070.85791 | J5: 6407.459961 | K5: 5488.308594 | L5: 6783.175293 | M5: 5264.953125 | N5: 5647.320801 | O5: 7485.507812 | P5: 7865.080078 | Q5: 15843.27148 | R5: 7463.34729 | S5: 0.012529831
A6: ENSOARG00000003744 | B6: 9439.18457 | C6: 162.086105 | D6: 591.178894 | E6: 129.568314 | F6: 8743.632812 | G6: 2546.213623 | H6: 1020.877686 | I6: 37874.1875 | J6: 522.523499 | K6: 43388.60547 | L6: 2484.103516 | M6: 2785.722412 | N6: 1499.890259 | O6: 3285.366211 | P6: 660.476135 | Q6: 2005.064453 | R6: 7321.167591 | S6: 0.012291133
A7: ENSOARG00000000022 | B7: 6362.299316 | C7: 14658.14844 | D7: 5279.387695 | E7: 4599.904785 | F7: 4957.97998 | G7: 5279.348145 | H7: 7593.015625 | I7: 4215.023438 | J7: 5519.173828 | K7: 4733.824219 | L7: 5269.029297 | M7: 4803.438477 | N7: 7039.948242 | O7: 5871.759277 | P7: 5136.061035 | Q7: 17974.94727 | R7: 6830.830567 | S7: 0.011467932
A8: ENSOARG00000009808 | B8: 7939.457031 | C8: 10290.34277 | D8: 6561.001465 | E8: 7827.52832 | F8: 5638.282227 | G8: 5513.529785 | H8: 5898.599121 | I8: 2170.151123 | J8: 9817.838867 | K8: 3354.79541 | L8: 6827.67041 | M8: 6845.083496 | N8: 8400.019531 | O8: 5900.8125 | P8: 5716.950684 | Q8: 5685.636719 | R8: 6524.231216 | S8: 0.010953198
A9: ENSOARG00000003236 | B9: 6296.286133 | C9: 7627.145508 | D9: 5456.867676 | E9: 6744.50293 | F9: 5642.596191 | G9: 6025.995117 | H9: 6734.810547 | I9: 3845.546387 | J9: 7547.51709 | K9: 4544.967285 | L9: 6664.317383 | M9: 6110.10791 | N9: 8749.915039 | O9: 6983.05127 | P9: 6019.244141 | Q9: 7102.75 | R9: 6380.976288 | S9: 0.010712694
A10: ENSOARG00000000035 | B10: 6729.208008 | C10: 13048.53711 | D10: 5706.283691 | E10: 4222.207031 | F10: 4003.086182 | G10: 5809.215332 | H10: 7364.848145 | I10: 4217.557617 | J10: 4743.007324 | K10: 6809.975098 | L10: 4697.762207 | M10: 4251.029297 | N10: 4308.962402 | O10: 6156.211914 | P10: 5307.531738 | Q10: 13647.16504 | R10: 6313.911759 | S10: 0.010600103
A11: ENSOARG00000006134 | B11: 6256.85791 | C11: 4037.386475 | D11: 6563.48291 | E11: 7256.533691 | F11: 5693.317383 | G11: 7455.459961 | H11: 7027.888672 | I11: 4648.938965 | J11: 7119.223145 | K11: 4521.371094 | L11: 6312.220215 | M11: 7651.882812 | N11: 6969.205566 | O11: 7100.523926 | P11: 6861.299316 | Q11: 4018.63208 | R11: 6218.389008 | S11: 0.010439735
A12: ENSOARG00000008456 | B12: 4549.928223 | C12: 7271.990234 | D12: 7904.863281 | E12: 7463.491211 | F12: 7628.578613 | G12: 6716.853516 | H12: 5751.691895 | I12: 4115.229004 | J12: 5422.028809 | K12: 5108.466309 | L12: 6196.370117 | M12: 6378.444336 | N12: 6038.563965 | O12: 6037.924805 | P12: 5656.125 | Q12: 6022.022461 | R12: 6141.410736 | S12: 0.0103105
A13: ENSOARG00000009438 | B13: 6156.498535 | C13: 3597.465088 | D13: 5170.727051 | E13: 6210.083008 | F13: 5179.670898 | G13: 5159.290039 | H13: 6269.655273 | I13: 5319.441895 | J13: 7399.886719 | K13: 5607.570312 | L13: 6563.691406 | M13: 6629.54248 | N13: 7337.252441 | O13: 9081.591797 | P13: 6391.382812 | Q13: 4010.175049 | R13: 6005.2453 | S13: 0.010081899
A14: 4553 | B14: 6718.510302 | C14: 10696.46997 | D14: 5863.42232 | E14: 5136.788681 | F14: 4475.481313 | G14: 5153.510376 | H14: 5962.445238 | I14: 3917.039293 | J14: 4886.316623 | K14: 4574.875458 | L14: 5390.175553 | M14: 4863.096787 | N14: 5200.543026 | O14: 5645.63281 | P14: 5783.074647 | Q14: 10060.56572 | R14: 5895.496757 | S14: 0.009897647
A15: ENSOARG00000000028 | B15: 5825.726074 | C15: 12905.81055 | D15: 4233.205078 | E15: 3990.061523 | F15: 3899.255127 | G15: 4422.964844 | H15: 5980.819336 | I15: 3709.620117 | J15: 4714.528809 | K15: 5601.70166 | L15: 3938.785889 | M15: 3732.350586 | N15: 3917.838135 | O15: 5521.160156 | P15: 4370.888672 | Q15: 12367.50098 | R15: 5570.763596 | S15: 0.00935247
A16: ENSOARG00000000021 | B16: 4530.62793 | C16: 12458.14844 | D16: 3701.082275 | E16: 2895.175537 | F16: 4237.035156 | G16: 4280.096191 | H16: 6140.059082 | I16: 3805.685791 | J16: 3849.83667 | K16: 3567.739502 | L16: 4426.07666 | M16: 3444.822998 | N16: 5889.834473 | O16: 5056.181152 | P16: 4785.745117 | Q16: 15480.97168 | R16: 5534.319916 | S16: 0.009291286
A17: ENSOARG00000012835 | B17: 4757.904992 | C17: 5786.452148 | D17: 5506.125 | E17: 4204.844727 | F17: 6113.115736 | G17: 4651.584961 | H17: 4860.058205 | I17: 3723.923606 | J17: 4812.327629 | K17: 4585.548183 | L17: 5586.611328 | M17: 5968.87793 | N17: 4792.077148 | O17: 4790.552246 | P17: 4697.561035 | Q17: 6622.395508 | R17: 5091.247524 | S17: 0.008547435
A18: ENSOARG00000014882 | B18: 5066.371582 | C18: 5813.521973 | D18: 4324.559082 | E18: 4754.248535 | F18: 4605.137695 | G18: 4704.45752 | H18: 4861.238281 | I18: 3424.928223 | J18: 6059.653809 | K18: 2936.432861 | L18: 6416.312988 | M18: 5209.12207 | N18: 5604.39209 | O18: 6581.804688 | P18: 5461.478027 | Q18: 4354.694336 | R18: 5011.14711 | S18: 0.008412958
A19: ENSOARG00000002515 | B19: 4564.01709 | C19: 5556.20459 | D19: 6911.333008 | E19: 7100.895996 | F19: 2802.446289 | G19: 5245.048828 | H19: 5071.958496 | I19: 1794.593994 | J19: 6390.625488 | K19: 2298.997314 | L19: 3710.195068 | M19: 4982.994629 | N19: 5324.706055 | O19: 4145.774414 | P19: 6572.316406 | Q19: 6022.809082 | R19: 4905.932297 | S19: 0.008236318
A20: 17474 | B20: 3974.22168 | C20: 8002.126953 | D20: 3787.196777 | E20: 3046.232178 | F20: 3386.574951 | G20: 4043.616943 | H20: 4347.272461 | I20: 3025.501953 | J20: 3808.299805 | K20: 3149.55249 | L20: 3900.046631 | M20: 3101.376465 | N20: 3491.414307 | O20: 4456.345703 | P20: 4515.987793 | Q20: 6975.78418 | R20: 4188.221954 | S20: 0.007031391
A21: ENSOARG00000006272 | B21: 3119.050537 | C21: 1620.878174 | D21: 6462.955078 | E21: 2566.750732 | F21: 3253.469238 | G21: 5063.963867 | H21: 3248.299805 | I21: 3723.513672 | J21: 4271.378906 | K21: 3895.788818 | L21: 1606.364014 | M21: 3722.217773 | N21: 3558.549561 | O21: 5020.594727 | P21: 8995.155273 | Q21: 2688.536865 | R21: 3926.09169 | S21: 0.006591314
A22: ENSOARG00000014413 | B22: 11190.59668 | C22: 1679.177246 | D22: 5500.916504 | E22: 4348.693359 | F22: 5594.476562 | G22: 2014.044556 | H22: 5484.777344 | I22: 653.964844 | J22: 5179.382812 | K22: 2669.959961 | L22: 1810.617554 | M22: 2714.713135 | N22: 5919.808594 | O22: 2950.639893 | P22: 3017.251953 | Q22: 1499.736328 | R22: 3889.297333 | S22: 0.006529542
A23: ENSOARG00000015661 | B23: 4140.286133 | C23: 4994.103516 | D23: 4141.133789 | E23: 4542.458496 | F23: 3695.003662 | G23: 3818.349365 | H23: 3973.530518 | I23: 2415.24585 | J23: 4467.569336 | K23: 1981.594727 | L23: 4191.944824 | M23: 3979.953125 | N23: 4417.630859 | O23: 4382.560547 | P23: 3730.473389 | Q23: 3256.418457 | R23: 3883.016037 | S23: 0.006518997
A24: ENSOARG00000018312 | B24: 5350.1875 | C24: 1911.060303 | D24: 3363.000244 | E24: 2740.699463 | F24: 6184.970215 | G24: 2842.618164 | H24: 2783.499756 | I24: 4435.618164 | J24: 3719.601562 | K24: 6349.61084 | L24: 3949.380127 | M24: 4796.800781 | N24: 3467.201904 | O24: 4316.84375 | P24: 3294.29248 | Q24: 2360.167725 | R24: 3866.597061 | S24: 0.006491432
A25: ENSOARG00000018004 | B25: 2791.690918 | C25: 2974.125244 | D25: 4313.100586 | E25: 5644.601562 | F25: 4496.46875 | G25: 4166.293945 | H25: 4020.443604 | I25: 1750.737671 | J25: 6486.993652 | K25: 2908.155273 | L25: 4539.213379 | M25: 2976.451416 | N25: 5211.398926 | O25: 3301.826172 | P25: 2200.332275 | Q25: 3583.570557 | R25: 3835.337746 | S25: 0.006438952
A26: ENSOARG00000000023 | B26: 4412.223145 | C26: 7219.431641 | D26: 3561.706055 | E26: 3207.403809 | F26: 2718.63208 | G26: 3218.384521 | H26: 4497.450684 | I26: 2426.671387 | J26: 3311.894775 | K26: 3845.01709 | L26: 3134.64624 | M26: 3216.39209 | N26: 3304.30835 | O26: 3905.715332 | P26: 3400.951416 | Q26: 5803.130859 | R26: 3823.997467 | S26: 0.006419913
A27: ENSOARG00000018566 | B27: 3181.06665 | C27: 4808.935059 | D27: 3486.498291 | E27: 3285.615234 | F27: 3770.71582 | G27: 4184.378906 | H27: 4339.958496 | I27: 1612.412109 | J27: 3064.561523 | K27: 1177.355713 | L27: 4509.73291 | M27: 3740.400879 | N27: 4757.770996 | O27: 3277.078857 | P27: 4612.191406 | Q27: 4305.088867 | R27: 3632.110107 | S27: 0.006097764
A28: ENSOARG00000000291 | B28: 3875.955427 | C28: 2335.845541 | D28: 1654.076533 | E28: 2371.157936 | F28: 3106.296021 | G28: 2825.969251 | H28: 2411.628591 | I28: 10802.01879 | J28: 2829.271315 | K28: 9261.626999 | L28: 1871.597805 | M28: 3044.52799 | N28: 2599.323168 | O28: 2103.025742 | P28: 2526.583328 | Q28: 2724.523983 | R28: 3521.464276 | S28: 0.005912006
A29: ENSOARG00000009847 | B29: 508.885834 | C29: 144.952026 | D29: 34.441071 | E29: 14.551261 | F29: 99.96048 | G29: 389.41983 | H29: 29.586964 | I29: 14434.05566 | J29: 60.118816 | K29: 38346.44531 | L29: 925.467468 | M29: 83.634933 | N29: 82.323914 | O29: 614.85498 | P29: 164.213593 | Q29: 160.734665 | R29: 3505.852925 | S29: 0.005885797
A30: ENSOARG00000009231 | B30: 4688.758789 | C30: 1201.068115 | D30: 3466.321533 | E30: 2886.263916 | F30: 4237.588867 | G30: 2744.557617 | H30: 3032.533447 | I30: 3438.425049 | J30: 3248.738037 | K30: 5878.121094 | L30: 2795.967773 | M30: 4078.477539 | N30: 3704.40625 | O30: 4580.365723 | P30: 2931.079102 | Q30: 1331.867554 | R30: 3390.283775 | S30: 0.005691774
A31: ENSOARG00000006342 | B31: 3200.394043 | C31: 4362.315918 | D31: 3840.575928 | E31: 3906.19458 | F31: 2897.916748 | G31: 3556.252197 | H31: 3624.106689 | I31: 904.847595 | J31: 4186.150391 | K31: 1219.472656 | L31: 3380.537598 | M31: 3827.813965 | N31: 4525.04834 | O31: 3623.378906 | P31: 3615.695801 | Q31: 3166.587891 | R31: 3364.830578 | S31: 0.005649042
A32: ENSOARG00000012450 | B32: 2926.623047 | C32: 2413.003662 | D32: 3310.715576 | E32: 3954.214355 | F32: 2861.025391 | G32: 3487.509766 | H32: 2909.813965 | I32: 1706.410645 | J32: 3995.107666 | K32: 1806.210815 | L32: 4136.032227 | M32: 3699.453125 | N32: 3758.198242 | O32: 3738.062988 | P32: 3669.131104 | Q32: 2888.176514 | R32: 3203.730568 | S32: 0.005378579
A33: ENSOARG00000015390 | B33: 3180.157715 | C33: 2828.15332 | D33: 2891.748779 | E33: 3490.130371 | F33: 3958.234863 | G33: 3955.098145 | H33: 3347.482178 | I33: 1030.494629 | J33: 2918.541992 | K33: 898.170227 | L33: 2753.537109 | M33: 3804.26123 | N33: 4216.306152 | O33: 2155.308838 | P33: 3848.018555 | Q33: 3450.171387 | R33: 3045.363468 | S33: 0.005112705
A34: ENSOARG00000009865 | B34: 3150.956055 | C34: 28.744034 | D34: 145.671829 | E34: 101.700027 | F34: 659.230164 | G34: 688.153564 | H34: 218.283295 | I34: 15844.61621 | J34: 215.663574 | K34: 24586.79102 | L34: 583.944519 | M34: 611.700623 | N34: 194.803772 | O34: 471.677979 | P34: 166.002853 | Q34: 439.694855 | R34: 3006.727148 | S34: 0.00504784
A35: ENSOARG00000016664 | B35: 3390.262695 | C35: 1777.163696 | D35: 1434.486328 | E35: 1879.380493 | F35: 2627.612061 | G35: 2270.428711 | H35: 2056.871582 | I35: 8048.632812 | J35: 2369.717285 | K35: 7692.119629 | L35: 1482.025635 | M35: 2481.409668 | N35: 2132.777588 | O35: 1813.074829 | P35: 2014.275024 | Q35: 1965.986816 | R35: 2839.764053 | S35: 0.004767534
A36: ENSOARG00000000027 | B36: 2160.148926 | C36: 7743.021484 | D36: 1993.750732 | E36: 2107.162842 | F36: 1824.00415 | G36: 2407.026123 | H36: 2843.650146 | I36: 2159.605713 | J36: 1774.157959 | K36: 2228.717041 | L36: 1879.142456 | M36: 1602.783325 | N36: 1542.773926 | O36: 2177.325195 | P36: 2105.577881 | Q36: 7275.140137 | R36: 2738.999252 | S36: 0.004598366
A37: ENSOARG00000000033 | B37: 3674.296387 | C37: 5364.9375 | D37: 1945.535889 | E37: 1769.72168 | F37: 2223.158447 | G37: 2428.93457 | H37: 3744.97998 | I37: 1934.865112 | J37: 1824.730103 | K37: 2139.550293 | L37: 1897.341919 | M37: 1680.878906 | N37: 1910.484619 | O37: 2449.788818 | P37: 2440.998535 | Q37: 6107.88623 | R37: 2721.130562 | S37: 0.004568367
A38: ENSOARG00000014790 | B38: 2645.300781 | C38: 1767.956421 | D38: 2201.676305 | E38: 3083.858887 | F38: 2376.266357 | G38: 1857.56955 | H38: 2196.246582 | I38: 3455.645507 | J38: 2758.328521 | K38: 4677.49268 | L38: 3055.779298 | M38: 2462.501946 | N38: 2689.221687 | O38: 3544.879395 | P38: 2054.472787 | Q38: 2020.879639 | R38: 2678.004771 | S38: 0.004495965
A39: ENSOARG00000005798 | B39: 2141.22583 | C39: 6692.12793 | D39: 1936.316406 | E39: 1708.39502 | F39: 1848.331177 | G39: 2408.110596 | H39: 2884.509766 | I39: 2182.326904 | J39: 1721.211182 | K39: 2183.637939 | L39: 1875.341187 | M39: 1524.171021 | N39: 1627.724243 | O39: 2198.783447 | P39: 2101.419434 | Q39: 7424.515625 | R39: 2653.634232 | S39: 0.004455051
A40: ENSOARG00000014759 | B40: 2726.543213 | C40: 1773.36792 | D40: 3046.925537 | E40: 5104.5625 | F40: 3013.802246 | G40: 3547.838867 | H40: 2260.873779 | I40: 430.802795 | J40: 2554.073242 | K40: 470.981781 | L40: 4092.449219 | M40: 2580.866211 | N40: 3573.062988 | O40: 2326.70874 | P40: 3472.2854 | Q40: 1201.537598 | R40: 2636.042627 | S40: 0.004425517
A41: ENSOARG00000007617 | B41: 3026.061768 | C41: 2538.95752 | D41: 3042.031738 | E41: 2560.571289 | F41: 2207.107422 | G41: 2956.209473 | H41: 3102.246094 | I41: 1941.980103 | J41: 2607.407227 | K41: 2489.029297 | L41: 2212.981201 | M41: 2508.985596 | N41: 2862.305664 | O41: 2438.428223 | P41: 2805.202393 | Q41: 2594.956787 | R41: 2618.403862 | S41: 0.004395904
A42: ENSOARG00000009054 | B42: 2659.92749 | C42: 2170.936523 | D42: 2144.737305 | E42: 1762.875122 | F42: 2789.725098 | G42: 2156.327881 | H42: 3373.387451 | I42: 3391.47998 | J42: 2645.325439 | K42: 4173.991211 | L42: 2024.681152 | M42: 2798.764893 | N42: 2408.186523 | O42: 2952.569824 | P42: 1914.037109 | Q42: 2513.916016 | R42: 2617.554314 | S42: 0.004394478
A43: ENSOARG00000006050 | B43: 180.959198 | C43: 57.547867 | D43: 6.718627 | E43: 38.551067 | F43: 1156.077148 | G43: 470.476898 | H43: 56.803242 | I43: 1223.258667 | J43: 79.196884 | K43: 31141.98828 | L43: 1345.342773 | M43: 343.522308 | N43: 470.531769 | O43: 177.19487 | P43: 212.315338 | Q43: 1160.69397 | R43: 2382.573682 | S43: 0.003999981
A44: ENSOARG00000016733 | B44: 2560.626221 | C44: 1624.552612 | D44: 1086.794678 | E44: 1860.178101 | F44: 2188.72876 | G44: 2056.246582 | H44: 1628.251831 | I44: 7229.970703 | J44: 1858.26001 | K44: 5823.349121 | L44: 1245.254639 | M44: 2010.196167 | N44: 1846.171265 | O44: 1451.326538 | P44: 1661.396118 | Q44: 1662.297119 | R44: 2362.100029 | S44: 0.003965609
A45: ENSOARG00000013817 | B45: 2213.693604 | C45: 1766.895874 | D45: 2520.082031 | E45: 3179.9104 | F45: 3240.86499 | G45: 2492.685303 | H45: 2264.152344 | I45: 780.056152 | J45: 2359.189941 | K45: 797.645508 | L45: 2799.462646 | M45: 2961.55835 | N45: 2796.26123 | O45: 3470.8396 | P45: 2431.552734 | Q45: 1536.578369 | R45: 2350.714317 | S45: 0.003946494
A46: ENSOARG00000000042 | B46: 1567.086182 | C46: 2275.181152 | D46: 1894.956299 | E46: 2911.598633 | F46: 2019.301025 | G46: 2200.605225 | H46: 2753.87207 | I46: 1108.377075 | J46: 2314.612793 | K46: 1371.335083 | L46: 2624.966553 | M46: 2875.564697 | N46: 3154.58667 | O46: 1767.067017 | P46: 2307.134033 | Q46: 2518.839844 | R46: 2229.067772 | S46: 0.003742268
A47: ENSOARG00000003782 | B47: 4031.07959 | C47: 1742.154663 | D47: 2284.859863 | E47: 2147.552734 | F47: 2388.474121 | G47: 2221.810303 | H47: 2106.112793 | I47: 1394.356201 | J47: 2191.833496 | K47: 1820.522583 | L47: 1709.031494 | M47: 2028.230469 | N47: 2150.721924 | O47: 1867.62439 | P47: 2042.312378 | Q47: 2713.984619 | R47: 2177.541351 | S47: 0.003655763
A48: ENSOARG00000008718 | B48: 2152.947021 | C48: 1868.793701 | D48: 1687.658691 | E48: 3152.498535 | F48: 2583.20459 | G48: 2500.934082 | H48: 2284.134521 | I48: 759.888367 | J48: 2648.025146 | K48: 1595.890991 | L48: 2212.564209 | M48: 2334.637451 | N48: 1937.20874 | O48: 2212.054688 | P48: 2303.244873 | Q48: 2005.841675 | R48: 2139.970455 | S48: 0.003592687
A49: ENSOARG00000000032 | B49: 2335.122559 | C49: 4424.421875 | D49: 1470.031128 | E49: 1321.692383 | F49: 1703.328979 | G49: 1997.852417 | H49: 2810.65625 | I49: 1569.026855 | J49: 1220.080688 | K49: 1355.223633 | L49: 1493.436035 | M49: 1316.394043 | N49: 1576.587769 | O49: 1565.843872 | P49: 1974.896973 | Q49: 6065.092285 | R49: 2137.480484 | S49: 0.003588506
A50: ENSOARG00000002951 | B50: 1975.718842 | C50: 1389.724377 | D50: 2182.457554 | E50: 2069.847324 | F50: 2401.01831 | G50: 2377.24289 | H50: 2020.058583 | I50: 1870.192169 | J50: 2410.053051 | K50: 2576.299896 | L50: 2252.016307 | M50: 2377.348145 | N50: 2291.027345 | O50: 1957.671692 | P50: 2179.62561 | Q50: 1645.769714 | R50: 2123.504488 | S50: 0.003565043
A51: ENSOARG00000008420 | B51: 1715.299072 | C51: 1411.653564 | D51: 1979.332397 | E51: 2283.194824 | F51: 2028.204834 | G51: 2122.979004 | H51: 2449.0271 | I51: 1103.725342 | J51: 2470.848145 | K51: 1484.557617 | L51: 2249.990234 | M51: 2499.634277 | N51: 2374.496582 | O51: 3121.806885 | P51: 2101.61792 | Q51: 1381.191772 | R51: 2048.597473 | S51: 0.003439285
A52: ENSOARG00000012929 | B52: 2025.768921 | C52: 1488.712769 | D52: 2012.383179 | E52: 2122.143311 | F52: 2088.243164 | G52: 1988.244385 | H52: 2217.017822 | I52: 1356.599365 | J52: 2465.461914 | K52: 1375.325073 | L52: 2376.691406 | M52: 2167.681396 | N52: 2407.291748 | O52: 2457.106689 | P52: 2401.936768 | Q52: 1235.919556 | R52: 2011.657967 | S52: 0.00337727
A53: ENSOARG00000000114 | B53: 1455.804565 | C53: 1496.680298 | D53: 2260.854248 | E53: 1824.768555 | F53: 2472.288574 | G53: 2054.852051 | H53: 1582.592529 | I53: 2974.825684 | J53: 1516.441284 | K53: 2603.125244 | L53: 2045.362549 | M53: 2096.302979 | N53: 1589.624634 | O53: 1425.166382 | P53: 1773.836304 | Q53: 2021.287598 | R53: 1949.613342 | S53: 0.003273106
A54: ENSOARG00000007511 | B54: 1248.841187 | C54: 2136.438721 | D54: 1886.61438 | E54: 1642.64502 | F54: 1685.589478 | G54: 2153.965576 | H54: 2639.78125 | I54: 945.457886 | J54: 1966.717773 | K54: 864.171692 | L54: 2179.668945 | M54: 2058.151123 | N54: 2520.038574 | O54: 2115.270752 | P54: 2604.118164 | Q54: 2277.087402 | R54: 1932.78487 | S54: 0.003244854
A55: ENSOARG00000018341 | B55: 696.45105 | C55: 221.863876 | D55: 112.281616 | E55: 268.304596 | F55: 445.501594 | G55: 1205.413132 | H55: 1922.142609 | I55: 6896.842651 | J55: 311.668579 | K55: 9351.679688 | L55: 646.064758 | M55: 493.400736 | N55: 3818.296219 | O55: 106.314903 | P55: 2731.137115 | Q55: 419.016022 | R55: 1852.898697 | S55: 0.003110737
A56: ENSOARG00000012938 | B56: 1963.103394 | C56: 1484.258545 | D56: 1802.824585 | E56: 1934.233643 | F56: 1742.316284 | G56: 2165.95459 | H56: 1771.78833 | I56: 1037.962158 | J56: 1787.063232 | K56: 1314.40625 | L56: 2038.506958 | M56: 2244.560059 | N56: 1731.453613 | O56: 2023.663818 | P56: 2431.235596 | Q56: 1892.714111 | R56: 1835.377823 | S56: 0.003081322
A57: ENSOARG00000014888 | B57: 2396.378418 | C57: 999.351929 | D57: 2054.022705 | E57: 2475.609131 | F57: 2222.570312 | G57: 1464.906982 | H57: 2039.673218 | I57: 944.933472 | J57: 2518.763916 | K57: 1690.577148 | L57: 1451.504761 | M57: 1678.55835 | N57: 2432.778809 | O57: 2191.864502 | P57: 1910.59436 | Q57: 522.858215 | R57: 1812.184139 | S57: 0.003042383
A58: ENSOARG00000000006 | B58: 1326.547974 | C58: 4263.230469 | D58: 1253.596313 | E58: 1148.776733 | F58: 1340.429565 | G58: 1261.818848 | H58: 2088.87793 | I58: 1014.169189 | J58: 1705.792969 | K58: 1429.843506 | L58: 1529.456177 | M58: 1408.68396 | N58: 1169.328735 | O58: 1798.733643 | P58: 1353.126221 | Q58: 4706.391602 | R58: 1799.92524 | S58: 0.003021802
A59: ENSOARG00000019162 | B59: 1685.887329 | C59: 1151.345215 | D59: 1624.908447 | E59: 2545.967041 | F59: 1765.447876 | G59: 1706.609009 | H59: 2252.380615 | I59: 558.265747 | J59: 2642.894531 | K59: 958.432007 | L59: 1473.748657 | M59: 2774.065186 | N59: 2513.102539 | O59: 1913.121094 | P59: 1835.449463 | Q59: 1103.238647 | R59: 1781.553963 | S59: 0.00299096
A60: ENSOARG00000020752 | B60: 2207.799561 | C60: 1080.221558 | D60: 1151.746948 | E60: 2081.112793 | F60: 1880.541626 | G60: 1738.754761 | H60: 1410.094849 | I60: 271.892426 | J60: 2929.842285 | K60: 550.172791 | L60: 2528.783936 | M60: 1748.399048 | N60: 1722.726929 | O60: 4380.776855 | P60: 1626.483765 | Q60: 839.557312 | R60: 1759.306715 | S60: 0.00295361
A61: ENSOARG00000010035 | B61: 2030.647071 | C61: 1386.778046 | D61: 1549.294099 | E61: 1672.085148 | F61: 1698.581613 | G61: 1658.357356 | H61: 1552.464075 | I61: 1822.424673 | J61: 1634.170956 | K61: 2317.164987 | L61: 1659.108216 | M61: 1869.502702 | N61: 1884.045185 | O61: 1907.173245 | P61: 1635.043364 | Q61: 1514.2999 | R61: 1736.94629 | S61: 0.00291607
A62: ENSOARG00000008775 | B62: 1149.778076 | C62: 2286.720215 | D62: 2026.43811 | E62: 1875.578613 | F62: 2091.051025 | G62: 2125.911621 | H62: 1990.988403 | I62: 962.661621 | J62: 1349.69104 | K62: 598.525269 | L62: 1843.549194 | M62: 1850.994019 | N62: 1525.505249 | O62: 1589.575195 | P62: 1647.197021 | Q62: 2818.601562 | R62: 1733.29789 | S62: 0.002909945
A63: ENSOARG00000004055 | B63: 2402.22583 | C63: 1267.063477 | D63: 1433.480957 | E63: 1801.623657 | F63: 1556.623047 | G63: 1567.481689 | H63: 1825.983765 | I63: 1263.881714 | J63: 2106.743896 | K63: 2470.680176 | L63: 1470.157837 | M63: 2338.603027 | N63: 1922.715332 | O63: 1452.875732 | P63: 1617.10083 | Q63: 1120.163086 | R63: 1726.087753 | S63: 0.00289784
A64: ENSOARG00000017679 | B64: 1980.025269 | C64: 1913.437866 | D64: 1804.000244 | E64: 1537.315063 | F64: 1516.106201 | G64: 1530.824585 | H64: 1446.243286 | I64: 1184.609375 | J64: 1574.175537 | K64: 1346.124512 | L64: 1842.841553 | M64: 1655.705444 | N64: 2037.56604 | O64: 2001.565796 | P64: 1999.725708 | Q64: 2044.469604 | R64: 1713.421005 | S64: 0.002876575
A65: ENSOARG00000019281 | B65: 1854.797241 | C65: 1672.287964 | D65: 848.178162 | E65: 1144.278564 | F65: 2413.796387 | G65: 2211.715088 | H65: 1868.094238 | I65: 1588.955444 | J65: 1214.590942 | K65: 3055.433105 | L65: 1693.579346 | M65: 1252.798218 | N65: 2181.635254 | O65: 634.891968 | P65: 1896.086426 | Q65: 1722.233643 | R65: 1703.334499 | S65: 0.002859641
A66: ENSOARG00000002586 | B66: 1630.390015 | C66: 1118.764404 | D66: 1991.836548 | E66: 2148.381592 | F66: 1358.801392 | G66: 1800.962036 | H66: 1892.164062 | I66: 1078.382202 | J66: 2453.25293 | K66: 1208.822754 | L66: 1630.239136 | M66: 1725.357178 | N66: 1979.499512 | O66: 2169.108154 | P66: 2132.060547 | Q66: 878.113892 | R66: 1699.758522 | S66: 0.002853638
A67: ENSOARG00000001055 | B67: 1583.776001 | C67: 1109.192383 | D67: 1583.723999 | E67: 1853.600952 | F67: 1365.133057 | G67: 1472.218872 | H67: 1693.047729 | I67: 1119.701416 | J67: 1967.718628 | K67: 1506.989502 | L67: 1620.508545 | M67: 1790.433472 | N67: 1833.421143 | O67: 2108.06958 | P67: 1723.464355 | Q67: 1189.688477 | R67: 1595.043007 | S67: 0.002677836
A68: 4552 | B68: 688.506323 | C68: 3967.151611 | D68: 1426.341003 | E68: 1220.079254 | F68: 1188.937836 | G68: 1484.694977 | H68: 1910.195008 | I68: 777.266854 | J68: 1302.388047 | K68: 1200.077072 | L68: 954.043091 | M68: 1055.465203 | N68: 1345.160797 | O68: 1475.157669 | P68: 1783.627838 | Q68: 2662.983643 | R68: 1527.629764 | S68: 0.002564659
A69: ENSOARG00000015253 | B69: 2025.867798 | C69: 533.144348 | D69: 1290.855347 | E69: 705.444641 | F69: 2215.379883 | G69: 1709.451172 | H69: 572.306458 | I69: 3423.018555 | J69: 1165.154053 | K69: 2261.128418 | L69: 1186.515381 | M69: 1725.972412 | N69: 1485.240234 | O69: 1682.736328 | P69: 761.761047 | Q69: 987.820984 | R69: 1483.237316 | S69: 0.002490131
A70: ENSOARG00000013005 | B70: 1646.572876 | C70: 2323.018066 | D70: 1739.862915 | E70: 1501.734009 | F70: 1435.448486 | G70: 1436.243896 | H70: 1698.047241 | I70: 668.924561 | J70: 1784.711182 | K70: 997.956238 | L70: 1095.461304 | M70: 1647.405273 | N70: 1964.492798 | O70: 1434.814697 | P70: 982.788208 | Q70: 1241.872803 | R70: 1474.95966 | S70: 0.002476234
A71: ENSOARG00000004893 | B71: 1531.977539 | C71: 1406.906616 | D71: 1504.626221 | E71: 1673.079468 | F71: 1512.125244 | G71: 1704.117798 | H71: 1395.781372 | I71: 1001.926453 | J71: 1595.946411 | K71: 649.842529 | L71: 1576.552124 | M71: 1498.473633 | N71: 1811.667358 | O71: 1755.626953 | P71: 1767.348022 | Q71: 1192.952881 | R71: 1473.684414 | S71: 0.002474093
A72: ENSOARG00000018283 | B72: 1514.755035 | C72: 993.193481 | D72: 1453.697693 | E72: 2184.676575 | F72: 1309.85727 | G72: 1512.9357 | H72: 1944.238525 | I72: 397.076462 | J72: 1590.196167 | K72: 766.312927 | L72: 1144.60086 | M72: 1703.53302 | N72: 1993.803039 | O72: 2279.942597 | P72: 1077.713623 | Q72: 1393.218506 | R72: 1453.734468 | S72: 0.0024406
A73: ENSOARG00000005384 | B73: 1236.706543 | C73: 1297.141724 | D73: 1447.440308 | E73: 1213.538818 | F73: 1439.885254 | G73: 1312.947388 | H73: 1408.124878 | I73: 1471.633179 | J73: 1598.307007 | K73: 2142.749512 | L73: 1199.172729 | M73: 1445.730469 | N73: 1224.928589 | O73: 1292.363281 | P73: 1317.255859 | Q73: 1554.901245 | R73: 1412.676674 | S73: 0.00237167
A74: ENSOARG00000012549 | B74: 1168.68335 | C74: 1704.206055 | D74: 1468.075439 | E74: 1251.598389 | F74: 1340.702515 | G74: 1664.189087 | H74: 1519.417114 | I74: 429.222748 | J74: 1383.028687 | K74: 486.902405 | L74: 1666.039062 | M74: 1411.396362 | N74: 2021.31665 | O74: 1462.088745 | P74: 1772.119995 | Q74: 1741.607178 | R74: 1405.662111 | S74: 0.002359894
A75: ENSOARG00000000369 | B75: 1223.314209 | C75: 652.374451 | D75: 1204.99353 | E75: 1584.362793 | F75: 1368.296021 | G75: 1559.050415 | H75: 1420.916382 | I75: 1031.180054 | J75: 1408.870361 | K75: 797.569519 | L75: 1778.251343 | M75: 1706.036621 | N75: 1726.692627 | O75: 1421.909058 | P75: 1776.114014 | Q75: 787.473999 | R75: 1340.462837 | S75: 0.002250434
A76: ENSOARG00000005586 | B76: 1308.81604 | C76: 850.640137 | D76: 1184.794189 | E76: 1053.196655 | F76: 1380.373169 | G76: 1745.361938 | H76: 1726.879395 | I76: 1004.232727 | J76: 937.666382 | K76: 1179.96167 | L76: 1279.502563 | M76: 1495.631104 | N76: 1647.932739 | O76: 1698.851562 | P76: 1726.963135 | Q76: 1139.716553 | R76: 1335.032497 | S76: 0.002241318
A77: ENSOARG00000004399 | B77: 1932.833496 | C77: 1131.668091 | D77: 1364.018799 | E77: 1325.89917 | F77: 1321.362061 | G77: 1335.784546 | H77: 1361.540161 | I77: 815.765198 | J77: 1370.968262 | K77: 990.420288 | L77: 1383.245239 | M77: 1430.872437 | N77: 1341.717407 | O77: 1501.081177 | P77: 1419.320557 | Q77: 836.422241 | R77: 1303.932446 | S77: 0.002189105
A78: ENSOARG00000017468 | B78: 1139.375 | C78: 1018.820801 | D78: 1250.354126 | E78: 1392.410278 | F78: 1484.701782 | G78: 1463.104492 | H78: 1418.235474 | I78: 469.085999 | J78: 1850.776733 | K78: 528.011597 | L78: 1390.136353 | M78: 1579.646484 | N78: 1586.813232 | O78: 1449.385254 | P78: 1566.297974 | Q78: 1179.480957 | R78: 1297.914784 | S78: 0.002179003
A79: ENSOARG00000013020 | B79: 1283.313965 | C79: 932.35968 | D79: 1260.807861 | E79: 1409.608887 | F79: 1401.755371 | G79: 1337.776001 | H79: 1554.43457 | I79: 1046.216919 | J79: 1260.042114 | K79: 787.454102 | L79: 1276.156006 | M79: 1418.115479 | N79: 1601.001099 | O79: 1770.509033 | P79: 1401.066772 | Q79: 948.127258 | R79: 1293.04657 | S79: 0.00217083
A80: ENSOARG00000010604 | B80: 2356.202637 | C80: 379.983246 | D80: 2258.728271 | E80: 1115.473511 | F80: 2481.312744 | G80: 2331.195557 | H80: 952.149536 | I80: 274.466644 | J80: 904.054443 | K80: 1162.212769 | L80: 1183.206177 | M80: 963.275208 | N80: 2094.436279 | O80: 650.612793 | P80: 1150.324707 | Q80: 407.386749 | R80: 1291.563829 | S80: 0.00216834
A81: ENSOARG00000000019 | B81: 1432.901489 | C81: 3539.866455 | D81: 1114.94458 | E81: 1007.587646 | F81: 820.091919 | G81: 904.975281 | H81: 1375.286377 | I81: 818.811523 | J81: 1066.680054 | K81: 1171.123779 | L81: 902.743958 | M81: 1061.615967 | N81: 931.564453 | O81: 1178.066772 | P81: 1038.283447 | Q81: 2129.856445 | R81: 1280.900009 | S81: 0.002150437
A82: ENSOARG00000002913 | B82: 1142.984985 | C82: 1160.176636 | D82: 1570.432617 | E82: 1473.195068 | F82: 1343.085938 | G82: 1221.591797 | H82: 1646.975952 | I82: 513.804626 | J82: 1611.018799 | K82: 599.163879 | L82: 1474.790161 | M82: 1652.274048 | N82: 1323.79541 | O82: 1470.53186 | P82: 1327.609375 | Q82: 830.835876 | R82: 1272.641689 | S82: 0.002136573
A83: ENSOARG00000003842 | B83: 923.184143 | C83: 486.139099 | D83: 1317.442383 | E83: 1384.991943 | F83: 1192.615356 | G83: 1368.693726 | H83: 1089.128662 | I83: 992.586792 | J83: 1569.659546 | K83: 1555.266113 | L83: 1453.335327 | M83: 1612.535034 | N83: 1681.911743 | O83: 1605.425537 | P83: 1432.161743 | Q83: 554.410889 | R83: 1263.718002 | S83: 0.002121591
A84: ENSOARG00000004726 | B84: 1090.413086 | C84: 1036.386841 | D84: 1049.440186 | E84: 1120.921753 | F84: 1535.757568 | G84: 1263.47583 | H84: 1122.971069 | I84: 1344.630127 | J84: 1172.009888 | K84: 1426.814209 | L84: 1352.576172 | M84: 1298.764648 | N84: 1295.993408 | O84: 1241.408203 | P84: 1151.512085 | Q84: 1084.85376 | R84: 1224.245552 | S84: 0.002055323
A85: ENSOARG00000013191 | B85: 1166.565186 | C85: 1103.915283 | D85: 1219.229248 | E85: 1115.737061 | F85: 1238.521973 | G85: 1192.426758 | H85: 1254.356201 | I85: 1054.271851 | J85: 1324.53772 | K85: 1110.149292 | L85: 1240.706177 | M85: 1135.71106 | N85: 1253.34729 | O85: 1291.324951 | P85: 1127.508911 | Q85: 1073.353149 | R85: 1181.353882 | S85: 0.001983315
A86: ENSOARG00000013269 | B86: 1695.454712 | C86: 374.40799 | D86: 1551.259644 | E86: 1679.64624 | F86: 1332.839966 | G86: 1261.046143 | H86: 1114.865112 | I86: 818.620972 | J86: 1505.115356 | K86: 1355.324097 | L86: 1200.213623 | M86: 1576.996826 | N86: 1069.162109 | O86: 1327.843384 | P86: 678.313416 | Q86: 359.85025 | R86: 1181.30999 | S86: 0.001983241
A87: ENSOARG00000015870 | B87: 809.119934 | C87: 1425.703125 | D87: 1155.735718 | E87: 1117.739746 | F87: 1252.095825 | G87: 1310.273926 | H87: 1519.454956 | I87: 845.108032 | J87: 937.831116 | K87: 500.899567 | L87: 1320.757935 | M87: 1233.302124 | N87: 1437.107788 | O87: 871.043091 | P87: 1478.078125 | Q87: 1546.329346 | R87: 1172.536272 | S87: 0.001968511
A88: ENSOARG00000018232 | B88: 950.569458 | C88: 551.819275 | D88: 870.612427 | E88: 1579.105347 | F88: 1234.573975 | G88: 1418.973999 | H88: 1266.64856 | I88: 758.22168 | J88: 1310.929565 | K88: 386.301056 | L88: 1720.012573 | M88: 891.919617 | N88: 1351.780151 | O88: 1297.675049 | P88: 1768.627441 | Q88: 501.305328 | R88: 1116.192219 | S88: 0.001873918
A89: ENSOARG00000018666 | B89: 1294.87207 | C89: 602.260986 | D89: 1174.64856 | E89: 1173.593506 | F89: 962.362305 | G89: 933.813293 | H89: 1072.214966 | I89: 1064.501587 | J89: 1658.75708 | K89: 1208.178711 | L89: 1281.449463 | M89: 1038.298218 | N89: 1101.81604 | O89: 1317.405151 | P89: 1209.205444 | Q89: 682.587036 | R89: 1110.997776 | S89: 0.001865197
A90: ENSOARG00000017938 | B90: 1004.702515 | C90: 1144.490967 | D90: 1159.775391 | E90: 1222.890503 | F90: 1180.3573 | G90: 1194.765503 | H90: 1518.57251 | I90: 479.609558 | J90: 1501.202271 | K90: 461.011749 | L90: 1026.724854 | M90: 1245.796509 | N90: 1362.809692 | O90: 1100.239136 | P90: 1181.727539 | Q90: 706.27594 | R90: 1093.184496 | S90: 0.001835291
A91: ENSOARG00000002493 | B91: 1068.839966 | C91: 935.636597 | D91: 935.590637 | E91: 657.056274 | F91: 1048.158447 | G91: 827.554504 | H91: 1130.210083 | I91: 1339.929932 | J91: 1154.469482 | K91: 1207.433594 | L91: 1097.598755 | M91: 1237.116943 | N91: 1118.760498 | O91: 786.040039 | P91: 1227.884644 | Q91: 1246.531616 | R91: 1063.675751 | S91: 0.001785751
A92: ENSOARG00000016963 | B92: 859.940125 | C92: 900.199463 | D92: 1026.895264 | E92: 1010.145874 | F92: 954.411987 | G92: 993.786011 | H92: 1128.292969 | I92: 1014.066711 | J92: 1149.729004 | K92: 1092.296631 | L92: 1344.406006 | M92: 855.167542 | N92: 1158.407837 | O92: 1250.897095 | P92: 1169.804199 | Q92: 984.02594 | R92: 1055.779541 | S92: 0.001772494
A93: ENSOARG00000003480 | B93: 1116.545166 | C93: 834.390198 | D93: 1138.527344 | E93: 1096.477417 | F93: 1029.08313 | G93: 1106.324219 | H93: 1157.49939 | I93: 948.628967 | J93: 1199.466919 | K93: 1009.336365 | L93: 1143.718872 | M93: 953.915527 | N93: 1055.607666 | O93: 1202.761475 | P93: 1031.476929 | Q93: 789.52948 | R93: 1050.830567 | S93: 0.001764186
A94: ENSOARG00000003055 | B94: 1057.418945 | C94: 1087.254639 | D94: 1168.32373 | E94: 1353.626709 | F94: 1003.071899 | G94: 947.99176 | H94: 1000.947327 | I94: 733.747559 | J94: 1070.702881 | K94: 657.163757 | L94: 1151.465332 | M94: 1029.219238 | N94: 1074.784058 | O94: 1222.326172 | P94: 971.0177 | Q94: 1160.365845 | R94: 1043.089222 | S94: 0.001751189
A95: ENSOARG00000019263 | B95: 797.380676 | C95: 816.84668 | D95: 651.574341 | E95: 1106.674561 | F95: 863.166016 | G95: 1037.100342 | H95: 1629.130127 | I95: 620.434082 | J95: 1073.360229 | K95: 438.952484 | L95: 1198.200562 | M95: 1394.818726 | N95: 1408.172119 | O95: 1453.991577 | P95: 1034.605957 | Q95: 877.472534 | R95: 1025.117563 | S95: 0.001721017
A96: ENSOARG00000007128 | B96: 791.471985 | C96: 1340.99646 | D96: 1144.084961 | E96: 1521.487183 | F96: 877.162292 | G96: 1244.765991 | H96: 1735.082642 | I96: 406.379608 | J96: 757.915955 | K96: 153.564896 | L96: 1107.127319 | M96: 989.046997 | N96: 1410.887939 | O96: 595.210999 | P96: 1108.451904 | Q96: 1023.444275 | R96: 1012.942588 | S96: 0.001700577
A97: ENSOARG00000000010 | B97: 785.249023 | C97: 2206.129395 | D97: 499.592255 | E97: 505.850098 | F97: 720.298584 | G97: 677.70282 | H97: 1216.239746 | I97: 645.119202 | J97: 928.689331 | K97: 827.176941 | L97: 747.465393 | M97: 700.338501 | N97: 606.353027 | O97: 899.818237 | P97: 768.634094 | Q97: 3306.039062 | R97: 1002.543482 | S97: 0.001683119
A98: ENSOARG00000014339 | B98: 1294.410278 | C98: 810.894165 | D98: 1080.730957 | E98: 921.329285 | F98: 869.480469 | G98: 852.205872 | H98: 933.67157 | I98: 616.267151 | J98: 1084.365845 | K98: 851.997803 | L98: 1044.572632 | M98: 1044.100708 | N98: 1256.233887 | O98: 1187.547363 | P98: 1162.05249 | Q98: 775.75116 | R98: 986.6007272 | S98: 0.001656353
A99: ENSOARG00000010582 | B99: 1003.530762 | C99: 748.026733 | D99: 966.58252 | E99: 971.18103 | F99: 878.585449 | G99: 1103.931152 | H99: 1148.135254 | I99: 804.314148 | J99: 1139.222046 | K99: 913.044495 | L99: 953.696289 | M99: 986.165405 | N99: 1163.400391 | O99: 1180.954712 | P99: 1015.302429 | Q99: 736.037903 | R99: 982.0069199 | S99: 0.001648641
A100: 1735 | B100: 1005.080505 | C100: 1596.731934 | D100: 396.276459 | E100: 571.556213 | F100: 1028.505249 | G100: 1010.678711 | H100: 895.195312 | I100: 870.706665 | J100: 738.186768 | K100: 1601.100952 | L100: 797.754944 | M100: 725.08374 | N100: 1097.74353 | O100: 385.305176 | P100: 987.911743 | Q100: 1886.273438 | R100: 974.6307087 | S100: 0.001636258
A101: ENSOARG00000005291 | B101: 1054.614624 | C101: 772.066711 | D101: 1062.063965 | E101: 767.433105 | F101: 1211.866211 | G101: 909.739301 | H101: 1143.302002 | I101: 847.319824 | J101: 879.650391 | K101: 1542.238892 | L101: 983.895691 | M101: 1102.148071 | N101: 799.431335 | O101: 919.030518 | P101: 896.546936 | Q101: 680.637939 | R101: 973.2490948 | S101: 0.001633938
A102: ENSOARG00000021045 | B102: 1020.331726 | C102: 774.956421 | D102: 1444.055664 | E102: 1226.083374 | F102: 914.819031 | G102: 1537.336548 | H102: 1444.789062 | I102: 336.226135 | J102: 1120.843994 | K102: 437.770477 | L102: 1315.563599 | M102: 500.069702 | N102: 683.361145 | O102: 1091.22168 | P102: 1039.963501 | Q102: 638.001099 | R102: 970.3370724 | S102: 0.001629049
A103: ENSOARG00000009286 | B103: 1033.965576 | C103: 521.994385 | D103: 470.844849 | E103: 849.334351 | F103: 1014.632507 | G103: 833.456787 | H103: 630.393738 | I103: 1856.92334 | J103: 779.310852 | K103: 2509.381348 | L103: 942.859863 | M103: 900.376526 | N103: 728.281677 | O103: 1122.591309 | P103: 656.858337 | Q103: 599.593323 | R103: 965.674923 | S103: 0.001621222
A104: ENSOARG00000013662 | B104: 726.224365 | C104: 930.218079 | D104: 1064.634399 | E104: 1188.952393 | F104: 962.447449 | G104: 903.657837 | H104: 834.945801 | I104: 606.671143 | J104: 1172.062378 | K104: 411.861938 | L104: 1050.190796 | M104: 1010.487427 | N104: 918.203552 | O104: 916.091797 | P104: 1374.782715 | Q104: 1185.160522 | R104: 953.5370369 | S104: 0.001600844
A105: ENSOARG00000018936 | B105: 1440.948486 | C105: 908.801514 | D105: 662.213257 | E105: 1284.21875 | F105: 704.609802 | G105: 797.467285 | H105: 1191.834229 | I105: 310.377014 | J105: 1378.54834 | K105: 212.777969 | L105: 1350.864258 | M105: 1202.413208 | N105: 845.046814 | O105: 882.933228 | P105: 1109.945801 | Q105: 899.574036 | R105: 948.9108744 | S105: 0.001593078
A106: ENSOARG00000021125 | B106: 987.891663 | C106: 1203.729126 | D106: 560.725342 | E106: 1429.29187 | F106: 953.324585 | G106: 973.291374 | H106: 1218.264526 | I106: 318.051453 | J106: 648.630493 | K106: 363.756531 | L106: 1094.979732 | M106: 1156.486694 | N106: 1103.639404 | O106: 1130.522718 | P106: 1153.255249 | Q106: 873.97467 | R106: 948.1134644 | S106: 0.001591739
A107: ENSOARG00000014232 | B107: 1052.848267 | C107: 931.348083 | D107: 845.484436 | E107: 795.4422 | F107: 1078.516479 | G107: 861.565918 | H107: 816.102051 | I107: 612.96405 | J107: 1003.669373 | K107: 707.70874 | L107: 961.302246 | M107: 990.25885 | N107: 892.382874 | O107: 1084.202271 | P107: 949.543518 | Q107: 971.582031 | R107: 909.6825867 | S107: 0.001527219
A108: ENSOARG00000011446 | B108: 754.53911 | C108: 938.362706 | D108: 820.725333 | E108: 810.594292 | F108: 802.529552 | G108: 864.73511 | H108: 1118.315258 | I108: 328.997325 | J108: 848.113295 | K108: 355.59856 | L108: 1282.007795 | M108: 1115.232648 | N108: 1228.764442 | O108: 1054.021698 | P108: 1176.762589 | Q108: 1003.435826 | R108: 906.4209712 | S108: 0.001521744
A109: ENSOARG00000012597 | B109: 564.149353 | C109: 743.034241 | D109: 607.058716 | E109: 1085.189575 | F109: 987.571594 | G109: 872.650085 | H109: 1251.656494 | I109: 456.107727 | J109: 907.455811 | K109: 417.665955 | L109: 1135.818481 | M109: 1230.900513 | N109: 1248.987793 | O109: 969.861694 | P109: 1046.452148 | Q109: 758.640198 | R109: 892.7000236 | S109: 0.001498708
A110: ENSOARG00000015292 | B110: 648.325867 | C110: 309.208374 | D110: 348.424316 | E110: 348.949097 | F110: 726.710938 | G110: 545.524719 | H110: 353.146301 | I110: 3571.656494 | J110: 376.770355 | K110: 4007.595947 | L110: 654.739502 | M110: 612.674744 | N110: 383.412598 | O110: 618.528259 | P110: 335.456909 | Q110: 433.000031 | R110: 892.1327782 | S110: 0.001497756
A111: 3356 | B111: 1731.866211 | C111: 324.60437 | D111: 90.933853 | E111: 253.464127 | F111: 1118.787842 | G111: 663.284302 | H111: 156.415787 | I111: 2544.06543 | J111: 290.186768 | K111: 3408.20752 | L111: 388.539032 | M111: 816.080017 | N111: 716.223267 | O111: 681.086792 | P111: 351.063873 | Q111: 678.328064 | R111: 888.3210784 | S111: 0.001491357
A112: ENSOARG00000009510 | B112: 890.063599 | C112: 792.261658 | D112: 806.168762 | E112: 734.890991 | F112: 1289.430054 | G112: 1030.959473 | H112: 724.680054 | I112: 1317.374023 | J112: 614.13385 | K112: 978.908203 | L112: 901.15509 | M112: 815.033997 | N112: 850.635559 | O112: 709.599365 | P112: 830.35791 | Q112: 898.16748 | R112: 886.4887543 | S112: 0.001488281
A113: ENSOARG00000008650 | B113: 770.707458 | C113: 749.173096 | D113: 918.575989 | E113: 971.456848 | F113: 706.274475 | G113: 1004.597839 | H113: 1448.553955 | I113: 314.060699 | J113: 1259.371216 | K113: 527.635681 | L113: 877.595886 | M113: 835.299194 | N113: 1035.71582 | O113: 1008.53772 | P113: 1104.439575 | Q113: 627.906799 | R113: 884.9938906 | S113: 0.001485771
A114: ENSOARG00000018336 | B114: 921.610901 | C114: 604.826111 | D114: 951.483276 | E114: 983.2854 | F114: 1035.4375 | G114: 1060.274658 | H114: 912.447144 | I114: 392.995056 | J114: 953.041565 | K114: 570.872864 | L114: 1060.255249 | M114: 1045.211426 | N114: 958.813599 | O114: 939.258484 | P114: 873.796753 | Q114: 664.121338 | R114: 870.4832078 | S114: 0.00146141
A115: ENSOARG00000003677 | B115: 908.644531 | C115: 614.974976 | D115: 777.531311 | E115: 826.457153 | F115: 784.566162 | G115: 827.848022 | H115: 882.771912 | I115: 741.139221 | J115: 1058.932373 | K115: 961.612305 | L115: 973.907104 | M115: 855.808411 | N115: 1028.459961 | O115: 1061.873901 | P115: 972.049316 | Q115: 606.132019 | R115: 867.6692924 | S115: 0.001456686

Sheet Table S9
A1: Table S9. 48 genes in the muscle accounted for approximately 50% of their respective total aligned reads
A2: ID | B2: M_01 | C2: M_02 | D2: M_03 | E2: M_04 | F2: M_05 | G2: M_06 | H2: M_07 | I2: M_08 | J2: M_09 | K2: M_10 | L2: M_11 | M2: M_12 | N2: M_13 | O2: M_14 | P2: M_15 | Q2: M_16 | R2: Average | S2: Persent | T2: SUM
A3: ENSOARG00000003044 | B3: 75919.59375 | C3: 61000.31641 | D3: 56376.54297 | E3: 52714.21094 | F3: 73444.97656 | G3: 67562.96094 | H3: 70923.94531 | I3: 56603.35938 | J3: 65391.20313 | K3: 58478.6875 | L3: 79408.89063 | M3: 65144.12891 | N3: 60429.10938 | O3: 58808.66406 | P3: 58455.01563 | Q3: 73069.01563 | R3: 64608.16382 | S3: 0.0808766742 | T3: 0.5001947686
A4: ENSOARG00000009785 | B4: 53520.46484 | C4: 32625.40625 | D4: 43727.21094 | E4: 29683.57422 | F4: 35902.24609 | G4: 35740.24609 | H4: 48455.73828 | I4: 40290.21094 | J4: 35912.19141 | K4: 49985.23438 | L4: 41980.49219 | M4: 43518.07031 | N4: 40101.29297 | O4: 39964.26563 | P4: 39830.59766 | Q4: 40510.55859 | R4: 40734.23755 | S4: 0.05099122873
A5: ENSOARG00000006071 | B5: 41186.26172 | C5: 29228.9043 | D5: 41267.54688 | E5: 29978.85547 | F5: 34484.32031 | G5: 31139.49609 | H5: 34631.64063 | I5: 38378.68359 | J5: 33289.65625 | K5: 34927.48828 | L5: 38051.06641 | M5: 42865.39844 | N5: 32421.43164 | O5: 47387.14844 | P5: 35186.87109 | Q5: 36330.69141 | R5: 36297.21631 | S5: 0.04543695354
A6: ENSOARG00000007894 | B6: 18892.28125 | C6: 14912.4502 | D6: 16871.96484 | E6: 13074.98145 | F6: 15301.21777 | G6: 11023.69043 | H6: 22298.06445 | I6: 19526.53711 | J6: 15422.80957 | K6: 19485.19727 | L6: 18940.5625 | M6: 20263.42969 | N6: 20063.48047 | O6: 17169.67188 | P6: 23082.84961 | Q6: 16677.16797 | R6: 17687.89728 | S6: 0.02214175765
A7: ENSOARG00000020797 | B7: 14998.24609 | C7: 13255.21484 | D7: 13224.35986 | E7: 15239.99072 | F7: 13995.70215 | G7: 14374.27734 | H7: 15242.60791 | I7: 17446.39453 | J7: 13337.27734 | K7: 18982.36035 | L7: 19655.25977 | M7: 16446.17139 | N7: 12785.73633 | O7: 18509.81348 | P7: 19707.11719 | Q7: 17152.69629 | R7: 15897.0766 | S7: 0.01990000348
A8: ENSOARG00000006566 | B8: 13100.63574 | C8: 13182.53223 | D8: 14736.21777 | E8: 13683.80273 | F8: 11253.39746 | G8: 11363.66211 | H8: 13131.37695 | I8: 13196.46484 | J8: 11184.16113 | K8: 12771.31543 | L8: 15253.08398 | M8: 12189.60254 | N8: 15996.65234 | O8: 16567.36328 | P8: 16073.50586 | Q8: 12666.26758 | R8: 13521.87762 | S8: 0.01692672298
A9: ENSOARG00000007617 | B9: 10847.24414 | C9: 15158.21777 | D9: 14772.89453 | E9: 16448.51758 | F9: 9088.677734 | G9: 11253.63086 | H9: 12271.51953 | I9: 12718.32227 | J9: 8911.399414 | K9: 10522.57813 | L9: 11669.97852 | M9: 8463.550781 | N9: 15578.88281 | O9: 13443.15039 | P9: 12136.31445 | Q9: 9419.185547 | R9: 12044.00403 | S9: 0.01507671681
A10: ENSOARG00000011889 | B10: 14447.08932 | C10: 11685.25929 | D10: 15197.97966 | E10: 9169.178123 | F10: 11943.93105 | G10: 9884.487324 | H10: 13536.31924 | I10: 10319.56117 | J10: 9563.969833 | K10: 9957.911335 | L10: 15320.47609 | M10: 10918.63825 | N10: 7857.959919 | O10: 8422.566902 | P10: 8346.682907 | Q10: 9737.314575 | R10: 11019.33281 | S10: 0.01379403061
A11: ENSOARG00000018639 | B11: 11469.95508 | C11: 12402.00684 | D11: 12116.78516 | E11: 13512.88379 | F11: 11524.44922 | G11: 9426.949219 | H11: 8239.819336 | I11: 7103.099609 | J11: 11747.99902 | K11: 6630.769531 | L11: 9233.083984 | M11: 10532.20996 | N11: 10870.13672 | O11: 9465.181641 | P11: 11156.53418 | Q11: 9926.699219 | R11: 10334.91016 | S11: 0.01293726848
A12: ENSOARG00000003852 | B12: 10593.50195 | C12: 11043.13867 | D12: 12203.82617 | E12: 10979.7793 | F12: 7579.466309 | G12: 7289.593262 | H12: 10552.8584 | I12: 11937.54004 | J12: 9086.947266 | K12: 9693.59668 | L12: 10375.09863 | M12: 10724.82031 | N12: 9826.353516 | O12: 11218.4082 | P12: 12050.59473 | Q12: 9652.808594 | R12: 10300.52075 | S12: 0.01289421973
A13: ENSOARG00000019190 | B13: 9228.912109 | C13: 13043.49512 | D13: 9517.145508 | E13: 10061.92188 | F13: 10540.76172 | G13: 8900.915039 | H13: 10228.50586 | I13: 8953.624023 | J13: 9820.220703 | K13: 9213.44043 | L13: 10703.85938 | M13: 13938.90625 | N13: 9555.443359 | O13: 10097.84277 | P13: 8333.083984 | Q13: 9903.513672 | R13: 10127.59949 | S13: 0.01267775643
A14: ENSOARG00000000035 | B14: 6939.223145 | C14: 8547.699219 | D14: 6034.740234 | E14: 7642.51416 | F14: 11310.3125 | G14: 10053.5293 | H14: 9014.823242 | I14: 8517.305664 | J14: 10744.68457 | K14: 8594.799805 | L14: 7595.639648 | M14: 10622.43262 | N14: 8740.578125 | O14: 9376.738281 | P14: 8478.707031 | Q14: 8517.467773 | R14: 8795.699707 | S14: 0.01101048068
A15: ENSOARG00000013633 | B15: 9301.845703 | C15: 6278.75293 | D15: 7957.144531 | E15: 6304.685059 | F15: 7811.86084 | G15: 6025.577637 | H15: 8279.114258 | I15: 7220.272949 | J15: 7032.809082 | K15: 6684.642578 | L15: 6646.55957 | M15: 8155.373047 | N15: 7563.949707 | O15: 8704.94043 | P15: 7587.322266 | Q15: 6707.124023 | R15: 7391.373413 | S15: 0.009252541228
A16: ENSOARG00000017779 | B16: 10275.8291 | C16: 7931.958984 | D16: 8150.680664 | E16: 5358.654297 | F16: 7833.793945 | G16: 11846.91895 | H16: 4863.972656 | I16: 4591.45166 | J16: 5827.549316 | K16: 3204.581543 | L16: 8512.361328 | M16: 3601.165283 | N16: 5879.615234 | O16: 8723.493164 | P16: 5447.126953 | Q16: 5645.052246 | R16: 6730.887833 | S16: 0.008425743592
A17: ENSOARG00000005506 | B17: 7271.385254 | C17: 6205.227539 | D17: 5645.333496 | E17: 4865.98584 | F17: 6016.95752 | G17: 4159.547363 | H17: 7871.580078 | I17: 7166.117188 | J17: 6970.581543 | K17: 6811.265137 | L17: 7465.660645 | M17: 7831.447266 | N17: 6707.499512 | O17: 6965.974121 | P17: 7444.254883 | Q17: 6992.597168 | R17: 6649.46341 | S17: 0.008323816279
A18: ENSOARG00000000016 | B18: 5319.900879 | C18: 8475.77832 | D18: 4486.54541 | E18: 5800.658691 | F18: 8468.768555 | G18: 7465.923828 | H18: 5308.540039 | I18: 6199.254883 | J18: 8684.816406 | K18: 6998.307129 | L18: 5127.845215 | M18: 8803.243164 | N18: 6588.470703 | O18: 7081.137207 | P18: 5567.959961 | Q18: 5940.65918 | R18: 6644.863098 | S18: 0.008318057597
A19: ENSOARG00000000022 | B19: 4895.269531 | C19: 6934.277344 | D19: 4497.662598 | E19: 6367.161133 | F19: 7909.95459 | G19: 7052.585938 | H19: 6274.26709 | I19: 6424.706543 | J19: 7586.046387 | K19: 7003.318359 | L19: 5438.487305 | M19: 8037.135742 | N19: 7666.286621 | O19: 7129.454102 | P19: 5183.091797 | Q19: 5927.336426 | R19: 6520.440094 | S19: 0.008162304544
A20: 4553 | B20: 5451.429138 | C20: 8011.1326 | D20: 5358.431884 | E20: 6653.923276 | F20: 8506.063565 | G20: 6334.361091 | H20: 5542.262215 | I20: 5894.239194 | J20: 7037.575196 | K20: 6867.393623 | L20: 4848.177255 | M20: 8425.337085 | N20: 7029.274078 | O20: 6886.070912 | P20: 4504.005366 | Q20: 5708.877807 | R20: 6441.159643 | S20: 0.00806306106
A21: ENSOARG00000007876 | B21: 6361.986816 | C21: 4293.360352 | D21: 7564.3125 | E21: 4871.909668 | F21: 4854.04248 | G21: 5038.90918 | H21: 6150.731934 | I21: 6241.702148 | J21: 4646.538086 | K21: 7084.068848 | L21: 5659.17041 | M21: 5469.968262 | N21: 5580.972656 | O21: 7127.628906 | P21: 5915.394531 | Q21: 5498.475098 | R21: 5772.448242 | S21: 0.007225966321
A22: ENSOARG00000016955 | B22: 4155.648926 | C22: 5604.696289 | D22: 5335.616699 | E22: 6772.25293 | F22: 4658.968262 | G22: 3637.546387 | H22: 5068.014648 | I22: 4498.71875 | J22: 4958.197754 | K22: 4945.72168 | L22: 6289.953125 | M22: 5731.783691 | N22: 7496.208984 | O22: 7457.536133 | P22: 6545.252441 | Q22: 4952.800293 | R22: 5506.807312 | S22: 0.006893436286
A23: ENSOARG00000004143 | B23: 4987.340332 | C23: 3969.108154 | D23: 4726.477051 | E23: 3844.196777 | F23: 4537.293457 | G23: 3682.20166 | H23: 6849.90918 | I23: 5343.625977 | J23: 5433.375488 | K23: 5542.769043 | L23: 6268.415039 | M23: 5896.189453 | N23: 5433.73584 | O23: 6007.182617 | P23: 7203.479492 | Q23: 5902.301758 | R23: 5351.725082 | S23: 0.006699303931
A24: ENSOARG00000000023 | B24: 4511.544434 | C24: 5117.661133 | D24: 4502.734375 | E24: 5682.255371 | F24: 6545.649902 | G24: 4905.262207 | H24: 4840.856445 | I24: 4993.224121 | J24: 5647.84082 | K24: 5257.046875 | L24: 4205.599609 | M24: 6345.174805 | N24: 5825.460449 | O24: 5736.147461 | P24: 4718.376465 | Q24: 4566.826172 | R24: 5212.60379 | S24: 0.006525151522
A25: ENSOARG00000000021 | B25: 3346.657959 | C25: 6314.124023 | D25: 3404.984619 | E25: 4395.049805 | F25: 6797.256348 | G25: 6326.537598 | H25: 4981.112793 | I25: 4770.197266 | J25: 5527.787598 | K25: 5949.662598 | L25: 4081.697266 | M25: 6117.040039 | N25: 5501.219727 | O25: 4726.59082 | P25: 4221.490723 | Q25: 4959.333008 | R25: 5088.796387 | S25: 0.006370169079
A26: ENSOARG00000017679 | B26: 4228.595215 | C26: 4896.136719 | D26: 4393.223145 | E26: 6671.100098 | F26: 4967.289551 | G26: 4404.696289 | H26: 6514.787598 | I26: 4555.618652 | J26: 5813.913574 | K26: 4997.708984 | L26: 4970.144043 | M26: 3814.066162 | N26: 5748.322754 | O26: 4517.280762 | P26: 6307.874023 | Q26: 3558.290283 | R26: 5022.440491 | S26: 0.006287104589
A27: ENSOARG00000018666 | B27: 5669.63916 | C27: 5035.523438 | D27: 6872.782715 | E27: 6100.508301 | F27: 3796.02002 | G27: 3502.828857 | H27: 4581.986328 | I27: 4952.387207 | J27: 4151.010254 | K27: 4470.400879 | L27: 3985.672363 | M27: 3663.438477 | N27: 6082.320312 | O27: 5589.476562 | P27: 5391.201172 | Q27: 4290.964844 | R27: 4883.510056 | S27: 0.006113191095
A28: ENSOARG00000004312 | B28: 6474.970215 | C28: 7348.798828 | D28: 6720.453613 | E28: 4166.812988 | F28: 4630.862305 | G28: 6847.814453 | H28: 3594.23291 | I28: 3140.434082 | J28: 3393.67041 | K28: 2700.294189 | L28: 4298.127441 | M28: 2799.045898 | N28: 4348.804199 | O28: 6013.32373 | P28: 3584.335205 | Q28: 3856.685303 | R28: 4619.916611 | S28: 0.005783224107
A29: 17474 | B29: 3514.36499 | C29: 6079.484863 | D29: 2870.628174 | E29: 3510.490479 | F29: 5732.582031 | G29: 4692.361816 | H29: 3334.272949 | I29: 4040.796387 | J29: 5716.879395 | K29: 4582.313477 | L29: 3105.431641 | M29: 5924.631348 | N29: 4056.479492 | O29: 4408.800781 | P29: 3230.04541 | Q29: 4016.030029 | R29: 4300.974579 | S29: 0.005383971609
A30: ENSOARG00000000028 | B30: 3283.858154 | C30: 4723.83252 | D30: 2823.006836 | E30: 4122.522949 | F30: 5188.079102 | G30: 4640.337891 | H30: 4111.174805 | I30: 4314.567871 | J30: 4925.492676 | K30: 5778.346191 | L30: 3531.608643 | M30: 4452.29248 | N30: 4476.175293 | O30: 4145.89502 | P30: 3898.168701 | Q30: 3751.018555 | R30: 4260.398605 | S30: 0.005333178496
A31: ENSOARG00000020185 | B31: 5172.624512 | C31: 3458.494141 | D31: 5977.726562 | E31: 4466.539062 | F31: 4138.719238 | G31: 4167.257324 | H31: 4447.281738 | I31: 4418.728516 | J31: 3324.006592 | K31: 4267.065918 | L31: 4050.230469 | M31: 2806.793945 | N31: 4191.50293 | O31: 4301.862305 | P31: 4144.869141 | Q31: 3386.62915 | R31: 4170.020721 | S31: 0.005220043216
A32: ENSOARG00000010995 | B32: 4055.736328 | C32: 4164.039551 | D32: 4643.455078 | E32: 5094.273926 | F32: 2707.106934 | G32: 3083.958252 | H32: 3332.0979 | I32: 3131.814697 | J32: 3151.636475 | K32: 2899.369629 | L32: 3746.165283 | M32: 3006.873779 | N32: 4590.661621 | O32: 3924.616699 | P32: 4295.341309 | Q32: 3269.969971 | R32: 3693.569839 | S32: 0.004623620714
A33: ENSOARG00000008997 | B33: 3772.046631 | C33: 2496.097412 | D33: 3082.743164 | E33: 2722.939209 | F33: 3389.804688 | G33: 3265.177002 | H33: 3695.098389 | I33: 4168.240234 | J33: 3538.383545 | K33: 4771.007812 | L33: 4109.431152 | M33: 3656.862793 | N33: 2752.134033 | O33: 4067.858398 | P33: 4841.601074 | Q33: 4185.720703 | R33: 3657.19664 | S33: 0.004578088644
A34: ENSOARG00000013116 | B34: 5442.431152 | C34: 5254.813477 | D34: 2215.993164 | E34: 4159.120117 | F34: 3692.27417 | G34: 5322.569824 | H34: 1595.318848 | I34: 2165.008301 | J34: 4159.715332 | K34: 1554.471802 | L34: 4041.464111 | M34: 3168.937012 | N34: 1583.771729 | O34: 2591.505127 | P34: 2224.861572 | Q34: 4328.886719 | R34: 3343.821404 | S34: 0.004185804676
A35: ENSOARG00000016963 | B35: 3684.462891 | C35: 4679.248047 | D35: 4592.164551 | E35: 4383.086914 | F35: 3228.453369 | G35: 3337.331299 | H35: 3075.175537 | I35: 3098.482666 | J35: 2942.763672 | K35: 2378.103271 | L35: 2838.810059 | M35: 2108.142334 | N35: 3484.768799 | O35: 3121.123291 | P35: 3763.330078 | Q35: 2723.814209 | R35: 3339.953812 | S35: 0.004180963214
A36: ENSOARG00000011052 | B36: 3944.061523 | C36: 3463.931396 | D36: 4209.937012 | E36: 3936.587891 | F36: 2973.36499 | G36: 3334.288086 | H36: 3179.091797 | I36: 2993.194336 | J36: 2988.725342 | K36: 2779.80542 | L36: 3477.326416 | M36: 2431.817383 | N36: 3935.444092 | O36: 3156.443359 | P36: 3276.873291 | Q36: 3004.970215 | R36: 3317.866409 | S36: 0.004153314144
A37: ENSOARG00000013191 | B37: 3387.978027 | C37: 3977.121094 | D37: 3519.254639 | E37: 4063.063477 | F37: 2884.93457 | G37: 3195.810303 | H37: 3189.600098 | I37: 3298.362793 | J37: 2627.188721 | K37: 2555.342041 | L37: 2753.606934 | M37: 2873.944092 | N37: 3842.0896 | O37: 4084.795654 | P37: 3608.009521 | Q37: 2708.548828 | R37: 3285.60315 | S37: 0.004112926908
A38: ENSOARG00000016096 | B38: 3271.501221 | C38: 4130.48877 | D38: 4150.590332 | E38: 3721.475098 | F38: 2557.803467 | G38: 2598.487549 | H38: 3116.71167 | I38: 2764.026611 | J38: 2863.013672 | K38: 2906.062256 | L38: 2583.209229 | M38: 2767.346191 | N38: 3813.425781 | O38: 3531.687012 | P38: 3472.462402 | Q38: 2550.693848 | R38: 3174.936569 | S38: 0.003974394184
A39: ENSOARG00000011575 | B39: 3745.116455 | C39: 3528.681885 | D39: 3879.101318 | E39: 2605.945557 | F39: 2740.474365 | G39: 3313.858887 | H39: 2205.387451 | I39: 3499.789062 | J39: 2760.174316 | K39: 2424.907959 | L39: 3361.69751 | M39: 2082.408691 | N39: 2241.279053 | O39: 3676.312744 | P39: 4440.609863 | Q39: 2613.843994 | R39: 3069.974319 | S39: 0.003843002155
A40: ENSOARG00000000033 | B40: 1602.561768 | C40: 2920.200928 | D40: 1520.409058 | E40: 2382.750732 | F40: 4613.487793 | G40: 3901.819092 | H40: 2410.713867 | I40: 2945.468506 | J40: 3221.407471 | K40: 3156.780518 | L40: 2308.283691 | M40: 3566.781494 | N40: 2910.910156 | O40: 3363.799561 | P40: 2658.789795 | Q40: 2728.326416 | R40: 2888.280678 | S40: 0.003615557564
A41: ENSOARG00000014339 | B41: 2388.140625 | C41: 2400.359131 | D41: 2441.199219 | E41: 3740.397705 | F41: 2743.537842 | G41: 2451.102783 | H41: 3294.386475 | I41: 2514.227783 | J41: 3210.740723 | K41: 2668.06665 | L41: 2817.580811 | M41: 2158.21167 | N41: 3371.973145 | O41: 2705.185303 | P41: 3512.432861 | Q41: 1895.890625 | R41: 2769.589584 | S41: 0.003466979732
A42: ENSOARG00000020919 | B42: 2780.765137 | C42: 3380.536377 | D42: 3875.649902 | E42: 2956.271973 | F42: 2117.163086 | G42: 2622.91748 | H42: 3390.102051 | I42: 2989.71582 | J42: 2280.194336 | K42: 2950.242676 | L42: 2337.57959 | M42: 1918.361938 | N42: 2736.708252 | O42: 2742.2229 | P42: 2797.641602 | Q42: 2009.508179 | R42: 2742.848831 | S42: 0.003433505585
A43: ENSOARG00000009703 | B43: 1991.80957 | C43: 3509.056396 | D43: 3106.914062 | E43: 3635.321289 | F43: 2110.918213 | G43: 2492.348633 | H43: 2546.236328 | I43: 2403.371582 | J43: 1778.611328 | K43: 2432.693115 | L43: 1965.801147 | M43: 2278.37915 | N43: 2804.817627 | O43: 3628.790527 | P43: 2069.942871 | Q43: 2127.835693 | R43: 2555.177971 | S43: 0.003198578694
A44: ENSOARG00000011805 | B44: 2615.794434 | C44: 3296.878174 | D44: 2912.795898 | E44: 3403.007812 | F44: 2232.888428 | G44: 2442.724854 | H44: 2230.034912 | I44: 2390.114746 | J44: 2109.587402 | K44: 1869.481079 | L44: 2239.091309 | M44: 1885.38623 | N44: 2940.096436 | O44: 2353.593506 | P44: 2774.876465 | Q44: 2270.560059 | R44: 2497.931984 | S44: 0.003126918013
A45: ENSOARG00000009602 | B45: 1985.250428 | C45: 2107.096298 | D45: 2085.176697 | E45: 1682.013428 | F45: 2189.158936 | G45: 1742.077168 | H45: 2577.540283 | I45: 2555.114369 | J45: 2255.546875 | K45: 2653.957581 | L45: 2833.741711 | M45: 2627.079377 | N45: 1935.91333 | O45: 2943.822326 | P45: 2187.398193 | Q45: 2525.438049 | R45: 2305.395316 | S45: 0.002885900091
A46: ENSOARG00000011503 | B46: 2520.94873 | C46: 1928.351685 | D46: 2384.812012 | E46: 2054.471191 | F46: 2527.703857 | G46: 2140.502197 | H46: 2269.012939 | I46: 2355.838867 | J46: 2301.639404 | K46: 1609.335083 | L46: 2106.388428 | M46: 2693.855469 | N46: 2545.830566 | O46: 2505.645508 | P46: 2221.081055 | Q46: 2092.924561 | R46: 2266.146347 | S46: 0.002836768126
A47: ENSOARG00000013272 | B47: 2416.919678 | C47: 2424.256592 | D47: 2434.464111 | E47: 2574.213379 | F47: 2165.716064 | G47: 2106.607422 | H47: 2101.392334 | I47: 2499.493408 | J47: 1636.496826 | K47: 1941.827026 | L47: 1839.613647 | M47: 1935.334595 | N47: 2776.885742 | O47: 2951.996094 | P47: 2327.483643 | Q47: 1700.530396 | R47: 2239.576935 | S47: 0.002803508464
A48: ENSOARG00000018519 | B48: 2149.862305 | C48: 2861.016846 | D48: 2717.650146 | E48: 2995.906494 | F48: 1872.338379 | G48: 2087.369141 | H48: 1912.093384 | I48: 2172.885986 | J48: 1731.783081 | K48: 1727.861328 | L48: 1787.836304 | M48: 1851.713135 | N48: 2469.142334 | O48: 2914.852539 | P48: 1952.48584 | Q48: 1769.819336 | R48: 2185.913536 | S48: 0.002736332476
A49: ENSOARG00000003480 | B49: 2132.693604 | C49: 2964.002197 | D49: 2220.984863 | E49: 2478.942383 | F49: 2096.923828 | G49: 2358.282959 | H49: 1973.796997 | I49: 2554.268555 | J49: 1620.133789 | K49: 1996.598999 | L49: 1725.69104 | M49: 1816.62085 | N49: 2531.299072 | O49: 2509.351074 | P49: 2008.191406 | Q49: 1667.852783 | R49: 2165.97715 | S49: 0.002711376054
A50: ENSOARG00000001823 | B50: 2370.445557 | C50: 3435.05542 | D50: 2764.677246 | E50: 2121.480469 | F50: 2476.629395 | G50: 3489.864258 | H50: 1386.218872 | I50: 1484.747192 | J50: 2406.486084 | K50: 1131.420044 | L50: 2308.743408 | M50: 1157.836914 | N50: 2243.0979 | O50: 2161.072021 | P50: 1347.718262 | Q50: 2009.384033 | R50: 2143.429817 | S50: 0.002683151242

Sheet Table S10
A1: Table S10. Top10 Gene expression in rumen epithelium, liver, and muscle
A2: Organ Tissue | B2: ID | C2: Gene Name | D2: SYMBOL | E2: 01 | F2: 02 | G2: 03 | H2: 04 | I2: 05 | J2: 06 | K2: 07 | L2: 08 | M2: 09 | N2: 10 | O2: 11 | P2: 12 | Q2: 13 | R2: 14 | S2: 15 | T2: 16 | U2: AVE
A3: Rumen epithelium | B3: ENSOARG00000000016 | C3: cytochrome c oxidase subunit I | D3: COX1 | E3: 28949.10742 | F3: 24158.35742 | G3: 23866.16797 | H3: 28304.09961 | I3: 23962.0332 | J3: 19503.51953 | K3: 18758.73047 | L3: 21935.50781 | M3: 28360.92773 | N3: 29109.13672 | O3: 24632.00391 | P3: 23630.44922 | Q3: 26499.44336 | R3: 20483.26953 | S3: 29072.04883 | T3: 17020.40039 | U3: =AVERAGE(E3:T3) -> 24265.3252
B4: ENSOARG00000000035 | C4: cytochrome b | D4: CYTB | E4: 7347.454102 | F4: 8831.484375 | G4: 8984.319336 | H4: 7837.501953 | I4: 5731.567871 | J4: 7103.378418 | K4: 10336.91602 | L4: 11534.40527 | M4: 10546.56641 | N4: 9057.227539 | O4: 12055.44727 | P4: 14032.73633 | Q4: 12278.66309 | R4: 11710.36426 | S4: 12713.5332 | T4: 10690.89258 | U4: 10049.52863
B5: ENSOARG00000013283 | C5: W5PUV4 | D5: CA1 | E5: 10104.84863 | F5: 11007.20606 | G5: 6802.97998 | H5: 8903.682617 | I5: 8021.969727 | J5: 10593.20996 | K5: 8724.926758 | L5: 7009.411133 | M5: 10752.80859 | N5: 5449.131348 | O5: 7035.477539 | P5: 6929.025879 | Q5: 9847.703125 | R5: 11963.94629 | S5: 5337.600098 | T5: 5908.630371 | U5: 8399.534882
B6: ENSOARG00000000023 | C6: cytochrome c oxidase subunit III | D6: COX3 | E6: 7764.306641 | F6: 8212.976562 | G6: 7506.792969 | H6: 9826.911133 | I6: 7208.03125 | J6: 4663.986816 | K6: 7059.211426 | L6: 8713.53125 | M6: 8025.046875 | N6: 9330.524414 | O6: 8323.125 | P6: 7903.999512 | Q6: 9582.211914 | R6: 7222.11084 | S6: 7762.678711 | T6: 5907.595215 | U6: 7813.315033
B7: ENSOARG00000013191 | C7: ribosomal protein S11 | D7: RPS11 | E7: 9002.678711 | F7: 7592.578125 | G7: 11311.8916 | H7: 6109.571289 | I7: 8264.890625 | J7: 11139.58887 | K7: 5865.505859 | L7: 10316.36816 | M7: 8518.547852 | N7: 7418.055664 | O7: 6835.007812 | P7: 6581.236328 | Q7: 6237.111816 | R7: 5973.23877 | S7: 5870.945312 | T7: 5285.96582 | U7: 7645.198913
B8: ENSOARG00000016963 | C8: ribosomal protein S2 | D8: RPS2 | E8: 8754.066406 | F8: 7451.369629 | G8: 8114.008301 | H8: 5233.542969 | I8: 6437.241211 | J8: 10132.9834 | K8: 6548.705566 | L8: 7116.010742 | M8: 7627.955566 | N8: 5838.378906 | O8: 6761.555176 | P8: 6900.073242 | Q8: 8005.500977 | R8: 7609.014648 | S8: 6564.560547 | T8: 6356.440918 | U8: 7215.713013
B9: ENSOARG00000000022 | C9: ATP synthase F0 subunit 6 | D9: ATP6 | E9: 5046.675293 | F9: 5729.937988 | G9: 4611.527344 | H9: 7535.871094 | I9: 5631.063965 | J9: 5552.603516 | K9: 6420.724609 | L9: 6072.196289 | M9: 6226.384766 | N9: 6727.624512 | O9: 9175.054688 | P9: 10875.16602 | Q9: 10723.50195 | R9: 7759.654785 | S9: 7251.583496 | T9: 6413.76123 | U9: 6984.583222
B10: ENSOARG00000017272 | C10: keratin 17 | D10: KRT17 | E10: 6011.396973 | F10: 7005.341309 | G10: 7328.437012 | H10: 7967.861328 | I10: 5554.554199 | J10: 5818.594238 | K10: 6714.652344 | L10: 5085.670898 | M10: 5638.154785 | N10: 7431.682617 | O10: 6457.662109 | P10: 6045.172363 | Q10: 6704.031738 | R10: 7631.647949 | S10: 6710.427734 | T10: 6719.738281 | U10: 6551.564117
B11: ENSOARG00000001136 | C11: ribosomal protein S8 | D11: RPS8 | E11: 6493.807129 | F11: 5969.326172 | G11: 8245.347656 | H11: 4189.111816 | I11: 5266.734375 | J11: 8347.979492 | K11: 4483.337891 | L11: 6456.893066 | M11: 6903.731445 | N11: 5395.32373 | O11: 4807.381348 | P11: 4889.604004 | Q11: 4794.93457 | R11: 4566.117676 | S11: 4490.937012 | T11: 4496.041504 | U11: 5612.288055
B12: ENSOARG00000000021 | C12: ATP synthase F0 subunit 8 | D12: ATP8 | E12: 4650.447266 | F12: 4421.759766 | G12: 3966.884033 | H12: 5656.435547 | I12: 3218.53125 | J12: 4719.673828 | K12: 5196.36084 | L12: 3926.880127 | M12: 5295.708008 | N12: 4645.654297 | O12: 7084.166992 | P12: 8156.806152 | Q12: 8403.708984 | R12: 7072.663086 | S12: 6331.816895 | T12: 5290.936035 | U12: 5502.402069
A13: Liver | B13: ENSOARG00000013782 | C13: albumin | D13: ALB | E13: 17599.27539 | F13: 29120.24023 | G13: 22828.83008 | H13: 20001.96875 | I13: 21771.59766 | J13: 20644.74023 | K13: 20159.53125 | L13: 10062.54785 | M13: 22215.22852 | N13: 3595.581055 | O13: 22016.72656 | P13: 19844.30664 | Q13: 21183.75586 | R13: 16860.20508 | S13: 23473.7207 | T13: 24150.09375 | U13: 19720.52185
B14: ENSOARG00000020528 | C14: alpha 2-HS glycoprotein | D14: AHSG | E14: 10186.54492 | F14: 7707.702148 | G14: 12070.875 | H14: 11767.04688 | I14: 8141.695312 | J14: 10310.6416 | K14: 9270.051758 | L14: 4431.777344 | M14: 10421.93164 | N14: 4082.835205 | O14: 9644.074219 | P14: 8380.859375 | Q14: 9504.723633 | R14: 10579.23145 | S14: 10272.47656 | T14: 6193.194824 | U14: 8935.353867
B15: ENSOARG00000000016 | C15: cytochrome c oxidase subunit I | D15: COX1 | E15: 6516.186523 | F15: 15534.97852 | G15: 6744.06543 | H15: 5660.946289 | I15: 5393.508789 | J15: 6672.967285 | K15: 7034.96875 | L15: 5070.85791 | M15: 6407.459961 | N15: 5488.308594 | O15: 6783.175293 | P15: 5264.953125 | Q15: 5647.320801 | R15: 7485.507812 | S15: 7865.080078 | T15: 15843.27148 | U15: 7463.34729
B16: ENSOARG00000003744 | C16: haptoglobin | D16: LOC101102413 | E16: 9439.18457 | F16: 162.086105 | G16: 591.178894 | H16: 129.568314 | I16: 8743.632812 | J16: 2546.213623 | K16: 1020.877686 | L16: 37874.1875 | M16: 522.523499 | N16: 43388.60547 | O16: 2484.103516 | P16: 2785.722412 | Q16: 1499.890259 | R16: 3285.366211 | S16: 660.476135 | T16: 2005.064453 | U16: 7321.167591
B17: ENSOARG00000000022 | C17: ATP synthase F0 subunit 6 | D17: ATP6 | E17: 6362.299316 | F17: 14658.14844 | G17: 5279.387695 | H17: 4599.904785 | I17: 4957.97998 | J17: 5279.348145 | K17: 7593.015625 | L17: 4215.023438 | M17: 5519.173828 | N17: 4733.824219 | O17: 5269.029297 | P17: 4803.438477 | Q17: 7039.948242 | R17: 5871.759277 | S17: 5136.061035 | T17: 17974.94727 | U17: 6830.830567
B18: ENSOARG00000009808 | C18: apolipoprotein A2 | D18: APOA2 | E18: 7939.457031 | F18: 10290.34277 | G18: 6561.001465 | H18: 7827.52832 | I18: 5638.282227 | J18: 5513.529785 | K18: 5898.599121 | L18: 2170.151123 | M18: 9817.838867 | N18: 3354.79541 | O18: 6827.67041 | P18: 6845.083496 | Q18: 8400.019531 | R18: 5900.8125 | S18: 5716.950684 | T18: 5685.636719 | U18: 6524.231216
B19: ENSOARG00000003236 | C19: retinol binding protein 4 | D19: RBP4 | E19: 6296.286133 | F19: 7627.145508 | G19: 5456.867676 | H19: 6744.50293 | I19: 5642.596191 | J19: 6025.995117 | K19: 6734.810547 | L19: 3845.546387 | M19: 7547.51709 | N19: 4544.967285 | O19: 6664.317383 | P19: 6110.10791 | Q19: 8749.915039 | R19: 6983.05127 | S19: 6019.244141 | T19: 7102.75 | U19: 6380.976288
B20: ENSOARG00000000035 | C20: cytochrome b | D20: CYTB | E20: 6729.208008 | F20: 13048.53711 | G20: 5706.283691 | H20: 4222.207031 | I20: 4003.086182 | J20: 5809.215332 | K20: 7364.848145 | L20: 4217.557617 | M20: 4743.007324 | N20: 6809.975098 | O20: 4697.762207 | P20: 4251.029297 | Q20: 4308.962402 | R20: 6156.211914 | S20: 5307.531738 | T20: 13647.16504 | U20: 6313.911759
B21: ENSOARG00000006134 | C21: alpha-1-microglobulin/bikunin precursor | D21: AMBP | E21: 6256.85791 | F21: 4037.386475 | G21: 6563.48291 | H21: 7256.533691 | I21: 5693.317383 | J21: 7455.459961 | K21: 7027.888672 | L21: 4648.938965 | M21: 7119.223145 | N21: 4521.371094 | O21: 6312.220215 | P21: 7651.882812 | Q21: 6969.205566 | R21: 7100.523926 | S21: 6861.299316 | T21: 4018.63208 | U21: 6218.389008
B22: ENSOARG00000008456 | C22: serotransferrin | D22: TF | E22: 4549.928223 | F22: 7271.990234 | G22: 7904.863281 | H22: 7463.491211 | I22: 7628.578613 | J22: 6716.853516 | K22: 5751.691895 | L22: 4115.229004 | M22: 5422.028809 | N22: 5108.466309 | O22: 6196.370117 | P22: 6378.444336 | Q22: 6038.563965 | R22: 6037.924805 | S22: 5656.125 | T22: 6022.022461 | U22: 6141.410736
A23: Muscle | B23: ENSOARG00000003044 | C23: actin alpha 1, skeletal muscle | D23: ACTA1 | E23: 75919.59375 | F23: 61000.31641 | G23: 56376.54297 | H23: 52714.21094 | I23: 73444.97656 | J23: 67562.96094 | K23: 70923.94531 | L23: 56603.35938 | M23: 65391.20313 | N23: 58478.6875 | O23: 79408.89063 | P23: 65144.12891 | Q23: 60429.10938 | R23: 58808.66406 | S23: 58455.01563 | T23: 73069.01563 | U23: 64608.16382
B24: ENSOARG00000009785 | C24: creatine kinase, M-type | D24: CKM | E24: 53520.46484 | F24: 32625.40625 | G24: 43727.21094 | H24: 29683.57422 | I24: 35902.24609 | J24: 35740.24609 | K24: 48455.73828 | L24: 40290.21094 | M24: 35912.19141 | N24: 49985.23438 | O24: 41980.49219 | P24: 43518.07031 | Q24: 40101.29297 | R24: 39964.26563 | S24: 39830.59766 | T24: 40510.55859 | U24: 40734.23755
B25: ENSOARG00000006071 | C25: myosin light chain 11 | D25: MYL11 | E25: 41186.26172 | F25: 29228.9043 | G25: 41267.54688 | H25: 29978.85547 | I25: 34484.32031 | J25: 31139.49609 | K25: 34631.64063 | L25: 38378.68359 | M25: 33289.65625 | N25: 34927.48828 | O25: 38051.06641 | P25: 42865.39844 | Q25: 32421.43164 | R25: 47387.14844 | S25: 35186.87109 | T25: 36330.69141 | U25: 36297.21631
B26: ENSOARG00000007894 | C26: glyceraldehyde-3-phosphate dehydrogenase | D26: GAPDH | E26: 18892.28125 | F26: 14912.4502 | G26: 16871.96484 | H26: 13074.98145 | I26: 15301.21777 | J26: 11023.69043 | K26: 22298.06445 | L26: 19526.53711 | M26: 15422.80957 | N26: 19485.19727 | O26: 18940.5625 | P26: 20263.42969 | Q26: 20063.48047 | R26: 17169.67188 | S26: 23082.84961 | T26: 16677.16797 | U26: 17687.89728
B27: ENSOARG00000020797 | C27: tropomyosin 1 | D27: TPM1 | E27: 14998.24609 | F27: 13255.21484 | G27: 13224.35986 | H27: 15239.99072 | I27: 13995.70215 | J27: 14374.27734 | K27: 15242.60791 | L27: 17446.39453 | M27: 13337.27734 | N27: 18982.36035 | O27: 19655.25977 | P27: 16446.17139 | Q27: 12785.73633 | R27: 18509.81348 | S27: 19707.11719 | T27: 17152.69629 | U27: 15897.0766
B28: ENSOARG00000006566 | C28: W5P9C1 | D28: TNNC2 | E28: 13100.63574 | F28: 13182.53223 | G28: 14736.21777 | H28: 13683.80273 | I28: 11253.39746 | J28: 11363.66211 | K28: 13131.37695 | L28: 13196.46484 | M28: 11184.16113 | N28: 12771.31543 | O28: 15253.08398 | P28: 12189.60254 | Q28: 15996.65234 | R28: 16567.36328 | S28: 16073.50586 | T28: 12666.26758 | U28: 13521.87762
B29: ENSOARG00000007617 | C29: tumor protein, translationally-controlled 1 | D29: LOC100135455 | E29: 10847.24414 | F29: 15158.21777 | G29: 14772.89453 | H29: 16448.51758 | I29: 9088.677734 | J29: 11253.63086 | K29: 12271.51953 | L29: 12718.32227 | M29: 8911.399414 | N29: 10522.57813 | O29: 11669.97852 | P29: 8463.550781 | Q29: 15578.88281 | R29: 13443.15039 | S29: 12136.31445 | T29: 9419.185547 | U29: 12044.00403
B30: ENSOARG00000011889 | C30: tropomyosin 2 | D30: TPM2 | E30: 14447.08932 | F30: 11685.25929 | G30: 15197.97966 | H30: 9169.178123 | I30: 11943.93105 | J30: 9884.487324 | K30: 13536.31924 | L30: 10319.56117 | M30: 9563.969833 | N30: 9957.911335 | O30: 15320.47609 | P30: 10918.63825 | Q30: 7857.959919 | R30: 8422.566902 | S30: 8346.682907 | T30: 9737.314575 | U30: 11019.33281
B31: ENSOARG00000018639 | C31: myoglobin | D31: MB | E31: 11469.95508 | F31: 12402.00684 | G31: 12116.78516 | H31: 13512.88379 | I31: 11524.44922 | J31: 9426.949219 | K31: 8239.819336 | L31: 7103.099609 | M31: 11747.99902 | N31: 6630.769531 | O31: 9233.083984 | P31: 10532.20996 | Q31: 10870.13672 | R31: 9465.181641 | S31: 11156.53418 | T31: 9926.699219 | U31: 10334.91016
B32: ENSOARG00000003852 | C32: troponin I2, fast skeletal type | D32: TNNI2 | E32: 10593.50195 | F32: 11043.13867 | G32: 12203.82617 | H32: 10979.7793 | I32: 7579.466309 | J32: 7289.593262 | K32: 10552.8584 | L32: 11937.54004 | M32: 9086.947266 | N32: 9693.59668 | O32: 10375.09863 | P32: 10724.82031 | Q32: 9826.353516 | R32: 11218.4082 | S32: 12050.59473 | T32: 9652.808594 | U32: 10300.52075

Sheet Table S11
A1: Table S11. KEGG pathway enrichment analysis of uniquely expressed genes in the rumen epithelium
A2: ID | B2: Category | C2: Subcategory | D2: Description | E2: GeneRatio | F2: BgRatio | G2: P value | H2: P.adjust | I2: geneID | J2: Count | K2: RichFactor | L2: FoldEnrichment
A3: oas04110 | B3: Cellular Processes | C3: Cell growth and death | D3: Cell cycle | E3: 23/488 | F3: 175/9663 | G3: 2.27E-05 | H3: 0.007112976479 | I3: CHEK2/DBF4/ORC1/CCNB1/TRIP13/PDS5B/AURKB/SKP2/PPP2R1B/CDK1/RBL1/CCNB2/CDK6/CDC20/MAD2L1BP/SFN/CCNA2/MCM2/CCNE1/CDC25B/ANAPC1/BUB1B/PLK1 | J3: 23 | K3: 0.1314285714 | L3: 2.602447307
A4: oas04657 | B4: Organismal Systems | C4: Immune system | D4: IL-17 signaling pathway | E4: 13/488 | F4: 95/9663 | G4: 0.000926100935 | H4: 0.07063948519 | I4: CCL20/IL25/TNFAIP3/TAB3/IKBKE/PTGS2/TRAF3/FOSL1/S100A8/LOC101103238/S100A9/MMP9/LOC121818081 | J4: 13 | K4: 0.1368421053 | L4: 2.709641933
A5: oas04115 | B5: Cellular Processes | C5: Cell growth and death | D5: p53 signaling pathway | E5: 13/488 | F5: 97/9663 | G5: 0.001128426281 | H5: 0.07063948519 | I5: CHEK2/CCNB1/GTSE1/PMAIP1/CDK1/CCNB2/CDK6/SESN3/SFN/SESN2/RRM2/CCNE1/SERPINB5 | J5: 13 | K5: 0.1340206186 | L5: 2.653773027
A6: oas04915 | B6: Organismal Systems | C6: Endocrine system | D6: Estrogen signaling pathway | E6: 16/488 | F6: 143/9663 | G6: 0.002269605766 | H6: 0.1125084363 | I6: SRC/KRAS/GNAI1/LOC101117117/ADCY6/LOC101118459/LOC101118712/KRT35/KRT17/CREB1/KRT36/KRT13/GNAQ/EGFR/LOC101117682/MMP9 | J6: 16 | K6: 0.1118881119 | L6: 2.215522183
A7: oas04360 | B7: Organismal Systems | C7: Development and regeneration | D7: Axon guidance | E7: 19/488 | F7: 186/9663 | G7: 0.002671187135 | H7: 0.1125084363 | I7: EPHB3/EFNA3/PLXNB1/SRGAP2/SRC/SEMA4A/ROBO1/KRAS/GNAI1/EFNA5/ARHGEF12/PLXNA3/ROBO2/EPHB6/NFATC4/EPHA4/PAK6/PLCG2/ABLIM1 | J7: 19 | K7: 0.1021505376 | L7: 2.02270624
A8: oas04914 | B8: Organismal Systems | C8: Endocrine system | D8: Progesterone-mediated oocyte maturation | E8: 12/488 | F8: 95/9663 | G8: 0.002875614986 | H8: 0.1125084363 | I8: STK10/KRAS/GNAI1/CCNB1/ADCY6/CDK1/CCNB2/CCNA2/CDC25B/ANAPC1/BRAF/PLK1 | J8: 12 | K8: 0.1263157895 | L8: 2.501207938
A9: oas03440 | B9: Genetic Information Processing | C9: Replication and repair | D9: Homologous recombination | E9: 7/488 | F9: 42/9663 | G9: 0.004647282127 | H9: 0.1414337227 | I9: XRCC2/POLD1/RAD51D/RAD51B/MRE11/EME1/RAD51 | J9: 7 | K9: 0.1666666667 | L9: 3.300204918
A10: oas04071 | B10: Environmental Information Processing | C10: Signal transduction | D10: Sphingolipid signaling pathway | E10: 14/488 | F10: 127/9663 | G10: 0.00476764619 | H10: 0.1414337227 | I10: KRAS/GNAI1/SPTLC3/BDKRB2/PLD2/ACER2/PPP2R1B/SPHK1/PPP2R2C/ACER1/GNAQ/S1PR2/MAP3K5/SPTSSB | J10: 14 | K10: 0.1102362205 | L10: 2.182812702
A11: oas04218 | B11: Cellular Processes | C11: Cell growth and death | D11: Cellular senescence | E11: 17/488 | F11: 169/9663 | G11: 0.005116999656 | H11: 0.1414337227 | I11: CHEK2/LOC101104866/KRAS/CCNB1/LIN54/CDK1/RBL1/CCNB2/LIN9/NFATC4/CDK6/CCNA2/TRPV4/CCNE1/MRE11/MYBL2/HIPK1 | J11: 17 | K11: 0.100591716 | L11: 1.991839655
A12: oas04144 | B12: Cellular Processes | C12: Transport and catabolism | D12: Endocytosis | E12: 23/488 | F12: 261/9663 | G12: 0.006558166976 | H12: 0.1414337227 | I12: PSD/ARAP2/SRC/ASAP1/LOC101104866/PSD3/EPN3/LOC101117117/PSD4/RAB11FIP4/CHMP4C/EHD4/ACAP2/PLD2/CBLC/DNM1/RBSN/PRKCI/ARFGEF2/EGFR/SH3GL3/DNAJC6/PIP5K1C | J12: 23 | K12: 0.08812260536 | L12: 1.744935934
A13: oas00240 | B13: Metabolism | C13: Nucleotide metabolism | D13: Pyrimidine metabolism | E13: 8/488 | F13: 57/9663 | G13: 0.007451823487 | H13: 0.1414337227 | I13: CTPS1/NT5C/ENPP3/UPP1/TK1/RRM2/DCK/ENTPD3 | J13: 8 | K13: 0.1403508772 | L13: 2.779119931
A14: oas04912 | B14: Organismal Systems | C14: Endocrine system | D14: GnRH signaling pathway | E14: 11/488 | F14: 94/9663 | G14: 0.007569420151 | H14: 0.1414337227 | I14: SRC/KRAS/PLA2G4E/ADCY6/PLA2G4F/PLD2/MAP3K1/PTK2B/GNAQ/EGFR/MAP3K2 | J14: 11 | K14: 0.1170212766 | L14: 2.317165155
A15: oas00590 | B15: Metabolism | C15: Lipid metabolism | D15: Arachidonic acid metabolism | E15: 10/488 | F15: 82/9663 | G15: 0.008021049565 | H15: 0.1414337227 | I15: LOC101121820/ALOX12/PTGS2/PLA2G4E/LOC101109377/PLA2G4F/PLA2G2F/LOC101107119/LOC101121185/ALOX5 | J15: 10 | K15: 0.1219512195 | L15: 2.414784086
A16: oas04750 | B16: Organismal Systems | C16: Sensory system | D16: Inflammatory mediator regulation of TRP channels | E16: 12/488 | F16: 108/9663 | G16: 0.008133568715 | H16: 0.1414337227 | I16: LOC101121820/SRC/ALOX12/PLA2G4E/ADCY6/TRPA1/BDKRB2/PLA2G4F/TRPV4/PLCG2/GNAQ/TRPV2 | J16: 12 | K16: 0.1111111111 | L16: 2.200136612
A17: oas04814 | B17: Cellular Processes | C17: Cell motility | D17: Motor proteins | E17: 18/488 | F17: 197/9663 | G17: 0.01071612953 | H17: 0.1666158176 | I17: KIFC1/KLC3/KIF21A/KIF16B/MYO1G/KIF4A/DNAL4/MYO19/MYO6/MYO9B/HOOK3/TUBD1/BICDL2/KIF20A/KIF11/KIF23/DNAL1/KIF3A | J17: 18 | K17: 0.09137055838 | L17: 1.809249397
A18: oas04913 | B18: Organismal Systems | C18: Endocrine system | D18: Ovarian steroidogenesis | E18: 8/488 | F18: 61/9663 | G18: 0.01114740842 | H18: 0.1666158176 | I18: LOC101121820/PTGS2/PLA2G4E/ADCY6/LOC101109377/PLA2G4F/LOC101107119/ALOX5 | J18: 8 | K18: 0.131147541 | L18: 2.596882558
A19: oas03030 | B19: Genetic Information Processing | C19: Replication and repair | D19: DNA replication | E19: 6/488 | F19: 38/9663 | G19: 0.01120491126 | H19: 0.1666158176 | I19: POLD1/LIG1/POLA2/MCM2/POLE2/RFC3 | J19: 6 | K19: 0.1578947368 | L19: 3.126509922
A20: oas04668 | B20: Environmental Information Processing | C20: Signal transduction | D20: TNF signaling pathway | E20: 13/488 | F20: 127/9663 | G20: 0.01171101594 | H20: 0.1666158176 | I20: CCL20/TNFAIP3/TAB3/PTGS2/TRAF3/NOD2/CREB1/EDN1/CX3CL1/LOC101103238/MAP3K5/LOC101113636/MMP9 | J20: 13 | K20: 0.1023622047 | L20: 2.026897509
A21: oas00565 | B21: Metabolism | C21: Lipid metabolism | D21: Ether lipid metabolism | E21: 7/488 | F21: 51/9663 | G21: 0.01351674228 | H21: 0.1839452319 | I21: PLA2G4E/PLA2G4F/LPCAT2/PLD2/GDPD3/PLA2G2F/LPCAT1 | J21: 7 | K21: 0.137254902 | L21: 2.717815815
A22: oas04666 | B22: Organismal Systems | C22: Immune system | D22: Fc gamma R-mediated phagocytosis | E22: 10/488 | F22: 96/9663 | G22: 0.02269295947 | H22: 0.2630702339 | I22: ASAP1/FCGR1A/PLA2G4E/PLA2G4F/PLD2/SCIN/SPHK1/VAV3/PLCG2/PIP5K1C | J22: 10 | K22: 0.1041666667 | L22: 2.062628074
A23: oas04611 | B23: Organismal Systems | C23: Immune system | D23: Platelet activation | E23: 12/488 | F23: 128/9663 | G23: 0.02812068615 | H23: 0.3027350826 | I23: RASGRP1/LOC105603811/SRC/GNAI1/PLA2G4E/ADCY6/ITGA2/ARHGEF12/PLA2G4F/PRKCI/PLCG2/GNAQ | J23: 12 | K23: 0.09375 | L23: 1.856365266
A24: oas04370 | B24: Environmental Information Processing | C24: Signal transduction | D24: VEGF signaling pathway | E24: 7/488 | F24: 59/9663 | G24: 0.02826824911 | H24: 0.3027350826 | I24: SRC/KRAS/PTGS2/PLA2G4E/PLA2G4F/SPHK1/PLCG2 | J24: 7 | K24: 0.1186440678 | L24: 2.349298416
A25: oas01232 | B25: Metabolism | C25: Global and overview maps | D25: Nucleotide metabolism | E25: 9/488 | F25: 86/9663 | G25: 0.0290161421 | H25: 0.3027350826 | I25: CTPS1/NT5C/ENPP3/AMPD3/UPP1/TK1/RRM2/DCK/ENTPD3 | J25: 9 | K25: 0.1046511628 | L25: 2.072221693
A26: oas03450 | B26: Genetic Information Processing | C26: Replication and repair | D26: Non-homologous end-joining | E26: 3/488 | F26: 14/9663 | G26: 0.03072901825 | H26: 0.3102639585 | I26: POLM/LIG4/MRE11 | J26: 3 | K26: 0.2142857143 | L26: 4.243120609
A27: oas03410 | B27: Genetic Information Processing | C27: Replication and repair | D27: Base excision repair | E27: 6/488 | F27: 49/9663 | G27: 0.03573123805 | H27: 0.3355982543 | I27: POLD1/MBD4/LIG1/TDP1/POLE2/RFC3 | J27: 6 | K27: 0.1224489796 | L27: 2.424640348
A28: oas04640 | B28: Organismal Systems | C28: Immune system | D28: Hematopoietic cell lineage | E28: 10/488 | F28: 104/9663 | G28: 0.03688521446 | H28: 0.3355982543 | I28: DQA/FCGR1A/CD4/IL1R2/ITGA2/LOC101110634/ITGA3/CD2/CD55/ITGA1 | J28: 10 | K28: 0.09615384615 | L28: 1.903964376
A29: oas04726 | B29: Organismal Systems | C29: Nervous system | D29: Serotonergic synapse | E29: 11/488 | F29: 120/9663 | G29: 0.03983120736 | H29: 0.3369504838 | I29: LOC101121820/KRAS/GNAI1/ALOX12/PTGS2/PLA2G4E/PLA2G4F/GNAQ/LOC101121185/BRAF/ALOX5 | J29: 11 | K29: 0.09166666667 | L29: 1.815112705
A30: oas04730 | B30: Organismal Systems | C30: Nervous system | D30: Long-term depression | E30: 7/488 | F30: 64/9663 | G30: 0.04160753545 | H30: 0.3385821728 | I30: KRAS/GNAI1/PLA2G4E/PLA2G4F/PPP2R1B/GNAQ/BRAF | J30: 7 | K30: 0.109375 | L30: 2.165759477
A31: oas04512 | B31: Environmental Information Processing | C31: Signaling molecules and interaction | D31: ECM-receptor interaction | E31: 9/488 | F31: 92/9663 | G31: 0.04218755507 | H31: 0.3385821728 | I31: HMMR/COL4A5/ITGA2/ITGA3/LAMC2/LAMB3/LAMA3/LAMC3/ITGA1 | J31: 9 | K31: 0.09782608696 | L31: 1.9370768
A32: oas04064 | B32: Environmental Information Processing | C32: Signal transduction | D32: NF-kappa B signaling pathway | E32: 10/488 | F32: 108/9663 | G32: 0.0458979632 | H32: 0.3591515621 | I32: TNFAIP3/TAB3/PTGS2/TRAF3/LOC105601870/CARD14/PLCG2/TLR4/CD40/LOC101113636 | J32: 10 | K32: 0.09259259259 | L32: 1.833447177
A33: oas03460 | B33: Genetic Information Processing | C33: Replication and repair | D33: Fanconi anemia pathway | E33: 6/488 | F33: 53/9663 | G33: 0.0496559793 | H33: 0.3790810127 | I33: FANCA/FANCM/FANCD2/EME1/RAD51/POLK | J33: 6 | K33: 0.1132075472 | L33: 2.241648624

Sheet Table S12
A1: Table S12. KEGG pathway enrichment analysis of uniquely expressed genes in the liver
A2: ID | B2: Category | C2: Subcategory | D2: Description | E2: GeneRatio | F2: BgRatio | G2: P value | H2: P.adjust | I2: geneID | J2: Count | K2: RichFactor | L2: FoldEnrichment
A3: oas04610 | B3: Organismal Systems | C3: Immune system | D3: Complement and coagulation cascades | E3: 28/304 | F3: 91/9664 | G3: 9.48E-21 | H3: 2.58E-18 | I3: SERPINF2/FGA/F12/FGB/PLG/C3AR1/SERPINA1/F9/C8A/C9/C8B/VTN/F13B/FGG/LOC101119740/F2/CPB2/KLKB1/C6/F7/MBL2/LOC101116630/CFI/CR2/MBLA/LOC101121825/SERPINA5/SERPINC1 | J3: 28 | K3: 0.3076923077 | L3: 9.781376518
A4: oas01100 | B4: Metabolism | C4: Global and overview maps | D4: Metabolic pathways | E4: 118/304 | F4: 1704/9664 | G4: 5.74E-19 | H4: 7.80E-17 | I4: PLA2G2D/LOC101118447/SRD5A2/FMO1/CA5A/B3GALT5/PIPOX/GPLD1/GPAM/HPD/LOC101109214/LOC101118164/SDSL/PPAT/ST6GAL1/P4HA3/ST3GAL1/ASAH2/UPP2/BHMT2/TMEM86B/TPH1/DMGDH/SDS/PRPS2/NAGS/COLGALT2/XYLB/DPYS/PCK1/ALDOB/DDC/AOC1/HGD/AGMAT/GK/CYP1A1/SUV39H1/ACMSD/HAO2/NPL/OTC/LOC101107056/CYP2A6/ALLC/RGN/UPB1/G6PC1/LOC101111664/CPS1/ADA2/GDA/MTHFD1L/PLCB2/LOC101119640/ALDH8A1/PIK3C2G/PDE3B/CHDH/ABAT/GLS2/LOC101106395/SARDH/TAT/TBXAS1/ALDH1L1/CERS6/FTCD/LOC101116841/CHIA/LOC114114831/LOC101106720/CYP2E1/HAO1/SULT1E1/LOC101123289/LOC101109838/PAH/DAO/SGPP1/H6PD/AGXT2/LOC101105400/LIPC/VNN1/LOC101116729/C1GALT1/LOC101105610/BAAT/HAL/BHMT/LOC101104222/GYS2/LOC101107486/ACOX2/PRODH2/ENO4/GNE/MAT1A/IDO2/HAAO/LOC114108597/PKLR/UGT2B7/ACSM3/LOC101110727/AFMID/ELOVL2/AMDHD1/ASPDH/XDH/PLA2G12B/TDO2/ACSM2B/LOC101118990/GLDC/ACSM1/LOC101112590 | J4: 118 | K4: 0.06924882629 | L4: 2.201383741
A5: oas04976 | B5: Organismal Systems | C5: Digestive system | D5: Bile secretion | E5: 23/304 | F5: 99/9664 | G5: 2.71E-14 | H5: 2.46E-12 | I5: LOC101118447/KCNN2/AQP8/SLC10A1/ABCG8/NR1H4/SCTR/SLC22A7/ABCC2/NR0B2/LOC101119640/ABCB11/SLC22A1/LOC101116841/SLC51B/LOC101119842/LOC101120653/AQP9/LOC101116729/BAAT/UGT2B7/LOC101122517/ABCG5 | J5: 23 | K5: 0.2323232323 | L5: 7.38543328
A6: oas04979 | B6: Organismal Systems | C6: Digestive system | D6: Cholesterol metabolism | E6: 14/304 | F6: 52/9664 | G6: 4.16E-10 | H6: 2.83E-08 | I6: APOC3/APOA2/ABCG8/LOC101114861/ABCB11/LOC101116841/APOH/LIPC/SOAT2/APOB/CIDEB/ANGPTL3/ABCG5/LOC101102230 | J6: 14 | K6: 0.2692307692 | L6: 8.558704453
A7: oas00140 | B7: Metabolism | C7: Lipid metabolism | D7: Steroid hormone biosynthesis | E7: 16/304 | F7: 82/9664 | G7: 3.97E-09 | H7: 2.16E-07 | I7: LOC101118447/SRD5A2/LOC101109214/CYP1A1/LOC101107056/LOC101119640/LOC101116841/CYP2E1/SULT1E1/LOC101105400/LOC101116729/LOC101107486/LOC114108597/UGT2B7/LOC101110727/LOC101112590 | J7: 16 | K7: 0.1951219512 | L7: 6.202824134
A8: oas00830 | B8: Metabolism | C8: Metabolism of cofactors and vitamins | D8: Retinol metabolism | E8: 15/304 | F8: 76/9664 | G8: 1.04E-08 | H8: 4.05E-07 | I8: LOC101118447/LOC101109214/CYP1A1/LOC101107056/CYP2A6/LOC101119640/LOC114114831/LOC101105400/LOC101116729/LOC101105610/LOC101104222/LOC101107486/LOC114108597/UGT2B7/LOC101110727 | J8: 15 | K8: 0.1973684211 | L8: 6.274238227
A9: oas00380 | B9: Metabolism | C9: Amino acid metabolism | D9: Tryptophan metabolism | E9: 12/304 | F9: 49/9664 | G9: 2.46E-08 | H9: 8.36E-07 | I9: LOC101109214/TPH1/DDC/AOC1/CYP1A1/ACMSD/ALDH8A1/LOC101123289/IDO2/HAAO/AFMID/TDO2 | J9: 12 | K9: 0.2448979592 | L9: 7.785177229
A10: oas00260 | B10: Metabolism | C10: Amino acid metabolism | D10: Glycine, serine and threonine metabolism | E10: 11/304 | F10: 50/9664 | G10: 3.11E-07 | H10: 9.41E-06 | I10: PIPOX/LOC101118164/SDSL/DMGDH/SDS/CHDH/SARDH/DAO/AGXT2/BHMT/GLDC | J10: 11 | K10: 0.22 | L10: 6.993684211
A11: oas03320 | B11: Organismal Systems | C11: Endocrine system | D11: PPAR signaling pathway | E11: 12/304 | F11: 82/9664 | G11: 8.71E-06 | H11: 0.0002369 | I11: SLC27A6/APOC3/PCK1/GK/APOA2/LOC101114861/LOC101116841/LOC114114831/FABP1/LOC101105610/ACOX2/LOC101102230 | J11: 12 | K11: 0.1463414634 | L11: 4.6521181
A12: oas00983 | B12: Metabolism | C12: Xenobiotics biodegradation and metabolism | D12: Drug metabolism - other enzymes | E12: 12/304 | F12: 86/9664 | G12: 1.44E-05 | H12: 0.0003553 | I12: LOC101118447/UPP2/DPYS/UPB1/LOC101111664/LOC101119640/LOC101106720/CYP2E1/LOC101116729/UGT2B7/XDH/LOC101118990 | J12: 12 | K12: 0.1395348837 | L12: 4.435740514
A13: oas00591 | B13: Metabolism | C13: Lipid metabolism | D13: Linoleic acid metabolism | E13: 8/304 | F13: 38/9664 | G13: 1.88E-05 | H13: 0.0004239 | I13: PLA2G2D/LOC101109214/LOC101107056/CYP2E1/LOC101107486/LOC114108597/LOC101110727/PLA2G12B | J13: 8 | K13: 0.2105263158 | L13: 6.692520776
A14: oas01230 | B14: Metabolism | C14: Global and overview maps | D14: Biosynthesis of amino acids | E14: 11/304 | F14: 75/9664 | G14: 2.03E-05 | H14: 0.0004239 | I14: SDSL/SDS/PRPS2/NAGS/ALDOB/OTC/CPS1/PAH/ENO4/MAT1A/PKLR | J14: 11 | K14: 0.1466666667 | L14: 4.66245614
A15: oas00980 | B15: Metabolism | C15: Xenobiotics biodegradation and metabolism | D15: Metabolism of xenobiotics by cytochrome P450 | E15: 11/304 | F15: 77/9664 | G15: 2.61E-05 | H15: 0.0005078 | I15: LOC101118447/LOC101109214/CYP1A1/LOC101111664/LOC101119640/LOC101106720/CYP2E1/LOC101119842/LOC101116729/UGT2B7/LOC101118990 | J15: 11 | K15: 0.1428571429 | L15: 4.541353383
A16: oas04975 | B16: Organismal Systems | C16: Digestive system | D16: Fat digestion and absorption | E16: 9/304 | F16: 53/9664 | G16: 3.51E-05 | H16: 0.0006365 | I16: PLA2G2D/ABCG8/LOC101114861/MTTP/FABP1/APOB/PLA2G12B/ABCG5/LOC101102230 | J16: 9 | K16: 0.1698113208 | L16: 5.398212512
A17: oas00982 | B17: Metabolism | C17: Xenobiotics biodegradation and metabolism | D17: Drug metabolism - cytochrome P450 | E17: 10/304 | F17: 70/9664 | G17: 6.09E-05 | H17: 0.0010355 | I17: LOC101118447/FMO1/LOC101109214/LOC101111664/LOC101119640/LOC101106720/CYP2E1/LOC101116729/UGT2B7/LOC101118990 | J17: 10 | K17: 0.1428571429 | L17: 4.541353383
A18: oas01240 | B18: Metabolism | C18: Global and overview maps | D18: Biosynthesis of cofactors | E18: 15/304 | F18: 158/9664 | G18: 0.0001316601709 | H18: 0.0019895 | I18: LOC101118447/HPD/RGN/MTHFD1L/LOC101119640/LOC101106395/LOC101105400/LOC101116729/MAT1A/IDO2/HAAO/UGT2B7/AFMID/ASPDH/TDO2 | J18: 15 | K18: 0.09493670886 | L18: 3.017988008
A19: oas00053 | B19: Metabolism | C19: Carbohydrate metabolism | D19: Ascorbate and aldarate metabolism | E19: 6/304 | F19: 32/9664 | G19: 0.0004186992225 | H19: 0.0059940 | I19: LOC101118447/RGN/LOC101119640/LOC101106395/LOC101116729/UGT2B7 | J19: 6 | K19: 0.1875 | L19: 5.960526316
A20: oas01200 | B20: Metabolism | C20: Global and overview maps | D20: Carbon metabolism | E20: 12/304 | F20: 124/9664 | G20: 0.0005158185596 | H20: 0.0070151 | I20: SDSL/SDS/PRPS2/ALDOB/HAO2/RGN/CPS1/HAO1/H6PD/ENO4/PKLR/GLDC | J20: 12 | K20: 0.09677419355 | L20: 3.076400679
A21: oas00270 | B21: Metabolism | C21: Amino acid metabolism | D21: Cysteine and methionine metabolism | E21: 7/304 | F21: 55/9664 | G21: 0.001579880737 | H21: 0.0195331 | I21: SDSL/BHMT2/SDS/TAT/AGXT2/BHMT/MAT1A | J21: 7 | K21: 0.1272727273 | L21: 4.045933014
A22: oas02010 | B22: Environmental Information Processing | C22: Membrane transport | D22: ABC transporters | E22: 7/304 | F22: 55/9664 | G22: 0.001579880737 | H22: 0.0195331 | I22: ABCG8/ABCC2/ABCB11/ABCC6/LOC101122517/ABCG5/ABCA10 | J22: 7 | K22: 0.1272727273 | L22: 4.045933014
A23: oas04152 | B23: Environmental Information Processing | C23: Signal transduction | D23: AMPK signaling pathway | E23: 11/304 | F23: 127/9664 | G23: 0.002163692583 | H23: 0.0255880 | I23: HNF4A/PCK1/CIDEA/CREB3L3/G6PC1/LOC101114861/PPP2R2B/LEPR/GYS2/LOC101102230/CAMKK2 | J23: 11 | K23: 0.08661417323 | L23: 2.753418981
A24: oas04060 | B24: Environmental Information Processing | C24: Signaling molecules and interaction | D24: Cytokine-cytokine receptor interaction | E24: 21/304 | F24: 338/9664 | G24: 0.002267545066 | H24: 0.0256590 | I24: TNFRSF9/GDF2/LOC101114535/CCR3/CCL19/THPO/INHBC/LOC101113771/LOC101114285/IL13RA2/IL1B/CCL16/LEPR/IL7/CCL24/GDF9/LTB/IL10RA/INHBE/GDF15/CCL25 | J24: 21 | K24: 0.06213017751 | L24: 1.975085643
A25: oas04061 | B25: Environmental Information Processing | C25: Signaling molecules and interaction | D25: Viral protein interaction with cytokine and cytokine receptor | E25: 9/304 | F25: 94/9664 | G25: 0.002734180353 | H25: 0.0275443 | I25: LOC101114535/CCR3/CCL19/LOC101113771/LOC101114285/CCL16/CCL24/IL10RA/CCL25 | J25: 9 | K25: 0.09574468085 | L25: 3.043673012
A26: oas04918 | B26: Organismal Systems | C26: Endocrine system | D26: Thyroid hormone synthesis | E26: 8/304 | F26: 78/9664 | G26: 0.003031703655 | H26: 0.0294508 | I26: PAX8/CREB3L3/IYD/PLCB2/ALB/SERPINA7/TTR/LOC101116157 | J26: 8 | K26: 0.1025641026 | L26: 3.260458839
A27: oas00220 | B27: Metabolism | C27: Amino acid metabolism | D27: Arginine biosynthesis | E27: 4/304 | F27: 21/9664 | G27: 0.00376153823 | H27: 0.0341046 | I27: NAGS/OTC/CPS1/GLS2 | J27: 4 | K27: 0.1904761905 | L27: 6.055137845
A28: oas00360 | B28: Metabolism | C28: Amino acid metabolism | D28: Phenylalanine metabolism | E28: 4/304 | F28: 21/9664 | G28: 0.00376153823 | H28: 0.0341046 | I28: HPD/DDC/TAT/PAH | J28: 4 | K28: 0.1904761905 | L28: 6.055137845
A29: oas00590 | B29: Metabolism | C29: Lipid metabolism | D29: Arachidonic acid metabolism | E29: 8/304 | F29: 82/9664 | G29: 0.004137123632 | H29: 0.0362999 | I29: PLA2G2D/LOC101107056/TBXAS1/LOC114114831/CYP2E1/LOC101105610/LOC101107486/PLA2G12B | J29: 8 | K29: 0.09756097561 | L29: 3.101412067
A30: oas04146 | B30: Cellular Processes | C30: Transport and catabolism | D30: Peroxisome | E30: 8/304 | F30: 84/9664 | G30: 0.004794920011 | H30: 0.0407568 | I30: PIPOX/HAO2/HAO1/DAO/MPV17L/BAAT/ACOX2/XDH | J30: 8 | K30: 0.09523809524 | L30: 3.027568922
A31: oas00340 | B31: Metabolism | C31: Amino acid metabolism | D31: Histidine metabolism | E31: 4/304 | F31: 23/9664 | G31: 0.005297066907 | H31: 0.0436607 | I31: AOC1/FTCD/HAL/AMDHD1 | J31: 4 | K31: 0.1739130435 | L31: 5.528604119
A32: oas00040 | B32: Metabolism | C32: Carbohydrate metabolism | D32: Pentose and glucuronate interconversions | E32: 5/304 | F32: 37/9664 | G32: 0.005687454197 | H32: 0.0454996 | I32: LOC101118447/XYLB/LOC101119640/LOC101116729/UGT2B7 | J32: 5 | K32: 0.1351351351 | L32: 4.295874822
A33: oas04922 | B33: Organismal Systems | C33: Endocrine system | D33: Glucagon signaling pathway | E33: 9/304 | F33: 109/9664 | G33: 0.007287534338 | H33: 0.0566346 | I33: PCK1/SLC2A2/GCGR/CREB3L3/PHKA2/G6PC1/PLCB2/PDE3B/GYS2 | J33: 9 | K33: 0.08256880734 | L33: 2.624818928
A34: oas00250 | B34: Metabolism | C34: Amino acid metabolism | D34: Alanine, aspartate and glutamate metabolism | E34: 5/304 | F34: 40/9664 | G34: 0.007953487709 | H34: 0.0600930 | I34: PPAT/CPS1/ABAT/GLS2/AGXT2 | J34: 5 | K34: 0.125 | L34: 3.973684211
A35: oas00650 | B35: Metabolism | C35: Carbohydrate metabolism | D35: Butanoate metabolism | E35: 4/304 | F35: 27/9664 | G35: 0.009513941683 | H35: 0.0699403 | I35: ABAT/ACSM3/ACSM2B/ACSM1 | J35: 4 | K35: 0.1481481481 | L35: 4.709551657
A36: oas04977 | B36: Organismal Systems | C36: Digestive system | D36: Vitamin digestion and absorption | E36: 4/304 | F36: 28/9664 | G36: 0.01083046477 | H36: 0.0775233 | I36: LOC101104046/SLC46A1/AMN/APOB | J36: 4 | K36: 0.1428571429 | L36: 4.541353383
A37: oas04514 | B37: Environmental Information Processing | C37: Signaling molecules and interaction | D37: Cell adhesion molecules | E37: 11/304 | F37: 163/9664 | G37: 0.01381561058 | H37: 0.0963550 | I37: NECTIN3/CDH2/ALCAM/SELL/ITGAL/SIGLEC1/CD8A/IGSF11/CLDN15/CD86/CLDN2 | J37: 11 | K37: 0.06748466258 | L37: 2.145301905
A38: oas00120 | B38: Metabolism | C38: Lipid metabolism | D38: Primary bile acid biosynthesis | E38: 3/304 | F38: 17/9664 | G38: 0.01510773161 | H38: 0.1025960 | I38: LOC101116841/BAAT/ACOX2 | J38: 3 | K38: 0.1764705882 | L38: 5.609907121
A39: oas00030 | B39: Metabolism | C39: Carbohydrate metabolism | D39: Pentose phosphate pathway | E39: 4/304 | F39: 31/9664 | G39: 0.01546483278 | H39: 0.1025960 | I39: PRPS2/ALDOB/RGN/H6PD | J39: 4 | K39: 0.1290322581 | L39: 4.101867572
A40: oas00630 | B40: Metabolism | C40: Carbohydrate metabolism | D40: Glyoxylate and dicarboxylate metabolism | E40: 4/304 | F40: 34/9664 | G40: 0.02118453358 | H40: 0.1371951 | I40: HAO2/HAO1/AFMID/GLDC | J40: 4 | K40: 0.1176470588 | L40: 3.73993808
A41: oas00670 | B41: Metabolism | C41: Metabolism of cofactors and vitamins | D41: One carbon pool by folate | E41: 3/304 | F41: 20/9664 | G41: 0.02363339374 | H41: 0.1494950 | I41: MTHFD1L/ALDH1L1/FTCD | J41: 3 | K41: 0.15 | L41: 4.768421053
A42: oas00330 | B42: Metabolism | C42: Amino acid metabolism | D42: Arginine and proline metabolism | E42: 5/304 | F42: 54/9664 | G42: 0.02682532317 | H42: 0.1621442 | I42: P4HA3/AOC1/AGMAT/DAO/PRODH2 | J42: 5 | K42: 0.09259259259 | L42: 2.943469786
